Workbook

Sheet TIEOSAT
D1: PISTEYTYSTEKIJÄT JA PAINOARVOT | N1: Kaakkois-Suomen ELY-keskuksen tieverkon merkittävyysluokitus 2024 | R1: PALAUTUS- JA LAJITTELUTYÖKALUT | Y1: SUODATUS- JA HAKUTYÖKALUT
D2: OSA-ALUEET | J2: Taajama | U2: Tietokannan palauttaminen oletusarvoihin | Z2: KVL tekijät poistetaan käytöstä
D3: Säännöllinen henkilöliikenne | G3: Yht. | H3: painotus | J3: Tieosasta | L3: 0.5
D4: KVL | F4: 9 | G4: =SUM(F4:F7) -> 17 | H4: =1/3 -> 0.3333333333 | J4: Liikennemäärät
D5: Linja-autovuorot | F5: 3 | J5: KVL | L5: 500 | M5: ajon./vrk | Z5: Järjestä tieosat luokan mukaan
D6: Työmatkat | F6: 2 | J6: KVLRAS | L6: 50 | M6: ajon./vrk | U6: Lajittele muutosten/ nollauksen jälkeen
D7: Koulukuljetusreitit | F7: 3 | J7: KKVL | L7: 500 | M7: ajon./vrk
D8: Säännöllinen tavaraliikenne | G8: Yht. | H8: painotus | J8: Työmatkat | Z8: Näytä vain soratiet
D9: KVLRAS | F9: 9 | G9: =SUM(F9:F19) -> 22 | H9: 0.3333333333 | J9: Pisteet | K9: Työmatkoja
D10: Maito | F10: 2 | J10: =F6 -> 2 | K10: =CONCATENATE("≥ ",M10,) -> ≥ 300 | M10: 300
D11: Jäte | F11: 1 | J11: =CONCATENATE("0-",J10) -> 0-2 | K11: 0–299 lineaarisesti | Z11: Tienumerojärjestys
D12: Maa-aines | F12: 1 | J12: Linja-autovuorot | R12: Merkitsevyysluokka | U12: % max pisteistä | W12: Tieosista
D13: Turve | F13: 1 | J13: Pisteet | K13: Vuoromäärä | R13: 1 luokka | U13: =CK26 -> 0.8231062313 | W13: 0.05
D14: Viljansäilytys ja kasvih. | F14: 1 | J14: =$F$5 -> 3 | K14: =CONCATENATE("≥ ",M14,) -> ≥ 10 | M14: 10 | R14: 2 luokka | U14: =CK27 -> 0.6186501444 | W14: 0.2 | Z14: Hae tiejakso
D15: Eläintilat | F15: 2 | J15: =CONCATENATE("0-",J14) -> 0-3 | K15: 0–9 lineaarisesti | R15: 3 luokka | U15: =CK28 -> 0.1828198628 | W15: 0.5
D16: Elintarvikelaitos | F16: 1 | J16: Koulubufferi (3 km tieverkkoa pitkin) | R16: 4 luokka | U16: =CK31 -> 0.01261355387 | W16: =1-SUM(W13:W15) -> 0.25
D17: Tuotantolaitos | F17: 1 | J17: Pisteet | K17: Tieosasta | R17: Kilometrit | T17: Keskivilkas | V17: Vähäliikenteinen | Z17: Suodata KVL:n perusteella
D18: Päivittäistavarakauppa | F18: 1 | J18: =$F$21 -> 1 | K18: =CONCATENATE("≥ ",M18*100," %") -> ≥ 50 % | M18: 0.5 | R18: Luokka | S18: 1 | T18: =SUMIFS(U39:U711,K39:K711,"KESKI",H39:H711,1)/1000 -> 163.149 | V18: =SUMIFS(U39:U711,K39:K711,"VÄHÄ",H39:H711,1)/1000 -> 0
D19: Puukuljetus | F19: 2 | J19: =F21/2 -> 0.5 | K19: =CONCATENATE("1-",M18*100-1," %") -> 1-49 % | R19: Luokka | S19: 2 | T19: =SUMIFS(U39:U711,K39:K711,"KESKI",H39:H711,2)/1000 -> 548.671 | V19: =SUMIFS(U39:U711,K39:K711,"VÄHÄ",H39:H711,2)/1000 -> 65.843
D20: Muut tekijät | G20: Yht. | H20: painotus | J20: Eläintilat (tieosalle kumuloitunut lkm) | R20: Luokka | S20: 3 | T20: =SUMIFS(U39:U711,K39:K711,"KESKI",H39:H711,3)/1000 -> 112.528 | V20: =SUMIFS(U39:U711,K39:K711,"VÄHÄ",H39:H711,3)/1000 -> 1656.57 | CK20: Luokkien min pist.
D21: Koulu | F21: 1 | G21: =SUM(F21:F29) -> 11 | H21: =1/3 -> 0.3333333333 | J21: Pisteet (0-0,5 lineaarisesti) | M21: Eläinten lkm | R21: Luokka | S21: 4 | T21: =SUMIFS(U39:U711,K39:K711,"KESKI",H39:H711,4)/1000 -> 0 | V21: =SUMIFS(U39:U711,K39:K711,"VÄHÄ",H39:H711,4)/1000 -> 733.79 | Y21: TIEJAKSORAPORTTI | CK21: =MIN(IF(H39:H711=S18,G39:G711)) -> 12.51821112
D22: Eriku-reitti | F22: 1 | J22: =$F$15/4 -> 0.5 | K22: Nauta | M22: 300 | R22: Yht. | T22: =SUM(T18:T21) -> 824.348 | V22: =SUM(V18:V21) -> 2456.203 | CK22: =MIN(IF(H39:H711=S19,G39:G711)) -> 9.408740721
D23: Varareitti | F23: 1 | J23: =$F$15/4 -> 0.5 | K23: Lammas/vuohi/hevonen | M23: 100 | CK23: =MIN(IF(H39:H711=S20,G39:G711)) -> 2.780415883
D24: Taajama | F24: 1 | J24: =$F$15/4 -> 0.5 | K24: Sika | M24: 1000 | T24: Keskivilkas | V24: Vähäliikenteinen | CK24: =MIN(IF(H39:H711=S21,G39:G711)) -> 0.191833234
D25: Asukastiheys | F25: 1 | J25: =$F$15/4 -> 0.5 | K25: Linnut | M25: 30 | R25: Tieosia (kpl) | T25: kpl | U25: osuus | V25: kpl | W25: osuus | X25: KAIKKI | CK25: Osuusmax
D26: KKVL | F26: 3 | J26: Tuotantolaitokset (kumuloituneet) | R26: Luokka 1 | T26: =COUNTIFS(K39:K711,"KESKI",H39:H711,1) -> 33 | U26: =T26/$T$30 -> 0.1793478261 | V26: =COUNTIFS(K39:K711,"VÄHÄ",H39:H711,1) -> 0 | W26: =V26/$V$30 -> 0 | X26: =(T26+V26)/($T$30+$V$30) -> 0.04903417533 | CK26: =CK21/$CE$29 -> 0.8231062313 | CN26: 1=taksi
D27: Matkailureitti | F27: 1 | J27: Pisteet | K27: Laitosten lkm | R27: Luokka 2 | T27: =COUNTIFS(K39:K711,"KESKI",H39:H711,2) -> 125 | U27: =T27/$T$30 -> 0.6793478261 | V27: =COUNTIFS(K39:K711,"VÄHÄ",H39:H711,2) -> 10 | W27: =V27/$V$30 -> 0.02044989775 | X27: =(T27+V27)/($T$30+$V$30) -> 0.2005943536 | CK27: =CK22/$CE$29 -> 0.6186501444 | CN27: 2=pikkubussi
D28: Matkailukohde | F28: 1 | J28: =F25 -> 1 | K28: =CONCATENATE("≥ ",M28,) -> ≥ 3 | M28: 3 | R28: Luokka 3 | T28: =COUNTIFS(K39:K711,"KESKI",H39:H711,3) -> 26 | U28: =T28/$T$30 -> 0.1413043478 | V28: =COUNTIFS(K39:K711,"VÄHÄ",H39:H711,3) -> 310 | W28: =V28/$V$30 -> 0.6339468303 | X28: =(T28+V28)/($T$30+$V$30) -> 0.4992570579 | Y28: NETTIKARTAT | CE28: MAX | CF28: TIEOSIA | CK28: =CK23/$CE$29 -> 0.1828198628 | CN28: 3=bussi
D29: Tien verkollinen asema | F29: 1 | J29: Puukuljetukset (ka valituilta vuosilta) | R29: Luokka 4 | T29: =COUNTIFS(K39:K711,"KESKI",H39:H711,4) -> 0 | U29: =T29/$T$30 -> 0 | V29: =COUNTIFS(K39:K711,"VÄHÄ",H39:H711,4) -> 169 | W29: =V29/$V$30 -> 0.345603272 | X29: =(T29+V29)/($T$30+$V$30) -> 0.2511144131 | CE29: =MAX(CD39:CD711) -> 15.2085
F30: Muunneltavat | J30: 2020 | K30: 2021 | L30: 2022 | M30: 2023 | R30: Yht. | T30: =SUM(T26:T29) -> 184 | U30: =SUM(U26:U29) -> 1 | V30: =SUM(V26:V29) -> 489 | W30: =SUM(W26:W29) -> 1 | Y30: =HYPERLINK("https://experience.arcgis.com/experience/a751aa6e13294cafb7f08efe123a1a8f","LOPPUTULOS JULKINEN") -> LOPPUTULOS JULKINEN | Z30: =HYPERLINK("https://experience.arcgis.com/experience/ed1320995d494e9685bfce7a77fc9425","LOPPUTULOS") -> LOPPUTULOS | AA30: =HYPERLINK("https://linea.maps.arcgis.com/apps/instant/interactivelegend/index.html?appid=db4c66346fba40d888fdf2ca1ff8d1b4","KOULUKULJETUKSET") -> KOULUKULJETUKSET
J31: TRUE | K31: TRUE | L31: TRUE | M31: FALSE | CF31: =COUNT(P39:P711) -> 673 | CK31: =CK24/$CE$29 -> 0.01261355387
A32: 1 | B32: 2 | D32: 1 | E32: 2 | F32: 3 | G32: 4 | H32: 5 | I32: 6 | J32: Raja-arvo (ajon./vrk) | L32: 9 | M32: 5 | N32: 11 | R32: 14 | S32: 15 | T32: 16 | U32: 17 | V32: 18 | W32: 19 | X32: 20 | Y32: 21 | Z32: 22 | AA32: 23 | AB32: 24 | AG32: 28 | AJ32: 30 | AK32: 31 | AL32: 32 | AM32: 33 | AN32: 34 | AO32: 35 | AP32: 36 | AS32: 37 | AT32: 38 | AU32: 39 | AV32: 40 | AW32: 41 | AX32: 42 | AY32: 43 | AZ32: 44 | BA32: 45 | BB32: 46 | BC32: 47 | BD32: 48 | BE32: 49 | BI32: 50 | BJ32: 51 | BK32: 52 | BL32: 53 | BM32: 54 | BN32: 55 | BO32: 56 | BP32: 57 | BQ32: 58 | BR32: 59 | BS32: 60 | BT32: 61 | BZ32: 67 | CA32: 68 | CB32: 69 | CC32: 70 | CD32: 10.6 | CE32: 71 | CK32: 72 | CL32: 73
A34: Lajittelu, ID | B34: LUOKKA | C34: Lajittelu | D34: Sija | E34: Herkkyys, sija ennen muutosta | F34: Herkkyys, sijamuutos | G34: Pisteet | H34: Merk. luokka | I34: Luokan muutos | J34: Google Maps | P34: TIEOSAN OMINAISUUDET | AL34: SÄÄNNÖLLINEN HENKILÖLIIKENNE | AS34: PISTEET YHTEENSÄ (max. 17) | AT34: PISTEET YHTEENSÄ, PAINOTETTU | AU34: SÄÄNNÖLLINEN TAVARALIIKENNE | BI34: PISTEET YHTEENSÄ (max. 22) | BJ34: PISTEET YHTEENSÄ, PAINOTETTU | BK34: MUUT TEKIJÄT | CA34: PISTEET YHTEENSÄ (max. 11) | CB34: PISTEET YHTEENSÄ, PAINOTETTU | CC34: PISTEET YHTEENSÄ (max. 50) | CD34: PISTEET YHTEENSÄ, PAINOTETTU | CE34: MERKITSEVYYS-LUOKKA | CG34: LISÄTIEDOT | DV34: Muutokset 2021-2024
AL35: Liikennemäärä | AM35: Linja-autoliikenne | AO35: Työmatkareitti | AQ35: Koulukuljetus | AU35: Liikennemäärä | AZ35: Maatilat | BK35: 3 km koulubufferi | BN35: Erikoiskuljetusreitti | BQ35: Varareitti | BR35: Taajama | BU35: Asukastiheys | BW35: Liikennemäärä | BX35: Matkailureitti | BY35: Matkailukohde | BZ35: Tien verkollinen asema | CG35: Maantieverkon laajuus | DM35: vertailu | DP35: Puukuljetukset | DV35: Sija 2021 | DW35: Sija 2024 | DX35: Sija-muutos | DY35: Luokka 2021 | DZ35: Luokka 2024 | EA35: Luokka-muutos
A36: Lajittelu, ID | B36: Lajittelu, KVL | K36: LUOKKA | L36: TOIML | M36: Tien nimi | N36: Kunta | O36: Maakunta | P36: TIE | Q36: AOSA | R36: AET | S36: LOSA | T36: LET | U36: PITUUS | V36: KVL, ka | W36: KVLRAS | X36: KKVL | Y36: KVL, ketjutus | Z36: NOPRA, ketjutus | AA36: Hoitoluokka, ketjutus | AB36: Päällyste, ketjutus | AC36: PK-luokka, ketjutus | AD36: HEVA 19-23 | AE36: Kaikki onn. | AF36: Huonokunt. pääl. | AG36: KVLYHD | AH36: SEKV | AI36: Painoraj. sillat | AL36: KVL pisteet | AM36: Vuorot | AN36: Pisteet | AO36: Työmatkat | AP36: Pisteet | AQ36: Kalusto | AR36: Pisteet | AU36: KVLRAS pisteet | AV36: Maito | AW36: Jäte | AX36: Maa-aines | AY36: Turve | AZ36: Vilja + kasvih. | BA36: Nauta | BB36: L+V+H | BC36: Sika | BD36: Siipikarja | BE36: Elintarvikelaitos | BF36: Tuotantolaitos | BG36: Päivittäistavarakauppa | BH36: Puukuljetus | BK36: Pituus | BL36: Prosentti | BM36: Pisteet | BN36: Pituus | BO36: Prosentti | BP36: Pisteet | BQ36: Pisteet | BR36: Pituus | BS36: Prosentti | BT36: Pisteet | BU36: Asukkaat | BV36: Pisteet | BW36: KKVL pisteet | BX36: Pisteet | BY36: Pisteet | BZ36: Pisteet | CF36: KVLosuus | CL36: Gmaps linkki | CN36: koulukuljetus | CO36: Maito, Arla | CP36: Maito, Valio | CQ36: Valio yht | CR36: Jäte | CS36: Maa-aines | CT36: Turve | CU36: Vilja | CV36: Nauta | CW36: Lammas/Vuohi/Hevonen | CX36: Sika | CY36: Siipikarja | CZ36: Elintarvikelaitos | DB36: Koulubufferi | DC36: Tuotanto | DD36: Logistiikka | DE36: Varareitit | DF36: Taajama | DG36: jos kkvl > raja | DH36: jos kkvl/kvl > 1,5 kertainen | DI36: kkvl yhteensä | DJ36: Matkailukohde reititys | DK36: Pyörämatkailu | DL36: Matkailutie | DM36: Matkailukohde | DN36: Tien verkollinen asema | DO36: Kauppa | DP36: Puu2020 | DQ36: Puu2021 | DR36: Puu2022 | DS36: Puu2023 | DT36: Ka 20-22
D38: SIJA | E38: SIJA2 | F38: SIJAMUUTOS | G38: PISTEET | H38: LUOKKA | I38: LUOKKAMUUTOS | J38: GMAPS | K38: LUOKKA | L38: TOIML | M38: TIE | N38: KUNTA | O38: MAAKUNTA | P38: TIE | Q38: AOSA | R38: AET | S38: LOSA | T38: LET | U38: PITUUS | V38: KVL | W38: KVLRAS | X38: KKVL | Y38: KVL KETJU | Z38: NOPRA KETJU | AA38: HOITOLUOKKA | AB38: PÄÄLLYSTE | AC38: PYPLK | AD38: HEVAT | AE38: KAIKKI ONN | AF38: HUONOKUNT | AG38: KVLYHD | AI38: SILLAT | AJ38: VPS | AK38: Painorajoitus | AL38: KVLPIST | AM38: VUOROT | AN38: VUOROPIST | AO38: TMATKAT | AP38: PIST | AQ38: KALUSTO | AR38: KALUSTOPIST | AS38: P1 | AT38: P1 PAINO | AU38: RAS PIST | AV38: Maito | AW38: Jäte | AX38: Maa-aines | AY38: Turve | AZ38: Maatalousrakennukset | BA38: NAUTA | BB38: LAMMAS | BC38: SIKA | BD38: SIIPI | BE38: Elintarvikelaitos | BF38: Tuotantolaitos | BG38: PTKAUPPA | BI38: P2 | BJ38: P2 paino | BK38: KOULUPIT | BL38: KOULUPROS | BM38: KOULUPIST | BN38: ERIKUPIT | BO38: ERIKUPROS | BP38: ERIKU | BQ38: VARAREITTI | BR38: TAAJAPIT | BS38: TAAJAPROS | BT38: TAAJAPIST | BU38: ASUKASTIH | BV38: ASUKASPIST | BW38: KKVL PIST | BX38: Matkailureitti | BY38: Matkailukohde | BZ38: Tien verkollinen asema | CA38: P3 | CB38: P3 Paino | CC38: PIST YHT | CD38: PIST PAINO | CE38: MERK LUOKKA
A39: =CONCATENATE(P39,"_",Q39) -> 387_1 | B39: 1 | D39: =RANK(CD39,$CD$39:$CD$711) -> 1 | E39: 1 | F39: =E39-D39 -> 0 | G39: =CD39 -> 15.2085 | H39: =CE39 -> 1 | I39: =B39-H39 -> 0 | J39: =HYPERLINK(CL39,"Gmaps") -> Gmaps | K39: =IF(V39>$L$5,"KESKI","VÄHÄ") -> KESKI | L39: =IF(P39<40,"Valta",IF(P39<100,"Kanta",IF(P39<1000,"Seutu",IF(P39>999,"Yhdys")))) -> Seutu | M39: Simolantie, Vaalimaantie | N39: Lappeenranta | O39: Etelä-Karjala | P39: 387 | Q39: 1 | R39: 1712 | S39: 1 | T39: 3650 | U39: =T39-R39 -> 1938 | V39: 6239 | W39: 470 | X39: 6863 | Y39: 6239 (98 %) | Z39: 50 (46 %), 60 (52 %) | AA39: Is (98 %) | AB39: Asfalttibetoni (79 %), Kivimastiksiasfaltti (19 %) | AC39: PK2 (98 %) | AD39: 2 | AE39: 4 | AF39: 0 | AG39: 245 | AL39: =+IF(V39>=$L$5,$F$4,($F$4/($L$5))*V39) -> 9 | AM39: 62 | AN39: =+IF(AM39>=$M$14,$J$14,IF(AM39<($M$14),AM39*($J$14/($M$14)),)) -> 3 | AO39: 1697 | AP39: =+IF(AO39>=$M$10,$J$10,IF(AO39<($M$10),AO39*($J$10/($M$10)),)) -> 2 | AQ39: =IF(CN39=0,"-",IF(CN39=1,"taksi",IF(CN39=2,"pikkubussi","bussi"))) -> bussi | AR39: =IF(CN39=0,0,IF(CN39<3,$F$7/2,$F$7)) -> 3 | AS39: =SUM(AL39,AN39,AP39,AR39) -> 17 | AT39: =+AS39*$H$4 -> 5.666666667 | AU39: =+IF(W39=0,0,IF(W39>$L$6,$F$9,($F$9/$L$6)*W39)) -> 9 | AV39: =IF(CP39>0,$F$10,0) -> 2 | AW39: =IF(CR39>0,$F$11,0) -> 1 | AX39: =IF(CS39>0,$F$12,0) -> 1 | AY39: =IF(CT39>0,$F$13,0) -> 0 | AZ39: =IF(CU39>0,$F$14,0) -> 1 | BA39: =+IF(CV39>=$M$22,$J$22,IF(CV39<($M$22),CV39*($J$22/($M$22)),)) -> 0.5 | BB39: =+IF(CW39>=$M$23,$J$23,IF(CW39<($M$23),CW39*($J$23/($M$23)),)) -> 0.5 | BC39: =+IF(CX39>=$M$24,$J$24,IF(CX39<($M$24),CX39*($J$24/($M$24)),)) -> 0.1255 | BD39: =+IF(CY39>=$M$25,$J$25,IF(CY39<($M$25),CY39*($J$25/($M$25)),)) -> 0 | BE39: =IF(CZ39>0,$F$16,0) -> 1 | BF39: =+IF(DC39>=$M$28,$J$28,IF(DC39<($M$28),DC39*($J$28/($M$28)),)) -> 1 | BG39: =IF(DO39>0,$F$18,0) -> 1 | BH39: =IF(COUNTIF($J$31:$M$31,TRUE)=0, 0, IF(SUMIF($J$31:$M$31,TRUE,DP39:DT39)/COUNTIF($J$31:$M$31,TRUE)>=$M$32, $F$19, $F$19*(SUMIF($J$31:$M$31,TRUE,DP39:DT39)/COUNTIF($J$31:$M$31,TRUE)/$M$32))) -> 2 | BI39: =SUM(AU39+AV39+AW39+AX39+AY39+AZ39+BE39+BA39+BB39+BC39+BD39+BF39+BG39+BH39) -> 20.1255 | BJ39: =+BI39*$H$9 -> 6.7085 | BK39: 1904.292968 | BL39: =BK39/U39 -> 0.9826073106 | BM39: =IF(BL39>0,IF(BL39>=$M$18,$J$18,IF(BL39<$M$18,$J$19,0)),0) -> 1 | BN39: 0 | BO39: =BN39/U39 -> 0 | BP39: =IF(BO39,$F$22,0) -> 0 | BQ39: =IF(DE39>0,$F$23,0) -> 1 | BR39: 1904.292968 | BS39: =BR39/U39 -> 0.9826073106 | BT39: =+IF(BS39>=$L$3,$F$24,0) -> 1 | BU39: 609.2105263 | BV39: =IF(BU39>0,IF(BU39>=100,$F$25,IF(BU39<100,$F$25/2)),0) -> 1 | BW39: =SUM(DI39) -> 1.5 | BX39: =IF(OR(DK39>0,DL39>0),$F$27,0) -> 1 | BY39: =IF(DJ39>0,$F$28,0) -> 1 | BZ39: =IF(DN39>0,$F$29,0) -> 1 | CA39: =SUM(BM39,BP39,BV39,BQ39,BT39,BW39,BX39,BY39,BZ39) -> 8.5 | CB39: =+CA39*$H$21 -> 2.833333333 | CC39: =SUM(AS39,BI39,CA39) -> 45.6255 | CD39: =SUM(AT39,BJ39,CB39) -> 15.2085 | CE39: =IF(D39<($W$13*$CF$31),1,IF(D39<(($W$14+$W$13)*$CF$31),2,IF(D39<(($W$15+$W$13+$W$14)*$CF$31),3,4))) -> 1 | CL39: https://www.google.com/maps/@61.0406619086,28.1740281371,3a,75y,90t/data=!3m3!1e1!3m1!2e0 | CN39: 3 | CP39: 1 | CR39: 2 | CS39: 4 | CT39: 0 | CU39: 15 | CV39: 862 | CW39: 259 | CX39: 251 | CY39: 0 | CZ39: 1 | DC39: 32 | DE39: 5 | DG39: =IF(X39>$L$7,$F$26/2,0) -> 1.5 | DH39: =+IF(X39/V39>1.5,$F$26/2,0) -> 0 | DI39: =SUM(DG39:DH39) -> 1.5 | DJ39: 9 | DK39: 0 | DL39: 5 | DN39: 1 | DO39: 8 | DP39: 8.084736836 | DQ39: 6.19760358 | DR39: 8.501676425 | DS39: 3.647953185 | DT39: =AVERAGE(DP39:DR39) -> 7.59467228 | DV39: 1 | DW39: =D39 -> 1 | DX39: =DV39-DW39 -> 0 | DY39: 1 | DZ39: =H39 -> 1 | EA39: =DY39-DZ39 -> 0
A40: =CONCATENATE(P40,"_",Q40) -> 387_2 | B40: 1 | D40: =RANK(CD40,$CD$39:$CD$711) -> 2 | E40: 2 | F40: =E40-D40 -> 0 | G40: =CD40 -> 15.04183333 | H40: =CE40 -> 1 | I40: =B40-H40 -> 0 | J40: =HYPERLINK(CL40,"Gmaps") -> Gmaps | K40: =IF(V40>$L$5,"KESKI","VÄHÄ") -> KESKI | L40: =IF(P40<40,"Valta",IF(P40<100,"Kanta",IF(P40<1000,"Seutu",IF(P40>999,"Yhdys")))) -> Seutu | M40: Vaalimaantie | N40: Lappeenranta | O40: Etelä-Karjala | P40: 387 | Q40: 2 | R40: 0 | S40: 2 | T40: 7200 | U40: =T40-R40 -> 7200 | V40: 3072.375 | W40: 212.4791667 | X40: 3380.104167 | Y40: 3005 (98 %), 6239 (2 %) | Z40: 100 (72 %), 50 (3 %), 60 (3 %), 80 (22 %) | AA40: Is (100 %) | AB40: Asfalttibetoni (100 %) | AC40: PK2 (100 %) | AD40: 1 | AE40: 5 | AF40: 0 | AG40: 106.9375 | AL40: =+IF(V40>=$L$5,$F$4,($F$4/($L$5))*V40) -> 9 | AM40: 15 | AN40: =+IF(AM40>=$M$14,$J$14,IF(AM40<($M$14),AM40*($J$14/($M$14)),)) -> 3 | AO40: 1055 | AP40: =+IF(AO40>=$M$10,$J$10,IF(AO40<($M$10),AO40*($J$10/($M$10)),)) -> 2 | AQ40: =IF(CN40=0,"-",IF(CN40=1,"taksi",IF(CN40=2,"pikkubussi","bussi"))) -> bussi | AR40: =IF(CN40=0,0,IF(CN40<3,$F$7/2,$F$7)) -> 3 | AS40: =SUM(AL40,AN40,AP40,AR40) -> 17 | AT40: =+AS40*$H$4 -> 5.666666667 | AU40: =+IF(W40=0,0,IF(W40>$L$6,$F$9,($F$9/$L$6)*W40)) -> 9 | AV40: =IF(CP40>0,$F$10,0) -> 2 | AW40: =IF(CR40>0,$F$11,0) -> 1 | AX40: =IF(CS40>0,$F$12,0) -> 1 | AY40: =IF(CT40>0,$F$13,0) -> 0 | AZ40: =IF(CU40>0,$F$14,0) -> 1 | BA40: =+IF(CV40>=$M$22,$J$22,IF(CV40<($M$22),CV40*($J$22/($M$22)),)) -> 0.5 | BB40: =+IF(CW40>=$M$23,$J$23,IF(CW40<($M$23),CW40*($J$23/($M$23)),)) -> 0.5 | BC40: =+IF(CX40>=$M$24,$J$24,IF(CX40<($M$24),CX40*($J$24/($M$24)),)) -> 0.1255 | BD40: =+IF(CY40>=$M$25,$J$25,IF(CY40<($M$25),CY40*($J$25/($M$25)),)) -> 0 | BE40: =IF(CZ40>0,$F$16,0) -> 1 | BF40: =+IF(DC40>=$M$28,$J$28,IF(DC40<($M$28),DC40*($J$28/($M$28)),)) -> 1 | BG40: =IF(DO40>0,$F$18,0) -> 0 | BH40: =IF(COUNTIF($J$31:$M$31,TRUE)=0, 0, IF(SUMIF($J$31:$M$31,TRUE,DP40:DT40)/COUNTIF($J$31:$M$31,TRUE)>=$M$32, $F$19, $F$19*(SUMIF($J$31:$M$31,TRUE,DP40:DT40)/COUNTIF($J$31:$M$31,TRUE)/$M$32))) -> 2 | BI40: =SUM(AU40+AV40+AW40+AX40+AY40+AZ40+BE40+BA40+BB40+BC40+BD40+BF40+BG40+BH40) -> 19.1255 | BJ40: =+BI40*$H$9 -> 6.375166667 | BK40: 461.7658622 | BL40: =BK40/U40 -> 0.06413414753 | BM40: =IF(BL40>0,IF(BL40>=$M$18,$J$18,IF(BL40<$M$18,$J$19,0)),0) -> 0.5 | BN40: 5976.600858 | BO40: =BN40/U40 -> 0.8300834525 | BP40: =IF(BO40,$F$22,0) -> 1 | BQ40: =IF(DE40>0,$F$23,0) -> 1 | BR40: 3699.929077 | BS40: =BR40/U40 -> 0.5138790385 | BT40: =+IF(BS40>=$L$3,$F$24,0) -> 1 | BU40: 104.2083333 | BV40: =IF(BU40>0,IF(BU40>=100,$F$25,IF(BU40<100,$F$25/2)),0) -> 1 | BW40: =SUM(DI40) -> 1.5 | BX40: =IF(OR(DK40>0,DL40>0),$F$27,0) -> 1 | BY40: =IF(DJ40>0,$F$28,0) -> 1 | BZ40: =IF(DN40>0,$F$29,0) -> 1 | CA40: =SUM(BM40,BP40,BV40,BQ40,BT40,BW40,BX40,BY40,BZ40) -> 9 | CB40: =+CA40*$H$21 -> 3 | CC40: =SUM(AS40,BI40,CA40) -> 45.1255 | CD40: =SUM(AT40,BJ40,CB40) -> 15.04183333 | CE40: =IF(D40<($W$13*$CF$31),1,IF(D40<(($W$14+$W$13)*$CF$31),2,IF(D40<(($W$15+$W$13+$W$14)*$CF$31),3,4))) -> 1 | CL40: https://www.google.com/maps/@61.0262918451,28.1668783736,3a,75y,90t/data=!3m3!1e1!3m1!2e0 | CN40: 3 | CP40: 1 | CR40: 2 | CS40: 3 | CT40: 0 | CU40: 14 | CV40: 800 | CW40: 259 | CX40: 251 | CY40: 0 | CZ40: 1 | DC40: 8 | DE40: 1 | DG40: =IF(X40>$L$7,$F$26/2,0) -> 1.5 | DH40: =+IF(X40/V40>1.5,$F$26/2,0) -> 0 | DI40: =SUM(DG40:DH40) -> 1.5 | DJ40: 3 | DK40: 0 | DL40: 1 | DN40: 1 | DO40: 0 | DP40: 10.21432126 | DQ40: 8.300564452 | DR40: 13.54625117 | DS40: 4.74638321 | DT40: =AVERAGE(DP40:DR40) -> 10.68704562 | DV40: 2 | DW40: =D40 -> 2 | DX40: =DV40-DW40 -> 0 | DY40: 1 | DZ40: =H40 -> 1 | EA40: =DY40-DZ40 -> 0
A41: =CONCATENATE(P41,"_",Q41) -> 374_1 | B41: 1 | D41: =RANK(CD41,$CD$39:$CD$711) -> 3 | E41: 3 | F41: =E41-D41 -> 0 | G41: =CD41 -> 14.68122378 | H41: =CE41 -> 1 | I41: =B41-H41 -> 0 | J41: =HYPERLINK(CL41,"Gmaps") -> Gmaps | K41: =IF(V41>$L$5,"KESKI","VÄHÄ") -> KESKI | L41: =IF(P41<40,"Valta",IF(P41<100,"Kanta",IF(P41<1000,"Seutu",IF(P41>999,"Yhdys")))) -> Seutu | M41: Brandstakantie, Kouvolantie, Puuropytyntie | N41: Hamina | O41: Kymenlaakso | P41: 374 | Q41: 1 | R41: 0 | S41: 1 | T41: 5642 | U41: =T41-R41 -> 5642 | V41: 1442.77313 | W41: 69.0315491 | X41: 1618.313896 | Y41: 544 (31 %), 1473 (27 %), 1821 (21 %), 2086 (16 %), 2947 (6 %) | Z41: 40 (8 %), 50 (58 %), 60 (35 %) | AA41: Ib (100 %) | AB41: Asfalttibetoni (87 %), Kantavan kerroksen asfalttibetoni (ABK) (45 %), Kivimastiksiasfaltti (14 %) | AC41: PK2 (100 %) | AD41: 1 | AE41: 3 | AF41: 0.007195477129 | AG41: 22.76409075 | AL41: =+IF(V41>=$L$5,$F$4,($F$4/($L$5))*V41) -> 9 | AM41: 96 | AN41: =+IF(AM41>=$M$14,$J$14,IF(AM41<($M$14),AM41*($J$14/($M$14)),)) -> 3 | AO41: 1184 | AP41: =+IF(AO41>=$M$10,$J$10,IF(AO41<($M$10),AO41*($J$10/($M$10)),)) -> 2 | AQ41: =IF(CN41=0,"-",IF(CN41=1,"taksi",IF(CN41=2,"pikkubussi","bussi"))) -> bussi | AR41: =IF(CN41=0,0,IF(CN41<3,$F$7/2,$F$7)) -> 3 | AS41: =SUM(AL41,AN41,AP41,AR41) -> 17 | AT41: =+AS41*$H$4 -> 5.666666667 | AU41: =+IF(W41=0,0,IF(W41>$L$6,$F$9,($F$9/$L$6)*W41)) -> 9 | AV41: =IF(CP41>0,$F$10,0) -> 2 | AW41: =IF(CR41>0,$F$11,0) -> 1 | AX41: =IF(CS41>0,$F$12,0) -> 1 | AY41: =IF(CT41>0,$F$13,0) -> 0 | AZ41: =IF(CU41>0,$F$14,0) -> 1 | BA41: =+IF(CV41>=$M$22,$J$22,IF(CV41<($M$22),CV41*($J$22/($M$22)),)) -> 0 | BB41: =+IF(CW41>=$M$23,$J$23,IF(CW41<($M$23),CW41*($J$23/($M$23)),)) -> 0.045 | BC41: =+IF(CX41>=$M$24,$J$24,IF(CX41<($M$24),CX41*($J$24/($M$24)),)) -> 0 | BD41: =+IF(CY41>=$M$25,$J$25,IF(CY41<($M$25),CY41*($J$25/($M$25)),)) -> 0 | BE41: =IF(CZ41>0,$F$16,0) -> 1 | BF41: =+IF(DC41>=$M$28,$J$28,IF(DC41<($M$28),DC41*($J$28/($M$28)),)) -> 1 | BG41: =IF(DO41>0,$F$18,0) -> 1 | BH41: =IF(COUNTIF($J$31:$M$31,TRUE)=0, 0, IF(SUMIF($J$31:$M$31,TRUE,DP41:DT41)/COUNTIF($J$31:$M$31,TRUE)>=$M$32, $F$19, $F$19*(SUMIF($J$31:$M$31,TRUE,DP41:DT41)/COUNTIF($J$31:$M$31,TRUE)/$M$32))) -> 0.4986713494 | BI41: =SUM(AU41+AV41+AW41+AX41+AY41+AZ41+BE41+BA41+BB41+BC41+BD41+BF41+BG41+BH41) -> 17.54367135 | BJ41: =+BI41*$H$9 -> 5.84789045 | BK41: 5705.092629 | BL41: =BK41/U41 -> 1.011182671 | BM41: =IF(BL41>0,IF(BL41>=$M$18,$J$18,IF(BL41<$M$18,$J$19,0)),0) -> 1 | BN41: 5446.043194 | BO41: =BN41/U41 -> 0.9652682018 | BP41: =IF(BO41,$F$22,0) -> 1 | BQ41: =IF(DE41>0,$F$23,0) -> 1 | BR41: 2846.335702 | BS41: =BR41/U41 -> 0.5044905533 | BT41: =+IF(BS41>=$L$3,$F$24,0) -> 1 | BU41: 213.4820985 | BV41: =IF(BU41>0,IF(BU41>=100,$F$25,IF(BU41<100,$F$25/2)),0) -> 1 | BW41: =SUM(DI41) -> 1.5 | BX41: =IF(OR(DK41>0,DL41>0),$F$27,0) -> 1 | BY41: =IF(DJ41>0,$F$28,0) -> 1 | BZ41: =IF(DN41>0,$F$29,0) -> 1 | CA41: =SUM(BM41,BP41,BV41,BQ41,BT41,BW41,BX41,BY41,BZ41) -> 9.5 | CB41: =+CA41*$H$21 -> 3.166666667 | CC41: =SUM(AS41,BI41,CA41) -> 44.04367135 | CD41: =SUM(AT41,BJ41,CB41) -> 14.68122378 | CE41: =IF(D41<($W$13*$CF$31),1,IF(D41<(($W$14+$W$13)*$CF$31),2,IF(D41<(($W$15+$W$13+$W$14)*$CF$31),3,4))) -> 1 | CL41: https://www.google.com/maps/@60.5694234508,27.1260537374,3a,75y,90t/data=!3m3!1e1!3m1!2e0 | CN41: 3 | CP41: 1 | CR41: 5 | CS41: 3 | CT41: 0 | CU41: 5 | CV41: 0 | CW41: 9 | CX41: 0 | CY41: 0 | CZ41: 1 | DC41: 11 | DE41: 10 | DG41: =IF(X41>$L$7,$F$26/2,0) -> 1.5 | DH41: =+IF(X41/V41>1.5,$F$26/2,0) -> 0 | DI41: =SUM(DG41:DH41) -> 1.5 | DJ41: 1 | DK41: 1 | DL41: 0 | DN41: 1 | DO41: 4 | DP41: 1.240267323 | DQ41: 1.435958738 | DR41: 1.06380906 | DS41: 0.3341328118 | DT41: =AVERAGE(DP41:DR41) -> 1.246678373 | DV41: 4 | DW41: =D41 -> 3 | DX41: =DV41-DW41 -> 1 | DY41: 1 | DZ41: =H41 -> 1 | EA41: =DY41-DZ41 -> 0
A42: =CONCATENATE(P42,"_",Q42) -> 14840_1 | B42: 1 | D42: =RANK(CD42,$CD$39:$CD$711) -> 4 | E42: 4 | F42: =E42-D42 -> 0 | G42: =CD42 -> 14.27888889 | H42: =CE42 -> 1 | I42: =B42-H42 -> 0 | J42: =HYPERLINK(CL42,"Gmaps") -> Gmaps | K42: =IF(V42>$L$5,"KESKI","VÄHÄ") -> KESKI | L42: =IF(P42<40,"Valta",IF(P42<100,"Kanta",IF(P42<1000,"Seutu",IF(P42>999,"Yhdys")))) -> Yhdys | M42: Ahvenlammentie, Karjalaisentie | N42: Lappeenranta | O42: Etelä-Karjala | P42: 14840 | Q42: 1 | R42: 0 | S42: 1 | T42: 2822 | U42: =T42-R42 -> 2822 | V42: 1713.951807 | W42: 85.55350815 | X42: 1922.776045 | Y42: 1666 (29 %), 1734 (71 %) | Z42: 40 (40 %), 50 (59 %) | AA42: Ic (100 %) | AB42: Asfalttibetoni (91 %), Kivimastiksiasfaltti (9 %) | AC42: PK2 (100 %) | AD42: 0 | AE42: 0 | AF42: 0.3703703704 | AG42: 37.38625089 | AL42: =+IF(V42>=$L$5,$F$4,($F$4/($L$5))*V42) -> 9 | AM42: 11 | AN42: =+IF(AM42>=$M$14,$J$14,IF(AM42<($M$14),AM42*($J$14/($M$14)),)) -> 3 | AO42: 1136 | AP42: =+IF(AO42>=$M$10,$J$10,IF(AO42<($M$10),AO42*($J$10/($M$10)),)) -> 2 | AQ42: =IF(CN42=0,"-",IF(CN42=1,"taksi",IF(CN42=2,"pikkubussi","bussi"))) -> bussi | AR42: =IF(CN42=0,0,IF(CN42<3,$F$7/2,$F$7)) -> 3 | AS42: =SUM(AL42,AN42,AP42,AR42) -> 17 | AT42: =+AS42*$H$4 -> 5.666666667 | AU42: =+IF(W42=0,0,IF(W42>$L$6,$F$9,($F$9/$L$6)*W42)) -> 9 | AV42: =IF(CP42>0,$F$10,0) -> 2 | AW42: =IF(CR42>0,$F$11,0) -> 1 | AX42: =IF(CS42>0,$F$12,0) -> 0 | AY42: =IF(CT42>0,$F$13,0) -> 0 | AZ42: =IF(CU42>0,$F$14,0) -> 1 | BA42: =+IF(CV42>=$M$22,$J$22,IF(CV42<($M$22),CV42*($J$22/($M$22)),)) -> 0.3166666667 | BB42: =+IF(CW42>=$M$23,$J$23,IF(CW42<($M$23),CW42*($J$23/($M$23)),)) -> 0.02 | BC42: =+IF(CX42>=$M$24,$J$24,IF(CX42<($M$24),CX42*($J$24/($M$24)),)) -> 0 | BD42: =+IF(CY42>=$M$25,$J$25,IF(CY42<($M$25),CY42*($J$25/($M$25)),)) -> 0 | BE42: =IF(CZ42>0,$F$16,0) -> 0 | BF42: =+IF(DC42>=$M$28,$J$28,IF(DC42<($M$28),DC42*($J$28/($M$28)),)) -> 1 | BG42: =IF(DO42>0,$F$18,0) -> 1 | BH42: =IF(COUNTIF($J$31:$M$31,TRUE)=0, 0, IF(SUMIF($J$31:$M$31,TRUE,DP42:DT42)/COUNTIF($J$31:$M$31,TRUE)>=$M$32, $F$19, $F$19*(SUMIF($J$31:$M$31,TRUE,DP42:DT42)/COUNTIF($J$31:$M$31,TRUE)/$M$32))) -> 2 | BI42: =SUM(AU42+AV42+AW42+AX42+AY42+AZ42+BE42+BA42+BB42+BC42+BD42+BF42+BG42+BH42) -> 17.33666667 | BJ42: =+BI42*$H$9 -> 5.778888889 | BK42: 2819.658208 | BL42: =BK42/U42 -> 0.9991701659 | BM42: =IF(BL42>0,IF(BL42>=$M$18,$J$18,IF(BL42<$M$18,$J$19,0)),0) -> 1 | BN42: 0 | BO42: =BN42/U42 -> 0 | BP42: =IF(BO42,$F$22,0) -> 0 | BQ42: =IF(DE42>0,$F$23,0) -> 1 | BR42: 2819.658208 | BS42: =BR42/U42 -> 0.9991701659 | BT42: =+IF(BS42>=$L$3,$F$24,0) -> 1 | BU42: 490.6980865 | BV42: =IF(BU42>0,IF(BU42>=100,$F$25,IF(BU42<100,$F$25/2)),0) -> 1 | BW42: =SUM(DI42) -> 1.5 | BX42: =IF(OR(DK42>0,DL42>0),$F$27,0) -> 1 | BY42: =IF(DJ42>0,$F$28,0) -> 1 | BZ42: =IF(DN42>0,$F$29,0) -> 1 | CA42: =SUM(BM42,BP42,BV42,BQ42,BT42,BW42,BX42,BY42,BZ42) -> 8.5 | CB42: =+CA42*$H$21 -> 2.833333333 | CC42: =SUM(AS42,BI42,CA42) -> 42.83666667 | CD42: =SUM(AT42,BJ42,CB42) -> 14.27888889 | CE42: =IF(D42<($W$13*$CF$31),1,IF(D42<(($W$14+$W$13)*$CF$31),2,IF(D42<(($W$15+$W$13+$W$14)*$CF$31),3,4))) -> 1 | CL42: https://www.google.com/maps/@61.1270374864,28.4510647724,3a,75y,90t/data=!3m3!1e1!3m1!2e0 | CN42: 3 | CP42: 1 | CR42: 1 | CS42: 0 | CT42: 0 | CU42: 7 | CV42: 190 | CW42: 4 | CX42: 0 | CY42: 0 | CZ42: 0 | DC42: 5 | DE42: 7 | DG42: =IF(X42>$L$7,$F$26/2,0) -> 1.5 | DH42: =+IF(X42/V42>1.5,$F$26/2,0) -> 0 | DI42: =SUM(DG42:DH42) -> 1.5 | DJ42: 1 | DK42: 1 | DL42: 0 | DN42: 1 | DO42: 1 | DP42: 4.387192624 | DQ42: 4.295452442 | DR42: 8.370406526 | DS42: 2.829869885 | DT42: =AVERAGE(DP42:DR42) -> 5.68435053 | DV42: 21 | DW42: =D42 -> 4 | DX42: =DV42-DW42 -> 17 | DY42: 1 | DZ42: =H42 -> 1 | EA42: =DY42-DZ42 -> 0
A43: =CONCATENATE(P43,"_",Q43) -> 14928_1 | B43: 1 | D43: =RANK(CD43,$CD$39:$CD$711) -> 5 | E43: 5 | F43: =E43-D43 -> 0 | G43: =CD43 -> 14.21444444 | H43: =CE43 -> 1 | I43: =B43-H43 -> 0 | J43: =HYPERLINK(CL43,"Gmaps") -> Gmaps | K43: =IF(V43>$L$5,"KESKI","VÄHÄ") -> KESKI | L43: =IF(P43<40,"Valta",IF(P43<100,"Kanta",IF(P43<1000,"Seutu",IF(P43>999,"Yhdys")))) -> Yhdys | M43: Tehtaantie | N43: Rautjärvi | O43: Etelä-Karjala | P43: 14928 | Q43: 1 | R43: 0 | S43: 1 | T43: 2579 | U43: =T43-R43 -> 2579 | V43: 634.7421481 | W43: 108.4722761 | X43: 657.865064 | Y43: 327 (65 %), 584 (23 %), 2420 (12 %) | Z43: 50 (27 %), 60 (73 %) | AA43: Ib (100 %) | AB43: Asfalttibetoni (100 %) | AC43: PK3 (100 %) | AD43: 0 | AE43: 0 | AF43: 0 | AG43: 77.43156262 | AL43: =+IF(V43>=$L$5,$F$4,($F$4/($L$5))*V43) -> 9 | AM43: 19 | AN43: =+IF(AM43>=$M$14,$J$14,IF(AM43<($M$14),AM43*($J$14/($M$14)),)) -> 3 | AO43: 482 | AP43: =+IF(AO43>=$M$10,$J$10,IF(AO43<($M$10),AO43*($J$10/($M$10)),)) -> 2 | AQ43: =IF(CN43=0,"-",IF(CN43=1,"taksi",IF(CN43=2,"pikkubussi","bussi"))) -> bussi | AR43: =IF(CN43=0,0,IF(CN43<3,$F$7/2,$F$7)) -> 3 | AS43: =SUM(AL43,AN43,AP43,AR43) -> 17 | AT43: =+AS43*$H$4 -> 5.666666667 | AU43: =+IF(W43=0,0,IF(W43>$L$6,$F$9,($F$9/$L$6)*W43)) -> 9 | AV43: =IF(CP43>0,$F$10,0) -> 2 | AW43: =IF(CR43>0,$F$11,0) -> 1 | AX43: =IF(CS43>0,$F$12,0) -> 0 | AY43: =IF(CT43>0,$F$13,0) -> 0 | AZ43: =IF(CU43>0,$F$14,0) -> 1 | BA43: =+IF(CV43>=$M$22,$J$22,IF(CV43<($M$22),CV43*($J$22/($M$22)),)) -> 0.1 | BB43: =+IF(CW43>=$M$23,$J$23,IF(CW43<($M$23),CW43*($J$23/($M$23)),)) -> 0.21 | BC43: =+IF(CX43>=$M$24,$J$24,IF(CX43<($M$24),CX43*($J$24/($M$24)),)) -> 0 | BD43: =+IF(CY43>=$M$25,$J$25,IF(CY43<($M$25),CY43*($J$25/($M$25)),)) -> 0 | BE43: =IF(CZ43>0,$F$16,0) -> 0 | BF43: =+IF(DC43>=$M$28,$J$28,IF(DC43<($M$28),DC43*($J$28/($M$28)),)) -> 0.3333333333 | BG43: =IF(DO43>0,$F$18,0) -> 1 | BH43: =IF(COUNTIF($J$31:$M$31,TRUE)=0, 0, IF(SUMIF($J$31:$M$31,TRUE,DP43:DT43)/COUNTIF($J$31:$M$31,TRUE)>=$M$32, $F$19, $F$19*(SUMIF($J$31:$M$31,TRUE,DP43:DT43)/COUNTIF($J$31:$M$31,TRUE)/$M$32))) -> 2 | BI43: =SUM(AU43+AV43+AW43+AX43+AY43+AZ43+BE43+BA43+BB43+BC43+BD43+BF43+BG43+BH43) -> 16.64333333 | BJ43: =+BI43*$H$9 -> 5.547777778 | BK43: 2572.615823 | BL43: =BK43/U43 -> 0.9975245535 | BM43: =IF(BL43>0,IF(BL43>=$M$18,$J$18,IF(BL43<$M$18,$J$19,0)),0) -> 1 | BN43: 661.8171674 | BO43: =BN43/U43 -> 0.2566177462 | BP43: =IF(BO43,$F$22,0) -> 1 | BQ43: =IF(DE43>0,$F$23,0) -> 1 | BR43: 1804.505034 | BS43: =BR43/U43 -> 0.6996917541 | BT43: =+IF(BS43>=$L$3,$F$24,0) -> 1 | BU43: 99.96122528 | BV43: =IF(BU43>0,IF(BU43>=100,$F$25,IF(BU43<100,$F$25/2)),0) -> 0.5 | BW43: =SUM(DI43) -> 1.5 | BX43: =IF(OR(DK43>0,DL43>0),$F$27,0) -> 1 | BY43: =IF(DJ43>0,$F$28,0) -> 1 | BZ43: =IF(DN43>0,$F$29,0) -> 1 | CA43: =SUM(BM43,BP43,BV43,BQ43,BT43,BW43,BX43,BY43,BZ43) -> 9 | CB43: =+CA43*$H$21 -> 3 | CC43: =SUM(AS43,BI43,CA43) -> 42.64333333 | CD43: =SUM(AT43,BJ43,CB43) -> 14.21444444 | CE43: =IF(D43<($W$13*$CF$31),1,IF(D43<(($W$14+$W$13)*$CF$31),2,IF(D43<(($W$15+$W$13+$W$14)*$CF$31),3,4))) -> 1 | CL43: https://www.google.com/maps/@61.4245425028,29.3608605812,3a,75y,90t/data=!3m3!1e1!3m1!2e0 | CN43: 3 | CP43: 1 | CR43: 1 | CS43: 0 | CT43: 0 | CU43: 3 | CV43: 60 | CW43: 42 | CX43: 0 | CY43: 0 | CZ43: 0 | DC43: 1 | DE43: 4 | DG43: =IF(X43>$L$7,$F$26/2,0) -> 1.5 | DH43: =+IF(X43/V43>1.5,$F$26/2,0) -> 0 | DI43: =SUM(DG43:DH43) -> 1.5 | DJ43: 5 | DK43: 1 | DL43: 0 | DN43: 1 | DO43: 1 | DP43: 26.11536054 | DQ43: 23.39703366 | DR43: 15.59852551 | DS43: 5.270724584 | DT43: =AVERAGE(DP43:DR43) -> 21.7036399 | DV43: 15 | DW43: =D43 -> 5 | DX43: =DV43-DW43 -> 10 | DY43: 1 | DZ43: =H43 -> 1 | EA43: =DY43-DZ43 -> 0
A44: =CONCATENATE(P44,"_",Q44) -> 170_32 | B44: 1 | D44: =RANK(CD44,$CD$39:$CD$711) -> 6 | E44: 6 | F44: =E44-D44 -> 0 | G44: =CD44 -> 14.2 | H44: =CE44 -> 1 | I44: =B44-H44 -> 0 | J44: =HYPERLINK(CL44,"Gmaps") -> Gmaps | K44: =IF(V44>$L$5,"KESKI","VÄHÄ") -> KESKI | L44: =IF(P44<40,"Valta",IF(P44<100,"Kanta",IF(P44<1000,"Seutu",IF(P44>999,"Yhdys")))) -> Seutu | M44: Haminantie, Helsingintie, Puuropytyntie | N44: Hamina, Kotka | O44: Kymenlaakso | P44: 170 | Q44: 32 | R44: 0 | S44: 32 | T44: 6699 | U44: =T44-R44 -> 6699 | V44: 3329 | W44: 225 | X44: 3479 | Y44: 3329 (100 %) | Z44: 50 (11 %), 60 (20 %), 70 (71 %) | AA44: Ib (100 %) | AB44: Asfalttibetoni (100 %) | AC44: PK2 (100 %) | AD44: 1 | AE44: 6 | AF44: 0.6378660481 | AG44: 70 | AL44: =+IF(V44>=$L$5,$F$4,($F$4/($L$5))*V44) -> 9 | AM44: 84 | AN44: =+IF(AM44>=$M$14,$J$14,IF(AM44<($M$14),AM44*($J$14/($M$14)),)) -> 3 | AO44: 1553 | AP44: =+IF(AO44>=$M$10,$J$10,IF(AO44<($M$10),AO44*($J$10/($M$10)),)) -> 2 | AQ44: =IF(CN44=0,"-",IF(CN44=1,"taksi",IF(CN44=2,"pikkubussi","bussi"))) -> bussi | AR44: =IF(CN44=0,0,IF(CN44<3,$F$7/2,$F$7)) -> 3 | AS44: =SUM(AL44,AN44,AP44,AR44) -> 17 | AT44: =+AS44*$H$4 -> 5.666666667 | AU44: =+IF(W44=0,0,IF(W44>$L$6,$F$9,($F$9/$L$6)*W44)) -> 9 | AV44: =IF(CP44>0,$F$10,0) -> 0 | AW44: =IF(CR44>0,$F$11,0) -> 1 | AX44: =IF(CS44>0,$F$12,0) -> 1 | AY44: =IF(CT44>0,$F$13,0) -> 0 | AZ44: =IF(CU44>0,$F$14,0) -> 1 | BA44: =+IF(CV44>=$M$22,$J$22,IF(CV44<($M$22),CV44*($J$22/($M$22)),)) -> 0 | BB44: =+IF(CW44>=$M$23,$J$23,IF(CW44<($M$23),CW44*($J$23/($M$23)),)) -> 0.1 | BC44: =+IF(CX44>=$M$24,$J$24,IF(CX44<($M$24),CX44*($J$24/($M$24)),)) -> 0 | BD44: =+IF(CY44>=$M$25,$J$25,IF(CY44<($M$25),CY44*($J$25/($M$25)),)) -> 0 | BE44: =IF(CZ44>0,$F$16,0) -> 1 | BF44: =+IF(DC44>=$M$28,$J$28,IF(DC44<($M$28),DC44*($J$28/($M$28)),)) -> 1 | BG44: =IF(DO44>0,$F$18,0) -> 1 | BH44: =IF(COUNTIF($J$31:$M$31,TRUE)=0, 0, IF(SUMIF($J$31:$M$31,TRUE,DP44:DT44)/COUNTIF($J$31:$M$31,TRUE)>=$M$32, $F$19, $F$19*(SUMIF($J$31:$M$31,TRUE,DP44:DT44)/COUNTIF($J$31:$M$31,TRUE)/$M$32))) -> 2 | BI44: =SUM(AU44+AV44+AW44+AX44+AY44+AZ44+BE44+BA44+BB44+BC44+BD44+BF44+BG44+BH44) -> 17.1 | BJ44: =+BI44*$H$9 -> 5.7 | BK44: 6776.749303 | BL44: =BK44/U44 -> 1.011606106 | BM44: =IF(BL44>0,IF(BL44>=$M$18,$J$18,IF(BL44<$M$18,$J$19,0)),0) -> 1 | BN44: 6776.749303 | BO44: =BN44/U44 -> 1.011606106 | BP44: =IF(BO44,$F$22,0) -> 1 | BQ44: =IF(DE44>0,$F$23,0) -> 1 | BR44: 5244.310357 | BS44: =BR44/U44 -> 0.7828497324 | BT44: =+IF(BS44>=$L$3,$F$24,0) -> 1 | BU44: 132.8819227 | BV44: =IF(BU44>0,IF(BU44>=100,$F$25,IF(BU44<100,$F$25/2)),0) -> 1 | BW44: =SUM(DI44) -> 1.5 | BX44: =IF(OR(DK44>0,DL44>0),$F$27,0) -> 1 | BY44: =IF(DJ44>0,$F$28,0) -> 0 | BZ44: =IF(DN44>0,$F$29,0) -> 1 | CA44: =SUM(BM44,BP44,BV44,BQ44,BT44,BW44,BX44,BY44,BZ44) -> 8.5 | CB44: =+CA44*$H$21 -> 2.833333333 | CC44: =SUM(AS44,BI44,CA44) -> 42.6 | CD44: =SUM(AT44,BJ44,CB44) -> 14.2 | CE44: =IF(D44<($W$13*$CF$31),1,IF(D44<(($W$14+$W$13)*$CF$31),2,IF(D44<(($W$15+$W$13+$W$14)*$CF$31),3,4))) -> 1 | CL44: https://www.google.com/maps/@60.5595942555,27.0075743043,3a,75y,90t/data=!3m3!1e1!3m1!2e0 | CN44: 3 | CP44: 0 | CR44: 5 | CS44: 1 | CT44: 0 | CU44: 11 | CV44: 0 | CW44: 20 | CX44: 0 | CY44: 0 | CZ44: 1 | DC44: 8 | DE44: 2 | DG44: =IF(X44>$L$7,$F$26/2,0) -> 1.5 | DH44: =+IF(X44/V44>1.5,$F$26/2,0) -> 0 | DI44: =SUM(DG44:DH44) -> 1.5 | DJ44: 0 | DK44: 1 | DL44: 0 | DN44: 1 | DO44: 2 | DP44: 4.968239667 | DQ44: 5.959673578 | DR44: 4.318434313 | DS44: 2.340284941 | DT44: =AVERAGE(DP44:DR44) -> 5.082115853 | DV44: 13 | DW44: =D44 -> 6 | DX44: =DV44-DW44 -> 7 | DY44: 1 | DZ44: =H44 -> 1 | EA44: =DY44-DZ44 -> 0
A45: =CONCATENATE(P45,"_",Q45) -> 384_1 | B45: 1 | D45: =RANK(CD45,$CD$39:$CD$711) -> 7 | E45: 7 | F45: =E45-D45 -> 0 | G45: =CD45 -> 13.97244691 | H45: =CE45 -> 1 | I45: =B45-H45 -> 0 | J45: =HYPERLINK(CL45,"Gmaps") -> Gmaps | K45: =IF(V45>$L$5,"KESKI","VÄHÄ") -> KESKI | L45: =IF(P45<40,"Valta",IF(P45<100,"Kanta",IF(P45<1000,"Seutu",IF(P45>999,"Yhdys")))) -> Seutu | M45: Virolahdentie | N45: Virolahti | O45: Kymenlaakso | P45: 384 | Q45: 1 | R45: 0 | S45: 1 | T45: 2060 | U45: =T45-R45 -> 2060 | V45: 1400 | W45: 69 | X45: 1540 | Y45: 1400 (100 %) | Z45: 50 (23 %), 60 (77 %) | AA45: II (100 %) | AB45: Asfalttibetoni (66 %), Pehmeät asfalttibetonit (PAB-B) (33 %) | AC45: PK2 (100 %) | AD45: 0 | AE45: 1 | AF45: 0 | AG45: 25 | AL45: =+IF(V45>=$L$5,$F$4,($F$4/($L$5))*V45) -> 9 | AM45: 12 | AN45: =+IF(AM45>=$M$14,$J$14,IF(AM45<($M$14),AM45*($J$14/($M$14)),)) -> 3 | AO45: 290 | AP45: =+IF(AO45>=$M$10,$J$10,IF(AO45<($M$10),AO45*($J$10/($M$10)),)) -> 1.933333333 | AQ45: =IF(CN45=0,"-",IF(CN45=1,"taksi",IF(CN45=2,"pikkubussi","bussi"))) -> bussi | AR45: =IF(CN45=0,0,IF(CN45<3,$F$7/2,$F$7)) -> 3 | AS45: =SUM(AL45,AN45,AP45,AR45) -> 16.93333333 | AT45: =+AS45*$H$4 -> 5.644444444 | AU45: =+IF(W45=0,0,IF(W45>$L$6,$F$9,($F$9/$L$6)*W45)) -> 9 | AV45: =IF(CP45>0,$F$10,0) -> 2 | AW45: =IF(CR45>0,$F$11,0) -> 1 | AX45: =IF(CS45>0,$F$12,0) -> 1 | AY45: =IF(CT45>0,$F$13,0) -> 0 | AZ45: =IF(CU45>0,$F$14,0) -> 1 | BA45: =+IF(CV45>=$M$22,$J$22,IF(CV45<($M$22),CV45*($J$22/($M$22)),)) -> 0.2283333333 | BB45: =+IF(CW45>=$M$23,$J$23,IF(CW45<($M$23),CW45*($J$23/($M$23)),)) -> 0.5 | BC45: =+IF(CX45>=$M$24,$J$24,IF(CX45<($M$24),CX45*($J$24/($M$24)),)) -> 0 | BD45: =+IF(CY45>=$M$25,$J$25,IF(CY45<($M$25),CY45*($J$25/($M$25)),)) -> 0 | BE45: =IF(CZ45>0,$F$16,0) -> 1 | BF45: =+IF(DC45>=$M$28,$J$28,IF(DC45<($M$28),DC45*($J$28/($M$28)),)) -> 0.6666666667 | BG45: =IF(DO45>0,$F$18,0) -> 1 | BH45: =IF(COUNTIF($J$31:$M$31,TRUE)=0, 0, IF(SUMIF($J$31:$M$31,TRUE,DP45:DT45)/COUNTIF($J$31:$M$31,TRUE)>=$M$32, $F$19, $F$19*(SUMIF($J$31:$M$31,TRUE,DP45:DT45)/COUNTIF($J$31:$M$31,TRUE)/$M$32))) -> 0.5890073952 | BI45: =SUM(AU45+AV45+AW45+AX45+AY45+AZ45+BE45+BA45+BB45+BC45+BD45+BF45+BG45+BH45) -> 17.9840074 | BJ45: =+BI45*$H$9 -> 5.994669132 | BK45: 2054.69153 | BL45: =BK45/U45 -> 0.9974230729 | BM45: =IF(BL45>0,IF(BL45>=$M$18,$J$18,IF(BL45<$M$18,$J$19,0)),0) -> 1 | BN45: 0 | BO45: =BN45/U45 -> 0 | BP45: =IF(BO45,$F$22,0) -> 0 | BQ45: =IF(DE45>0,$F$23,0) -> 1 | BR45: 297.8512047 | BS45: =BR45/U45 -> 0.1445879635 | BT45: =+IF(BS45>=$L$3,$F$24,0) -> 0 | BU45: 20.97087379 | BV45: =IF(BU45>0,IF(BU45>=100,$F$25,IF(BU45<100,$F$25/2)),0) -> 0.5 | BW45: =SUM(DI45) -> 1.5 | BX45: =IF(OR(DK45>0,DL45>0),$F$27,0) -> 1 | BY45: =IF(DJ45>0,$F$28,0) -> 1 | BZ45: =IF(DN45>0,$F$29,0) -> 1 | CA45: =SUM(BM45,BP45,BV45,BQ45,BT45,BW45,BX45,BY45,BZ45) -> 7 | CB45: =+CA45*$H$21 -> 2.333333333 | CC45: =SUM(AS45,BI45,CA45) -> 41.91734073 | CD45: =SUM(AT45,BJ45,CB45) -> 13.97244691 | CE45: =IF(D45<($W$13*$CF$31),1,IF(D45<(($W$14+$W$13)*$CF$31),2,IF(D45<(($W$15+$W$13+$W$14)*$CF$31),3,4))) -> 1 | CL45: https://www.google.com/maps/@60.5879917035,27.7126307121,3a,75y,90t/data=!3m3!1e1!3m1!2e0 | CN45: 3 | CP45: 1 | CR45: 2 | CS45: 7 | CT45: 0 | CU45: 22 | CV45: 137 | CW45: 187 | CX45: 0 | CY45: 0 | CZ45: 3 | DC45: 2 | DE45: 4 | DG45: =IF(X45>$L$7,$F$26/2,0) -> 1.5 | DH45: =+IF(X45/V45>1.5,$F$26/2,0) -> 0 | DI45: =SUM(DG45:DH45) -> 1.5 | DJ45: 1 | DK45: 1 | DL45: 0 | DN45: 1 | DO45: 2 | DP45: 1.463447755 | DQ45: 1.275578231 | DR45: 1.678529478 | DS45: 0.3220983582 | DT45: =AVERAGE(DP45:DR45) -> 1.472518488 | DV45: 28 | DW45: =D45 -> 7 | DX45: =DV45-DW45 -> 21 | DY45: 1 | DZ45: =H45 -> 1 | EA45: =DY45-DZ45 -> 0
A46: =CONCATENATE(P46,"_",Q46) -> 170_31 | B46: 1 | D46: =RANK(CD46,$CD$39:$CD$711) -> 8 | E46: 8 | F46: =E46-D46 -> 0 | G46: =CD46 -> 13.87441492 | H46: =CE46 -> 1 | I46: =B46-H46 -> 0 | J46: =HYPERLINK(CL46,"Gmaps") -> Gmaps | K46: =IF(V46>$L$5,"KESKI","VÄHÄ") -> KESKI | L46: =IF(P46<40,"Valta",IF(P46<100,"Kanta",IF(P46<1000,"Seutu",IF(P46>999,"Yhdys")))) -> Seutu | M46: Haminantie, Otsolantie | N46: Kotka | O46: Kymenlaakso | P46: 170 | Q46: 31 | R46: 0 | S46: 31 | T46: 3208 | U46: =T46-R46 -> 3208 | V46: 3418.962594 | W46: 234.792394 | X46: 3760.926434 | Y46: 2552 (33 %), 3848 (66 %) | Z46: 50 (31 %), 60 (68 %) | AA46: Ib (99 %) | AB46: Asfalttibetoni (99 %) | AC46: PK2 (99 %) | AD46: 4 | AE46: 4 | AF46: 0.4501648491 | AG46: 129.1302993 | AL46: =+IF(V46>=$L$5,$F$4,($F$4/($L$5))*V46) -> 9 | AM46: 116 | AN46: =+IF(AM46>=$M$14,$J$14,IF(AM46<($M$14),AM46*($J$14/($M$14)),)) -> 3 | AO46: 1394 | AP46: =+IF(AO46>=$M$10,$J$10,IF(AO46<($M$10),AO46*($J$10/($M$10)),)) -> 2 | AQ46: =IF(CN46=0,"-",IF(CN46=1,"taksi",IF(CN46=2,"pikkubussi","bussi"))) -> bussi | AR46: =IF(CN46=0,0,IF(CN46<3,$F$7/2,$F$7)) -> 3 | AS46: =SUM(AL46,AN46,AP46,AR46) -> 17 | AT46: =+AS46*$H$4 -> 5.666666667 | AU46: =+IF(W46=0,0,IF(W46>$L$6,$F$9,($F$9/$L$6)*W46)) -> 9 | AV46: =IF(CP46>0,$F$10,0) -> 2 | AW46: =IF(CR46>0,$F$11,0) -> 1 | AX46: =IF(CS46>0,$F$12,0) -> 0 | AY46: =IF(CT46>0,$F$13,0) -> 0 | AZ46: =IF(CU46>0,$F$14,0) -> 1 | BA46: =+IF(CV46>=$M$22,$J$22,IF(CV46<($M$22),CV46*($J$22/($M$22)),)) -> 0 | BB46: =+IF(CW46>=$M$23,$J$23,IF(CW46<($M$23),CW46*($J$23/($M$23)),)) -> 0.12 | BC46: =+IF(CX46>=$M$24,$J$24,IF(CX46<($M$24),CX46*($J$24/($M$24)),)) -> 0 | BD46: =+IF(CY46>=$M$25,$J$25,IF(CY46<($M$25),CY46*($J$25/($M$25)),)) -> 0 | BE46: =IF(CZ46>0,$F$16,0) -> 0 | BF46: =+IF(DC46>=$M$28,$J$28,IF(DC46<($M$28),DC46*($J$28/($M$28)),)) -> 1 | BG46: =IF(DO46>0,$F$18,0) -> 1 | BH46: =IF(COUNTIF($J$31:$M$31,TRUE)=0, 0, IF(SUMIF($J$31:$M$31,TRUE,DP46:DT46)/COUNTIF($J$31:$M$31,TRUE)>=$M$32, $F$19, $F$19*(SUMIF($J$31:$M$31,TRUE,DP46:DT46)/COUNTIF($J$31:$M$31,TRUE)/$M$32))) -> 1.003244747 | BI46: =SUM(AU46+AV46+AW46+AX46+AY46+AZ46+BE46+BA46+BB46+BC46+BD46+BF46+BG46+BH46) -> 16.12324475 | BJ46: =+BI46*$H$9 -> 5.374414916 | BK46: 3189.101183 | BL46: =BK46/U46 -> 0.9941088476 | BM46: =IF(BL46>0,IF(BL46>=$M$18,$J$18,IF(BL46<$M$18,$J$19,0)),0) -> 1 | BN46: 3189.101183 | BO46: =BN46/U46 -> 0.9941088475 | BP46: =IF(BO46,$F$22,0) -> 1 | BQ46: =IF(DE46>0,$F$23,0) -> 1 | BR46: 2616.036878 | BS46: =BR46/U46 -> 0.8154728423 | BT46: =+IF(BS46>=$L$3,$F$24,0) -> 1 | BU46: 103.563591 | BV46: =IF(BU46>0,IF(BU46>=100,$F$25,IF(BU46<100,$F$25/2)),0) -> 1 | BW46: =SUM(DI46) -> 1.5 | BX46: =IF(OR(DK46>0,DL46>0),$F$27,0) -> 1 | BY46: =IF(DJ46>0,$F$28,0) -> 0 | BZ46: =IF(DN46>0,$F$29,0) -> 1 | CA46: =SUM(BM46,BP46,BV46,BQ46,BT46,BW46,BX46,BY46,BZ46) -> 8.5 | CB46: =+CA46*$H$21 -> 2.833333333 | CC46: =SUM(AS46,BI46,CA46) -> 41.62324475 | CD46: =SUM(AT46,BJ46,CB46) -> 13.87441492 | CE46: =IF(D46<($W$13*$CF$31),1,IF(D46<(($W$14+$W$13)*$CF$31),2,IF(D46<(($W$15+$W$13+$W$14)*$CF$31),3,4))) -> 1 | CL46: https://www.google.com/maps/@60.5389518378,26.9771581463,3a,75y,90t/data=!3m3!1e1!3m1!2e0 | CN46: 3 | CP46: 1 | CR46: 1 | CS46: 0 | CT46: 0 | CU46: 10 | CV46: 0 | CW46: 24 | CX46: 0 | CY46: 0 | CZ46: 0 | DC46: 14 | DE46: 26 | DG46: =IF(X46>$L$7,$F$26/2,0) -> 1.5 | DH46: =+IF(X46/V46>1.5,$F$26/2,0) -> 0 | DI46: =SUM(DG46:DH46) -> 1.5 | DJ46: 0 | DK46: 1 | DL46: 0 | DN46: 1 | DO46: 1 | DP46: 2.331265884 | DQ46: 2.952801721 | DR46: 2.240268001 | DS46: 1.188311308 | DT46: =AVERAGE(DP46:DR46) -> 2.508111869 | DV46: 47 | DW46: =D46 -> 8 | DX46: =DV46-DW46 -> 39 | DY46: 2 | DZ46: =H46 -> 1 | EA46: =DY46-DZ46 -> 1
A47: =CONCATENATE(P47,"_",Q47) -> 3932_1 | B47: 1 | D47: =RANK(CD47,$CD$39:$CD$711) -> 9 | E47: 9 | F47: =E47-D47 -> 0 | G47: =CD47 -> 13.86753036 | H47: =CE47 -> 1 | I47: =B47-H47 -> 0 | J47: =HYPERLINK(CL47,"Gmaps") -> Gmaps | K47: =IF(V47>$L$5,"KESKI","VÄHÄ") -> KESKI | L47: =IF(P47<40,"Valta",IF(P47<100,"Kanta",IF(P47<1000,"Seutu",IF(P47>999,"Yhdys")))) -> Yhdys | M47: Penttiläntie, Saimaantie | N47: Lappeenranta | O47: Etelä-Karjala | P47: 3932 | Q47: 1 | R47: 0 | S47: 1 | T47: 7139 | U47: =T47-R47 -> 7139 | V47: 948.0193304 | W47: 53.83863286 | X47: 1042.550917 | Y47: 695 (41 %), 801 (51 %), 3042 (9 %) | Z47: 30 (6 %), 40 (20 %), 50 (7 %), 60 (68 %), 80 (0 %) | AA47: Ic (100 %) | AB47: Asfalttibetoni (92 %), Kivimastiksiasfaltti (9 %) | AC47: PK3 (100 %) | AD47: 2 | AE47: 4 | AF47: 0.06802721088 | AG47: 12.65247234 | AL47: =+IF(V47>=$L$5,$F$4,($F$4/($L$5))*V47) -> 9 | AM47: 85 | AN47: =+IF(AM47>=$M$14,$J$14,IF(AM47<($M$14),AM47*($J$14/($M$14)),)) -> 3 | AO47: 845 | AP47: =+IF(AO47>=$M$10,$J$10,IF(AO47<($M$10),AO47*($J$10/($M$10)),)) -> 2 | AQ47: =IF(CN47=0,"-",IF(CN47=1,"taksi",IF(CN47=2,"pikkubussi","bussi"))) -> bussi | AR47: =IF(CN47=0,0,IF(CN47<3,$F$7/2,$F$7)) -> 3 | AS47: =SUM(AL47,AN47,AP47,AR47) -> 17 | AT47: =+AS47*$H$4 -> 5.666666667 | AU47: =+IF(W47=0,0,IF(W47>$L$6,$F$9,($F$9/$L$6)*W47)) -> 9 | AV47: =IF(CP47>0,$F$10,0) -> 2 | AW47: =IF(CR47>0,$F$11,0) -> 1 | AX47: =IF(CS47>0,$F$12,0) -> 1 | AY47: =IF(CT47>0,$F$13,0) -> 0 | AZ47: =IF(CU47>0,$F$14,0) -> 1 | BA47: =+IF(CV47>=$M$22,$J$22,IF(CV47<($M$22),CV47*($J$22/($M$22)),)) -> 0.1316666667 | BB47: =+IF(CW47>=$M$23,$J$23,IF(CW47<($M$23),CW47*($J$23/($M$23)),)) -> 0.5 | BC47: =+IF(CX47>=$M$24,$J$24,IF(CX47<($M$24),CX47*($J$24/($M$24)),)) -> 0 | BD47: =+IF(CY47>=$M$25,$J$25,IF(CY47<($M$25),CY47*($J$25/($M$25)),)) -> 0 | BE47: =IF(CZ47>0,$F$16,0) -> 0 | BF47: =+IF(DC47>=$M$28,$J$28,IF(DC47<($M$28),DC47*($J$28/($M$28)),)) -> 1 | BG47: =IF(DO47>0,$F$18,0) -> 1 | BH47: =IF(COUNTIF($J$31:$M$31,TRUE)=0, 0, IF(SUMIF($J$31:$M$31,TRUE,DP47:DT47)/COUNTIF($J$31:$M$31,TRUE)>=$M$32, $F$19, $F$19*(SUMIF($J$31:$M$31,TRUE,DP47:DT47)/COUNTIF($J$31:$M$31,TRUE)/$M$32))) -> 0.4709244087 | BI47: =SUM(AU47+AV47+AW47+AX47+AY47+AZ47+BE47+BA47+BB47+BC47+BD47+BF47+BG47+BH47) -> 17.10259108 | BJ47: =+BI47*$H$9 -> 5.700863692 | BK47: 3966.896852 | BL47: =BK47/U47 -> 0.5556656187 | BM47: =IF(BL47>0,IF(BL47>=$M$18,$J$18,IF(BL47<$M$18,$J$19,0)),0) -> 1 | BN47: 0 | BO47: =BN47/U47 -> 0 | BP47: =IF(BO47,$F$22,0) -> 0 | BQ47: =IF(DE47>0,$F$23,0) -> 1 | BR47: 3391.851599 | BS47: =BR47/U47 -> 0.4751157864 | BT47: =+IF(BS47>=$L$3,$F$24,0) -> 0 | BU47: 145.03698 | BV47: =IF(BU47>0,IF(BU47>=100,$F$25,IF(BU47<100,$F$25/2)),0) -> 1 | BW47: =SUM(DI47) -> 1.5 | BX47: =IF(OR(DK47>0,DL47>0),$F$27,0) -> 1 | BY47: =IF(DJ47>0,$F$28,0) -> 1 | BZ47: =IF(DN47>0,$F$29,0) -> 1 | CA47: =SUM(BM47,BP47,BV47,BQ47,BT47,BW47,BX47,BY47,BZ47) -> 7.5 | CB47: =+CA47*$H$21 -> 2.5 | CC47: =SUM(AS47,BI47,CA47) -> 41.60259108 | CD47: =SUM(AT47,BJ47,CB47) -> 13.86753036 | CE47: =IF(D47<($W$13*$CF$31),1,IF(D47<(($W$14+$W$13)*$CF$31),2,IF(D47<(($W$15+$W$13+$W$14)*$CF$31),3,4))) -> 1 | CL47: https://www.google.com/maps/@61.1212093248,28.5027289562,3a,75y,90t/data=!3m3!1e1!3m1!2e0 | CN47: 3 | CP47: 2 | CR47: 1 | CS47: 1 | CT47: 0 | CU47: 17 | CV47: 79 | CW47: 225 | CX47: 0 | CY47: 0 | CZ47: 0 | DC47: 3 | DE47: 2 | DG47: =IF(X47>$L$7,$F$26/2,0) -> 1.5 | DH47: =+IF(X47/V47>1.5,$F$26/2,0) -> 0 | DI47: =SUM(DG47:DH47) -> 1.5 | DJ47: 1 | DK47: 1 | DL47: 0 | DN47: 1 | DO47: 3 | DP47: 1.037937156 | DQ47: 1.177256371 | DR47: 1.316739538 | DS47: 0.5515448768 | DT47: =AVERAGE(DP47:DR47) -> 1.177311022 | DV47: 18 | DW47: =D47 -> 9 | DX47: =DV47-DW47 -> 9 | DY47: 1 | DZ47: =H47 -> 1 | EA47: =DY47-DZ47 -> 0
A48: =CONCATENATE(P48,"_",Q48) -> 380_2 | B48: 1 | D48: =RANK(CD48,$CD$39:$CD$711) -> 10 | E48: 10 | F48: =E48-D48 -> 0 | G48: =CD48 -> 13.67681543 | H48: =CE48 -> 1 | I48: =B48-H48 -> 0 | J48: =HYPERLINK(CL48,"Gmaps") -> Gmaps | K48: =IF(V48>$L$5,"KESKI","VÄHÄ") -> KESKI | L48: =IF(P48<40,"Valta",IF(P48<100,"Kanta",IF(P48<1000,"Seutu",IF(P48>999,"Yhdys")))) -> Seutu | M48: Iitiäntie, Toukkalantie | N48: Lemi | O48: Etelä-Karjala | P48: 380 | Q48: 2 | R48: 0 | S48: 2 | T48: 8902 | U48: =T48-R48 -> 8902 | V48: 1547.180184 | W48: 78.87822961 | X48: 1733.725455 | Y48: 934 (12 %), 1629 (88 %) | Z48: 40 (14 %), 50 (3 %), 60 (5 %), 80 (77 %) | AA48: Ic (100 %) | AB48: Asfalttibetoni (22 %), Pehmeät asfalttibetonit (PAB-B) (78 %) | AC48: PK2 (100 %) | AD48: 0 | AE48: 7 | AF48: 0 | AG48: 28.58593574 | AL48: =+IF(V48>=$L$5,$F$4,($F$4/($L$5))*V48) -> 9 | AM48: 16 | AN48: =+IF(AM48>=$M$14,$J$14,IF(AM48<($M$14),AM48*($J$14/($M$14)),)) -> 3 | AO48: 497 | AP48: =+IF(AO48>=$M$10,$J$10,IF(AO48<($M$10),AO48*($J$10/($M$10)),)) -> 2 | AQ48: =IF(CN48=0,"-",IF(CN48=1,"taksi",IF(CN48=2,"pikkubussi","bussi"))) -> bussi | AR48: =IF(CN48=0,0,IF(CN48<3,$F$7/2,$F$7)) -> 3 | AS48: =SUM(AL48,AN48,AP48,AR48) -> 17 | AT48: =+AS48*$H$4 -> 5.666666667 | AU48: =+IF(W48=0,0,IF(W48>$L$6,$F$9,($F$9/$L$6)*W48)) -> 9 | AV48: =IF(CP48>0,$F$10,0) -> 2 | AW48: =IF(CR48>0,$F$11,0) -> 1 | AX48: =IF(CS48>0,$F$12,0) -> 1 | AY48: =IF(CT48>0,$F$13,0) -> 0 | AZ48: =IF(CU48>0,$F$14,0) -> 1 | BA48: =+IF(CV48>=$M$22,$J$22,IF(CV48<($M$22),CV48*($J$22/($M$22)),)) -> 0.05333333333 | BB48: =+IF(CW48>=$M$23,$J$23,IF(CW48<($M$23),CW48*($J$23/($M$23)),)) -> 0.03 | BC48: =+IF(CX48>=$M$24,$J$24,IF(CX48<($M$24),CX48*($J$24/($M$24)),)) -> 0 | BD48: =+IF(CY48>=$M$25,$J$25,IF(CY48<($M$25),CY48*($J$25/($M$25)),)) -> 0 | BE48: =IF(CZ48>0,$F$16,0) -> 0 | BF48: =+IF(DC48>=$M$28,$J$28,IF(DC48<($M$28),DC48*($J$28/($M$28)),)) -> 0 | BG48: =IF(DO48>0,$F$18,0) -> 1 | BH48: =IF(COUNTIF($J$31:$M$31,TRUE)=0, 0, IF(SUMIF($J$31:$M$31,TRUE,DP48:DT48)/COUNTIF($J$31:$M$31,TRUE)>=$M$32, $F$19, $F$19*(SUMIF($J$31:$M$31,TRUE,DP48:DT48)/COUNTIF($J$31:$M$31,TRUE)/$M$32))) -> 1.947112944 | BI48: =SUM(AU48+AV48+AW48+AX48+AY48+AZ48+BE48+BA48+BB48+BC48+BD48+BF48+BG48+BH48) -> 17.03044628 | BJ48: =+BI48*$H$9 -> 5.676815426 | BK48: 4244.955364 | BL48: =BK48/U48 -> 0.4768541186 | BM48: =IF(BL48>0,IF(BL48>=$M$18,$J$18,IF(BL48<$M$18,$J$19,0)),0) -> 0.5 | BN48: 0 | BO48: =BN48/U48 -> 0 | BP48: =IF(BO48,$F$22,0) -> 0 | BQ48: =IF(DE48>0,$F$23,0) -> 1 | BR48: 1796.577231 | BS48: =BR48/U48 -> 0.201817258 | BT48: =+IF(BS48>=$L$3,$F$24,0) -> 0 | BU48: 118.2031004 | BV48: =IF(BU48>0,IF(BU48>=100,$F$25,IF(BU48<100,$F$25/2)),0) -> 1 | BW48: =SUM(DI48) -> 1.5 | BX48: =IF(OR(DK48>0,DL48>0),$F$27,0) -> 1 | BY48: =IF(DJ48>0,$F$28,0) -> 1 | BZ48: =IF(DN48>0,$F$29,0) -> 1 | CA48: =SUM(BM48,BP48,BV48,BQ48,BT48,BW48,BX48,BY48,BZ48) -> 7 | CB48: =+CA48*$H$21 -> 2.333333333 | CC48: =SUM(AS48,BI48,CA48) -> 41.03044628 | CD48: =SUM(AT48,BJ48,CB48) -> 13.67681543 | CE48: =IF(D48<($W$13*$CF$31),1,IF(D48<(($W$14+$W$13)*$CF$31),2,IF(D48<(($W$15+$W$13+$W$14)*$CF$31),3,4))) -> 1 | CL48: https://www.google.com/maps/@61.0517796626,27.9407174148,3a,75y,90t/data=!3m3!1e1!3m1!2e0 | CN48: 3 | CP48: 4 | CR48: 1 | CS48: 2 | CT48: 0 | CU48: 3 | CV48: 32 | CW48: 6 | CX48: 0 | CY48: 0 | CZ48: 0 | DC48: 0 | DE48: 3 | DG48: =IF(X48>$L$7,$F$26/2,0) -> 1.5 | DH48: =+IF(X48/V48>1.5,$F$26/2,0) -> 0 | DI48: =SUM(DG48:DH48) -> 1.5 | DJ48: 2 | DK48: 1 | DL48: 0 | DN48: 1 | DO48: 1 | DP48: 4.581706693 | DQ48: 4.569170296 | DR48: 5.452470088 | DS48: 1.57439994 | DT48: =AVERAGE(DP48:DR48) -> 4.867782359 | DV48: 7 | DW48: =D48 -> 10 | DX48: =DV48-DW48 -> -3 | DY48: 1 | DZ48: =H48 -> 1 | EA48: =DY48-DZ48 -> 0
A49: =CONCATENATE(P49,"_",Q49) -> 357_1 | B49: 1 | D49: =RANK(CD49,$CD$39:$CD$711) -> 11 | E49: 11 | F49: =E49-D49 -> 0 | G49: =CD49 -> 13.67316577 | H49: =CE49 -> 1 | I49: =B49-H49 -> 0 | J49: =HYPERLINK(CL49,"Gmaps") -> Gmaps | K49: =IF(V49>$L$5,"KESKI","VÄHÄ") -> KESKI | L49: =IF(P49<40,"Valta",IF(P49<100,"Kanta",IF(P49<1000,"Seutu",IF(P49>999,"Yhdys")))) -> Seutu | M49: Hurukselantie, Tapiontie | N49: Kotka | O49: Kymenlaakso | P49: 357 | Q49: 1 | R49: 0 | S49: 1 | T49: 4818 | U49: =T49-R49 -> 4818 | V49: 2468.734122 | W49: 123.9692819 | X49: 2763.336032 | Y49: 1377 (24 %), 2402 (43 %), 3348 (33 %) | Z49: 50 (28 %), 60 (25 %), 80 (47 %) | AA49: Ib (67 %), Is (33 %) | AB49: Asfalttibetoni (97 %), Epäjatkuva asfaltti (Poistunut käytöstä) (1 %) | AC49: PK2 (100 %) | AD49: 5 | AE49: 11 | AF49: 0.3315599468 | AG49: 41.28953923 | AL49: =+IF(V49>=$L$5,$F$4,($F$4/($L$5))*V49) -> 9 | AM49: 145 | AN49: =+IF(AM49>=$M$14,$J$14,IF(AM49<($M$14),AM49*($J$14/($M$14)),)) -> 3 | AO49: 2149 | AP49: =+IF(AO49>=$M$10,$J$10,IF(AO49<($M$10),AO49*($J$10/($M$10)),)) -> 2 | AQ49: =IF(CN49=0,"-",IF(CN49=1,"taksi",IF(CN49=2,"pikkubussi","bussi"))) -> pikkubussi | AR49: =IF(CN49=0,0,IF(CN49<3,$F$7/2,$F$7)) -> 1.5 | AS49: =SUM(AL49,AN49,AP49,AR49) -> 15.5 | AT49: =+AS49*$H$4 -> 5.166666667 | AU49: =+IF(W49=0,0,IF(W49>$L$6,$F$9,($F$9/$L$6)*W49)) -> 9 | AV49: =IF(CP49>0,$F$10,0) -> 0 | AW49: =IF(CR49>0,$F$11,0) -> 1 | AX49: =IF(CS49>0,$F$12,0) -> 1 | AY49: =IF(CT49>0,$F$13,0) -> 1 | AZ49: =IF(CU49>0,$F$14,0) -> 1 | BA49: =+IF(CV49>=$M$22,$J$22,IF(CV49<($M$22),CV49*($J$22/($M$22)),)) -> 0 | BB49: =+IF(CW49>=$M$23,$J$23,IF(CW49<($M$23),CW49*($J$23/($M$23)),)) -> 0.06 | BC49: =+IF(CX49>=$M$24,$J$24,IF(CX49<($M$24),CX49*($J$24/($M$24)),)) -> 0 | BD49: =+IF(CY49>=$M$25,$J$25,IF(CY49<($M$25),CY49*($J$25/($M$25)),)) -> 0 | BE49: =IF(CZ49>0,$F$16,0) -> 0 | BF49: =+IF(DC49>=$M$28,$J$28,IF(DC49<($M$28),DC49*($J$28/($M$28)),)) -> 1 | BG49: =IF(DO49>0,$F$18,0) -> 0 | BH49: =IF(COUNTIF($J$31:$M$31,TRUE)=0, 0, IF(SUMIF($J$31:$M$31,TRUE,DP49:DT49)/COUNTIF($J$31:$M$31,TRUE)>=$M$32, $F$19, $F$19*(SUMIF($J$31:$M$31,TRUE,DP49:DT49)/COUNTIF($J$31:$M$31,TRUE)/$M$32))) -> 1.959497307 | BI49: =SUM(AU49+AV49+AW49+AX49+AY49+AZ49+BE49+BA49+BB49+BC49+BD49+BF49+BG49+BH49) -> 16.01949731 | BJ49: =+BI49*$H$9 -> 5.339832436 | BK49: 4809.664983 | BL49: =BK49/U49 -> 0.9982700255 | BM49: =IF(BL49>0,IF(BL49>=$M$18,$J$18,IF(BL49<$M$18,$J$19,0)),0) -> 1 | BN49: 4702.37358 | BO49: =BN49/U49 -> 0.9760011581 | BP49: =IF(BO49,$F$22,0) -> 1 | BQ49: =IF(DE49>0,$F$23,0) -> 1 | BR49: 4490.916212 | BS49: =BR49/U49 -> 0.9321121238 | BT49: =+IF(BS49>=$L$3,$F$24,0) -> 1 | BU49: 229.3607306 | BV49: =IF(BU49>0,IF(BU49>=100,$F$25,IF(BU49<100,$F$25/2)),0) -> 1 | BW49: =SUM(DI49) -> 1.5 | BX49: =IF(OR(DK49>0,DL49>0),$F$27,0) -> 1 | BY49: =IF(DJ49>0,$F$28,0) -> 1 | BZ49: =IF(DN49>0,$F$29,0) -> 1 | CA49: =SUM(BM49,BP49,BV49,BQ49,BT49,BW49,BX49,BY49,BZ49) -> 9.5 | CB49: =+CA49*$H$21 -> 3.166666667 | CC49: =SUM(AS49,BI49,CA49) -> 41.01949731 | CD49: =SUM(AT49,BJ49,CB49) -> 13.67316577 | CE49: =IF(D49<($W$13*$CF$31),1,IF(D49<(($W$14+$W$13)*$CF$31),2,IF(D49<(($W$15+$W$13+$W$14)*$CF$31),3,4))) -> 1 | CL49: https://www.google.com/maps/@60.5209844674,26.9506298078,3a,75y,90t/data=!3m3!1e1!3m1!2e0 | CN49: 2 | CP49: 0 | CR49: 2 | CS49: 1 | CT49: 2 | CU49: 10 | CV49: 0 | CW49: 12 | CX49: 0 | CY49: 0 | CZ49: 0 | DC49: 5 | DE49: 6 | DG49: =IF(X49>$L$7,$F$26/2,0) -> 1.5 | DH49: =+IF(X49/V49>1.5,$F$26/2,0) -> 0 | DI49: =SUM(DG49:DH49) -> 1.5 | DJ49: 4 | DK49: 1 | DL49: 0 | DN49: 1 | DO49: 0 | DP49: 3.249963466 | DQ49: 6.740295669 | DR49: 4.705970669 | DS49: 1.581631638 | DT49: =AVERAGE(DP49:DR49) -> 4.898743268 | DV49: 9 | DW49: =D49 -> 11 | DX49: =DV49-DW49 -> -2 | DY49: 1 | DZ49: =H49 -> 1 | EA49: =DY49-DZ49 -> 0
A50: =CONCATENATE(P50,"_",Q50) -> 387_3 | B50: 1 | D50: =RANK(CD50,$CD$39:$CD$711) -> 12 | E50: 12 | F50: =E50-D50 -> 0 | G50: =CD50 -> 13.65294444 | H50: =CE50 -> 1 | I50: =B50-H50 -> 0 | J50: =HYPERLINK(CL50,"Gmaps") -> Gmaps | K50: =IF(V50>$L$5,"KESKI","VÄHÄ") -> KESKI | L50: =IF(P50<40,"Valta",IF(P50<100,"Kanta",IF(P50<1000,"Seutu",IF(P50>999,"Yhdys")))) -> Seutu | M50: Vaalimaantie | N50: Lappeenranta | O50: Etelä-Karjala | P50: 387 | Q50: 3 | R50: 0 | S50: 3 | T50: 6062 | U50: =T50-R50 -> 6062 | V50: 2184 | W50: 180 | X50: 2402 | Y50: 2184 (100 %) | Z50: 100 (88 %), 80 (12 %) | AA50: Is (100 %) | AB50: Asfalttibetoni (100 %) | AC50: PK2 (100 %) | AD50: 2 | AE50: 8 | AF50: 0 | AG50: 92 | AL50: =+IF(V50>=$L$5,$F$4,($F$4/($L$5))*V50) -> 9 | AM50: 14 | AN50: =+IF(AM50>=$M$14,$J$14,IF(AM50<($M$14),AM50*($J$14/($M$14)),)) -> 3 | AO50: 565 | AP50: =+IF(AO50>=$M$10,$J$10,IF(AO50<($M$10),AO50*($J$10/($M$10)),)) -> 2 | AQ50: =IF(CN50=0,"-",IF(CN50=1,"taksi",IF(CN50=2,"pikkubussi","bussi"))) -> bussi | AR50: =IF(CN50=0,0,IF(CN50<3,$F$7/2,$F$7)) -> 3 | AS50: =SUM(AL50,AN50,AP50,AR50) -> 17 | AT50: =+AS50*$H$4 -> 5.666666667 | AU50: =+IF(W50=0,0,IF(W50>$L$6,$F$9,($F$9/$L$6)*W50)) -> 9 | AV50: =IF(CP50>0,$F$10,0) -> 2 | AW50: =IF(CR50>0,$F$11,0) -> 0 | AX50: =IF(CS50>0,$F$12,0) -> 1 | AY50: =IF(CT50>0,$F$13,0) -> 0 | AZ50: =IF(CU50>0,$F$14,0) -> 1 | BA50: =+IF(CV50>=$M$22,$J$22,IF(CV50<($M$22),CV50*($J$22/($M$22)),)) -> 0.5 | BB50: =+IF(CW50>=$M$23,$J$23,IF(CW50<($M$23),CW50*($J$23/($M$23)),)) -> 0.5 | BC50: =+IF(CX50>=$M$24,$J$24,IF(CX50<($M$24),CX50*($J$24/($M$24)),)) -> 0.1255 | BD50: =+IF(CY50>=$M$25,$J$25,IF(CY50<($M$25),CY50*($J$25/($M$25)),)) -> 0 | BE50: =IF(CZ50>0,$F$16,0) -> 1 | BF50: =+IF(DC50>=$M$28,$J$28,IF(DC50<($M$28),DC50*($J$28/($M$28)),)) -> 0.3333333333 | BG50: =IF(DO50>0,$F$18,0) -> 0 | BH50: =IF(COUNTIF($J$31:$M$31,TRUE)=0, 0, IF(SUMIF($J$31:$M$31,TRUE,DP50:DT50)/COUNTIF($J$31:$M$31,TRUE)>=$M$32, $F$19, $F$19*(SUMIF($J$31:$M$31,TRUE,DP50:DT50)/COUNTIF($J$31:$M$31,TRUE)/$M$32))) -> 2 | BI50: =SUM(AU50+AV50+AW50+AX50+AY50+AZ50+BE50+BA50+BB50+BC50+BD50+BF50+BG50+BH50) -> 17.45883333 | BJ50: =+BI50*$H$9 -> 5.819611111 | BK50: 2576.164029 | BL50: =BK50/U50 -> 0.4249693218 | BM50: =IF(BL50>0,IF(BL50>=$M$18,$J$18,IF(BL50<$M$18,$J$19,0)),0) -> 0.5 | BN50: 6068.043232 | BO50: =BN50/U50 -> 1.000996904 | BP50: =IF(BO50,$F$22,0) -> 1 | BQ50: =IF(DE50>0,$F$23,0) -> 0 | BR50: 418.9240787 | BS50: =BR50/U50 -> 0.06910657847 | BT50: =+IF(BS50>=$L$3,$F$24,0) -> 0 | BU50: 10.67502474 | BV50: =IF(BU50>0,IF(BU50>=100,$F$25,IF(BU50<100,$F$25/2)),0) -> 0.5 | BW50: =SUM(DI50) -> 1.5 | BX50: =IF(OR(DK50>0,DL50>0),$F$27,0) -> 1 | BY50: =IF(DJ50>0,$F$28,0) -> 1 | BZ50: =IF(DN50>0,$F$29,0) -> 1 | CA50: =SUM(BM50,BP50,BV50,BQ50,BT50,BW50,BX50,BY50,BZ50) -> 6.5 | CB50: =+CA50*$H$21 -> 2.166666667 | CC50: =SUM(AS50,BI50,CA50) -> 40.95883333 | CD50: =SUM(AT50,BJ50,CB50) -> 13.65294444 | CE50: =IF(D50<($W$13*$CF$31),1,IF(D50<(($W$14+$W$13)*$CF$31),2,IF(D50<(($W$15+$W$13+$W$14)*$CF$31),3,4))) -> 1 | CL50: https://www.google.com/maps/@60.9630333317,28.1536946012,3a,75y,90t/data=!3m3!1e1!3m1!2e0 | CN50: 3 | CP50: 1 | CR50: 0 | CS50: 1 | CT50: 0 | CU50: 7 | CV50: 780 | CW50: 259 | CX50: 251 | CY50: 0 | CZ50: 1 | DC50: 1 | DE50: 0 | DG50: =IF(X50>$L$7,$F$26/2,0) -> 1.5 | DH50: =+IF(X50/V50>1.5,$F$26/2,0) -> 0 | DI50: =SUM(DG50:DH50) -> 1.5 | DJ50: 2 | DK50: 0 | DL50: 1 | DN50: 1 | DO50: 0 | DP50: 10.96048058 | DQ50: 8.39206461 | DR50: 12.01891837 | DS50: 4.389284182 | DT50: =AVERAGE(DP50:DR50) -> 10.45715452 | DV50: 17 | DW50: =D50 -> 12 | DX50: =DV50-DW50 -> 5 | DY50: 1 | DZ50: =H50 -> 1 | EA50: =DY50-DZ50 -> 0
A51: =CONCATENATE(P51,"_",Q51) -> 384_2 | B51: 1 | D51: =RANK(CD51,$CD$39:$CD$711) -> 13 | E51: 13 | F51: =E51-D51 -> 0 | G51: =CD51 -> 13.4672701 | H51: =CE51 -> 1 | I51: =B51-H51 -> 0 | J51: =HYPERLINK(CL51,"Gmaps") -> Gmaps | K51: =IF(V51>$L$5,"KESKI","VÄHÄ") -> KESKI | L51: =IF(P51<40,"Valta",IF(P51<100,"Kanta",IF(P51<1000,"Seutu",IF(P51>999,"Yhdys")))) -> Seutu | M51: Keskustie, Miehikkäläntie, Taavetintie | N51: Miehikkälä, Virolahti | O51: Kymenlaakso | P51: 384 | Q51: 2 | R51: 0 | S51: 2 | T51: 9354 | U51: =T51-R51 -> 9354 | V51: 1248.652876 | W51: 64.22279239 | X51: 1380.239684 | Y51: 369 (15 %), 1357 (57 %), 1386 (20 %), 1732 (8 %) | Z51: 40 (22 %), 50 (8 %), 60 (21 %), 80 (49 %) | AA51: Ic (83 %), II (17 %) | AB51: Asfalttibetoni (68 %), Pehmeät asfalttibetonit (PAB-B) (31 %) | AC51: PK2 (98 %) | AD51: 4 | AE51: 6 | AF51: 0.1389631213 | AG51: 25.83921317 | AL51: =+IF(V51>=$L$5,$F$4,($F$4/($L$5))*V51) -> 9 | AM51: 12 | AN51: =+IF(AM51>=$M$14,$J$14,IF(AM51<($M$14),AM51*($J$14/($M$14)),)) -> 3 | AO51: 349 | AP51: =+IF(AO51>=$M$10,$J$10,IF(AO51<($M$10),AO51*($J$10/($M$10)),)) -> 2 | AQ51: =IF(CN51=0,"-",IF(CN51=1,"taksi",IF(CN51=2,"pikkubussi","bussi"))) -> bussi | AR51: =IF(CN51=0,0,IF(CN51<3,$F$7/2,$F$7)) -> 3 | AS51: =SUM(AL51,AN51,AP51,AR51) -> 17 | AT51: =+AS51*$H$4 -> 5.666666667 | AU51: =+IF(W51=0,0,IF(W51>$L$6,$F$9,($F$9/$L$6)*W51)) -> 9 | AV51: =IF(CP51>0,$F$10,0) -> 2 | AW51: =IF(CR51>0,$F$11,0) -> 1 | AX51: =IF(CS51>0,$F$12,0) -> 1 | AY51: =IF(CT51>0,$F$13,0) -> 0 | AZ51: =IF(CU51>0,$F$14,0) -> 1 | BA51: =+IF(CV51>=$M$22,$J$22,IF(CV51<($M$22),CV51*($J$22/($M$22)),)) -> 0.1766666667 | BB51: =+IF(CW51>=$M$23,$J$23,IF(CW51<($M$23),CW51*($J$23/($M$23)),)) -> 0.5 | BC51: =+IF(CX51>=$M$24,$J$24,IF(CX51<($M$24),CX51*($J$24/($M$24)),)) -> 0 | BD51: =+IF(CY51>=$M$25,$J$25,IF(CY51<($M$25),CY51*($J$25/($M$25)),)) -> 0 | BE51: =IF(CZ51>0,$F$16,0) -> 0 | BF51: =+IF(DC51>=$M$28,$J$28,IF(DC51<($M$28),DC51*($J$28/($M$28)),)) -> 0 | BG51: =IF(DO51>0,$F$18,0) -> 1 | BH51: =IF(COUNTIF($J$31:$M$31,TRUE)=0, 0, IF(SUMIF($J$31:$M$31,TRUE,DP51:DT51)/COUNTIF($J$31:$M$31,TRUE)>=$M$32, $F$19, $F$19*(SUMIF($J$31:$M$31,TRUE,DP51:DT51)/COUNTIF($J$31:$M$31,TRUE)/$M$32))) -> 0.7251436405 | BI51: =SUM(AU51+AV51+AW51+AX51+AY51+AZ51+BE51+BA51+BB51+BC51+BD51+BF51+BG51+BH51) -> 16.40181031 | BJ51: =+BI51*$H$9 -> 5.467270102 | BK51: 4762.152662 | BL51: =BK51/U51 -> 0.5091033421 | BM51: =IF(BL51>0,IF(BL51>=$M$18,$J$18,IF(BL51<$M$18,$J$19,0)),0) -> 1 | BN51: 0 | BO51: =BN51/U51 -> 0 | BP51: =IF(BO51,$F$22,0) -> 0 | BQ51: =IF(DE51>0,$F$23,0) -> 1 | BR51: 3944.15435 | BS51: =BR51/U51 -> 0.421654303 | BT51: =+IF(BS51>=$L$3,$F$24,0) -> 0 | BU51: 67.60744067 | BV51: =IF(BU51>0,IF(BU51>=100,$F$25,IF(BU51<100,$F$25/2)),0) -> 0.5 | BW51: =SUM(DI51) -> 1.5 | BX51: =IF(OR(DK51>0,DL51>0),$F$27,0) -> 1 | BY51: =IF(DJ51>0,$F$28,0) -> 1 | BZ51: =IF(DN51>0,$F$29,0) -> 1 | CA51: =SUM(BM51,BP51,BV51,BQ51,BT51,BW51,BX51,BY51,BZ51) -> 7 | CB51: =+CA51*$H$21 -> 2.333333333 | CC51: =SUM(AS51,BI51,CA51) -> 40.40181031 | CD51: =SUM(AT51,BJ51,CB51) -> 13.4672701 | CE51: =IF(D51<($W$13*$CF$31),1,IF(D51<(($W$14+$W$13)*$CF$31),2,IF(D51<(($W$15+$W$13+$W$14)*$CF$31),3,4))) -> 1 | CL51: https://www.google.com/maps/@60.6063376251,27.7048513748,3a,75y,90t/data=!3m3!1e1!3m1!2e0 | CN51: 3 | CP51: 2 | CR51: 1 | CS51: 2 | CT51: 0 | CU51: 11 | CV51: 106 | CW51: 187 | CX51: 0 | CY51: 0 | CZ51: 0 | DC51: 0 | DE51: 1 | DG51: =IF(X51>$L$7,$F$26/2,0) -> 1.5 | DH51: =+IF(X51/V51>1.5,$F$26/2,0) -> 0 | DI51: =SUM(DG51:DH51) -> 1.5 | DJ51: 1 | DK51: 1 | DL51: 0 | DN51: 1 | DO51: 1 | DP51: 2.358355621 | DQ51: 1.474044469 | DR51: 1.606177213 | DS51: 0.2672072266 | DT51: =AVERAGE(DP51:DR51) -> 1.812859101 | DV51: 20 | DW51: =D51 -> 13 | DX51: =DV51-DW51 -> 7 | DY51: 1 | DZ51: =H51 -> 1 | EA51: =DY51-DZ51 -> 0
A52: =CONCATENATE(P52,"_",Q52) -> 170_38 | B52: 1 | D52: =RANK(CD52,$CD$39:$CD$711) -> 14 | E52: 14 | F52: =E52-D52 -> 0 | G52: =CD52 -> 13.43291352 | H52: =CE52 -> 1 | I52: =B52-H52 -> 0 | J52: =HYPERLINK(CL52,"Gmaps") -> Gmaps | K52: =IF(V52>$L$5,"KESKI","VÄHÄ") -> KESKI | L52: =IF(P52<40,"Valta",IF(P52<100,"Kanta",IF(P52<1000,"Seutu",IF(P52>999,"Yhdys")))) -> Seutu | M52: Vaalimaantie | N52: Virolahti | O52: Kymenlaakso | P52: 170 | Q52: 38 | R52: 0 | S52: 38 | T52: 5361 | U52: =T52-R52 -> 5361 | V52: 1026 | W52: 69 | X52: 1217 | Y52: 1026 (100 %) | Z52: 50 (4 %), 60 (15 %), 80 (82 %) | AA52: I (7 %), Ib (93 %) | AB52: Asfalttibetoni (100 %) | AC52: PK2 (100 %) | AD52: 1 | AE52: 3 | AF52: 0 | AG52: 29 | AL52: =+IF(V52>=$L$5,$F$4,($F$4/($L$5))*V52) -> 9 | AM52: 12 | AN52: =+IF(AM52>=$M$14,$J$14,IF(AM52<($M$14),AM52*($J$14/($M$14)),)) -> 3 | AO52: 320 | AP52: =+IF(AO52>=$M$10,$J$10,IF(AO52<($M$10),AO52*($J$10/($M$10)),)) -> 2 | AQ52: =IF(CN52=0,"-",IF(CN52=1,"taksi",IF(CN52=2,"pikkubussi","bussi"))) -> bussi | AR52: =IF(CN52=0,0,IF(CN52<3,$F$7/2,$F$7)) -> 3 | AS52: =SUM(AL52,AN52,AP52,AR52) -> 17 | AT52: =+AS52*$H$4 -> 5.666666667 | AU52: =+IF(W52=0,0,IF(W52>$L$6,$F$9,($F$9/$L$6)*W52)) -> 9 | AV52: =IF(CP52>0,$F$10,0) -> 2 | AW52: =IF(CR52>0,$F$11,0) -> 0 | AX52: =IF(CS52>0,$F$12,0) -> 0 | AY52: =IF(CT52>0,$F$13,0) -> 1 | AZ52: =IF(CU52>0,$F$14,0) -> 1 | BA52: =+IF(CV52>=$M$22,$J$22,IF(CV52<($M$22),CV52*($J$22/($M$22)),)) -> 0.5 | BB52: =+IF(CW52>=$M$23,$J$23,IF(CW52<($M$23),CW52*($J$23/($M$23)),)) -> 0.225 | BC52: =+IF(CX52>=$M$24,$J$24,IF(CX52<($M$24),CX52*($J$24/($M$24)),)) -> 0 | BD52: =+IF(CY52>=$M$25,$J$25,IF(CY52<($M$25),CY52*($J$25/($M$25)),)) -> 0 | BE52: =IF(CZ52>0,$F$16,0) -> 0 | BF52: =+IF(DC52>=$M$28,$J$28,IF(DC52<($M$28),DC52*($J$28/($M$28)),)) -> 0.6666666667 | BG52: =IF(DO52>0,$F$18,0) -> 1 | BH52: =IF(COUNTIF($J$31:$M$31,TRUE)=0, 0, IF(SUMIF($J$31:$M$31,TRUE,DP52:DT52)/COUNTIF($J$31:$M$31,TRUE)>=$M$32, $F$19, $F$19*(SUMIF($J$31:$M$31,TRUE,DP52:DT52)/COUNTIF($J$31:$M$31,TRUE)/$M$32))) -> 0.9070739036 | BI52: =SUM(AU52+AV52+AW52+AX52+AY52+AZ52+BE52+BA52+BB52+BC52+BD52+BF52+BG52+BH52) -> 16.29874057 | BJ52: =+BI52*$H$9 -> 5.432913523 | BK52: 0 | BL52: =BK52/U52 -> 0 | BM52: =IF(BL52>0,IF(BL52>=$M$18,$J$18,IF(BL52<$M$18,$J$19,0)),0) -> 0 | BN52: 5275.375754 | BO52: =BN52/U52 -> 0.9840283071 | BP52: =IF(BO52,$F$22,0) -> 1 | BQ52: =IF(DE52>0,$F$23,0) -> 1 | BR52: 0 | BS52: =BR52/U52 -> 0 | BT52: =+IF(BS52>=$L$3,$F$24,0) -> 0 | BU52: 6.377354971 | BV52: =IF(BU52>0,IF(BU52>=100,$F$25,IF(BU52<100,$F$25/2)),0) -> 0.5 | BW52: =SUM(DI52) -> 1.5 | BX52: =IF(OR(DK52>0,DL52>0),$F$27,0) -> 1 | BY52: =IF(DJ52>0,$F$28,0) -> 1 | BZ52: =IF(DN52>0,$F$29,0) -> 1 | CA52: =SUM(BM52,BP52,BV52,BQ52,BT52,BW52,BX52,BY52,BZ52) -> 7 | CB52: =+CA52*$H$21 -> 2.333333333 | CC52: =SUM(AS52,BI52,CA52) -> 40.29874057 | CD52: =SUM(AT52,BJ52,CB52) -> 13.43291352 | CE52: =IF(D52<($W$13*$CF$31),1,IF(D52<(($W$14+$W$13)*$CF$31),2,IF(D52<(($W$15+$W$13+$W$14)*$CF$31),3,4))) -> 1 | CL52: https://www.google.com/maps/@60.5668284516,27.3812806254,3a,75y,90t/data=!3m3!1e1!3m1!2e0 | CN52: 3 | CP52: 3 | CR52: 0 | CS52: 0 | CT52: 1 | CU52: 17 | CV52: 464 | CW52: 45 | CX52: 0 | CY52: 0 | CZ52: 0 | DC52: 2 | DE52: 1 | DG52: =IF(X52>$L$7,$F$26/2,0) -> 1.5 | DH52: =+IF(X52/V52>1.5,$F$26/2,0) -> 0 | DI52: =SUM(DG52:DH52) -> 1.5 | DJ52: 1 | DK52: 1 | DL52: 0 | DN52: 1 | DO52: 1 | DP52: 2.524376791 | DQ52: 2.313492076 | DR52: 1.965185409 | DS52: 0.4942108819 | DT52: =AVERAGE(DP52:DR52) -> 2.267684759 | DV52: 10 | DW52: =D52 -> 14 | DX52: =DV52-DW52 -> -4 | DY52: 1 | DZ52: =H52 -> 1 | EA52: =DY52-DZ52 -> 0
A53: =CONCATENATE(P53,"_",Q53) -> 380_1 | B53: 1 | D53: =RANK(CD53,$CD$39:$CD$711) -> 15 | E53: 15 | F53: =E53-D53 -> 0 | G53: =CD53 -> 13.17882172 | H53: =CE53 -> 1 | I53: =B53-H53 -> 0 | J53: =HYPERLINK(CL53,"Gmaps") -> Gmaps | K53: =IF(V53>$L$5,"KESKI","VÄHÄ") -> KESKI | L53: =IF(P53<40,"Valta",IF(P53<100,"Kanta",IF(P53<1000,"Seutu",IF(P53>999,"Yhdys")))) -> Seutu | M53: Iitiäntie, Lemintie | N53: Lappeenranta, Lemi | O53: Etelä-Karjala | P53: 380 | Q53: 1 | R53: 0 | S53: 1 | T53: 4172 | U53: =T53-R53 -> 4172 | V53: 1942 | W53: 90 | X53: 2136 | Y53: 1942 (100 %) | Z53: 80 (100 %) | AA53: Ic (100 %) | AB53: Asfalttibetoni (100 %) | AC53: PK2 (100 %) | AD53: 1 | AE53: 3 | AF53: 0.02396931927 | AG53: 24 | AL53: =+IF(V53>=$L$5,$F$4,($F$4/($L$5))*V53) -> 9 | AM53: 21 | AN53: =+IF(AM53>=$M$14,$J$14,IF(AM53<($M$14),AM53*($J$14/($M$14)),)) -> 3 | AO53: 612 | AP53: =+IF(AO53>=$M$10,$J$10,IF(AO53<($M$10),AO53*($J$10/($M$10)),)) -> 2 | AQ53: =IF(CN53=0,"-",IF(CN53=1,"taksi",IF(CN53=2,"pikkubussi","bussi"))) -> bussi | AR53: =IF(CN53=0,0,IF(CN53<3,$F$7/2,$F$7)) -> 3 | AS53: =SUM(AL53,AN53,AP53,AR53) -> 17 | AT53: =+AS53*$H$4 -> 5.666666667 | AU53: =+IF(W53=0,0,IF(W53>$L$6,$F$9,($F$9/$L$6)*W53)) -> 9 | AV53: =IF(CP53>0,$F$10,0) -> 2 | AW53: =IF(CR53>0,$F$11,0) -> 1 | AX53: =IF(CS53>0,$F$12,0) -> 1 | AY53: =IF(CT53>0,$F$13,0) -> 0 | AZ53: =IF(CU53>0,$F$14,0) -> 1 | BA53: =+IF(CV53>=$M$22,$J$22,IF(CV53<($M$22),CV53*($J$22/($M$22)),)) -> 0.03333333333 | BB53: =+IF(CW53>=$M$23,$J$23,IF(CW53<($M$23),CW53*($J$23/($M$23)),)) -> 0.195 | BC53: =+IF(CX53>=$M$24,$J$24,IF(CX53<($M$24),CX53*($J$24/($M$24)),)) -> 0 | BD53: =+IF(CY53>=$M$25,$J$25,IF(CY53<($M$25),CY53*($J$25/($M$25)),)) -> 0 | BE53: =IF(CZ53>0,$F$16,0) -> 0 | BF53: =+IF(DC53>=$M$28,$J$28,IF(DC53<($M$28),DC53*($J$28/($M$28)),)) -> 0.6666666667 | BG53: =IF(DO53>0,$F$18,0) -> 0 | BH53: =IF(COUNTIF($J$31:$M$31,TRUE)=0, 0, IF(SUMIF($J$31:$M$31,TRUE,DP53:DT53)/COUNTIF($J$31:$M$31,TRUE)>=$M$32, $F$19, $F$19*(SUMIF($J$31:$M$31,TRUE,DP53:DT53)/COUNTIF($J$31:$M$31,TRUE)/$M$32))) -> 1.64146517 | BI53: =SUM(AU53+AV53+AW53+AX53+AY53+AZ53+BE53+BA53+BB53+BC53+BD53+BF53+BG53+BH53) -> 16.53646517 | BJ53: =+BI53*$H$9 -> 5.512155057 | BK53: 0 | BL53: =BK53/U53 -> 0 | BM53: =IF(BL53>0,IF(BL53>=$M$18,$J$18,IF(BL53<$M$18,$J$19,0)),0) -> 0 | BN53: 0 | BO53: =BN53/U53 -> 0 | BP53: =IF(BO53,$F$22,0) -> 0 | BQ53: =IF(DE53>0,$F$23,0) -> 1 | BR53: 2056.843316 | BS53: =BR53/U53 -> 0.4930113414 | BT53: =+IF(BS53>=$L$3,$F$24,0) -> 0 | BU53: 56.74113135 | BV53: =IF(BU53>0,IF(BU53>=100,$F$25,IF(BU53<100,$F$25/2)),0) -> 0.5 | BW53: =SUM(DI53) -> 1.5 | BX53: =IF(OR(DK53>0,DL53>0),$F$27,0) -> 1 | BY53: =IF(DJ53>0,$F$28,0) -> 1 | BZ53: =IF(DN53>0,$F$29,0) -> 1 | CA53: =SUM(BM53,BP53,BV53,BQ53,BT53,BW53,BX53,BY53,BZ53) -> 6 | CB53: =+CA53*$H$21 -> 2 | CC53: =SUM(AS53,BI53,CA53) -> 39.53646517 | CD53: =SUM(AT53,BJ53,CB53) -> 13.17882172 | CE53: =IF(D53<($W$13*$CF$31),1,IF(D53<(($W$14+$W$13)*$CF$31),2,IF(D53<(($W$15+$W$13+$W$14)*$CF$31),3,4))) -> 1 | CL53: https://www.google.com/maps/@61.050824221,28.0145896561,3a,75y,90t/data=!3m3!1e1!3m1!2e0 | CN53: 3 | CP53: 2 | CR53: 1 | CS53: 2 | CT53: 0 | CU53: 2 | CV53: 20 | CW53: 39 | CX53: 0 | CY53: 0 | CZ53: 0 | DC53: 2 | DE53: 3 | DG53: =IF(X53>$L$7,$F$26/2,0) -> 1.5 | DH53: =+IF(X53/V53>1.5,$F$26/2,0) -> 0 | DI53: =SUM(DG53:DH53) -> 1.5 | DJ53: 2 | DK53: 1 | DL53: 0 | DN53: 1 | DO53: 0 | DP53: 3.845847276 | DQ53: 3.373443216 | DR53: 5.091698286 | DS53: 1.97032929 | DT53: =AVERAGE(DP53:DR53) -> 4.103662926 | DV53: 22 | DW53: =D53 -> 15 | DX53: =DV53-DW53 -> 7 | DY53: 1 | DZ53: =H53 -> 1 | EA53: =DY53-DZ53 -> 0
A54: =CONCATENATE(P54,"_",Q54) -> 353_1 | B54: 1 | D54: =RANK(CD54,$CD$39:$CD$711) -> 16 | E54: 16 | F54: =E54-D54 -> 0 | G54: =CD54 -> 13.11195305 | H54: =CE54 -> 1 | I54: =B54-H54 -> 0 | J54: =HYPERLINK(CL54,"Gmaps") -> Gmaps | K54: =IF(V54>$L$5,"KESKI","VÄHÄ") -> KESKI | L54: =IF(P54<40,"Valta",IF(P54<100,"Kanta",IF(P54<1000,"Seutu",IF(P54>999,"Yhdys")))) -> Seutu | M54: Kenraalintie, Keskikoskentie | N54: Kouvola | O54: Kymenlaakso | P54: 353 | Q54: 1 | R54: 0 | S54: 1 | T54: 5265 | U54: =T54-R54 -> 5265 | V54: 3198.944919 | W54: 197.2345679 | X54: 3412.65622 | Y54: 2456 (19 %), 2875 (9 %), 3409 (53 %), 3538 (19 %) | Z54: 40 (22 %), 50 (54 %), 60 (21 %), 80 (4 %) | AA54: Ib (27 %), Is (72 %) | AB54: Asfalttibetoni (26 %), Kantavan kerroksen asfalttibetoni (ABK) (16 %), Kivimastiksiasfaltti (74 %) | AC54: PK2 (97 %) | AD54: 4 | AE54: 9 | AF54: 0.6668896321 | AG54: 90.24976258 | AI54: Keskikosken silta II (KaS-866), Keskikosken silta I (KaS-91) | AL54: =+IF(V54>=$L$5,$F$4,($F$4/($L$5))*V54) -> 9 | AM54: 0 | AN54: =+IF(AM54>=$M$14,$J$14,IF(AM54<($M$14),AM54*($J$14/($M$14)),)) -> 0 | AO54: 1773 | AP54: =+IF(AO54>=$M$10,$J$10,IF(AO54<($M$10),AO54*($J$10/($M$10)),)) -> 2 | AQ54: =IF(CN54=0,"-",IF(CN54=1,"taksi",IF(CN54=2,"pikkubussi","bussi"))) -> bussi | AR54: =IF(CN54=0,0,IF(CN54<3,$F$7/2,$F$7)) -> 3 | AS54: =SUM(AL54,AN54,AP54,AR54) -> 14 | AT54: =+AS54*$H$4 -> 4.666666667 | AU54: =+IF(W54=0,0,IF(W54>$L$6,$F$9,($F$9/$L$6)*W54)) -> 9 | AV54: =IF(CP54>0,$F$10,0) -> 2 | AW54: =IF(CR54>0,$F$11,0) -> 1 | AX54: =IF(CS54>0,$F$12,0) -> 1 | AY54: =IF(CT54>0,$F$13,0) -> 0 | AZ54: =IF(CU54>0,$F$14,0) -> 1 | BA54: =+IF(CV54>=$M$22,$J$22,IF(CV54<($M$22),CV54*($J$22/($M$22)),)) -> 0.1433333333 | BB54: =+IF(CW54>=$M$23,$J$23,IF(CW54<($M$23),CW54*($J$23/($M$23)),)) -> 0.125 | BC54: =+IF(CX54>=$M$24,$J$24,IF(CX54<($M$24),CX54*($J$24/($M$24)),)) -> 0.417 | BD54: =+IF(CY54>=$M$25,$J$25,IF(CY54<($M$25),CY54*($J$25/($M$25)),)) -> 0 | BE54: =IF(CZ54>0,$F$16,0) -> 0 | BF54: =+IF(DC54>=$M$28,$J$28,IF(DC54<($M$28),DC54*($J$28/($M$28)),)) -> 1 | BG54: =IF(DO54>0,$F$18,0) -> 0 | BH54: =IF(COUNTIF($J$31:$M$31,TRUE)=0, 0, IF(SUMIF($J$31:$M$31,TRUE,DP54:DT54)/COUNTIF($J$31:$M$31,TRUE)>=$M$32, $F$19, $F$19*(SUMIF($J$31:$M$31,TRUE,DP54:DT54)/COUNTIF($J$31:$M$31,TRUE)/$M$32))) -> 1.150525819 | BI54: =SUM(AU54+AV54+AW54+AX54+AY54+AZ54+BE54+BA54+BB54+BC54+BD54+BF54+BG54+BH54) -> 16.83585915 | BJ54: =+BI54*$H$9 -> 5.611953051 | BK54: 5269.843422 | BL54: =BK54/U54 -> 1.000919928 | BM54: =IF(BL54>0,IF(BL54>=$M$18,$J$18,IF(BL54<$M$18,$J$19,0)),0) -> 1 | BN54: 1123.223863 | BO54: =BN54/U54 -> 0.2133378658 | BP54: =IF(BO54,$F$22,0) -> 1 | BQ54: =IF(DE54>0,$F$23,0) -> 1 | BR54: 5269.843422 | BS54: =BR54/U54 -> 1.000919928 | BT54: =+IF(BS54>=$L$3,$F$24,0) -> 1 | BU54: 517.3276353 | BV54: =IF(BU54>0,IF(BU54>=100,$F$25,IF(BU54<100,$F$25/2)),0) -> 1 | BW54: =SUM(DI54) -> 1.5 | BX54: =IF(OR(DK54>0,DL54>0),$F$27,0) -> 1 | BY54: =IF(DJ54>0,$F$28,0) -> 0 | BZ54: =IF(DN54>0,$F$29,0) -> 1 | CA54: =SUM(BM54,BP54,BV54,BQ54,BT54,BW54,BX54,BY54,BZ54) -> 8.5 | CB54: =+CA54*$H$21 -> 2.833333333 | CC54: =SUM(AS54,BI54,CA54) -> 39.33585915 | CD54: =SUM(AT54,BJ54,CB54) -> 13.11195305 | CE54: =IF(D54<($W$13*$CF$31),1,IF(D54<(($W$14+$W$13)*$CF$31),2,IF(D54<(($W$15+$W$13+$W$14)*$CF$31),3,4))) -> 1 | CL54: https://www.google.com/maps/@60.7489195238,26.842639314,3a,75y,90t/data=!3m3!1e1!3m1!2e0 | CN54: 3 | CP54: 3 | CR54: 2 | CS54: 2 | CT54: 0 | CU54: 3 | CV54: 86 | CW54: 25 | CX54: 834 | CY54: 0 | CZ54: 0 | DC54: 7 | DE54: 12 | DG54: =IF(X54>$L$7,$F$26/2,0) -> 1.5 | DH54: =+IF(X54/V54>1.5,$F$26/2,0) -> 0 | DI54: =SUM(DG54:DH54) -> 1.5 | DJ54: 0 | DK54: 1 | DL54: 0 | DN54: 1 | DO54: 0 | DP54: 2.677626561 | DQ54: 3.531269204 | DR54: 2.420047877 | DS54: 3.543517596 | DT54: =AVERAGE(DP54:DR54) -> 2.876314547 | DV54: 3 | DW54: =D54 -> 16 | DX54: =DV54-DW54 -> -13 | DY54: 1 | DZ54: =H54 -> 1 | EA54: =DY54-DZ54 -> 0
A55: =CONCATENATE(P55,"_",Q55) -> 14821_2 | B55: 1 | D55: =RANK(CD55,$CD$39:$CD$711) -> 17 | E55: 17 | F55: =E55-D55 -> 0 | G55: =CD55 -> 13.10744241 | H55: =CE55 -> 1 | I55: =B55-H55 -> 0 | J55: =HYPERLINK(CL55,"Gmaps") -> Gmaps | K55: =IF(V55>$L$5,"KESKI","VÄHÄ") -> KESKI | L55: =IF(P55<40,"Valta",IF(P55<100,"Kanta",IF(P55<1000,"Seutu",IF(P55>999,"Yhdys")))) -> Yhdys | M55: Vanha Viipurintie | N55: Lappeenranta | O55: Etelä-Karjala | P55: 14821 | Q55: 2 | R55: 1072 | S55: 2 | T55: 6665 | U55: =T55-R55 -> 5593 | V55: 1302.473807 | W55: 63.82567495 | X55: 1351.803683 | Y55: 1060 (54 %), 1582 (46 %) | Z55: 60 (12 %), 80 (88 %) | AA55: Ib (100 %) | AB55: Asfalttibetoni (81 %), Kivimastiksiasfaltti (19 %) | AC55: PK3 (100 %) | AD55: 1 | AE55: 2 | AF55: 0.007573089116 | AG55: 15.25156446 | AL55: =+IF(V55>=$L$5,$F$4,($F$4/($L$5))*V55) -> 9 | AM55: 36 | AN55: =+IF(AM55>=$M$14,$J$14,IF(AM55<($M$14),AM55*($J$14/($M$14)),)) -> 3 | AO55: 442 | AP55: =+IF(AO55>=$M$10,$J$10,IF(AO55<($M$10),AO55*($J$10/($M$10)),)) -> 2 | AQ55: =IF(CN55=0,"-",IF(CN55=1,"taksi",IF(CN55=2,"pikkubussi","bussi"))) -> bussi | AR55: =IF(CN55=0,0,IF(CN55<3,$F$7/2,$F$7)) -> 3 | AS55: =SUM(AL55,AN55,AP55,AR55) -> 17 | AT55: =+AS55*$H$4 -> 5.666666667 | AU55: =+IF(W55=0,0,IF(W55>$L$6,$F$9,($F$9/$L$6)*W55)) -> 9 | AV55: =IF(CP55>0,$F$10,0) -> 2 | AW55: =IF(CR55>0,$F$11,0) -> 1 | AX55: =IF(CS55>0,$F$12,0) -> 1 | AY55: =IF(CT55>0,$F$13,0) -> 0 | AZ55: =IF(CU55>0,$F$14,0) -> 1 | BA55: =+IF(CV55>=$M$22,$J$22,IF(CV55<($M$22),CV55*($J$22/($M$22)),)) -> 0.1116666667 | BB55: =+IF(CW55>=$M$23,$J$23,IF(CW55<($M$23),CW55*($J$23/($M$23)),)) -> 0 | BC55: =+IF(CX55>=$M$24,$J$24,IF(CX55<($M$24),CX55*($J$24/($M$24)),)) -> 0 | BD55: =+IF(CY55>=$M$25,$J$25,IF(CY55<($M$25),CY55*($J$25/($M$25)),)) -> 0.5 | BE55: =IF(CZ55>0,$F$16,0) -> 1 | BF55: =+IF(DC55>=$M$28,$J$28,IF(DC55<($M$28),DC55*($J$28/($M$28)),)) -> 0 | BG55: =IF(DO55>0,$F$18,0) -> 0 | BH55: =IF(COUNTIF($J$31:$M$31,TRUE)=0, 0, IF(SUMIF($J$31:$M$31,TRUE,DP55:DT55)/COUNTIF($J$31:$M$31,TRUE)>=$M$32, $F$19, $F$19*(SUMIF($J$31:$M$31,TRUE,DP55:DT55)/COUNTIF($J$31:$M$31,TRUE)/$M$32))) -> 0.710660562 | BI55: =SUM(AU55+AV55+AW55+AX55+AY55+AZ55+BE55+BA55+BB55+BC55+BD55+BF55+BG55+BH55) -> 16.32232723 | BJ55: =+BI55*$H$9 -> 5.440775743 | BK55: 2577.132549 | BL55: =BK55/U55 -> 0.4607782137 | BM55: =IF(BL55>0,IF(BL55>=$M$18,$J$18,IF(BL55<$M$18,$J$19,0)),0) -> 0.5 | BN55: 0 | BO55: =BN55/U55 -> 0 | BP55: =IF(BO55,$F$22,0) -> 0 | BQ55: =IF(DE55>0,$F$23,0) -> 0 | BR55: 984.2591233 | BS55: =BR55/U55 -> 0.1759805334 | BT55: =+IF(BS55>=$L$3,$F$24,0) -> 0 | BU55: 177.1321294 | BV55: =IF(BU55>0,IF(BU55>=100,$F$25,IF(BU55<100,$F$25/2)),0) -> 1 | BW55: =SUM(DI55) -> 1.5 | BX55: =IF(OR(DK55>0,DL55>0),$F$27,0) -> 1 | BY55: =IF(DJ55>0,$F$28,0) -> 1 | BZ55: =IF(DN55>0,$F$29,0) -> 1 | CA55: =SUM(BM55,BP55,BV55,BQ55,BT55,BW55,BX55,BY55,BZ55) -> 6 | CB55: =+CA55*$H$21 -> 2 | CC55: =SUM(AS55,BI55,CA55) -> 39.32232723 | CD55: =SUM(AT55,BJ55,CB55) -> 13.10744241 | CE55: =IF(D55<($W$13*$CF$31),1,IF(D55<(($W$14+$W$13)*$CF$31),2,IF(D55<(($W$15+$W$13+$W$14)*$CF$31),3,4))) -> 1 | CL55: https://www.google.com/maps/@61.0393936691,28.2291605482,3a,75y,90t/data=!3m3!1e1!3m1!2e0 | CN55: 3 | CP55: 2 | CR55: 1 | CS55: 1 | CT55: 0 | CU55: 2 | CV55: 67 | CW55: 0 | CX55: 0 | CY55: 1188 | CZ55: 1 | DC55: 0 | DE55: 0 | DG55: =IF(X55>$L$7,$F$26/2,0) -> 1.5 | DH55: =+IF(X55/V55>1.5,$F$26/2,0) -> 0 | DI55: =SUM(DG55:DH55) -> 1.5 | DJ55: 1 | DK55: 1 | DL55: 0 | DN55: 1 | DO55: 0 | DP55: 1.678280239 | DQ55: 1.580614781 | DR55: 2.071059195 | DS55: 0.7068349676 | DT55: =AVERAGE(DP55:DR55) -> 1.776651405 | DV55: 78 | DW55: =D55 -> 17 | DX55: =DV55-DW55 -> 61 | DY55: 2 | DZ55: =H55 -> 1 | EA55: =DY55-DZ55 -> 1
A56: =CONCATENATE(P56,"_",Q56) -> 4081_1 | B56: 1 | D56: =RANK(CD56,$CD$39:$CD$711) -> 18 | E56: 18 | F56: =E56-D56 -> 0 | G56: =CD56 -> 13.10111111 | H56: =CE56 -> 1 | I56: =B56-H56 -> 0 | J56: =HYPERLINK(CL56,"Gmaps") -> Gmaps | K56: =IF(V56>$L$5,"KESKI","VÄHÄ") -> KESKI | L56: =IF(P56<40,"Valta",IF(P56<100,"Kanta",IF(P56<1000,"Seutu",IF(P56>999,"Yhdys")))) -> Yhdys | M56: Hyötiöntie, Pajarilanväylä, Vehkataipaleentie | N56: Lappeenranta | O56: Etelä-Karjala | P56: 4081 | Q56: 1 | R56: 0 | S56: 1 | T56: 6194 | U56: =T56-R56 -> 6194 | V56: 2582.320396 | W56: 160.1950556 | X56: 3487.031644 | Y56: 1331 (3 %), 2372 (89 %), 5392 (8 %) | Z56: 50 (1 %), 60 (32 %), 80 (33 %) | AA56: Ib (60 %), Is (5 %) | AB56: Asfalttibetoni (58 %), Kivimastiksiasfaltti (7 %) | AC56: PK2 (65 %) | AD56: 0 | AE56: 2 | AF56: 0.05061841503 | AG56: 61.41829419 | AL56: =+IF(V56>=$L$5,$F$4,($F$4/($L$5))*V56) -> 9 | AM56: 0 | AN56: =+IF(AM56>=$M$14,$J$14,IF(AM56<($M$14),AM56*($J$14/($M$14)),)) -> 0 | AO56: 1740 | AP56: =+IF(AO56>=$M$10,$J$10,IF(AO56<($M$10),AO56*($J$10/($M$10)),)) -> 2 | AQ56: =IF(CN56=0,"-",IF(CN56=1,"taksi",IF(CN56=2,"pikkubussi","bussi"))) -> pikkubussi | AR56: =IF(CN56=0,0,IF(CN56<3,$F$7/2,$F$7)) -> 1.5 | AS56: =SUM(AL56,AN56,AP56,AR56) -> 12.5 | AT56: =+AS56*$H$4 -> 4.166666667 | AU56: =+IF(W56=0,0,IF(W56>$L$6,$F$9,($F$9/$L$6)*W56)) -> 9 | AV56: =IF(CP56>0,$F$10,0) -> 2 | AW56: =IF(CR56>0,$F$11,0) -> 1 | AX56: =IF(CS56>0,$F$12,0) -> 1 | AY56: =IF(CT56>0,$F$13,0) -> 1 | AZ56: =IF(CU56>0,$F$14,0) -> 1 | BA56: =+IF(CV56>=$M$22,$J$22,IF(CV56<($M$22),CV56*($J$22/($M$22)),)) -> 0.05833333333 | BB56: =+IF(CW56>=$M$23,$J$23,IF(CW56<($M$23),CW56*($J$23/($M$23)),)) -> 0.095 | BC56: =+IF(CX56>=$M$24,$J$24,IF(CX56<($M$24),CX56*($J$24/($M$24)),)) -> 0 | BD56: =+IF(CY56>=$M$25,$J$25,IF(CY56<($M$25),CY56*($J$25/($M$25)),)) -> 0.15 | BE56: =IF(CZ56>0,$F$16,0) -> 0 | BF56: =+IF(DC56>=$M$28,$J$28,IF(DC56<($M$28),DC56*($J$28/($M$28)),)) -> 1 | BG56: =IF(DO56>0,$F$18,0) -> 1 | BH56: =IF(COUNTIF($J$31:$M$31,TRUE)=0, 0, IF(SUMIF($J$31:$M$31,TRUE,DP56:DT56)/COUNTIF($J$31:$M$31,TRUE)>=$M$32, $F$19, $F$19*(SUMIF($J$31:$M$31,TRUE,DP56:DT56)/COUNTIF($J$31:$M$31,TRUE)/$M$32))) -> 2 | BI56: =SUM(AU56+AV56+AW56+AX56+AY56+AZ56+BE56+BA56+BB56+BC56+BD56+BF56+BG56+BH56) -> 19.30333333 | BJ56: =+BI56*$H$9 -> 6.434444444 | BK56: 2691.849812 | BL56: =BK56/U56 -> 0.4345898953 | BM56: =IF(BL56>0,IF(BL56>=$M$18,$J$18,IF(BL56<$M$18,$J$19,0)),0) -> 0.5 | BN56: 303.5628737 | BO56: =BN56/U56 -> 0.04900918207 | BP56: =IF(BO56,$F$22,0) -> 1 | BQ56: =IF(DE56>0,$F$23,0) -> 1 | BR56: 375.4986794 | BS56: =BR56/U56 -> 0.06062297052 | BT56: =+IF(BS56>=$L$3,$F$24,0) -> 0 | BU56: 41.57313529 | BV56: =IF(BU56>0,IF(BU56>=100,$F$25,IF(BU56<100,$F$25/2)),0) -> 0.5 | BW56: =SUM(DI56) -> 1.5 | BX56: =IF(OR(DK56>0,DL56>0),$F$27,0) -> 1 | BY56: =IF(DJ56>0,$F$28,0) -> 1 | BZ56: =IF(DN56>0,$F$29,0) -> 1 | CA56: =SUM(BM56,BP56,BV56,BQ56,BT56,BW56,BX56,BY56,BZ56) -> 7.5 | CB56: =+CA56*$H$21 -> 2.5 | CC56: =SUM(AS56,BI56,CA56) -> 39.30333333 | CD56: =SUM(AT56,BJ56,CB56) -> 13.10111111 | CE56: =IF(D56<($W$13*$CF$31),1,IF(D56<(($W$14+$W$13)*$CF$31),2,IF(D56<(($W$15+$W$13+$W$14)*$CF$31),3,4))) -> 1 | CL56: https://www.google.com/maps/@61.0540391675,28.262757174,3a,75y,90t/data=!3m3!1e1!3m1!2e0 | CN56: 2 | CP56: 7 | CR56: 5 | CS56: 4 | CT56: 1 | CU56: 5 | CV56: 35 | CW56: 19 | CX56: 0 | CY56: 9 | CZ56: 0 | DC56: 20 | DE56: 2 | DG56: =IF(X56>$L$7,$F$26/2,0) -> 1.5 | DH56: =+IF(X56/V56>1.5,$F$26/2,0) -> 0 | DI56: =SUM(DG56:DH56) -> 1.5 | DJ56: 5 | DK56: 1 | DL56: 0 | DN56: 1 | DO56: 2 | DP56: 7.636412771 | DQ56: 6.805428605 | DR56: 8.319262477 | DS56: 2.747864807 | DT56: =AVERAGE(DP56:DR56) -> 7.587034617 | DV56: 11 | DW56: =D56 -> 18 | DX56: =DV56-DW56 -> -7 | DY56: 1 | DZ56: =H56 -> 1 | EA56: =DY56-DZ56 -> 0
A57: =CONCATENATE(P57,"_",Q57) -> 354_5 | B57: 1 | D57: =RANK(CD57,$CD$39:$CD$711) -> 19 | E57: 19 | F57: =E57-D57 -> 0 | G57: =CD57 -> 13.06893747 | H57: =CE57 -> 1 | I57: =B57-H57 -> 0 | J57: =HYPERLINK(CL57,"Gmaps") -> Gmaps | K57: =IF(V57>$L$5,"KESKI","VÄHÄ") -> KESKI | L57: =IF(P57<40,"Valta",IF(P57<100,"Kanta",IF(P57<1000,"Seutu",IF(P57>999,"Yhdys")))) -> Seutu | M57: Elimäentie, Inkeroistentie, Päätie | N57: Kouvola | O57: Kymenlaakso | P57: 354 | Q57: 5 | R57: 0 | S57: 5 | T57: 6853 | U57: =T57-R57 -> 6853 | V57: 2845.771322 | W57: 158.9851024 | X57: 3124.477467 | Y57: 2232 (34 %), 3012 (51 %), 3674 (15 %) | Z57: 40 (5 %), 50 (21 %), 60 (13 %) | AA57: Ib (13 %), Ic (6 %), Is (20 %) | AB57: Asfalttibetoni (33 %), Kivimastiksiasfaltti (6 %) | AC57: PK2 (39 %) | AD57: 0 | AE57: 2 | AF57: 0.3549348231 | AG57: 69.09608939 | AL57: =+IF(V57>=$L$5,$F$4,($F$4/($L$5))*V57) -> 9 | AM57: 0 | AN57: =+IF(AM57>=$M$14,$J$14,IF(AM57<($M$14),AM57*($J$14/($M$14)),)) -> 0 | AO57: 1275 | AP57: =+IF(AO57>=$M$10,$J$10,IF(AO57<($M$10),AO57*($J$10/($M$10)),)) -> 2 | AQ57: =IF(CN57=0,"-",IF(CN57=1,"taksi",IF(CN57=2,"pikkubussi","bussi"))) -> bussi | AR57: =IF(CN57=0,0,IF(CN57<3,$F$7/2,$F$7)) -> 3 | AS57: =SUM(AL57,AN57,AP57,AR57) -> 14 | AT57: =+AS57*$H$4 -> 4.666666667 | AU57: =+IF(W57=0,0,IF(W57>$L$6,$F$9,($F$9/$L$6)*W57)) -> 9 | AV57: =IF(CP57>0,$F$10,0) -> 2 | AW57: =IF(CR57>0,$F$11,0) -> 1 | AX57: =IF(CS57>0,$F$12,0) -> 0 | AY57: =IF(CT57>0,$F$13,0) -> 0 | AZ57: =IF(CU57>0,$F$14,0) -> 1 | BA57: =+IF(CV57>=$M$22,$J$22,IF(CV57<($M$22),CV57*($J$22/($M$22)),)) -> 0.2633333333 | BB57: =+IF(CW57>=$M$23,$J$23,IF(CW57<($M$23),CW57*($J$23/($M$23)),)) -> 0.5 | BC57: =+IF(CX57>=$M$24,$J$24,IF(CX57<($M$24),CX57*($J$24/($M$24)),)) -> 0 | BD57: =+IF(CY57>=$M$25,$J$25,IF(CY57<($M$25),CY57*($J$25/($M$25)),)) -> 0 | BE57: =IF(CZ57>0,$F$16,0) -> 0 | BF57: =+IF(DC57>=$M$28,$J$28,IF(DC57<($M$28),DC57*($J$28/($M$28)),)) -> 1 | BG57: =IF(DO57>0,$F$18,0) -> 1 | BH57: =IF(COUNTIF($J$31:$M$31,TRUE)=0, 0, IF(SUMIF($J$31:$M$31,TRUE,DP57:DT57)/COUNTIF($J$31:$M$31,TRUE)>=$M$32, $F$19, $F$19*(SUMIF($J$31:$M$31,TRUE,DP57:DT57)/COUNTIF($J$31:$M$31,TRUE)/$M$32))) -> 1.943479074 | BI57: =SUM(AU57+AV57+AW57+AX57+AY57+AZ57+BE57+BA57+BB57+BC57+BD57+BF57+BG57+BH57) -> 17.70681241 | BJ57: =+BI57*$H$9 -> 5.902270803 | BK57: 1774.0439 | BL57: =BK57/U57 -> 0.2588711367 | BM57: =IF(BL57>0,IF(BL57>=$M$18,$J$18,IF(BL57<$M$18,$J$19,0)),0) -> 0.5 | BN57: 2154.601939 | BO57: =BN57/U57 -> 0.3144027344 | BP57: =IF(BO57,$F$22,0) -> 1 | BQ57: =IF(DE57>0,$F$23,0) -> 1 | BR57: 2108.333507 | BS57: =BR57/U57 -> 0.3076511757 | BT57: =+IF(BS57>=$L$3,$F$24,0) -> 0 | BU57: 90.50153218 | BV57: =IF(BU57>0,IF(BU57>=100,$F$25,IF(BU57<100,$F$25/2)),0) -> 0.5 | BW57: =SUM(DI57) -> 1.5 | BX57: =IF(OR(DK57>0,DL57>0),$F$27,0) -> 1 | BY57: =IF(DJ57>0,$F$28,0) -> 1 | BZ57: =IF(DN57>0,$F$29,0) -> 1 | CA57: =SUM(BM57,BP57,BV57,BQ57,BT57,BW57,BX57,BY57,BZ57) -> 7.5 | CB57: =+CA57*$H$21 -> 2.5 | CC57: =SUM(AS57,BI57,CA57) -> 39.20681241 | CD57: =SUM(AT57,BJ57,CB57) -> 13.06893747 | CE57: =IF(D57<($W$13*$CF$31),1,IF(D57<(($W$14+$W$13)*$CF$31),2,IF(D57<(($W$15+$W$13+$W$14)*$CF$31),3,4))) -> 1 | CL57: https://www.google.com/maps/@60.6885436766,26.7635481865,3a,75y,90t/data=!3m3!1e1!3m1!2e0 | CN57: 3 | CP57: 1 | CR57: 1 | CS57: 0 | CT57: 0 | CU57: 10 | CV57: 158 | CW57: 525 | CX57: 0 | CY57: 0 | CZ57: 0 | DC57: 5 | DE57: 3 | DG57: =IF(X57>$L$7,$F$26/2,0) -> 1.5 | DH57: =+IF(X57/V57>1.5,$F$26/2,0) -> 0 | DI57: =SUM(DG57:DH57) -> 1.5 | DJ57: 3 | DK57: 1 | DL57: 0 | DN57: 1 | DO57: 6 | DP57: 5.03581459 | DQ57: 5.488351425 | DR57: 4.051927042 | DS57: 2.774441953 | DT57: =AVERAGE(DP57:DR57) -> 4.858697686 | DV57: 5 | DW57: =D57 -> 19 | DX57: =DV57-DW57 -> -14 | DY57: 1 | DZ57: =H57 -> 1 | EA57: =DY57-DZ57 -> 0
A58: =CONCATENATE(P58,"_",Q58) -> 3846_3 | B58: 1 | D58: =RANK(CD58,$CD$39:$CD$711) -> 20 | E58: 20 | F58: =E58-D58 -> 0 | G58: =CD58 -> 13.03276577 | H58: =CE58 -> 1 | I58: =B58-H58 -> 0 | J58: =HYPERLINK(CL58,"Gmaps") -> Gmaps | K58: =IF(V58>$L$5,"KESKI","VÄHÄ") -> KESKI | L58: =IF(P58<40,"Valta",IF(P58<100,"Kanta",IF(P58<1000,"Seutu",IF(P58>999,"Yhdys")))) -> Yhdys | M58: Itsenäisyydentie | N58: Luumäki | O58: Etelä-Karjala | P58: 3846 | Q58: 3 | R58: 0 | S58: 3 | T58: 10475 | U58: =T58-R58 -> 10475 | V58: 1148.932697 | W58: 85.69880668 | X58: 1402.026253 | Y58: 1130 (49 %), 1167 (51 %) | Z58: 50 (8 %), 60 (47 %), 80 (45 %) | AA58: Ic (100 %) | AB58: Asfalttibetoni (100 %), Kivimastiksiasfaltti (0 %) | AC58: PK2 (99 %) | AD58: 0 | AE58: 4 | AF58: 0 | AG58: 40.67541766 | AL58: =+IF(V58>=$L$5,$F$4,($F$4/($L$5))*V58) -> 9 | AM58: 41 | AN58: =+IF(AM58>=$M$14,$J$14,IF(AM58<($M$14),AM58*($J$14/($M$14)),)) -> 3 | AO58: 495 | AP58: =+IF(AO58>=$M$10,$J$10,IF(AO58<($M$10),AO58*($J$10/($M$10)),)) -> 2 | AQ58: =IF(CN58=0,"-",IF(CN58=1,"taksi",IF(CN58=2,"pikkubussi","bussi"))) -> bussi | AR58: =IF(CN58=0,0,IF(CN58<3,$F$7/2,$F$7)) -> 3 | AS58: =SUM(AL58,AN58,AP58,AR58) -> 17 | AT58: =+AS58*$H$4 -> 5.666666667 | AU58: =+IF(W58=0,0,IF(W58>$L$6,$F$9,($F$9/$L$6)*W58)) -> 9 | AV58: =IF(CP58>0,$F$10,0) -> 0 | AW58: =IF(CR58>0,$F$11,0) -> 0 | AX58: =IF(CS58>0,$F$12,0) -> 0 | AY58: =IF(CT58>0,$F$13,0) -> 1 | AZ58: =IF(CU58>0,$F$14,0) -> 1 | BA58: =+IF(CV58>=$M$22,$J$22,IF(CV58<($M$22),CV58*($J$22/($M$22)),)) -> 0.115 | BB58: =+IF(CW58>=$M$23,$J$23,IF(CW58<($M$23),CW58*($J$23/($M$23)),)) -> 0 | BC58: =+IF(CX58>=$M$24,$J$24,IF(CX58<($M$24),CX58*($J$24/($M$24)),)) -> 0.5 | BD58: =+IF(CY58>=$M$25,$J$25,IF(CY58<($M$25),CY58*($J$25/($M$25)),)) -> 0 | BE58: =IF(CZ58>0,$F$16,0) -> 1 | BF58: =+IF(DC58>=$M$28,$J$28,IF(DC58<($M$28),DC58*($J$28/($M$28)),)) -> 0 | BG58: =IF(DO58>0,$F$18,0) -> 1 | BH58: =IF(COUNTIF($J$31:$M$31,TRUE)=0, 0, IF(SUMIF($J$31:$M$31,TRUE,DP58:DT58)/COUNTIF($J$31:$M$31,TRUE)>=$M$32, $F$19, $F$19*(SUMIF($J$31:$M$31,TRUE,DP58:DT58)/COUNTIF($J$31:$M$31,TRUE)/$M$32))) -> 0.9832973021 | BI58: =SUM(AU58+AV58+AW58+AX58+AY58+AZ58+BE58+BA58+BB58+BC58+BD58+BF58+BG58+BH58) -> 14.5982973 | BJ58: =+BI58*$H$9 -> 4.866099101 | BK58: 3790.764432 | BL58: =BK58/U58 -> 0.3618868193 | BM58: =IF(BL58>0,IF(BL58>=$M$18,$J$18,IF(BL58<$M$18,$J$19,0)),0) -> 0.5 | BN58: 10483.3768 | BO58: =BN58/U58 -> 1.000799694 | BP58: =IF(BO58,$F$22,0) -> 1 | BQ58: =IF(DE58>0,$F$23,0) -> 1 | BR58: 3930.29182 | BS58: =BR58/U58 -> 0.3752068563 | BT58: =+IF(BS58>=$L$3,$F$24,0) -> 0 | BU58: 65.29832936 | BV58: =IF(BU58>0,IF(BU58>=100,$F$25,IF(BU58<100,$F$25/2)),0) -> 0.5 | BW58: =SUM(DI58) -> 1.5 | BX58: =IF(OR(DK58>0,DL58>0),$F$27,0) -> 1 | BY58: =IF(DJ58>0,$F$28,0) -> 1 | BZ58: =IF(DN58>0,$F$29,0) -> 1 | CA58: =SUM(BM58,BP58,BV58,BQ58,BT58,BW58,BX58,BY58,BZ58) -> 7.5 | CB58: =+CA58*$H$21 -> 2.5 | CC58: =SUM(AS58,BI58,CA58) -> 39.0982973 | CD58: =SUM(AT58,BJ58,CB58) -> 13.03276577 | CE58: =IF(D58<($W$13*$CF$31),1,IF(D58<(($W$14+$W$13)*$CF$31),2,IF(D58<(($W$15+$W$13+$W$14)*$CF$31),3,4))) -> 1 | CL58: https://www.google.com/maps/@60.9375366841,27.7038630548,3a,75y,90t/data=!3m3!1e1!3m1!2e0 | CN58: 3 | CP58: 0 | CR58: 0 | CS58: 0 | CT58: 2 | CU58: 16 | CV58: 69 | CW58: 0 | CX58: 2840 | CY58: 0 | CZ58: 1 | DC58: 0 | DE58: 3 | DG58: =IF(X58>$L$7,$F$26/2,0) -> 1.5 | DH58: =+IF(X58/V58>1.5,$F$26/2,0) -> 0 | DI58: =SUM(DG58:DH58) -> 1.5 | DJ58: 6 | DK58: 1 | DL58: 0 | DN58: 1 | DO58: 1 | DP58: 2.621644673 | DQ58: 2.328883952 | DR58: 2.424201141 | DS58: 1.213715991 | DT58: =AVERAGE(DP58:DR58) -> 2.458243255 | DV58: 8 | DW58: =D58 -> 20 | DX58: =DV58-DW58 -> -12 | DY58: 1 | DZ58: =H58 -> 1 | EA58: =DY58-DZ58 -> 0
A59: =CONCATENATE(P59,"_",Q59) -> 170_40 | B59: 1 | D59: =RANK(CD59,$CD$39:$CD$711) -> 21 | E59: 21 | F59: =E59-D59 -> 0 | G59: =CD59 -> 13.01601004 | H59: =CE59 -> 1 | I59: =B59-H59 -> 0 | J59: =HYPERLINK(CL59,"Gmaps") -> Gmaps | K59: =IF(V59>$L$5,"KESKI","VÄHÄ") -> KESKI | L59: =IF(P59<40,"Valta",IF(P59<100,"Kanta",IF(P59<1000,"Seutu",IF(P59>999,"Yhdys")))) -> Seutu | M59: Vaalimaantie | N59: Virolahti | O59: Kymenlaakso | P59: 170 | Q59: 40 | R59: 0 | S59: 40 | T59: 7620 | U59: =T59-R59 -> 7620 | V59: 830.3228346 | W59: 53.36745407 | X59: 895.3884514 | Y59: 682 (58 %), 1033 (42 %) | Z59: 80 (100 %) | AA59: Ib (100 %) | AB59: Asfalttibetoni (100 %) | AC59: PK2 (96 %) | AD59: 0 | AE59: 1 | AF59: 0 | AG59: 17.07086614 | AL59: =+IF(V59>=$L$5,$F$4,($F$4/($L$5))*V59) -> 9 | AM59: 12 | AN59: =+IF(AM59>=$M$14,$J$14,IF(AM59<($M$14),AM59*($J$14/($M$14)),)) -> 3 | AO59: 139 | AP59: =+IF(AO59>=$M$10,$J$10,IF(AO59<($M$10),AO59*($J$10/($M$10)),)) -> 0.9266666667 | AQ59: =IF(CN59=0,"-",IF(CN59=1,"taksi",IF(CN59=2,"pikkubussi","bussi"))) -> bussi | AR59: =IF(CN59=0,0,IF(CN59<3,$F$7/2,$F$7)) -> 3 | AS59: =SUM(AL59,AN59,AP59,AR59) -> 15.92666667 | AT59: =+AS59*$H$4 -> 5.308888889 | AU59: =+IF(W59=0,0,IF(W59>$L$6,$F$9,($F$9/$L$6)*W59)) -> 9 | AV59: =IF(CP59>0,$F$10,0) -> 2 | AW59: =IF(CR59>0,$F$11,0) -> 1 | AX59: =IF(CS59>0,$F$12,0) -> 1 | AY59: =IF(CT59>0,$F$13,0) -> 0 | AZ59: =IF(CU59>0,$F$14,0) -> 1 | BA59: =+IF(CV59>=$M$22,$J$22,IF(CV59<($M$22),CV59*($J$22/($M$22)),)) -> 0.25 | BB59: =+IF(CW59>=$M$23,$J$23,IF(CW59<($M$23),CW59*($J$23/($M$23)),)) -> 0.46 | BC59: =+IF(CX59>=$M$24,$J$24,IF(CX59<($M$24),CX59*($J$24/($M$24)),)) -> 0 | BD59: =+IF(CY59>=$M$25,$J$25,IF(CY59<($M$25),CY59*($J$25/($M$25)),)) -> 0 | BE59: =IF(CZ59>0,$F$16,0) -> 0 | BF59: =+IF(DC59>=$M$28,$J$28,IF(DC59<($M$28),DC59*($J$28/($M$28)),)) -> 0.3333333333 | BG59: =IF(DO59>0,$F$18,0) -> 0 | BH59: =IF(COUNTIF($J$31:$M$31,TRUE)=0, 0, IF(SUMIF($J$31:$M$31,TRUE,DP59:DT59)/COUNTIF($J$31:$M$31,TRUE)>=$M$32, $F$19, $F$19*(SUMIF($J$31:$M$31,TRUE,DP59:DT59)/COUNTIF($J$31:$M$31,TRUE)/$M$32))) -> 0.5780301121 | BI59: =SUM(AU59+AV59+AW59+AX59+AY59+AZ59+BE59+BA59+BB59+BC59+BD59+BF59+BG59+BH59) -> 15.62136345 | BJ59: =+BI59*$H$9 -> 5.207121148 | BK59: 1194.003165 | BL59: =BK59/U59 -> 0.1566933287 | BM59: =IF(BL59>0,IF(BL59>=$M$18,$J$18,IF(BL59<$M$18,$J$19,0)),0) -> 0.5 | BN59: 7487.54864 | BO59: =BN59/U59 -> 0.9826179317 | BP59: =IF(BO59,$F$22,0) -> 1 | BQ59: =IF(DE59>0,$F$23,0) -> 1 | BR59: 491.2756875 | BS59: =BR59/U59 -> 0.064471875 | BT59: =+IF(BS59>=$L$3,$F$24,0) -> 0 | BU59: 4.580052493 | BV59: =IF(BU59>0,IF(BU59>=100,$F$25,IF(BU59<100,$F$25/2)),0) -> 0.5 | BW59: =SUM(DI59) -> 1.5 | BX59: =IF(OR(DK59>0,DL59>0),$F$27,0) -> 1 | BY59: =IF(DJ59>0,$F$28,0) -> 1 | BZ59: =IF(DN59>0,$F$29,0) -> 1 | CA59: =SUM(BM59,BP59,BV59,BQ59,BT59,BW59,BX59,BY59,BZ59) -> 7.5 | CB59: =+CA59*$H$21 -> 2.5 | CC59: =SUM(AS59,BI59,CA59) -> 39.04803011 | CD59: =SUM(AT59,BJ59,CB59) -> 13.01601004 | CE59: =IF(D59<($W$13*$CF$31),1,IF(D59<(($W$14+$W$13)*$CF$31),2,IF(D59<(($W$15+$W$13+$W$14)*$CF$31),3,4))) -> 1 | CL59: https://www.google.com/maps/@60.5687589376,27.5498333727,3a,75y,90t/data=!3m3!1e1!3m1!2e0 | CN59: 3 | CP59: 1 | CR59: 1 | CS59: 6 | CT59: 0 | CU59: 7 | CV59: 150 | CW59: 92 | CX59: 0 | CY59: 0 | CZ59: 0 | DC59: 1 | DE59: 2 | DG59: =IF(X59>$L$7,$F$26/2,0) -> 1.5 | DH59: =+IF(X59/V59>1.5,$F$26/2,0) -> 0 | DI59: =SUM(DG59:DH59) -> 1.5 | DJ59: 1 | DK59: 1 | DL59: 0 | DN59: 1 | DO59: 0 | DP59: 1.981445388 | DQ59: 1.385508706 | DR59: 0.9682717464 | DS59: 0.2622775469 | DT59: =AVERAGE(DP59:DR59) -> 1.44507528 | DV59: 6 | DW59: =D59 -> 21 | DX59: =DV59-DW59 -> -15 | DY59: 1 | DZ59: =H59 -> 1 | EA59: =DY59-DZ59 -> 0
A60: =CONCATENATE(P60,"_",Q60) -> 387_4 | B60: 1 | D60: =RANK(CD60,$CD$39:$CD$711) -> 22 | E60: 22 | F60: =E60-D60 -> 0 | G60: =CD60 -> 12.94444444 | H60: =CE60 -> 1 | I60: =B60-H60 -> 0 | J60: =HYPERLINK(CL60,"Gmaps") -> Gmaps | K60: =IF(V60>$L$5,"KESKI","VÄHÄ") -> KESKI | L60: =IF(P60<40,"Valta",IF(P60<100,"Kanta",IF(P60<1000,"Seutu",IF(P60>999,"Yhdys")))) -> Seutu | M60: Vaalimaantie | N60: Lappeenranta | O60: Etelä-Karjala | P60: 387 | Q60: 4 | R60: 0 | S60: 4 | T60: 6105 | U60: =T60-R60 -> 6105 | V60: 2184 | W60: 180 | X60: 2402 | Y60: 2184 (100 %) | Z60: 100 (82 %), 80 (18 %) | AA60: Is (100 %) | AB60: Asfalttibetoni (100 %) | AC60: PK2 (100 %) | AD60: 2 | AE60: 12 | AF60: 0.3276003276 | AG60: 92 | AL60: =+IF(V60>=$L$5,$F$4,($F$4/($L$5))*V60) -> 9 | AM60: 15 | AN60: =+IF(AM60>=$M$14,$J$14,IF(AM60<($M$14),AM60*($J$14/($M$14)),)) -> 3 | AO60: 408 | AP60: =+IF(AO60>=$M$10,$J$10,IF(AO60<($M$10),AO60*($J$10/($M$10)),)) -> 2 | AQ60: =IF(CN60=0,"-",IF(CN60=1,"taksi",IF(CN60=2,"pikkubussi","bussi"))) -> bussi | AR60: =IF(CN60=0,0,IF(CN60<3,$F$7/2,$F$7)) -> 3 | AS60: =SUM(AL60,AN60,AP60,AR60) -> 17 | AT60: =+AS60*$H$4 -> 5.666666667 | AU60: =+IF(W60=0,0,IF(W60>$L$6,$F$9,($F$9/$L$6)*W60)) -> 9 | AV60: =IF(CP60>0,$F$10,0) -> 2 | AW60: =IF(CR60>0,$F$11,0) -> 0 | AX60: =IF(CS60>0,$F$12,0) -> 1 | AY60: =IF(CT60>0,$F$13,0) -> 0 | AZ60: =IF(CU60>0,$F$14,0) -> 1 | BA60: =+IF(CV60>=$M$22,$J$22,IF(CV60<($M$22),CV60*($J$22/($M$22)),)) -> 0.5 | BB60: =+IF(CW60>=$M$23,$J$23,IF(CW60<($M$23),CW60*($J$23/($M$23)),)) -> 0.5 | BC60: =+IF(CX60>=$M$24,$J$24,IF(CX60<($M$24),CX60*($J$24/($M$24)),)) -> 0 | BD60: =+IF(CY60>=$M$25,$J$25,IF(CY60<($M$25),CY60*($J$25/($M$25)),)) -> 0 | BE60: =IF(CZ60>0,$F$16,0) -> 0 | BF60: =+IF(DC60>=$M$28,$J$28,IF(DC60<($M$28),DC60*($J$28/($M$28)),)) -> 0.3333333333 | BG60: =IF(DO60>0,$F$18,0) -> 0 | BH60: =IF(COUNTIF($J$31:$M$31,TRUE)=0, 0, IF(SUMIF($J$31:$M$31,TRUE,DP60:DT60)/COUNTIF($J$31:$M$31,TRUE)>=$M$32, $F$19, $F$19*(SUMIF($J$31:$M$31,TRUE,DP60:DT60)/COUNTIF($J$31:$M$31,TRUE)/$M$32))) -> 2 | BI60: =SUM(AU60+AV60+AW60+AX60+AY60+AZ60+BE60+BA60+BB60+BC60+BD60+BF60+BG60+BH60) -> 16.33333333 | BJ60: =+BI60*$H$9 -> 5.444444444 | BK60: 2639.442276 | BL60: =BK60/U60 -> 0.4323410771 | BM60: =IF(BL60>0,IF(BL60>=$M$18,$J$18,IF(BL60<$M$18,$J$19,0)),0) -> 0.5 | BN60: 6083.41648 | BO60: =BN60/U60 -> 0.9964646159 | BP60: =IF(BO60,$F$22,0) -> 1 | BQ60: =IF(DE60>0,$F$23,0) -> 0 | BR60: 0 | BS60: =BR60/U60 -> 0 | BT60: =+IF(BS60>=$L$3,$F$24,0) -> 0 | BU60: 15.37592138 | BV60: =IF(BU60>0,IF(BU60>=100,$F$25,IF(BU60<100,$F$25/2)),0) -> 0.5 | BW60: =SUM(DI60) -> 1.5 | BX60: =IF(OR(DK60>0,DL60>0),$F$27,0) -> 1 | BY60: =IF(DJ60>0,$F$28,0) -> 0 | BZ60: =IF(DN60>0,$F$29,0) -> 1 | CA60: =SUM(BM60,BP60,BV60,BQ60,BT60,BW60,BX60,BY60,BZ60) -> 5.5 | CB60: =+CA60*$H$21 -> 1.833333333 | CC60: =SUM(AS60,BI60,CA60) -> 38.83333333 | CD60: =SUM(AT60,BJ60,CB60) -> 12.94444444 | CE60: =IF(D60<($W$13*$CF$31),1,IF(D60<(($W$14+$W$13)*$CF$31),2,IF(D60<(($W$15+$W$13+$W$14)*$CF$31),3,4))) -> 1 | CL60: https://www.google.com/maps/@60.9115268119,28.134324908,3a,75y,90t/data=!3m3!1e1!3m1!2e0 | CN60: 3 | CP60: 2 | CR60: 0 | CS60: 1 | CT60: 0 | CU60: 4 | CV60: 739 | CW60: 218 | CX60: 0 | CY60: 0 | CZ60: 0 | DC60: 1 | DE60: 0 | DG60: =IF(X60>$L$7,$F$26/2,0) -> 1.5 | DH60: =+IF(X60/V60>1.5,$F$26/2,0) -> 0 | DI60: =SUM(DG60:DH60) -> 1.5 | DJ60: 0 | DK60: 0 | DL60: 1 | DN60: 1 | DO60: 0 | DP60: 10.47904897 | DQ60: 9.161692261 | DR60: 13.28383562 | DS60: 3.819085683 | DT60: =AVERAGE(DP60:DR60) -> 10.97485895 | DV60: 40 | DW60: =D60 -> 22 | DX60: =DV60-DW60 -> 18 | DY60: 2 | DZ60: =H60 -> 1 | EA60: =DY60-DZ60 -> 1
A61: =CONCATENATE(P61,"_",Q61) -> 355_1 | B61: 1 | D61: =RANK(CD61,$CD$39:$CD$711) -> 23 | E61: 23 | F61: =E61-D61 -> 0 | G61: =CD61 -> 12.90193403 | H61: =CE61 -> 1 | I61: =B61-H61 -> 0 | J61: =HYPERLINK(CL61,"Gmaps") -> Gmaps | K61: =IF(V61>$L$5,"KESKI","VÄHÄ") -> KESKI | L61: =IF(P61<40,"Valta",IF(P61<100,"Kanta",IF(P61<1000,"Seutu",IF(P61>999,"Yhdys")))) -> Seutu | M61: Merituulentie | N61: Kotka | O61: Kymenlaakso | P61: 355 | Q61: 1 | R61: 615 | S61: 1 | T61: 3742 | U61: =T61-R61 -> 3127 | V61: 6904.429165 | W61: 742.3668052 | X61: 7594.872082 | Y61: 4870 (43 %), 8450 (57 %) | Z61: 40 (9 %), 50 (91 %) | AA61: Ise (100 %) | AB61: Kivimastiksiasfaltti (100 %) | AC61: PK1 (99 %) | AD61: 0 | AE61: 2 | AF61: 0 | AG61: 564.423409 | AL61: =+IF(V61>=$L$5,$F$4,($F$4/($L$5))*V61) -> 9 | AM61: 115 | AN61: =+IF(AM61>=$M$14,$J$14,IF(AM61<($M$14),AM61*($J$14/($M$14)),)) -> 3 | AO61: 2145 | AP61: =+IF(AO61>=$M$10,$J$10,IF(AO61<($M$10),AO61*($J$10/($M$10)),)) -> 2 | AQ61: =IF(CN61=0,"-",IF(CN61=1,"taksi",IF(CN61=2,"pikkubussi","bussi"))) -> bussi | AR61: =IF(CN61=0,0,IF(CN61<3,$F$7/2,$F$7)) -> 3 | AS61: =SUM(AL61,AN61,AP61,AR61) -> 17 | AT61: =+AS61*$H$4 -> 5.666666667 | AU61: =+IF(W61=0,0,IF(W61>$L$6,$F$9,($F$9/$L$6)*W61)) -> 9 | AV61: =IF(CP61>0,$F$10,0) -> 0 | AW61: =IF(CR61>0,$F$11,0) -> 1 | AX61: =IF(CS61>0,$F$12,0) -> 0 | AY61: =IF(CT61>0,$F$13,0) -> 0 | AZ61: =IF(CU61>0,$F$14,0) -> 1 | BA61: =+IF(CV61>=$M$22,$J$22,IF(CV61<($M$22),CV61*($J$22/($M$22)),)) -> 0 | BB61: =+IF(CW61>=$M$23,$J$23,IF(CW61<($M$23),CW61*($J$23/($M$23)),)) -> 0 | BC61: =+IF(CX61>=$M$24,$J$24,IF(CX61<($M$24),CX61*($J$24/($M$24)),)) -> 0 | BD61: =+IF(CY61>=$M$25,$J$25,IF(CY61<($M$25),CY61*($J$25/($M$25)),)) -> 0 | BE61: =IF(CZ61>0,$F$16,0) -> 0 | BF61: =+IF(DC61>=$M$28,$J$28,IF(DC61<($M$28),DC61*($J$28/($M$28)),)) -> 1 | BG61: =IF(DO61>0,$F$18,0) -> 1 | BH61: =IF(COUNTIF($J$31:$M$31,TRUE)=0, 0, IF(SUMIF($J$31:$M$31,TRUE,DP61:DT61)/COUNTIF($J$31:$M$31,TRUE)>=$M$32, $F$19, $F$19*(SUMIF($J$31:$M$31,TRUE,DP61:DT61)/COUNTIF($J$31:$M$31,TRUE)/$M$32))) -> 0.2058020762 | BI61: =SUM(AU61+AV61+AW61+AX61+AY61+AZ61+BE61+BA61+BB61+BC61+BD61+BF61+BG61+BH61) -> 13.20580208 | BJ61: =+BI61*$H$9 -> 4.401934025 | BK61: 3121.08187 | BL61: =BK61/U61 -> 0.9981074095 | BM61: =IF(BL61>0,IF(BL61>=$M$18,$J$18,IF(BL61<$M$18,$J$19,0)),0) -> 1 | BN61: 3078.400642 | BO61: =BN61/U61 -> 0.9844581521 | BP61: =IF(BO61,$F$22,0) -> 1 | BQ61: =IF(DE61>0,$F$23,0) -> 0 | BR61: 2249.015302 | BS61: =BR61/U61 -> 0.719224593 | BT61: =+IF(BS61>=$L$3,$F$24,0) -> 1 | BU61: 189.248481 | BV61: =IF(BU61>0,IF(BU61>=100,$F$25,IF(BU61<100,$F$25/2)),0) -> 1 | BW61: =SUM(DI61) -> 1.5 | BX61: =IF(OR(DK61>0,DL61>0),$F$27,0) -> 1 | BY61: =IF(DJ61>0,$F$28,0) -> 1 | BZ61: =IF(DN61>0,$F$29,0) -> 1 | CA61: =SUM(BM61,BP61,BV61,BQ61,BT61,BW61,BX61,BY61,BZ61) -> 8.5 | CB61: =+CA61*$H$21 -> 2.833333333 | CC61: =SUM(AS61,BI61,CA61) -> 38.70580208 | CD61: =SUM(AT61,BJ61,CB61) -> 12.90193403 | CE61: =IF(D61<($W$13*$CF$31),1,IF(D61<(($W$14+$W$13)*$CF$31),2,IF(D61<(($W$15+$W$13+$W$14)*$CF$31),3,4))) -> 1 | CL61: https://www.google.com/maps/@60.4595384147,26.9217990867,3a,75y,90t/data=!3m3!1e1!3m1!2e0 | CN61: 3 | CP61: 0 | CR61: 1 | CS61: 0 | CT61: 0 | CU61: 4 | CV61: 0 | CW61: 0 | CX61: 0 | CY61: 0 | CZ61: 0 | DC61: 6 | DE61: 0 | DG61: =IF(X61>$L$7,$F$26/2,0) -> 1.5 | DH61: =+IF(X61/V61>1.5,$F$26/2,0) -> 0 | DI61: =SUM(DG61:DH61) -> 1.5 | DJ61: 1 | DK61: 1 | DL61: 0 | DN61: 1 | DO61: 1 | DP61: 0.1036656447 | DQ61: 0.02924518058 | DR61: 1.410604746 | DS61: 0.8715004275 | DT61: =AVERAGE(DP61:DR61) -> 0.5145051905 | DV61: 46 | DW61: =D61 -> 23 | DX61: =DV61-DW61 -> 23 | DY61: 2 | DZ61: =H61 -> 1 | EA61: =DY61-DZ61 -> 1
A62: =CONCATENATE(P62,"_",Q62) -> 387_7 | B62: 1 | D62: =RANK(CD62,$CD$39:$CD$711) -> 24 | E62: 24 | F62: =E62-D62 -> 0 | G62: =CD62 -> 12.865 | H62: =CE62 -> 1 | I62: =B62-H62 -> 0 | J62: =HYPERLINK(CL62,"Gmaps") -> Gmaps | K62: =IF(V62>$L$5,"KESKI","VÄHÄ") -> KESKI | L62: =IF(P62<40,"Valta",IF(P62<100,"Kanta",IF(P62<1000,"Seutu",IF(P62>999,"Yhdys")))) -> Seutu | M62: Vaalimaantie | N62: Lappeenranta | O62: Etelä-Karjala | P62: 387 | Q62: 7 | R62: 0 | S62: 7 | T62: 6203 | U62: =T62-R62 -> 6203 | V62: 1077 | W62: 87 | X62: 1326 | Y62: 1077 (100 %) | Z62: 100 (97 %), 80 (3 %) | AA62: Is (100 %) | AB62: Asfalttibetoni (100 %) | AC62: PK2 (100 %) | AD62: 0 | AE62: 2 | AF62: 0.01612123166 | AG62: 65 | AL62: =+IF(V62>=$L$5,$F$4,($F$4/($L$5))*V62) -> 9 | AM62: 5 | AN62: =+IF(AM62>=$M$14,$J$14,IF(AM62<($M$14),AM62*($J$14/($M$14)),)) -> 1.5 | AO62: 277 | AP62: =+IF(AO62>=$M$10,$J$10,IF(AO62<($M$10),AO62*($J$10/($M$10)),)) -> 1.846666667 | AQ62: =IF(CN62=0,"-",IF(CN62=1,"taksi",IF(CN62=2,"pikkubussi","bussi"))) -> bussi | AR62: =IF(CN62=0,0,IF(CN62<3,$F$7/2,$F$7)) -> 3 | AS62: =SUM(AL62,AN62,AP62,AR62) -> 15.34666667 | AT62: =+AS62*$H$4 -> 5.115555556 | AU62: =+IF(W62=0,0,IF(W62>$L$6,$F$9,($F$9/$L$6)*W62)) -> 9 | AV62: =IF(CP62>0,$F$10,0) -> 2 | AW62: =IF(CR62>0,$F$11,0) -> 0 | AX62: =IF(CS62>0,$F$12,0) -> 1 | AY62: =IF(CT62>0,$F$13,0) -> 0 | AZ62: =IF(CU62>0,$F$14,0) -> 1 | BA62: =+IF(CV62>=$M$22,$J$22,IF(CV62<($M$22),CV62*($J$22/($M$22)),)) -> 0.08166666667 | BB62: =+IF(CW62>=$M$23,$J$23,IF(CW62<($M$23),CW62*($J$23/($M$23)),)) -> 0 | BC62: =+IF(CX62>=$M$24,$J$24,IF(CX62<($M$24),CX62*($J$24/($M$24)),)) -> 0 | BD62: =+IF(CY62>=$M$25,$J$25,IF(CY62<($M$25),CY62*($J$25/($M$25)),)) -> 0 | BE62: =IF(CZ62>0,$F$16,0) -> 0 | BF62: =+IF(DC62>=$M$28,$J$28,IF(DC62<($M$28),DC62*($J$28/($M$28)),)) -> 0.6666666667 | BG62: =IF(DO62>0,$F$18,0) -> 1 | BH62: =IF(COUNTIF($J$31:$M$31,TRUE)=0, 0, IF(SUMIF($J$31:$M$31,TRUE,DP62:DT62)/COUNTIF($J$31:$M$31,TRUE)>=$M$32, $F$19, $F$19*(SUMIF($J$31:$M$31,TRUE,DP62:DT62)/COUNTIF($J$31:$M$31,TRUE)/$M$32))) -> 2 | BI62: =SUM(AU62+AV62+AW62+AX62+AY62+AZ62+BE62+BA62+BB62+BC62+BD62+BF62+BG62+BH62) -> 16.74833333 | BJ62: =+BI62*$H$9 -> 5.582777778 | BK62: 2630.560412 | BL62: =BK62/U62 -> 0.4240787381 | BM62: =IF(BL62>0,IF(BL62>=$M$18,$J$18,IF(BL62<$M$18,$J$19,0)),0) -> 0.5 | BN62: 6208.022132 | BO62: =BN62/U62 -> 1.00080963 | BP62: =IF(BO62,$F$22,0) -> 1 | BQ62: =IF(DE62>0,$F$23,0) -> 0 | BR62: 0 | BS62: =BR62/U62 -> 0 | BT62: =+IF(BS62>=$L$3,$F$24,0) -> 0 | BU62: 2.418184749 | BV62: =IF(BU62>0,IF(BU62>=100,$F$25,IF(BU62<100,$F$25/2)),0) -> 0.5 | BW62: =SUM(DI62) -> 1.5 | BX62: =IF(OR(DK62>0,DL62>0),$F$27,0) -> 1 | BY62: =IF(DJ62>0,$F$28,0) -> 1 | BZ62: =IF(DN62>0,$F$29,0) -> 1 | CA62: =SUM(BM62,BP62,BV62,BQ62,BT62,BW62,BX62,BY62,BZ62) -> 6.5 | CB62: =+CA62*$H$21 -> 2.166666667 | CC62: =SUM(AS62,BI62,CA62) -> 38.595 | CD62: =SUM(AT62,BJ62,CB62) -> 12.865 | CE62: =IF(D62<($W$13*$CF$31),1,IF(D62<(($W$14+$W$13)*$CF$31),2,IF(D62<(($W$15+$W$13+$W$14)*$CF$31),3,4))) -> 1 | CL62: https://www.google.com/maps/@60.789635217,28.0083859499,3a,75y,90t/data=!3m3!1e1!3m1!2e0 | CN62: 3 | CP62: 2 | CR62: 0 | CS62: 1 | CT62: 0 | CU62: 2 | CV62: 49 | CW62: 0 | CX62: 0 | CY62: 0 | CZ62: 0 | DC62: 2 | DE62: 0 | DG62: =IF(X62>$L$7,$F$26/2,0) -> 1.5 | DH62: =+IF(X62/V62>1.5,$F$26/2,0) -> 0 | DI62: =SUM(DG62:DH62) -> 1.5 | DJ62: 1 | DK62: 1 | DL62: 1 | DN62: 1 | DO62: 1 | DP62: 7.278921492 | DQ62: 7.046857293 | DR62: 8.001722781 | DS62: 3.174823007 | DT62: =AVERAGE(DP62:DR62) -> 7.442500522 | DV62: 25 | DW62: =D62 -> 24 | DX62: =DV62-DW62 -> 1 | DY62: 1 | DZ62: =H62 -> 1 | EA62: =DY62-DZ62 -> 0
A63: =CONCATENATE(P63,"_",Q63) -> 372_2 | B63: 1 | D63: =RANK(CD63,$CD$39:$CD$711) -> 25 | E63: 25 | F63: =E63-D63 -> 0 | G63: =CD63 -> 12.83333333 | H63: =CE63 -> 1 | I63: =B63-H63 -> 0 | J63: =HYPERLINK(CL63,"Gmaps") -> Gmaps | K63: =IF(V63>$L$5,"KESKI","VÄHÄ") -> KESKI | L63: =IF(P63<40,"Valta",IF(P63<100,"Kanta",IF(P63<1000,"Seutu",IF(P63>999,"Yhdys")))) -> Seutu | M63: Satamantie | N63: Hamina | O63: Kymenlaakso | P63: 372 | Q63: 2 | R63: 0 | S63: 2 | T63: 2230 | U63: =T63-R63 -> 2230 | V63: 2552 | W63: 553 | X63: 2526 | Y63: 2552 (100 %) | Z63: 50 (100 %) | AA63: Is (100 %) | AB63: Kivimastiksiasfaltti (96 %) | AC63: PK2 (100 %) | AD63: 0 | AE63: 2 | AF63: 0.1005025126 | AG63: 464 | AL63: =+IF(V63>=$L$5,$F$4,($F$4/($L$5))*V63) -> 9 | AM63: 64 | AN63: =+IF(AM63>=$M$14,$J$14,IF(AM63<($M$14),AM63*($J$14/($M$14)),)) -> 3 | AO63: 1225 | AP63: =+IF(AO63>=$M$10,$J$10,IF(AO63<($M$10),AO63*($J$10/($M$10)),)) -> 2 | AQ63: =IF(CN63=0,"-",IF(CN63=1,"taksi",IF(CN63=2,"pikkubussi","bussi"))) -> bussi | AR63: =IF(CN63=0,0,IF(CN63<3,$F$7/2,$F$7)) -> 3 | AS63: =SUM(AL63,AN63,AP63,AR63) -> 17 | AT63: =+AS63*$H$4 -> 5.666666667 | AU63: =+IF(W63=0,0,IF(W63>$L$6,$F$9,($F$9/$L$6)*W63)) -> 9 | AV63: =IF(CP63>0,$F$10,0) -> 0 | AW63: =IF(CR63>0,$F$11,0) -> 1 | AX63: =IF(CS63>0,$F$12,0) -> 1 | AY63: =IF(CT63>0,$F$13,0) -> 0 | AZ63: =IF(CU63>0,$F$14,0) -> 0 | BA63: =+IF(CV63>=$M$22,$J$22,IF(CV63<($M$22),CV63*($J$22/($M$22)),)) -> 0 | BB63: =+IF(CW63>=$M$23,$J$23,IF(CW63<($M$23),CW63*($J$23/($M$23)),)) -> 0 | BC63: =+IF(CX63>=$M$24,$J$24,IF(CX63<($M$24),CX63*($J$24/($M$24)),)) -> 0 | BD63: =+IF(CY63>=$M$25,$J$25,IF(CY63<($M$25),CY63*($J$25/($M$25)),)) -> 0 | BE63: =IF(CZ63>0,$F$16,0) -> 0 | BF63: =+IF(DC63>=$M$28,$J$28,IF(DC63<($M$28),DC63*($J$28/($M$28)),)) -> 1 | BG63: =IF(DO63>0,$F$18,0) -> 0 | BH63: =IF(COUNTIF($J$31:$M$31,TRUE)=0, 0, IF(SUMIF($J$31:$M$31,TRUE,DP63:DT63)/COUNTIF($J$31:$M$31,TRUE)>=$M$32, $F$19, $F$19*(SUMIF($J$31:$M$31,TRUE,DP63:DT63)/COUNTIF($J$31:$M$31,TRUE)/$M$32))) -> 2 | BI63: =SUM(AU63+AV63+AW63+AX63+AY63+AZ63+BE63+BA63+BB63+BC63+BD63+BF63+BG63+BH63) -> 14 | BJ63: =+BI63*$H$9 -> 4.666666667 | BK63: 2236.754596 | BL63: =BK63/U63 -> 1.003028967 | BM63: =IF(BL63>0,IF(BL63>=$M$18,$J$18,IF(BL63<$M$18,$J$19,0)),0) -> 1 | BN63: 2236.754596 | BO63: =BN63/U63 -> 1.003028967 | BP63: =IF(BO63,$F$22,0) -> 1 | BQ63: =IF(DE63>0,$F$23,0) -> 0 | BR63: 2236.754596 | BS63: =BR63/U63 -> 1.003028967 | BT63: =+IF(BS63>=$L$3,$F$24,0) -> 1 | BU63: 421.2556054 | BV63: =IF(BU63>0,IF(BU63>=100,$F$25,IF(BU63<100,$F$25/2)),0) -> 1 | BW63: =SUM(DI63) -> 1.5 | BX63: =IF(OR(DK63>0,DL63>0),$F$27,0) -> 1 | BY63: =IF(DJ63>0,$F$28,0) -> 0 | BZ63: =IF(DN63>0,$F$29,0) -> 1 | CA63: =SUM(BM63,BP63,BV63,BQ63,BT63,BW63,BX63,BY63,BZ63) -> 7.5 | CB63: =+CA63*$H$21 -> 2.5 | CC63: =SUM(AS63,BI63,CA63) -> 38.5 | CD63: =SUM(AT63,BJ63,CB63) -> 12.83333333 | CE63: =IF(D63<($W$13*$CF$31),1,IF(D63<(($W$14+$W$13)*$CF$31),2,IF(D63<(($W$15+$W$13+$W$14)*$CF$31),3,4))) -> 1 | CL63: https://www.google.com/maps/@60.5666714759,27.1599346095,3a,75y,90t/data=!3m3!1e1!3m1!2e0 | CN63: 3 | CP63: 0 | CR63: 4 | CS63: 1 | CT63: 0 | CU63: 0 | CV63: 0 | CW63: 0 | CX63: 0 | CY63: 0 | CZ63: 0 | DC63: 14 | DE63: 0 | DG63: =IF(X63>$L$7,$F$26/2,0) -> 1.5 | DH63: =+IF(X63/V63>1.5,$F$26/2,0) -> 0 | DI63: =SUM(DG63:DH63) -> 1.5 | DJ63: 0 | DK63: 1 | DL63: 0 | DN63: 1 | DO63: 0 | DP63: 12.46309763 | DQ63: 10.48039999 | DR63: 11.84242919 | DS63: 7.199838766 | DT63: =AVERAGE(DP63:DR63) -> 11.59530894 | DV63: 50 | DW63: =D63 -> 25 | DX63: =DV63-DW63 -> 25 | DY63: 2 | DZ63: =H63 -> 1 | EA63: =DY63-DZ63 -> 1
A64: =CONCATENATE(P64,"_",Q64) -> 3594_1 | B64: 1 | D64: =RANK(CD64,$CD$39:$CD$711) -> 26 | E64: 26 | F64: =E64-D64 -> 0 | G64: =CD64 -> 12.7541748 | H64: =CE64 -> 1 | I64: =B64-H64 -> 0 | J64: =HYPERLINK(CL64,"Gmaps") -> Gmaps | K64: =IF(V64>$L$5,"KESKI","VÄHÄ") -> KESKI | L64: =IF(P64<40,"Valta",IF(P64<100,"Kanta",IF(P64<1000,"Seutu",IF(P64>999,"Yhdys")))) -> Yhdys | M64: Karttenniementie | N64: Kouvola | O64: Kymenlaakso | P64: 3594 | Q64: 1 | R64: 0 | S64: 1 | T64: 2503 | U64: =T64-R64 -> 2503 | V64: 1345 | W64: 97 | X64: 1540 | Y64: 1345 (100 %) | Z64: 50 (11 %), 80 (89 %) | AA64: Is (100 %) | AB64: Asfalttibetoni (100 %) | AC64: PK2 (100 %) | AD64: 4 | AE64: 7 | AF64: 0 | AG64: 20 | AL64: =+IF(V64>=$L$5,$F$4,($F$4/($L$5))*V64) -> 9 | AM64: 0 | AN64: =+IF(AM64>=$M$14,$J$14,IF(AM64<($M$14),AM64*($J$14/($M$14)),)) -> 0 | AO64: 954 | AP64: =+IF(AO64>=$M$10,$J$10,IF(AO64<($M$10),AO64*($J$10/($M$10)),)) -> 2 | AQ64: =IF(CN64=0,"-",IF(CN64=1,"taksi",IF(CN64=2,"pikkubussi","bussi"))) -> bussi | AR64: =IF(CN64=0,0,IF(CN64<3,$F$7/2,$F$7)) -> 3 | AS64: =SUM(AL64,AN64,AP64,AR64) -> 14 | AT64: =+AS64*$H$4 -> 4.666666667 | AU64: =+IF(W64=0,0,IF(W64>$L$6,$F$9,($F$9/$L$6)*W64)) -> 9 | AV64: =IF(CP64>0,$F$10,0) -> 2 | AW64: =IF(CR64>0,$F$11,0) -> 1 | AX64: =IF(CS64>0,$F$12,0) -> 1 | AY64: =IF(CT64>0,$F$13,0) -> 0 | AZ64: =IF(CU64>0,$F$14,0) -> 1 | BA64: =+IF(CV64>=$M$22,$J$22,IF(CV64<($M$22),CV64*($J$22/($M$22)),)) -> 0.1433333333 | BB64: =+IF(CW64>=$M$23,$J$23,IF(CW64<($M$23),CW64*($J$23/($M$23)),)) -> 0.125 | BC64: =+IF(CX64>=$M$24,$J$24,IF(CX64<($M$24),CX64*($J$24/($M$24)),)) -> 0.5 | BD64: =+IF(CY64>=$M$25,$J$25,IF(CY64<($M$25),CY64*($J$25/($M$25)),)) -> 0 | BE64: =IF(CZ64>0,$F$16,0) -> 0 | BF64: =+IF(DC64>=$M$28,$J$28,IF(DC64<($M$28),DC64*($J$28/($M$28)),)) -> 0.6666666667 | BG64: =IF(DO64>0,$F$18,0) -> 1 | BH64: =IF(COUNTIF($J$31:$M$31,TRUE)=0, 0, IF(SUMIF($J$31:$M$31,TRUE,DP64:DT64)/COUNTIF($J$31:$M$31,TRUE)>=$M$32, $F$19, $F$19*(SUMIF($J$31:$M$31,TRUE,DP64:DT64)/COUNTIF($J$31:$M$31,TRUE)/$M$32))) -> 0.3275243921 | BI64: =SUM(AU64+AV64+AW64+AX64+AY64+AZ64+BE64+BA64+BB64+BC64+BD64+BF64+BG64+BH64) -> 16.76252439 | BJ64: =+BI64*$H$9 -> 5.587508131 | BK64: 2503.280157 | BL64: =BK64/U64 -> 1.000111928 | BM64: =IF(BL64>0,IF(BL64>=$M$18,$J$18,IF(BL64<$M$18,$J$19,0)),0) -> 1 | BN64: 970.5786962 | BO64: =BN64/U64 -> 0.3877661591 | BP64: =IF(BO64,$F$22,0) -> 1 | BQ64: =IF(DE64>0,$F$23,0) -> 1 | BR64: 1594.004593 | BS64: =BR64/U64 -> 0.636837632 | BT64: =+IF(BS64>=$L$3,$F$24,0) -> 1 | BU64: 242.1078706 | BV64: =IF(BU64>0,IF(BU64>=100,$F$25,IF(BU64<100,$F$25/2)),0) -> 1 | BW64: =SUM(DI64) -> 1.5 | BX64: =IF(OR(DK64>0,DL64>0),$F$27,0) -> 0 | BY64: =IF(DJ64>0,$F$28,0) -> 0 | BZ64: =IF(DN64>0,$F$29,0) -> 1 | CA64: =SUM(BM64,BP64,BV64,BQ64,BT64,BW64,BX64,BY64,BZ64) -> 7.5 | CB64: =+CA64*$H$21 -> 2.5 | CC64: =SUM(AS64,BI64,CA64) -> 38.26252439 | CD64: =SUM(AT64,BJ64,CB64) -> 12.7541748 | CE64: =IF(D64<($W$13*$CF$31),1,IF(D64<(($W$14+$W$13)*$CF$31),2,IF(D64<(($W$15+$W$13+$W$14)*$CF$31),3,4))) -> 1 | CL64: https://www.google.com/maps/@60.7912795228,26.8108051858,3a,75y,90t/data=!3m3!1e1!3m1!2e0 | CN64: 3 | CP64: 1 | CR64: 2 | CS64: 2 | CT64: 0 | CU64: 5 | CV64: 86 | CW64: 25 | CX64: 1704 | CY64: 0 | CZ64: 0 | DC64: 2 | DE64: 1 | DG64: =IF(X64>$L$7,$F$26/2,0) -> 1.5 | DH64: =+IF(X64/V64>1.5,$F$26/2,0) -> 0 | DI64: =SUM(DG64:DH64) -> 1.5 | DJ64: 0 | DK64: 0 | DL64: 0 | DN64: 1 | DO64: 2 | DP64: 0.8194649275 | DQ64: 0.8452430245 | DR64: 0.7917249885 | DS64: 4.572410799 | DT64: =AVERAGE(DP64:DR64) -> 0.8188109802 | DV64: 16 | DW64: =D64 -> 26 | DX64: =DV64-DW64 -> -10 | DY64: 1 | DZ64: =H64 -> 1 | EA64: =DY64-DZ64 -> 0
A65: =CONCATENATE(P65,"_",Q65) -> 359_5 | B65: 1 | D65: =RANK(CD65,$CD$39:$CD$711) -> 27 | E65: 27 | F65: =E65-D65 -> 0 | G65: =CD65 -> 12.71909956 | H65: =CE65 -> 1 | I65: =B65-H65 -> 0 | J65: =HYPERLINK(CL65,"Gmaps") -> Gmaps | K65: =IF(V65>$L$5,"KESKI","VÄHÄ") -> KESKI | L65: =IF(P65<40,"Valta",IF(P65<100,"Kanta",IF(P65<1000,"Seutu",IF(P65>999,"Yhdys")))) -> Seutu | M65: Anjalantie | N65: Kouvola | O65: Kymenlaakso | P65: 359 | Q65: 5 | R65: 0 | S65: 5 | T65: 2846 | U65: =T65-R65 -> 2846 | V65: 3190 | W65: 189 | X65: 3509 | Y65: 3190 (100 %) | Z65: 50 (71 %), 60 (29 %) | AA65: Is (100 %) | AB65: Asfalttibetoni (100 %) | AC65: PK2 (100 %) | AD65: 0 | AE65: 6 | AF65: 0.01545698925 | AG65: 76 | AL65: =+IF(V65>=$L$5,$F$4,($F$4/($L$5))*V65) -> 9 | AM65: 0 | AN65: =+IF(AM65>=$M$14,$J$14,IF(AM65<($M$14),AM65*($J$14/($M$14)),)) -> 0 | AO65: 1226 | AP65: =+IF(AO65>=$M$10,$J$10,IF(AO65<($M$10),AO65*($J$10/($M$10)),)) -> 2 | AQ65: =IF(CN65=0,"-",IF(CN65=1,"taksi",IF(CN65=2,"pikkubussi","bussi"))) -> bussi | AR65: =IF(CN65=0,0,IF(CN65<3,$F$7/2,$F$7)) -> 3 | AS65: =SUM(AL65,AN65,AP65,AR65) -> 14 | AT65: =+AS65*$H$4 -> 4.666666667 | AU65: =+IF(W65=0,0,IF(W65>$L$6,$F$9,($F$9/$L$6)*W65)) -> 9 | AV65: =IF(CP65>0,$F$10,0) -> 2 | AW65: =IF(CR65>0,$F$11,0) -> 1 | AX65: =IF(CS65>0,$F$12,0) -> 1 | AY65: =IF(CT65>0,$F$13,0) -> 0 | AZ65: =IF(CU65>0,$F$14,0) -> 1 | BA65: =+IF(CV65>=$M$22,$J$22,IF(CV65<($M$22),CV65*($J$22/($M$22)),)) -> 0.035 | BB65: =+IF(CW65>=$M$23,$J$23,IF(CW65<($M$23),CW65*($J$23/($M$23)),)) -> 0 | BC65: =+IF(CX65>=$M$24,$J$24,IF(CX65<($M$24),CX65*($J$24/($M$24)),)) -> 0 | BD65: =+IF(CY65>=$M$25,$J$25,IF(CY65<($M$25),CY65*($J$25/($M$25)),)) -> 0 | BE65: =IF(CZ65>0,$F$16,0) -> 0 | BF65: =+IF(DC65>=$M$28,$J$28,IF(DC65<($M$28),DC65*($J$28/($M$28)),)) -> 1 | BG65: =IF(DO65>0,$F$18,0) -> 1 | BH65: =IF(COUNTIF($J$31:$M$31,TRUE)=0, 0, IF(SUMIF($J$31:$M$31,TRUE,DP65:DT65)/COUNTIF($J$31:$M$31,TRUE)>=$M$32, $F$19, $F$19*(SUMIF($J$31:$M$31,TRUE,DP65:DT65)/COUNTIF($J$31:$M$31,TRUE)/$M$32))) -> 0.6222986754 | BI65: =SUM(AU65+AV65+AW65+AX65+AY65+AZ65+BE65+BA65+BB65+BC65+BD65+BF65+BG65+BH65) -> 16.65729868 | BJ65: =+BI65*$H$9 -> 5.552432892 | BK65: 2460.496349 | BL65: =BK65/U65 -> 0.8645454493 | BM65: =IF(BL65>0,IF(BL65>=$M$18,$J$18,IF(BL65<$M$18,$J$19,0)),0) -> 1 | BN65: 0 | BO65: =BN65/U65 -> 0 | BP65: =IF(BO65,$F$22,0) -> 0 | BQ65: =IF(DE65>0,$F$23,0) -> 1 | BR65: 2452.519422 | BS65: =BR65/U65 -> 0.8617425938 | BT65: =+IF(BS65>=$L$3,$F$24,0) -> 1 | BU65: 509.3078004 | BV65: =IF(BU65>0,IF(BU65>=100,$F$25,IF(BU65<100,$F$25/2)),0) -> 1 | BW65: =SUM(DI65) -> 1.5 | BX65: =IF(OR(DK65>0,DL65>0),$F$27,0) -> 1 | BY65: =IF(DJ65>0,$F$28,0) -> 0 | BZ65: =IF(DN65>0,$F$29,0) -> 1 | CA65: =SUM(BM65,BP65,BV65,BQ65,BT65,BW65,BX65,BY65,BZ65) -> 7.5 | CB65: =+CA65*$H$21 -> 2.5 | CC65: =SUM(AS65,BI65,CA65) -> 38.15729868 | CD65: =SUM(AT65,BJ65,CB65) -> 12.71909956 | CE65: =IF(D65<($W$13*$CF$31),1,IF(D65<(($W$14+$W$13)*$CF$31),2,IF(D65<(($W$15+$W$13+$W$14)*$CF$31),3,4))) -> 1 | CL65: https://www.google.com/maps/@60.8444522619,26.6034239845,3a,75y,90t/data=!3m3!1e1!3m1!2e0 | CN65: 3 | CP65: 3 | CR65: 2 | CS65: 3 | CT65: 0 | CU65: 1 | CV65: 21 | CW65: 0 | CX65: 0 | CY65: 0 | CZ65: 0 | DC65: 3 | DE65: 6 | DG65: =IF(X65>$L$7,$F$26/2,0) -> 1.5 | DH65: =+IF(X65/V65>1.5,$F$26/2,0) -> 0 | DI65: =SUM(DG65:DH65) -> 1.5 | DJ65: 0 | DK65: 1 | DL65: 0 | DN65: 1 | DO65: 3 | DP65: 1.746243292 | DQ65: 1.802814564 | DR65: 1.118182209 | DS65: 2.916369328 | DT65: =AVERAGE(DP65:DR65) -> 1.555746688 | DV65: 23 | DW65: =D65 -> 27 | DX65: =DV65-DW65 -> -4 | DY65: 1 | DZ65: =H65 -> 1 | EA65: =DY65-DZ65 -> 0
A66: =CONCATENATE(P66,"_",Q66) -> 408_1 | B66: 1 | D66: =RANK(CD66,$CD$39:$CD$711) -> 28 | E66: 28 | F66: =E66-D66 -> 0 | G66: =CD66 -> 12.70111111 | H66: =CE66 -> 1 | I66: =B66-H66 -> 0 | J66: =HYPERLINK(CL66,"Gmaps") -> Gmaps | K66: =IF(V66>$L$5,"KESKI","VÄHÄ") -> KESKI | L66: =IF(P66<40,"Valta",IF(P66<100,"Kanta",IF(P66<1000,"Seutu",IF(P66>999,"Yhdys")))) -> Seutu | M66: Taipalsaarentie | N66: Lappeenranta | O66: Etelä-Karjala | P66: 408 | Q66: 1 | R66: 1989 | S66: 1 | T66: 6354 | U66: =T66-R66 -> 4365 | V66: 6885.512027 | W66: 230.5360825 | X66: 7488.059794 | Y66: 5608 (67 %), 9513 (33 %) | Z66: 50 (5 %), 70 (94 %) | AA66: Is (100 %) | AB66: Kivimastiksiasfaltti (95 %) | AC66: PK2 (98 %) | AD66: 2 | AE66: 4 | AF66: 0 | AG66: 94.27147766 | AL66: =+IF(V66>=$L$5,$F$4,($F$4/($L$5))*V66) -> 9 | AM66: 290 | AN66: =+IF(AM66>=$M$14,$J$14,IF(AM66<($M$14),AM66*($J$14/($M$14)),)) -> 3 | AO66: 2888 | AP66: =+IF(AO66>=$M$10,$J$10,IF(AO66<($M$10),AO66*($J$10/($M$10)),)) -> 2 | AQ66: =IF(CN66=0,"-",IF(CN66=1,"taksi",IF(CN66=2,"pikkubussi","bussi"))) -> pikkubussi | AR66: =IF(CN66=0,0,IF(CN66<3,$F$7/2,$F$7)) -> 1.5 | AS66: =SUM(AL66,AN66,AP66,AR66) -> 15.5 | AT66: =+AS66*$H$4 -> 5.166666667 | AU66: =+IF(W66=0,0,IF(W66>$L$6,$F$9,($F$9/$L$6)*W66)) -> 9 | AV66: =IF(CP66>0,$F$10,0) -> 0 | AW66: =IF(CR66>0,$F$11,0) -> 0 | AX66: =IF(CS66>0,$F$12,0) -> 1 | AY66: =IF(CT66>0,$F$13,0) -> 0 | AZ66: =IF(CU66>0,$F$14,0) -> 1 | BA66: =+IF(CV66>=$M$22,$J$22,IF(CV66<($M$22),CV66*($J$22/($M$22)),)) -> 0.1033333333 | BB66: =+IF(CW66>=$M$23,$J$23,IF(CW66<($M$23),CW66*($J$23/($M$23)),)) -> 0 | BC66: =+IF(CX66>=$M$24,$J$24,IF(CX66<($M$24),CX66*($J$24/($M$24)),)) -> 0 | BD66: =+IF(CY66>=$M$25,$J$25,IF(CY66<($M$25),CY66*($J$25/($M$25)),)) -> 0 | BE66: =IF(CZ66>0,$F$16,0) -> 0 | BF66: =+IF(DC66>=$M$28,$J$28,IF(DC66<($M$28),DC66*($J$28/($M$28)),)) -> 1 | BG66: =IF(DO66>0,$F$18,0) -> 1 | BH66: =IF(COUNTIF($J$31:$M$31,TRUE)=0, 0, IF(SUMIF($J$31:$M$31,TRUE,DP66:DT66)/COUNTIF($J$31:$M$31,TRUE)>=$M$32, $F$19, $F$19*(SUMIF($J$31:$M$31,TRUE,DP66:DT66)/COUNTIF($J$31:$M$31,TRUE)/$M$32))) -> 2 | BI66: =SUM(AU66+AV66+AW66+AX66+AY66+AZ66+BE66+BA66+BB66+BC66+BD66+BF66+BG66+BH66) -> 15.10333333 | BJ66: =+BI66*$H$9 -> 5.034444444 | BK66: 4348.608205 | BL66: =BK66/U66 -> 0.9962447206 | BM66: =IF(BL66>0,IF(BL66>=$M$18,$J$18,IF(BL66<$M$18,$J$19,0)),0) -> 1 | BN66: 0 | BO66: =BN66/U66 -> 0 | BP66: =IF(BO66,$F$22,0) -> 0 | BQ66: =IF(DE66>0,$F$23,0) -> 0 | BR66: 4201.285403 | BS66: =BR66/U66 -> 0.9624937922 | BT66: =+IF(BS66>=$L$3,$F$24,0) -> 1 | BU66: 1298.27858 | BV66: =IF(BU66>0,IF(BU66>=100,$F$25,IF(BU66<100,$F$25/2)),0) -> 1 | BW66: =SUM(DI66) -> 1.5 | BX66: =IF(OR(DK66>0,DL66>0),$F$27,0) -> 1 | BY66: =IF(DJ66>0,$F$28,0) -> 1 | BZ66: =IF(DN66>0,$F$29,0) -> 1 | CA66: =SUM(BM66,BP66,BV66,BQ66,BT66,BW66,BX66,BY66,BZ66) -> 7.5 | CB66: =+CA66*$H$21 -> 2.5 | CC66: =SUM(AS66,BI66,CA66) -> 38.10333333 | CD66: =SUM(AT66,BJ66,CB66) -> 12.70111111 | CE66: =IF(D66<($W$13*$CF$31),1,IF(D66<(($W$14+$W$13)*$CF$31),2,IF(D66<(($W$15+$W$13+$W$14)*$CF$31),3,4))) -> 1 | CL66: https://www.google.com/maps/@61.0650855568,28.1657767523,3a,75y,90t/data=!3m3!1e1!3m1!2e0 | CN66: 2 | CP66: 0 | CR66: 0 | CS66: 1 | CT66: 0 | CU66: 1 | CV66: 62 | CW66: 0 | CX66: 0 | CY66: 0 | CZ66: 0 | DC66: 10 | DE66: 0 | DG66: =IF(X66>$L$7,$F$26/2,0) -> 1.5 | DH66: =+IF(X66/V66>1.5,$F$26/2,0) -> 0 | DI66: =SUM(DG66:DH66) -> 1.5 | DJ66: 6 | DK66: 1 | DL66: 0 | DN66: 1 | DO66: 3 | DP66: 9.110089013 | DQ66: 8.762293689 | DR66: 7.848529509 | DS66: 5.534434292 | DT66: =AVERAGE(DP66:DR66) -> 8.573637404 | DV66: 14 | DW66: =D66 -> 28 | DX66: =DV66-DW66 -> -14 | DY66: 1 | DZ66: =H66 -> 1 | EA66: =DY66-DZ66 -> 0
A67: =CONCATENATE(P67,"_",Q67) -> 397_1 | B67: 1 | D67: =RANK(CD67,$CD$39:$CD$711) -> 29 | E67: 29 | F67: =E67-D67 -> 0 | G67: =CD67 -> 12.66711107 | H67: =CE67 -> 1 | I67: =B67-H67 -> 0 | J67: =HYPERLINK(CL67,"Gmaps") -> Gmaps | K67: =IF(V67>$L$5,"KESKI","VÄHÄ") -> KESKI | L67: =IF(P67<40,"Valta",IF(P67<100,"Kanta",IF(P67<1000,"Seutu",IF(P67>999,"Yhdys")))) -> Seutu | M67: Helsingintie, Imatranväylä, Joutsenrannantie | N67: Imatra, Lappeenranta | O67: Etelä-Karjala | P67: 397 | Q67: 1 | R67: 0 | S67: 1 | T67: 1991 | U67: =T67-R67 -> 1991 | V67: 4287 | W67: 142 | X67: 4884 | Y67: 4287 (100 %) | Z67: 50 (40 %), 80 (61 %) | AA67: Is (100 %) | AB67: Asfalttibetoni (90 %), Kivimastiksiasfaltti (11 %) | AC67: PK2 (100 %) | AD67: 0 | AE67: 3 | AF67: 0 | AG67: 10 | AL67: =+IF(V67>=$L$5,$F$4,($F$4/($L$5))*V67) -> 9 | AM67: 70 | AN67: =+IF(AM67>=$M$14,$J$14,IF(AM67<($M$14),AM67*($J$14/($M$14)),)) -> 3 | AO67: 1688 | AP67: =+IF(AO67>=$M$10,$J$10,IF(AO67<($M$10),AO67*($J$10/($M$10)),)) -> 2 | AQ67: =IF(CN67=0,"-",IF(CN67=1,"taksi",IF(CN67=2,"pikkubussi","bussi"))) -> bussi | AR67: =IF(CN67=0,0,IF(CN67<3,$F$7/2,$F$7)) -> 3 | AS67: =SUM(AL67,AN67,AP67,AR67) -> 17 | AT67: =+AS67*$H$4 -> 5.666666667 | AU67: =+IF(W67=0,0,IF(W67>$L$6,$F$9,($F$9/$L$6)*W67)) -> 9 | AV67: =IF(CP67>0,$F$10,0) -> 0 | AW67: =IF(CR67>0,$F$11,0) -> 0 | AX67: =IF(CS67>0,$F$12,0) -> 0 | AY67: =IF(CT67>0,$F$13,0) -> 0 | AZ67: =IF(CU67>0,$F$14,0) -> 1 | BA67: =+IF(CV67>=$M$22,$J$22,IF(CV67<($M$22),CV67*($J$22/($M$22)),)) -> 0 | BB67: =+IF(CW67>=$M$23,$J$23,IF(CW67<($M$23),CW67*($J$23/($M$23)),)) -> 0 | BC67: =+IF(CX67>=$M$24,$J$24,IF(CX67<($M$24),CX67*($J$24/($M$24)),)) -> 0 | BD67: =+IF(CY67>=$M$25,$J$25,IF(CY67<($M$25),CY67*($J$25/($M$25)),)) -> 0 | BE67: =IF(CZ67>0,$F$16,0) -> 0 | BF67: =+IF(DC67>=$M$28,$J$28,IF(DC67<($M$28),DC67*($J$28/($M$28)),)) -> 0.3333333333 | BG67: =IF(DO67>0,$F$18,0) -> 1 | BH67: =IF(COUNTIF($J$31:$M$31,TRUE)=0, 0, IF(SUMIF($J$31:$M$31,TRUE,DP67:DT67)/COUNTIF($J$31:$M$31,TRUE)>=$M$32, $F$19, $F$19*(SUMIF($J$31:$M$31,TRUE,DP67:DT67)/COUNTIF($J$31:$M$31,TRUE)/$M$32))) -> 0.1679998913 | BI67: =SUM(AU67+AV67+AW67+AX67+AY67+AZ67+BE67+BA67+BB67+BC67+BD67+BF67+BG67+BH67) -> 11.50133322 | BJ67: =+BI67*$H$9 -> 3.833777742 | BK67: 2010.189699 | BL67: =BK67/U67 -> 1.009638222 | BM67: =IF(BL67>0,IF(BL67>=$M$18,$J$18,IF(BL67<$M$18,$J$19,0)),0) -> 1 | BN67: 1981.675352 | BO67: =BN67/U67 -> 0.9953166008 | BP67: =IF(BO67,$F$22,0) -> 1 | BQ67: =IF(DE67>0,$F$23,0) -> 1 | BR67: 2010.189699 | BS67: =BR67/U67 -> 1.009638222 | BT67: =+IF(BS67>=$L$3,$F$24,0) -> 1 | BU67: 133.1993973 | BV67: =IF(BU67>0,IF(BU67>=100,$F$25,IF(BU67<100,$F$25/2)),0) -> 1 | BW67: =SUM(DI67) -> 1.5 | BX67: =IF(OR(DK67>0,DL67>0),$F$27,0) -> 1 | BY67: =IF(DJ67>0,$F$28,0) -> 1 | BZ67: =IF(DN67>0,$F$29,0) -> 1 | CA67: =SUM(BM67,BP67,BV67,BQ67,BT67,BW67,BX67,BY67,BZ67) -> 9.5 | CB67: =+CA67*$H$21 -> 3.166666667 | CC67: =SUM(AS67,BI67,CA67) -> 38.00133322 | CD67: =SUM(AT67,BJ67,CB67) -> 12.66711107 | CE67: =IF(D67<($W$13*$CF$31),1,IF(D67<(($W$14+$W$13)*$CF$31),2,IF(D67<(($W$15+$W$13+$W$14)*$CF$31),3,4))) -> 1 | CL67: https://www.google.com/maps/@61.1729790294,28.6953748979,3a,75y,90t/data=!3m3!1e1!3m1!2e0 | CN67: 3 | CP67: 0 | CR67: 0 | CS67: 0 | CT67: 0 | CU67: 4 | CV67: 0 | CW67: 0 | CX67: 0 | CY67: 0 | CZ67: 0 | DC67: 1 | DE67: 9 | DG67: =IF(X67>$L$7,$F$26/2,0) -> 1.5 | DH67: =+IF(X67/V67>1.5,$F$26/2,0) -> 0 | DI67: =SUM(DG67:DH67) -> 1.5 | DJ67: 1 | DK67: 1 | DL67: 0 | DN67: 1 | DO67: 1 | DP67: 0.3643113468 | DQ67: 0.6744230218 | DR67: 0.2212648162 | DS67: 0.2659071379 | DT67: =AVERAGE(DP67:DR67) -> 0.4199997283 | DV67: 27 | DW67: =D67 -> 29 | DX67: =DV67-DW67 -> -2 | DY67: 1 | DZ67: =H67 -> 1 | EA67: =DY67-DZ67 -> 0
A68: =CONCATENATE(P68,"_",Q68) -> 387_11 | B68: 1 | D68: =RANK(CD68,$CD$39:$CD$711) -> 30 | E68: 30 | F68: =E68-D68 -> 0 | G68: =CD68 -> 12.58388889 | H68: =CE68 -> 1 | I68: =B68-H68 -> 0 | J68: =HYPERLINK(CL68,"Gmaps") -> Gmaps | K68: =IF(V68>$L$5,"KESKI","VÄHÄ") -> KESKI | L68: =IF(P68<40,"Valta",IF(P68<100,"Kanta",IF(P68<1000,"Seutu",IF(P68>999,"Yhdys")))) -> Seutu | M68: Lappeenrannantie | N68: Miehikkälä, Virolahti | O68: Kymenlaakso | P68: 387 | Q68: 11 | R68: 0 | S68: 11 | T68: 5079 | U68: =T68-R68 -> 5079 | V68: 1207 | W68: 108 | X68: 1486 | Y68: 1207 (100 %) | Z68: 100 (53 %), 80 (47 %) | AA68: I (80 %), Is (20 %) | AB68: Asfalttibetoni (100 %) | AC68: PK2 (100 %) | AD68: 1 | AE68: 2 | AF68: 0 | AG68: 73 | AL68: =+IF(V68>=$L$5,$F$4,($F$4/($L$5))*V68) -> 9 | AM68: 0 | AN68: =+IF(AM68>=$M$14,$J$14,IF(AM68<($M$14),AM68*($J$14/($M$14)),)) -> 0 | AO68: 246 | AP68: =+IF(AO68>=$M$10,$J$10,IF(AO68<($M$10),AO68*($J$10/($M$10)),)) -> 1.64 | AQ68: =IF(CN68=0,"-",IF(CN68=1,"taksi",IF(CN68=2,"pikkubussi","bussi"))) -> bussi | AR68: =IF(CN68=0,0,IF(CN68<3,$F$7/2,$F$7)) -> 3 | AS68: =SUM(AL68,AN68,AP68,AR68) -> 13.64 | AT68: =+AS68*$H$4 -> 4.546666667 | AU68: =+IF(W68=0,0,IF(W68>$L$6,$F$9,($F$9/$L$6)*W68)) -> 9 | AV68: =IF(CP68>0,$F$10,0) -> 2 | AW68: =IF(CR68>0,$F$11,0) -> 1 | AX68: =IF(CS68>0,$F$12,0) -> 1 | AY68: =IF(CT68>0,$F$13,0) -> 0 | AZ68: =IF(CU68>0,$F$14,0) -> 1 | BA68: =+IF(CV68>=$M$22,$J$22,IF(CV68<($M$22),CV68*($J$22/($M$22)),)) -> 0.445 | BB68: =+IF(CW68>=$M$23,$J$23,IF(CW68<($M$23),CW68*($J$23/($M$23)),)) -> 0 | BC68: =+IF(CX68>=$M$24,$J$24,IF(CX68<($M$24),CX68*($J$24/($M$24)),)) -> 0 | BD68: =+IF(CY68>=$M$25,$J$25,IF(CY68<($M$25),CY68*($J$25/($M$25)),)) -> 0 | BE68: =IF(CZ68>0,$F$16,0) -> 0 | BF68: =+IF(DC68>=$M$28,$J$28,IF(DC68<($M$28),DC68*($J$28/($M$28)),)) -> 0.6666666667 | BG68: =IF(DO68>0,$F$18,0) -> 1 | BH68: =IF(COUNTIF($J$31:$M$31,TRUE)=0, 0, IF(SUMIF($J$31:$M$31,TRUE,DP68:DT68)/COUNTIF($J$31:$M$31,TRUE)>=$M$32, $F$19, $F$19*(SUMIF($J$31:$M$31,TRUE,DP68:DT68)/COUNTIF($J$31:$M$31,TRUE)/$M$32))) -> 2 | BI68: =SUM(AU68+AV68+AW68+AX68+AY68+AZ68+BE68+BA68+BB68+BC68+BD68+BF68+BG68+BH68) -> 18.11166667 | BJ68: =+BI68*$H$9 -> 6.037222222 | BK68: 0 | BL68: =BK68/U68 -> 0 | BM68: =IF(BL68>0,IF(BL68>=$M$18,$J$18,IF(BL68<$M$18,$J$19,0)),0) -> 0 | BN68: 3054.334225 | BO68: =BN68/U68 -> 0.6013652737 | BP68: =IF(BO68,$F$22,0) -> 1 | BQ68: =IF(DE68>0,$F$23,0) -> 0 | BR68: 0 | BS68: =BR68/U68 -> 0 | BT68: =+IF(BS68>=$L$3,$F$24,0) -> 0 | BU68: 3.386493404 | BV68: =IF(BU68>0,IF(BU68>=100,$F$25,IF(BU68<100,$F$25/2)),0) -> 0.5 | BW68: =SUM(DI68) -> 1.5 | BX68: =IF(OR(DK68>0,DL68>0),$F$27,0) -> 1 | BY68: =IF(DJ68>0,$F$28,0) -> 1 | BZ68: =IF(DN68>0,$F$29,0) -> 1 | CA68: =SUM(BM68,BP68,BV68,BQ68,BT68,BW68,BX68,BY68,BZ68) -> 6 | CB68: =+CA68*$H$21 -> 2 | CC68: =SUM(AS68,BI68,CA68) -> 37.75166667 | CD68: =SUM(AT68,BJ68,CB68) -> 12.58388889 | CE68: =IF(D68<($W$13*$CF$31),1,IF(D68<(($W$14+$W$13)*$CF$31),2,IF(D68<(($W$15+$W$13+$W$14)*$CF$31),3,4))) -> 1 | CL68: https://www.google.com/maps/@60.6409847974,27.8783326251,3a,75y,90t/data=!3m3!1e1!3m1!2e0 | CN68: 3 | CP68: 1 | CR68: 1 | CS68: 11 | CT68: 0 | CU68: 11 | CV68: 267 | CW68: 0 | CX68: 0 | CY68: 0 | CZ68: 0 | DC68: 2 | DE68: 0 | DG68: =IF(X68>$L$7,$F$26/2,0) -> 1.5 | DH68: =+IF(X68/V68>1.5,$F$26/2,0) -> 0 | DI68: =SUM(DG68:DH68) -> 1.5 | DJ68: 4 | DK68: 0 | DL68: 1 | DN68: 1 | DO68: 1 | DP68: 6.22621846 | DQ68: 7.450422109 | DR68: 6.77275836 | DS68: 2.807085837 | DT68: =AVERAGE(DP68:DR68) -> 6.81646631 | DV68: 31 | DW68: =D68 -> 30 | DX68: =DV68-DW68 -> 1 | DY68: 1 | DZ68: =H68 -> 1 | EA68: =DY68-DZ68 -> 0
A69: =CONCATENATE(P69,"_",Q69) -> 160_311 | B69: 1 | D69: =RANK(CD69,$CD$39:$CD$711) -> 31 | E69: 31 | F69: =E69-D69 -> 0 | G69: =CD69 -> 12.55555556 | H69: =CE69 -> 1 | I69: =B69-H69 -> 0 | J69: =HYPERLINK(CL69,"Gmaps") -> Gmaps | K69: =IF(V69>$L$5,"KESKI","VÄHÄ") -> KESKI | L69: =IF(P69<40,"Valta",IF(P69<100,"Kanta",IF(P69<1000,"Seutu",IF(P69>999,"Yhdys")))) -> Seutu | M69: Karjalantie | N69: Imatra | O69: Etelä-Karjala | P69: 160 | Q69: 311 | R69: 3133 | S69: 311 | T69: 4742 | U69: =T69-R69 -> 1609 | V69: 2695 | W69: 200 | X69: 2964 | Y69: 2695 (99 %) | Z69: 50 (33 %), 60 (66 %) | AA69: Ib (99 %) | AB69: Asfalttibetoni (99 %) | AC69: PK2 (99 %) | AD69: 0 | AE69: 1 | AF69: 0.04740406321 | AG69: 103 | AL69: =+IF(V69>=$L$5,$F$4,($F$4/($L$5))*V69) -> 9 | AM69: 31 | AN69: =+IF(AM69>=$M$14,$J$14,IF(AM69<($M$14),AM69*($J$14/($M$14)),)) -> 3 | AO69: 384 | AP69: =+IF(AO69>=$M$10,$J$10,IF(AO69<($M$10),AO69*($J$10/($M$10)),)) -> 2 | AQ69: =IF(CN69=0,"-",IF(CN69=1,"taksi",IF(CN69=2,"pikkubussi","bussi"))) -> bussi | AR69: =IF(CN69=0,0,IF(CN69<3,$F$7/2,$F$7)) -> 3 | AS69: =SUM(AL69,AN69,AP69,AR69) -> 17 | AT69: =+AS69*$H$4 -> 5.666666667 | AU69: =+IF(W69=0,0,IF(W69>$L$6,$F$9,($F$9/$L$6)*W69)) -> 9 | AV69: =IF(CP69>0,$F$10,0) -> 0 | AW69: =IF(CR69>0,$F$11,0) -> 1 | AX69: =IF(CS69>0,$F$12,0) -> 1 | AY69: =IF(CT69>0,$F$13,0) -> 0 | AZ69: =IF(CU69>0,$F$14,0) -> 0 | BA69: =+IF(CV69>=$M$22,$J$22,IF(CV69<($M$22),CV69*($J$22/($M$22)),)) -> 0 | BB69: =+IF(CW69>=$M$23,$J$23,IF(CW69<($M$23),CW69*($J$23/($M$23)),)) -> 0 | BC69: =+IF(CX69>=$M$24,$J$24,IF(CX69<($M$24),CX69*($J$24/($M$24)),)) -> 0 | BD69: =+IF(CY69>=$M$25,$J$25,IF(CY69<($M$25),CY69*($J$25/($M$25)),)) -> 0 | BE69: =IF(CZ69>0,$F$16,0) -> 0 | BF69: =+IF(DC69>=$M$28,$J$28,IF(DC69<($M$28),DC69*($J$28/($M$28)),)) -> 0.6666666667 | BG69: =IF(DO69>0,$F$18,0) -> 0 | BH69: =IF(COUNTIF($J$31:$M$31,TRUE)=0, 0, IF(SUMIF($J$31:$M$31,TRUE,DP69:DT69)/COUNTIF($J$31:$M$31,TRUE)>=$M$32, $F$19, $F$19*(SUMIF($J$31:$M$31,TRUE,DP69:DT69)/COUNTIF($J$31:$M$31,TRUE)/$M$32))) -> 2 | BI69: =SUM(AU69+AV69+AW69+AX69+AY69+AZ69+BE69+BA69+BB69+BC69+BD69+BF69+BG69+BH69) -> 13.66666667 | BJ69: =+BI69*$H$9 -> 4.555555556 | BK69: 0 | BL69: =BK69/U69 -> 0 | BM69: =IF(BL69>0,IF(BL69>=$M$18,$J$18,IF(BL69<$M$18,$J$19,0)),0) -> 0 | BN69: 1600.034497 | BO69: =BN69/U69 -> 0.9944279035 | BP69: =IF(BO69,$F$22,0) -> 1 | BQ69: =IF(DE69>0,$F$23,0) -> 1 | BR69: 907.1982571 | BS69: =BR69/U69 -> 0.5638273817 | BT69: =+IF(BS69>=$L$3,$F$24,0) -> 1 | BU69: 31.75885643 | BV69: =IF(BU69>0,IF(BU69>=100,$F$25,IF(BU69<100,$F$25/2)),0) -> 0.5 | BW69: =SUM(DI69) -> 1.5 | BX69: =IF(OR(DK69>0,DL69>0),$F$27,0) -> 1 | BY69: =IF(DJ69>0,$F$28,0) -> 0 | BZ69: =IF(DN69>0,$F$29,0) -> 1 | CA69: =SUM(BM69,BP69,BV69,BQ69,BT69,BW69,BX69,BY69,BZ69) -> 7 | CB69: =+CA69*$H$21 -> 2.333333333 | CC69: =SUM(AS69,BI69,CA69) -> 37.66666667 | CD69: =SUM(AT69,BJ69,CB69) -> 12.55555556 | CE69: =IF(D69<($W$13*$CF$31),1,IF(D69<(($W$14+$W$13)*$CF$31),2,IF(D69<(($W$15+$W$13+$W$14)*$CF$31),3,4))) -> 1 | CL69: https://www.google.com/maps/@61.2462078135,28.8716831052,3a,75y,90t/data=!3m3!1e1!3m1!2e0 | CN69: 3 | CP69: 0 | CR69: 1 | CS69: 4 | CT69: 0 | CU69: 0 | CV69: 0 | CW69: 0 | CX69: 0 | CY69: 0 | CZ69: 0 | DC69: 2 | DE69: 4 | DG69: =IF(X69>$L$7,$F$26/2,0) -> 1.5 | DH69: =+IF(X69/V69>1.5,$F$26/2,0) -> 0 | DI69: =SUM(DG69:DH69) -> 1.5 | DJ69: 0 | DK69: 1 | DL69: 0 | DN69: 1 | DO69: 0 | DP69: 21.98879353 | DQ69: 30.24394514 | DR69: 31.14310516 | DS69: 10.09202678 | DT69: =AVERAGE(DP69:DR69) -> 27.79194794 | DV69: 12 | DW69: =D69 -> 31 | DX69: =DV69-DW69 -> -19 | DY69: 1 | DZ69: =H69 -> 1 | EA69: =DY69-DZ69 -> 0
A70: =CONCATENATE(P70,"_",Q70) -> 170_27 | B70: 1 | D70: =RANK(CD70,$CD$39:$CD$711) -> 32 | E70: 32 | F70: =E70-D70 -> 0 | G70: =CD70 -> 12.53414203 | H70: =CE70 -> 1 | I70: =B70-H70 -> 0 | J70: =HYPERLINK(CL70,"Gmaps") -> Gmaps | K70: =IF(V70>$L$5,"KESKI","VÄHÄ") -> KESKI | L70: =IF(P70<40,"Valta",IF(P70<100,"Kanta",IF(P70<1000,"Seutu",IF(P70>999,"Yhdys")))) -> Seutu | M70: Sutelantie | N70: Kotka | O70: Kymenlaakso | P70: 170 | Q70: 27 | R70: 0 | S70: 27 | T70: 2783 | U70: =T70-R70 -> 2783 | V70: 2198 | W70: 178 | X70: 2682 | Y70: 2198 (100 %) | Z70: 40 (14 %), 50 (4 %), 60 (82 %) | AA70: Ib (100 %) | AB70: Asfalttibetoni (39 %), Epäjatkuva asfaltti (Poistunut käytöstä) (61 %), Kantavan kerroksen asfalttibetoni (ABK) (27 %) | AC70: PK2 (100 %) | AD70: 1 | AE70: 3 | AF70: 0.209486166 | AG70: 21 | AL70: =+IF(V70>=$L$5,$F$4,($F$4/($L$5))*V70) -> 9 | AM70: 23 | AN70: =+IF(AM70>=$M$14,$J$14,IF(AM70<($M$14),AM70*($J$14/($M$14)),)) -> 3 | AO70: 497 | AP70: =+IF(AO70>=$M$10,$J$10,IF(AO70<($M$10),AO70*($J$10/($M$10)),)) -> 2 | AQ70: =IF(CN70=0,"-",IF(CN70=1,"taksi",IF(CN70=2,"pikkubussi","bussi"))) -> bussi | AR70: =IF(CN70=0,0,IF(CN70<3,$F$7/2,$F$7)) -> 3 | AS70: =SUM(AL70,AN70,AP70,AR70) -> 17 | AT70: =+AS70*$H$4 -> 5.666666667 | AU70: =+IF(W70=0,0,IF(W70>$L$6,$F$9,($F$9/$L$6)*W70)) -> 9 | AV70: =IF(CP70>0,$F$10,0) -> 0 | AW70: =IF(CR70>0,$F$11,0) -> 1 | AX70: =IF(CS70>0,$F$12,0) -> 0 | AY70: =IF(CT70>0,$F$13,0) -> 0 | AZ70: =IF(CU70>0,$F$14,0) -> 0 | BA70: =+IF(CV70>=$M$22,$J$22,IF(CV70<($M$22),CV70*($J$22/($M$22)),)) -> 0 | BB70: =+IF(CW70>=$M$23,$J$23,IF(CW70<($M$23),CW70*($J$23/($M$23)),)) -> 0 | BC70: =+IF(CX70>=$M$24,$J$24,IF(CX70<($M$24),CX70*($J$24/($M$24)),)) -> 0 | BD70: =+IF(CY70>=$M$25,$J$25,IF(CY70<($M$25),CY70*($J$25/($M$25)),)) -> 0 | BE70: =IF(CZ70>0,$F$16,0) -> 1 | BF70: =+IF(DC70>=$M$28,$J$28,IF(DC70<($M$28),DC70*($J$28/($M$28)),)) -> 1 | BG70: =IF(DO70>0,$F$18,0) -> 0 | BH70: =IF(COUNTIF($J$31:$M$31,TRUE)=0, 0, IF(SUMIF($J$31:$M$31,TRUE,DP70:DT70)/COUNTIF($J$31:$M$31,TRUE)>=$M$32, $F$19, $F$19*(SUMIF($J$31:$M$31,TRUE,DP70:DT70)/COUNTIF($J$31:$M$31,TRUE)/$M$32))) -> 0.1024260945 | BI70: =SUM(AU70+AV70+AW70+AX70+AY70+AZ70+BE70+BA70+BB70+BC70+BD70+BF70+BG70+BH70) -> 12.10242609 | BJ70: =+BI70*$H$9 -> 4.034142031 | BK70: 2729.295948 | BL70: =BK70/U70 -> 0.9807028201 | BM70: =IF(BL70>0,IF(BL70>=$M$18,$J$18,IF(BL70<$M$18,$J$19,0)),0) -> 1 | BN70: 2789.398035 | BO70: =BN70/U70 -> 1.00229897 | BP70: =IF(BO70,$F$22,0) -> 1 | BQ70: =IF(DE70>0,$F$23,0) -> 1 | BR70: 2137.952291 | BS70: =BR70/U70 -> 0.7682185739 | BT70: =+IF(BS70>=$L$3,$F$24,0) -> 1 | BU70: 204.9770032 | BV70: =IF(BU70>0,IF(BU70>=100,$F$25,IF(BU70<100,$F$25/2)),0) -> 1 | BW70: =SUM(DI70) -> 1.5 | BX70: =IF(OR(DK70>0,DL70>0),$F$27,0) -> 1 | BY70: =IF(DJ70>0,$F$28,0) -> 0 | BZ70: =IF(DN70>0,$F$29,0) -> 1 | CA70: =SUM(BM70,BP70,BV70,BQ70,BT70,BW70,BX70,BY70,BZ70) -> 8.5 | CB70: =+CA70*$H$21 -> 2.833333333 | CC70: =SUM(AS70,BI70,CA70) -> 37.60242609 | CD70: =SUM(AT70,BJ70,CB70) -> 12.53414203 | CE70: =IF(D70<($W$13*$CF$31),1,IF(D70<(($W$14+$W$13)*$CF$31),2,IF(D70<(($W$15+$W$13+$W$14)*$CF$31),3,4))) -> 1 | CL70: https://www.google.com/maps/@60.4950253213,26.8235466702,3a,75y,90t/data=!3m3!1e1!3m1!2e0 | CN70: 3 | CP70: 0 | CR70: 2 | CS70: 0 | CT70: 0 | CU70: 0 | CV70: 0 | CW70: 0 | CX70: 0 | CY70: 0 | CZ70: 2 | DC70: 6 | DE70: 1 | DG70: =IF(X70>$L$7,$F$26/2,0) -> 1.5 | DH70: =+IF(X70/V70>1.5,$F$26/2,0) -> 0 | DI70: =SUM(DG70:DH70) -> 1.5 | DJ70: 0 | DK70: 1 | DL70: 0 | DN70: 1 | DO70: 0 | DP70: 0.2494419549 | DQ70: 0.406150345 | DR70: 0.1126034085 | DS70: 0.07067206693 | DT70: =AVERAGE(DP70:DR70) -> 0.2560652361 | DV70: 52 | DW70: =D70 -> 32 | DX70: =DV70-DW70 -> 20 | DY70: 2 | DZ70: =H70 -> 1 | EA70: =DY70-DZ70 -> 1
A71: =CONCATENATE(P71,"_",Q71) -> 371_2 | B71: 1 | D71: =RANK(CD71,$CD$39:$CD$711) -> 33 | E71: 33 | F71: =E71-D71 -> 0 | G71: =CD71 -> 12.51821112 | H71: =CE71 -> 1 | I71: =B71-H71 -> 0 | J71: =HYPERLINK(CL71,"Gmaps") -> Gmaps | K71: =IF(V71>$L$5,"KESKI","VÄHÄ") -> KESKI | L71: =IF(P71<40,"Valta",IF(P71<100,"Kanta",IF(P71<1000,"Seutu",IF(P71>999,"Yhdys")))) -> Seutu | M71: Husupyölintie, Kapakkamäentie | N71: Hamina | O71: Kymenlaakso | P71: 371 | Q71: 2 | R71: 0 | S71: 2 | T71: 4352 | U71: =T71-R71 -> 4352 | V71: 1285 | W71: 48 | X71: 1413 | Y71: 1285 (100 %) | Z71: 50 (50 %), 60 (4 %), 70 (45 %) | AA71: Ib (100 %) | AB71: Asfalttibetoni (100 %) | AC71: PK2 (100 %) | AD71: 0 | AE71: 2 | AF71: 0 | AG71: 10 | AL71: =+IF(V71>=$L$5,$F$4,($F$4/($L$5))*V71) -> 9 | AM71: 31 | AN71: =+IF(AM71>=$M$14,$J$14,IF(AM71<($M$14),AM71*($J$14/($M$14)),)) -> 3 | AO71: 275 | AP71: =+IF(AO71>=$M$10,$J$10,IF(AO71<($M$10),AO71*($J$10/($M$10)),)) -> 1.833333333 | AQ71: =IF(CN71=0,"-",IF(CN71=1,"taksi",IF(CN71=2,"pikkubussi","bussi"))) -> bussi | AR71: =IF(CN71=0,0,IF(CN71<3,$F$7/2,$F$7)) -> 3 | AS71: =SUM(AL71,AN71,AP71,AR71) -> 16.83333333 | AT71: =+AS71*$H$4 -> 5.611111111 | AU71: =+IF(W71=0,0,IF(W71>$L$6,$F$9,($F$9/$L$6)*W71)) -> 8.64 | AV71: =IF(CP71>0,$F$10,0) -> 2 | AW71: =IF(CR71>0,$F$11,0) -> 1 | AX71: =IF(CS71>0,$F$12,0) -> 1 | AY71: =IF(CT71>0,$F$13,0) -> 0 | AZ71: =IF(CU71>0,$F$14,0) -> 1 | BA71: =+IF(CV71>=$M$22,$J$22,IF(CV71<($M$22),CV71*($J$22/($M$22)),)) -> 0 | BB71: =+IF(CW71>=$M$23,$J$23,IF(CW71<($M$23),CW71*($J$23/($M$23)),)) -> 0.045 | BC71: =+IF(CX71>=$M$24,$J$24,IF(CX71<($M$24),CX71*($J$24/($M$24)),)) -> 0 | BD71: =+IF(CY71>=$M$25,$J$25,IF(CY71<($M$25),CY71*($J$25/($M$25)),)) -> 0 | BE71: =IF(CZ71>0,$F$16,0) -> 0 | BF71: =+IF(DC71>=$M$28,$J$28,IF(DC71<($M$28),DC71*($J$28/($M$28)),)) -> 0.3333333333 | BG71: =IF(DO71>0,$F$18,0) -> 0 | BH71: =IF(COUNTIF($J$31:$M$31,TRUE)=0, 0, IF(SUMIF($J$31:$M$31,TRUE,DP71:DT71)/COUNTIF($J$31:$M$31,TRUE)>=$M$32, $F$19, $F$19*(SUMIF($J$31:$M$31,TRUE,DP71:DT71)/COUNTIF($J$31:$M$31,TRUE)/$M$32))) -> 0.2029666891 | BI71: =SUM(AU71+AV71+AW71+AX71+AY71+AZ71+BE71+BA71+BB71+BC71+BD71+BF71+BG71+BH71) -> 14.22130002 | BJ71: =+BI71*$H$9 -> 4.740433341 | BK71: 2845.692646 | BL71: =BK71/U71 -> 0.6538815824 | BM71: =IF(BL71>0,IF(BL71>=$M$18,$J$18,IF(BL71<$M$18,$J$19,0)),0) -> 1 | BN71: 0 | BO71: =BN71/U71 -> 0 | BP71: =IF(BO71,$F$22,0) -> 0 | BQ71: =IF(DE71>0,$F$23,0) -> 0 | BR71: 1974.783821 | BS71: =BR71/U71 -> 0.4537646649 | BT71: =+IF(BS71>=$L$3,$F$24,0) -> 0 | BU71: 162.2159926 | BV71: =IF(BU71>0,IF(BU71>=100,$F$25,IF(BU71<100,$F$25/2)),0) -> 1 | BW71: =SUM(DI71) -> 1.5 | BX71: =IF(OR(DK71>0,DL71>0),$F$27,0) -> 1 | BY71: =IF(DJ71>0,$F$28,0) -> 1 | BZ71: =IF(DN71>0,$F$29,0) -> 1 | CA71: =SUM(BM71,BP71,BV71,BQ71,BT71,BW71,BX71,BY71,BZ71) -> 6.5 | CB71: =+CA71*$H$21 -> 2.166666667 | CC71: =SUM(AS71,BI71,CA71) -> 37.55463336 | CD71: =SUM(AT71,BJ71,CB71) -> 12.51821112 | CE71: =IF(D71<($W$13*$CF$31),1,IF(D71<(($W$14+$W$13)*$CF$31),2,IF(D71<(($W$15+$W$13+$W$14)*$CF$31),3,4))) -> 1 | CL71: https://www.google.com/maps/@60.5969728521,27.1696393318,3a,75y,90t/data=!3m3!1e1!3m1!2e0 | CN71: 3 | CP71: 1 | CR71: 1 | CS71: 2 | CT71: 0 | CU71: 2 | CV71: 0 | CW71: 9 | CX71: 0 | CY71: 0 | CZ71: 0 | DC71: 1 | DE71: 0 | DG71: =IF(X71>$L$7,$F$26/2,0) -> 1.5 | DH71: =+IF(X71/V71>1.5,$F$26/2,0) -> 0 | DI71: =SUM(DG71:DH71) -> 1.5 | DJ71: 1 | DK71: 1 | DL71: 0 | DN71: 1 | DO71: 0 | DP71: 0.403137507 | DQ71: 0.6043894471 | DR71: 0.5147232141 | DS71: 0.2439366555 | DT71: =AVERAGE(DP71:DR71) -> 0.5074167227 | DV71: 135 | DW71: =D71 -> 33 | DX71: =DV71-DW71 -> 102 | DY71: 2 | DZ71: =H71 -> 1 | EA71: =DY71-DZ71 -> 1
A72: =CONCATENATE(P72,"_",Q72) -> 387_10 | B72: 2 | D72: =RANK(CD72,$CD$39:$CD$711) -> 34 | E72: 34 | F72: =E72-D72 -> 0 | G72: =CD72 -> 12.50444444 | H72: =CE72 -> 2 | I72: =B72-H72 -> 0 | J72: =HYPERLINK(CL72,"Gmaps") -> Gmaps | K72: =IF(V72>$L$5,"KESKI","VÄHÄ") -> KESKI | L72: =IF(P72<40,"Valta",IF(P72<100,"Kanta",IF(P72<1000,"Seutu",IF(P72>999,"Yhdys")))) -> Seutu | M72: Lappeenrannantie | N72: Miehikkälä | O72: Kymenlaakso | P72: 387 | Q72: 10 | R72: 0 | S72: 10 | T72: 2445 | U72: =T72-R72 -> 2445 | V72: 1207 | W72: 108 | X72: 1486 | Y72: 1207 (100 %) | Z72: 60 (71 %), 80 (29 %) | AA72: Is (100 %) | AB72: Asfalttibetoni (100 %) | AC72: PK2 (100 %) | AD72: 0 | AE72: 1 | AF72: 0 | AG72: 73 | AL72: =+IF(V72>=$L$5,$F$4,($F$4/($L$5))*V72) -> 9 | AM72: 0 | AN72: =+IF(AM72>=$M$14,$J$14,IF(AM72<($M$14),AM72*($J$14/($M$14)),)) -> 0 | AO72: 235 | AP72: =+IF(AO72>=$M$10,$J$10,IF(AO72<($M$10),AO72*($J$10/($M$10)),)) -> 1.566666667 | AQ72: =IF(CN72=0,"-",IF(CN72=1,"taksi",IF(CN72=2,"pikkubussi","bussi"))) -> bussi | AR72: =IF(CN72=0,0,IF(CN72<3,$F$7/2,$F$7)) -> 3 | AS72: =SUM(AL72,AN72,AP72,AR72) -> 13.56666667 | AT72: =+AS72*$H$4 -> 4.522222222 | AU72: =+IF(W72=0,0,IF(W72>$L$6,$F$9,($F$9/$L$6)*W72)) -> 9 | AV72: =IF(CP72>0,$F$10,0) -> 2 | AW72: =IF(CR72>0,$F$11,0) -> 1 | AX72: =IF(CS72>0,$F$12,0) -> 1 | AY72: =IF(CT72>0,$F$13,0) -> 0 | AZ72: =IF(CU72>0,$F$14,0) -> 1 | BA72: =+IF(CV72>=$M$22,$J$22,IF(CV72<($M$22),CV72*($J$22/($M$22)),)) -> 0.28 | BB72: =+IF(CW72>=$M$23,$J$23,IF(CW72<($M$23),CW72*($J$23/($M$23)),)) -> 0 | BC72: =+IF(CX72>=$M$24,$J$24,IF(CX72<($M$24),CX72*($J$24/($M$24)),)) -> 0 | BD72: =+IF(CY72>=$M$25,$J$25,IF(CY72<($M$25),CY72*($J$25/($M$25)),)) -> 0 | BE72: =IF(CZ72>0,$F$16,0) -> 0 | BF72: =+IF(DC72>=$M$28,$J$28,IF(DC72<($M$28),DC72*($J$28/($M$28)),)) -> 0.6666666667 | BG72: =IF(DO72>0,$F$18,0) -> 1 | BH72: =IF(COUNTIF($J$31:$M$31,TRUE)=0, 0, IF(SUMIF($J$31:$M$31,TRUE,DP72:DT72)/COUNTIF($J$31:$M$31,TRUE)>=$M$32, $F$19, $F$19*(SUMIF($J$31:$M$31,TRUE,DP72:DT72)/COUNTIF($J$31:$M$31,TRUE)/$M$32))) -> 2 | BI72: =SUM(AU72+AV72+AW72+AX72+AY72+AZ72+BE72+BA72+BB72+BC72+BD72+BF72+BG72+BH72) -> 17.94666667 | BJ72: =+BI72*$H$9 -> 5.982222222 | BK72: 0 | BL72: =BK72/U72 -> 0 | BM72: =IF(BL72>0,IF(BL72>=$M$18,$J$18,IF(BL72<$M$18,$J$19,0)),0) -> 0 | BN72: 2221.326706 | BO72: =BN72/U72 -> 0.9085180801 | BP72: =IF(BO72,$F$22,0) -> 1 | BQ72: =IF(DE72>0,$F$23,0) -> 0 | BR72: 0 | BS72: =BR72/U72 -> 0 | BT72: =+IF(BS72>=$L$3,$F$24,0) -> 0 | BU72: 39.37832311 | BV72: =IF(BU72>0,IF(BU72>=100,$F$25,IF(BU72<100,$F$25/2)),0) -> 0.5 | BW72: =SUM(DI72) -> 1.5 | BX72: =IF(OR(DK72>0,DL72>0),$F$27,0) -> 1 | BY72: =IF(DJ72>0,$F$28,0) -> 1 | BZ72: =IF(DN72>0,$F$29,0) -> 1 | CA72: =SUM(BM72,BP72,BV72,BQ72,BT72,BW72,BX72,BY72,BZ72) -> 6 | CB72: =+CA72*$H$21 -> 2 | CC72: =SUM(AS72,BI72,CA72) -> 37.51333333 | CD72: =SUM(AT72,BJ72,CB72) -> 12.50444444 | CE72: =IF(D72<($W$13*$CF$31),1,IF(D72<(($W$14+$W$13)*$CF$31),2,IF(D72<(($W$15+$W$13+$W$14)*$CF$31),3,4))) -> 2 | CL72: https://www.google.com/maps/@60.6605415365,27.8882637867,3a,75y,90t/data=!3m3!1e1!3m1!2e0 | CN72: 3 | CP72: 1 | CR72: 1 | CS72: 8 | CT72: 0 | CU72: 8 | CV72: 168 | CW72: 0 | CX72: 0 | CY72: 0 | CZ72: 0 | DC72: 2 | DE72: 0 | DG72: =IF(X72>$L$7,$F$26/2,0) -> 1.5 | DH72: =+IF(X72/V72>1.5,$F$26/2,0) -> 0 | DI72: =SUM(DG72:DH72) -> 1.5 | DJ72: 4 | DK72: 0 | DL72: 1 | DN72: 1 | DO72: 1 | DP72: 5.848686909 | DQ72: 7.417594241 | DR72: 6.868376167 | DS72: 3.040640835 | DT72: =AVERAGE(DP72:DR72) -> 6.711552439 | DV72: 32 | DW72: =D72 -> 34 | DX72: =DV72-DW72 -> -2 | DY72: 1 | DZ72: =H72 -> 2 | EA72: =DY72-DZ72 -> -1
A73: =CONCATENATE(P73,"_",Q73) -> 387_9 | B73: 2 | D73: =RANK(CD73,$CD$39:$CD$711) -> 35 | E73: 35 | F73: =E73-D73 -> 0 | G73: =CD73 -> 12.50222222 | H73: =CE73 -> 2 | I73: =B73-H73 -> 0 | J73: =HYPERLINK(CL73,"Gmaps") -> Gmaps | K73: =IF(V73>$L$5,"KESKI","VÄHÄ") -> KESKI | L73: =IF(P73<40,"Valta",IF(P73<100,"Kanta",IF(P73<1000,"Seutu",IF(P73>999,"Yhdys")))) -> Seutu | M73: Lappeenrannantie, Vaalimaantie | N73: Lappeenranta, Miehikkälä | O73: Etelä-Karjala, Kymenlaakso | P73: 387 | Q73: 9 | R73: 0 | S73: 9 | T73: 7428 | U73: =T73-R73 -> 7428 | V73: 1077 | W73: 87 | X73: 1326 | Y73: 1077 (100 %) | Z73: 60 (28 %), 80 (72 %) | AA73: Is (100 %) | AB73: Asfalttibetoni (100 %) | AC73: PK2 (100 %) | AD73: 0 | AE73: 2 | AF73: 0 | AG73: 65 | AL73: =+IF(V73>=$L$5,$F$4,($F$4/($L$5))*V73) -> 9 | AM73: 0 | AN73: =+IF(AM73>=$M$14,$J$14,IF(AM73<($M$14),AM73*($J$14/($M$14)),)) -> 0 | AO73: 234 | AP73: =+IF(AO73>=$M$10,$J$10,IF(AO73<($M$10),AO73*($J$10/($M$10)),)) -> 1.56 | AQ73: =IF(CN73=0,"-",IF(CN73=1,"taksi",IF(CN73=2,"pikkubussi","bussi"))) -> bussi | AR73: =IF(CN73=0,0,IF(CN73<3,$F$7/2,$F$7)) -> 3 | AS73: =SUM(AL73,AN73,AP73,AR73) -> 13.56 | AT73: =+AS73*$H$4 -> 4.52 | AU73: =+IF(W73=0,0,IF(W73>$L$6,$F$9,($F$9/$L$6)*W73)) -> 9 | AV73: =IF(CP73>0,$F$10,0) -> 2 | AW73: =IF(CR73>0,$F$11,0) -> 1 | AX73: =IF(CS73>0,$F$12,0) -> 1 | AY73: =IF(CT73>0,$F$13,0) -> 0 | AZ73: =IF(CU73>0,$F$14,0) -> 1 | BA73: =+IF(CV73>=$M$22,$J$22,IF(CV73<($M$22),CV73*($J$22/($M$22)),)) -> 0.28 | BB73: =+IF(CW73>=$M$23,$J$23,IF(CW73<($M$23),CW73*($J$23/($M$23)),)) -> 0 | BC73: =+IF(CX73>=$M$24,$J$24,IF(CX73<($M$24),CX73*($J$24/($M$24)),)) -> 0 | BD73: =+IF(CY73>=$M$25,$J$25,IF(CY73<($M$25),CY73*($J$25/($M$25)),)) -> 0 | BE73: =IF(CZ73>0,$F$16,0) -> 0 | BF73: =+IF(DC73>=$M$28,$J$28,IF(DC73<($M$28),DC73*($J$28/($M$28)),)) -> 0.6666666667 | BG73: =IF(DO73>0,$F$18,0) -> 1 | BH73: =IF(COUNTIF($J$31:$M$31,TRUE)=0, 0, IF(SUMIF($J$31:$M$31,TRUE,DP73:DT73)/COUNTIF($J$31:$M$31,TRUE)>=$M$32, $F$19, $F$19*(SUMIF($J$31:$M$31,TRUE,DP73:DT73)/COUNTIF($J$31:$M$31,TRUE)/$M$32))) -> 2 | BI73: =SUM(AU73+AV73+AW73+AX73+AY73+AZ73+BE73+BA73+BB73+BC73+BD73+BF73+BG73+BH73) -> 17.94666667 | BJ73: =+BI73*$H$9 -> 5.982222222 | BK73: 0 | BL73: =BK73/U73 -> 0 | BM73: =IF(BL73>0,IF(BL73>=$M$18,$J$18,IF(BL73<$M$18,$J$19,0)),0) -> 0 | BN73: 5275.052749 | BO73: =BN73/U73 -> 0.7101578821 | BP73: =IF(BO73,$F$22,0) -> 1 | BQ73: =IF(DE73>0,$F$23,0) -> 0 | BR73: 0 | BS73: =BR73/U73 -> 0 | BT73: =+IF(BS73>=$L$3,$F$24,0) -> 0 | BU73: 6.946688207 | BV73: =IF(BU73>0,IF(BU73>=100,$F$25,IF(BU73<100,$F$25/2)),0) -> 0.5 | BW73: =SUM(DI73) -> 1.5 | BX73: =IF(OR(DK73>0,DL73>0),$F$27,0) -> 1 | BY73: =IF(DJ73>0,$F$28,0) -> 1 | BZ73: =IF(DN73>0,$F$29,0) -> 1 | CA73: =SUM(BM73,BP73,BV73,BQ73,BT73,BW73,BX73,BY73,BZ73) -> 6 | CB73: =+CA73*$H$21 -> 2 | CC73: =SUM(AS73,BI73,CA73) -> 37.50666667 | CD73: =SUM(AT73,BJ73,CB73) -> 12.50222222 | CE73: =IF(D73<($W$13*$CF$31),1,IF(D73<(($W$14+$W$13)*$CF$31),2,IF(D73<(($W$15+$W$13+$W$14)*$CF$31),3,4))) -> 2 | CL73: https://www.google.com/maps/@60.7127695411,27.9509822876,3a,75y,90t/data=!3m3!1e1!3m1!2e0 | CN73: 3 | CP73: 2 | CR73: 1 | CS73: 8 | CT73: 0 | CU73: 8 | CV73: 168 | CW73: 0 | CX73: 0 | CY73: 0 | CZ73: 0 | DC73: 2 | DE73: 0 | DG73: =IF(X73>$L$7,$F$26/2,0) -> 1.5 | DH73: =+IF(X73/V73>1.5,$F$26/2,0) -> 0 | DI73: =SUM(DG73:DH73) -> 1.5 | DJ73: 4 | DK73: 1 | DL73: 1 | DN73: 1 | DO73: 1 | DP73: 6.123734275 | DQ73: 7.049086212 | DR73: 6.615908425 | DS73: 2.988320555 | DT73: =AVERAGE(DP73:DR73) -> 6.596242971 | DV73: 30 | DW73: =D73 -> 35 | DX73: =DV73-DW73 -> -5 | DY73: 1 | DZ73: =H73 -> 2 | EA73: =DY73-DZ73 -> -1
A74: =CONCATENATE(P74,"_",Q74) -> 365_1 | B74: 2 | D74: =RANK(CD74,$CD$39:$CD$711) -> 36 | E74: 36 | F74: =E74-D74 -> 0 | G74: =CD74 -> 12.5 | H74: =CE74 -> 2 | I74: =B74-H74 -> 0 | J74: =HYPERLINK(CL74,"Gmaps") -> Gmaps | K74: =IF(V74>$L$5,"KESKI","VÄHÄ") -> KESKI | L74: =IF(P74<40,"Valta",IF(P74<100,"Kanta",IF(P74<1000,"Seutu",IF(P74>999,"Yhdys")))) -> Seutu | M74: Helsingintie | N74: Kouvola | O74: Kymenlaakso | P74: 365 | Q74: 1 | R74: 0 | S74: 1 | T74: 2195 | U74: =T74-R74 -> 2195 | V74: 4807 | W74: 256 | X74: 5288 | Y74: 4807 (100 %) | Z74: 50 (3 %), 70 (97 %), 80 (1 %) | AA74: Is (100 %) | AB74: Asfalttibetoni (3 %), Kivimastiksiasfaltti (98 %) | AC74: PK2 (100 %) | AD74: 0 | AE74: 4 | AF74: 0 | AG74: 119 | AL74: =+IF(V74>=$L$5,$F$4,($F$4/($L$5))*V74) -> 9 | AM74: 0 | AN74: =+IF(AM74>=$M$14,$J$14,IF(AM74<($M$14),AM74*($J$14/($M$14)),)) -> 0 | AO74: 2053 | AP74: =+IF(AO74>=$M$10,$J$10,IF(AO74<($M$10),AO74*($J$10/($M$10)),)) -> 2 | AQ74: =IF(CN74=0,"-",IF(CN74=1,"taksi",IF(CN74=2,"pikkubussi","bussi"))) -> bussi | AR74: =IF(CN74=0,0,IF(CN74<3,$F$7/2,$F$7)) -> 3 | AS74: =SUM(AL74,AN74,AP74,AR74) -> 14 | AT74: =+AS74*$H$4 -> 4.666666667 | AU74: =+IF(W74=0,0,IF(W74>$L$6,$F$9,($F$9/$L$6)*W74)) -> 9 | AV74: =IF(CP74>0,$F$10,0) -> 2 | AW74: =IF(CR74>0,$F$11,0) -> 1 | AX74: =IF(CS74>0,$F$12,0) -> 0 | AY74: =IF(CT74>0,$F$13,0) -> 0 | AZ74: =IF(CU74>0,$F$14,0) -> 1 | BA74: =+IF(CV74>=$M$22,$J$22,IF(CV74<($M$22),CV74*($J$22/($M$22)),)) -> 0 | BB74: =+IF(CW74>=$M$23,$J$23,IF(CW74<($M$23),CW74*($J$23/($M$23)),)) -> 0 | BC74: =+IF(CX74>=$M$24,$J$24,IF(CX74<($M$24),CX74*($J$24/($M$24)),)) -> 0 | BD74: =+IF(CY74>=$M$25,$J$25,IF(CY74<($M$25),CY74*($J$25/($M$25)),)) -> 0 | BE74: =IF(CZ74>0,$F$16,0) -> 0 | BF74: =+IF(DC74>=$M$28,$J$28,IF(DC74<($M$28),DC74*($J$28/($M$28)),)) -> 1 | BG74: =IF(DO74>0,$F$18,0) -> 1 | BH74: =IF(COUNTIF($J$31:$M$31,TRUE)=0, 0, IF(SUMIF($J$31:$M$31,TRUE,DP74:DT74)/COUNTIF($J$31:$M$31,TRUE)>=$M$32, $F$19, $F$19*(SUMIF($J$31:$M$31,TRUE,DP74:DT74)/COUNTIF($J$31:$M$31,TRUE)/$M$32))) -> 2 | BI74: =SUM(AU74+AV74+AW74+AX74+AY74+AZ74+BE74+BA74+BB74+BC74+BD74+BF74+BG74+BH74) -> 17 | BJ74: =+BI74*$H$9 -> 5.666666667 | BK74: 519.6650039 | BL74: =BK74/U74 -> 0.2367494323 | BM74: =IF(BL74>0,IF(BL74>=$M$18,$J$18,IF(BL74<$M$18,$J$19,0)),0) -> 0.5 | BN74: 2167.897306 | BO74: =BN74/U74 -> 0.9876525311 | BP74: =IF(BO74,$F$22,0) -> 1 | BQ74: =IF(DE74>0,$F$23,0) -> 1 | BR74: 1812.294546 | BS74: =BR74/U74 -> 0.8256467178 | BT74: =+IF(BS74>=$L$3,$F$24,0) -> 1 | BU74: 83.14350797 | BV74: =IF(BU74>0,IF(BU74>=100,$F$25,IF(BU74<100,$F$25/2)),0) -> 0.5 | BW74: =SUM(DI74) -> 1.5 | BX74: =IF(OR(DK74>0,DL74>0),$F$27,0) -> 0 | BY74: =IF(DJ74>0,$F$28,0) -> 0 | BZ74: =IF(DN74>0,$F$29,0) -> 1 | CA74: =SUM(BM74,BP74,BV74,BQ74,BT74,BW74,BX74,BY74,BZ74) -> 6.5 | CB74: =+CA74*$H$21 -> 2.166666667 | CC74: =SUM(AS74,BI74,CA74) -> 37.5 | CD74: =SUM(AT74,BJ74,CB74) -> 12.5 | CE74: =IF(D74<($W$13*$CF$31),1,IF(D74<(($W$14+$W$13)*$CF$31),2,IF(D74<(($W$15+$W$13+$W$14)*$CF$31),3,4))) -> 2 | CL74: https://www.google.com/maps/@60.8743352948,26.6031101268,3a,75y,90t/data=!3m3!1e1!3m1!2e0 | CN74: 3 | CP74: 1 | CR74: 2 | CS74: 0 | CT74: 0 | CU74: 3 | CV74: 0 | CW74: 0 | CX74: 0 | CY74: 0 | CZ74: 0 | DC74: 8 | DE74: 3 | DG74: =IF(X74>$L$7,$F$26/2,0) -> 1.5 | DH74: =+IF(X74/V74>1.5,$F$26/2,0) -> 0 | DI74: =SUM(DG74:DH74) -> 1.5 | DJ74: 0 | DK74: 0 | DL74: 0 | DN74: 1 | DO74: 4 | DP74: 19.89301593 | DQ74: 45.24987146 | DR74: 16.79080772 | DS74: 7.526342577 | DT74: =AVERAGE(DP74:DR74) -> 27.3112317 | DV74: 24 | DW74: =D74 -> 36 | DX74: =DV74-DW74 -> -12 | DY74: 1 | DZ74: =H74 -> 2 | EA74: =DY74-DZ74 -> -1
A75: =CONCATENATE(P75,"_",Q75) -> 170_33 | B75: 2 | D75: =RANK(CD75,$CD$39:$CD$711) -> 37 | E75: 37 | F75: =E75-D75 -> 0 | G75: =CD75 -> 12.47203912 | H75: =CE75 -> 2 | I75: =B75-H75 -> 0 | J75: =HYPERLINK(CL75,"Gmaps") -> Gmaps | K75: =IF(V75>$L$5,"KESKI","VÄHÄ") -> KESKI | L75: =IF(P75<40,"Valta",IF(P75<100,"Kanta",IF(P75<1000,"Seutu",IF(P75>999,"Yhdys")))) -> Seutu | M75: Mt 170 | N75: Hamina | O75: Kymenlaakso | P75: 170 | Q75: 33 | R75: 0 | S75: 33 | T75: 2749 | U75: =T75-R75 -> 2749 | V75: 8221.618043 | W75: 585.463805 | X75: 8563.800655 | Y75: 7712 (30 %), 8436 (70 %) | Z75: 50 (2 %), 60 (33 %), 80 (65 %) | AA75: Is (100 %) | AB75: Kivimastiksiasfaltti (100 %) | AC75: PK2 (98 %) | AD75: 0 | AE75: 2 | AF75: 0.04380791912 | AG75: 317.6144052 | AL75: =+IF(V75>=$L$5,$F$4,($F$4/($L$5))*V75) -> 9 | AM75: 66 | AN75: =+IF(AM75>=$M$14,$J$14,IF(AM75<($M$14),AM75*($J$14/($M$14)),)) -> 3 | AO75: 3268 | AP75: =+IF(AO75>=$M$10,$J$10,IF(AO75<($M$10),AO75*($J$10/($M$10)),)) -> 2 | AQ75: =IF(CN75=0,"-",IF(CN75=1,"taksi",IF(CN75=2,"pikkubussi","bussi"))) -> bussi | AR75: =IF(CN75=0,0,IF(CN75<3,$F$7/2,$F$7)) -> 3 | AS75: =SUM(AL75,AN75,AP75,AR75) -> 17 | AT75: =+AS75*$H$4 -> 5.666666667 | AU75: =+IF(W75=0,0,IF(W75>$L$6,$F$9,($F$9/$L$6)*W75)) -> 9 | AV75: =IF(CP75>0,$F$10,0) -> 0 | AW75: =IF(CR75>0,$F$11,0) -> 1 | AX75: =IF(CS75>0,$F$12,0) -> 1 | AY75: =IF(CT75>0,$F$13,0) -> 0 | AZ75: =IF(CU75>0,$F$14,0) -> 0 | BA75: =+IF(CV75>=$M$22,$J$22,IF(CV75<($M$22),CV75*($J$22/($M$22)),)) -> 0 | BB75: =+IF(CW75>=$M$23,$J$23,IF(CW75<($M$23),CW75*($J$23/($M$23)),)) -> 0 | BC75: =+IF(CX75>=$M$24,$J$24,IF(CX75<($M$24),CX75*($J$24/($M$24)),)) -> 0 | BD75: =+IF(CY75>=$M$25,$J$25,IF(CY75<($M$25),CY75*($J$25/($M$25)),)) -> 0 | BE75: =IF(CZ75>0,$F$16,0) -> 0 | BF75: =+IF(DC75>=$M$28,$J$28,IF(DC75<($M$28),DC75*($J$28/($M$28)),)) -> 1 | BG75: =IF(DO75>0,$F$18,0) -> 1 | BH75: =IF(COUNTIF($J$31:$M$31,TRUE)=0, 0, IF(SUMIF($J$31:$M$31,TRUE,DP75:DT75)/COUNTIF($J$31:$M$31,TRUE)>=$M$32, $F$19, $F$19*(SUMIF($J$31:$M$31,TRUE,DP75:DT75)/COUNTIF($J$31:$M$31,TRUE)/$M$32))) -> 0.9161173743 | BI75: =SUM(AU75+AV75+AW75+AX75+AY75+AZ75+BE75+BA75+BB75+BC75+BD75+BF75+BG75+BH75) -> 13.91611737 | BJ75: =+BI75*$H$9 -> 4.638705791 | BK75: 2746.930577 | BL75: =BK75/U75 -> 0.9992472087 | BM75: =IF(BL75>0,IF(BL75>=$M$18,$J$18,IF(BL75<$M$18,$J$19,0)),0) -> 1 | BN75: 0 | BO75: =BN75/U75 -> 0 | BP75: =IF(BO75,$F$22,0) -> 0 | BQ75: =IF(DE75>0,$F$23,0) -> 1 | BR75: 2746.930577 | BS75: =BR75/U75 -> 0.9992472087 | BT75: =+IF(BS75>=$L$3,$F$24,0) -> 1 | BU75: 419.4252455 | BV75: =IF(BU75>0,IF(BU75>=100,$F$25,IF(BU75<100,$F$25/2)),0) -> 1 | BW75: =SUM(DI75) -> 1.5 | BX75: =IF(OR(DK75>0,DL75>0),$F$27,0) -> 0 | BY75: =IF(DJ75>0,$F$28,0) -> 0 | BZ75: =IF(DN75>0,$F$29,0) -> 1 | CA75: =SUM(BM75,BP75,BV75,BQ75,BT75,BW75,BX75,BY75,BZ75) -> 6.5 | CB75: =+CA75*$H$21 -> 2.166666667 | CC75: =SUM(AS75,BI75,CA75) -> 37.41611737 | CD75: =SUM(AT75,BJ75,CB75) -> 12.47203912 | CE75: =IF(D75<($W$13*$CF$31),1,IF(D75<(($W$14+$W$13)*$CF$31),2,IF(D75<(($W$15+$W$13+$W$14)*$CF$31),3,4))) -> 2 | CL75: https://www.google.com/maps/@60.5696985002,27.1261942752,3a,75y,90t/data=!3m3!1e1!3m1!2e0 | CN75: 3 | CP75: 0 | CR75: 4 | CS75: 1 | CT75: 0 | CU75: 0 | CV75: 0 | CW75: 0 | CX75: 0 | CY75: 0 | CZ75: 0 | DC75: 17 | DE75: 2 | DG75: =IF(X75>$L$7,$F$26/2,0) -> 1.5 | DH75: =+IF(X75/V75>1.5,$F$26/2,0) -> 0 | DI75: =SUM(DG75:DH75) -> 1.5 | DJ75: 0 | DK75: 0 | DL75: 0 | DN75: 1 | DO75: 3 | DP75: 2.2789378 | DQ75: 2.223567353 | DR75: 2.368375154 | DS75: 1.382567694 | DT75: =AVERAGE(DP75:DR75) -> 2.290293436 | DV75: 37 | DW75: =D75 -> 37 | DX75: =DV75-DW75 -> 0 | DY75: 2 | DZ75: =H75 -> 2 | EA75: =DY75-DZ75 -> 0
A76: =CONCATENATE(P76,"_",Q76) -> 3573_1 | B76: 2 | D76: =RANK(CD76,$CD$39:$CD$711) -> 38 | E76: 38 | F76: =E76-D76 -> 0 | G76: =CD76 -> 12.47179824 | H76: =CE76 -> 2 | I76: =B76-H76 -> 0 | J76: =HYPERLINK(CL76,"Gmaps") -> Gmaps | K76: =IF(V76>$L$5,"KESKI","VÄHÄ") -> KESKI | L76: =IF(P76<40,"Valta",IF(P76<100,"Kanta",IF(P76<1000,"Seutu",IF(P76>999,"Yhdys")))) -> Yhdys | M76: Kymintie | N76: Kotka | O76: Kymenlaakso | P76: 3573 | Q76: 1 | R76: 0 | S76: 1 | T76: 3921 | U76: =T76-R76 -> 3921 | V76: 3489.123253 | W76: 116.3100381 | X76: 4215.121982 | Y76: 2710 (49 %), 4224 (50 %) | Z76: 40 (29 %), 50 (49 %), 60 (1 %) | AA76: Is (79 %) | AB76: Asfalttibetoni (78 %), Epäjatkuva asfaltti (Poistunut käytöstä) (0 %) | AC76: PK2 (75 %) | AD76: 1 | AE76: 2 | AF76: 0 | AG76: 23.0292249 | AL76: =+IF(V76>=$L$5,$F$4,($F$4/($L$5))*V76) -> 9 | AM76: 134 | AN76: =+IF(AM76>=$M$14,$J$14,IF(AM76<($M$14),AM76*($J$14/($M$14)),)) -> 3 | AO76: 683 | AP76: =+IF(AO76>=$M$10,$J$10,IF(AO76<($M$10),AO76*($J$10/($M$10)),)) -> 2 | AQ76: =IF(CN76=0,"-",IF(CN76=1,"taksi",IF(CN76=2,"pikkubussi","bussi"))) -> bussi | AR76: =IF(CN76=0,0,IF(CN76<3,$F$7/2,$F$7)) -> 3 | AS76: =SUM(AL76,AN76,AP76,AR76) -> 17 | AT76: =+AS76*$H$4 -> 5.666666667 | AU76: =+IF(W76=0,0,IF(W76>$L$6,$F$9,($F$9/$L$6)*W76)) -> 9 | AV76: =IF(CP76>0,$F$10,0) -> 0 | AW76: =IF(CR76>0,$F$11,0) -> 0 | AX76: =IF(CS76>0,$F$12,0) -> 0 | AY76: =IF(CT76>0,$F$13,0) -> 0 | AZ76: =IF(CU76>0,$F$14,0) -> 1 | BA76: =+IF(CV76>=$M$22,$J$22,IF(CV76<($M$22),CV76*($J$22/($M$22)),)) -> 0 | BB76: =+IF(CW76>=$M$23,$J$23,IF(CW76<($M$23),CW76*($J$23/($M$23)),)) -> 0 | BC76: =+IF(CX76>=$M$24,$J$24,IF(CX76<($M$24),CX76*($J$24/($M$24)),)) -> 0 | BD76: =+IF(CY76>=$M$25,$J$25,IF(CY76<($M$25),CY76*($J$25/($M$25)),)) -> 0 | BE76: =IF(CZ76>0,$F$16,0) -> 0 | BF76: =+IF(DC76>=$M$28,$J$28,IF(DC76<($M$28),DC76*($J$28/($M$28)),)) -> 0.6666666667 | BG76: =IF(DO76>0,$F$18,0) -> 1 | BH76: =IF(COUNTIF($J$31:$M$31,TRUE)=0, 0, IF(SUMIF($J$31:$M$31,TRUE,DP76:DT76)/COUNTIF($J$31:$M$31,TRUE)>=$M$32, $F$19, $F$19*(SUMIF($J$31:$M$31,TRUE,DP76:DT76)/COUNTIF($J$31:$M$31,TRUE)/$M$32))) -> 0.2487280413 | BI76: =SUM(AU76+AV76+AW76+AX76+AY76+AZ76+BE76+BA76+BB76+BC76+BD76+BF76+BG76+BH76) -> 11.91539471 | BJ76: =+BI76*$H$9 -> 3.971798236 | BK76: 3094.327172 | BL76: =BK76/U76 -> 0.7891678583 | BM76: =IF(BL76>0,IF(BL76>=$M$18,$J$18,IF(BL76<$M$18,$J$19,0)),0) -> 1 | BN76: 3094.327172 | BO76: =BN76/U76 -> 0.7891678583 | BP76: =IF(BO76,$F$22,0) -> 1 | BQ76: =IF(DE76>0,$F$23,0) -> 0 | BR76: 2493.767694 | BS76: =BR76/U76 -> 0.6360029825 | BT76: =+IF(BS76>=$L$3,$F$24,0) -> 1 | BU76: 312.2642183 | BV76: =IF(BU76>0,IF(BU76>=100,$F$25,IF(BU76<100,$F$25/2)),0) -> 1 | BW76: =SUM(DI76) -> 1.5 | BX76: =IF(OR(DK76>0,DL76>0),$F$27,0) -> 1 | BY76: =IF(DJ76>0,$F$28,0) -> 1 | BZ76: =IF(DN76>0,$F$29,0) -> 1 | CA76: =SUM(BM76,BP76,BV76,BQ76,BT76,BW76,BX76,BY76,BZ76) -> 8.5 | CB76: =+CA76*$H$21 -> 2.833333333 | CC76: =SUM(AS76,BI76,CA76) -> 37.41539471 | CD76: =SUM(AT76,BJ76,CB76) -> 12.47179824 | CE76: =IF(D76<($W$13*$CF$31),1,IF(D76<(($W$14+$W$13)*$CF$31),2,IF(D76<(($W$15+$W$13+$W$14)*$CF$31),3,4))) -> 2 | CL76: https://www.google.com/maps/@60.5069891837,26.8975583906,3a,75y,90t/data=!3m3!1e1!3m1!2e0 | CN76: 3 | CP76: 0 | CR76: 0 | CS76: 0 | CT76: 0 | CU76: 2 | CV76: 0 | CW76: 0 | CX76: 0 | CY76: 0 | CZ76: 0 | DC76: 2 | DE76: 0 | DG76: =IF(X76>$L$7,$F$26/2,0) -> 1.5 | DH76: =+IF(X76/V76>1.5,$F$26/2,0) -> 0 | DI76: =SUM(DG76:DH76) -> 1.5 | DJ76: 1 | DK76: 1 | DL76: 0 | DN76: 1 | DO76: 1 | DP76: 0.7780549124 | DQ76: 0.7118076371 | DR76: 0.3755977599 | DS76: 0.2070200604 | DT76: =AVERAGE(DP76:DR76) -> 0.6218201031 | DV76: 106 | DW76: =D76 -> 38 | DX76: =DV76-DW76 -> 68 | DY76: 2 | DZ76: =H76 -> 2 | EA76: =DY76-DZ76 -> 0
A77: =CONCATENATE(P77,"_",Q77) -> 3513_7 | B77: 2 | D77: =RANK(CD77,$CD$39:$CD$711) -> 39 | E77: 39 | F77: =E77-D77 -> 0 | G77: =CD77 -> 12.32667734 | H77: =CE77 -> 2 | I77: =B77-H77 -> 0 | J77: =HYPERLINK(CL77,"Gmaps") -> Gmaps | K77: =IF(V77>$L$5,"KESKI","VÄHÄ") -> KESKI | L77: =IF(P77<40,"Valta",IF(P77<100,"Kanta",IF(P77<1000,"Seutu",IF(P77>999,"Yhdys")))) -> Yhdys | M77: Museotie, Virojoentie | N77: Virolahti | O77: Kymenlaakso | P77: 3513 | Q77: 7 | R77: 0 | S77: 7 | T77: 5439 | U77: =T77-R77 -> 5439 | V77: 929.0838389 | W77: 38.16620702 | X77: 1253.421769 | Y77: 744 (67 %), 1177 (28 %), 2027 (5 %) | Z77: 40 (29 %), 50 (21 %), 60 (45 %), 80 (5 %) | AA77: Ic (100 %) | AB77: Asfalttibetoni (46 %), Pehmeät asfalttibetonit (PAB-B) (54 %) | AC77: PK3 (99 %) | AD77: 0 | AE77: 0 | AF77: 0.05515719801 | AG77: 5.465342894 | AI77: Virojoen silta (KaS-27) | AL77: =+IF(V77>=$L$5,$F$4,($F$4/($L$5))*V77) -> 9 | AM77: 14 | AN77: =+IF(AM77>=$M$14,$J$14,IF(AM77<($M$14),AM77*($J$14/($M$14)),)) -> 3 | AO77: 405 | AP77: =+IF(AO77>=$M$10,$J$10,IF(AO77<($M$10),AO77*($J$10/($M$10)),)) -> 2 | AQ77: =IF(CN77=0,"-",IF(CN77=1,"taksi",IF(CN77=2,"pikkubussi","bussi"))) -> bussi | AR77: =IF(CN77=0,0,IF(CN77<3,$F$7/2,$F$7)) -> 3 | AS77: =SUM(AL77,AN77,AP77,AR77) -> 17 | AT77: =+AS77*$H$4 -> 5.666666667 | AU77: =+IF(W77=0,0,IF(W77>$L$6,$F$9,($F$9/$L$6)*W77)) -> 6.869917264 | AV77: =IF(CP77>0,$F$10,0) -> 2 | AW77: =IF(CR77>0,$F$11,0) -> 0 | AX77: =IF(CS77>0,$F$12,0) -> 1 | AY77: =IF(CT77>0,$F$13,0) -> 0 | AZ77: =IF(CU77>0,$F$14,0) -> 1 | BA77: =+IF(CV77>=$M$22,$J$22,IF(CV77<($M$22),CV77*($J$22/($M$22)),)) -> 0.05166666667 | BB77: =+IF(CW77>=$M$23,$J$23,IF(CW77<($M$23),CW77*($J$23/($M$23)),)) -> 0 | BC77: =+IF(CX77>=$M$24,$J$24,IF(CX77<($M$24),CX77*($J$24/($M$24)),)) -> 0 | BD77: =+IF(CY77>=$M$25,$J$25,IF(CY77<($M$25),CY77*($J$25/($M$25)),)) -> 0 | BE77: =IF(CZ77>0,$F$16,0) -> 1 | BF77: =+IF(DC77>=$M$28,$J$28,IF(DC77<($M$28),DC77*($J$28/($M$28)),)) -> 0.3333333333 | BG77: =IF(DO77>0,$F$18,0) -> 1 | BH77: =IF(COUNTIF($J$31:$M$31,TRUE)=0, 0, IF(SUMIF($J$31:$M$31,TRUE,DP77:DT77)/COUNTIF($J$31:$M$31,TRUE)>=$M$32, $F$19, $F$19*(SUMIF($J$31:$M$31,TRUE,DP77:DT77)/COUNTIF($J$31:$M$31,TRUE)/$M$32))) -> 0.2251147589 | BI77: =SUM(AU77+AV77+AW77+AX77+AY77+AZ77+BE77+BA77+BB77+BC77+BD77+BF77+BG77+BH77) -> 13.48003202 | BJ77: =+BI77*$H$9 -> 4.493344008 | BK77: 3926.354564 | BL77: =BK77/U77 -> 0.721889054 | BM77: =IF(BL77>0,IF(BL77>=$M$18,$J$18,IF(BL77<$M$18,$J$19,0)),0) -> 1 | BN77: 0 | BO77: =BN77/U77 -> 0 | BP77: =IF(BO77,$F$22,0) -> 0 | BQ77: =IF(DE77>0,$F$23,0) -> 0 | BR77: 3393.979358 | BS77: =BR77/U77 -> 0.6240079718 | BT77: =+IF(BS77>=$L$3,$F$24,0) -> 1 | BU77: 165.564442 | BV77: =IF(BU77>0,IF(BU77>=100,$F$25,IF(BU77<100,$F$25/2)),0) -> 1 | BW77: =SUM(DI77) -> 1.5 | BX77: =IF(OR(DK77>0,DL77>0),$F$27,0) -> 1 | BY77: =IF(DJ77>0,$F$28,0) -> 0 | BZ77: =IF(DN77>0,$F$29,0) -> 1 | CA77: =SUM(BM77,BP77,BV77,BQ77,BT77,BW77,BX77,BY77,BZ77) -> 6.5 | CB77: =+CA77*$H$21 -> 2.166666667 | CC77: =SUM(AS77,BI77,CA77) -> 36.98003202 | CD77: =SUM(AT77,BJ77,CB77) -> 12.32667734 | CE77: =IF(D77<($W$13*$CF$31),1,IF(D77<(($W$14+$W$13)*$CF$31),2,IF(D77<(($W$15+$W$13+$W$14)*$CF$31),3,4))) -> 2 | CL77: https://www.google.com/maps/@60.5517163126,27.6738547215,3a,75y,90t/data=!3m3!1e1!3m1!2e0 | CN77: 3 | CP77: 1 | CR77: 0 | CS77: 4 | CT77: 0 | CU77: 7 | CV77: 31 | CW77: 0 | CX77: 0 | CY77: 0 | CZ77: 3 | DC77: 1 | DE77: 0 | DG77: =IF(X77>$L$7,$F$26/2,0) -> 1.5 | DH77: =+IF(X77/V77>1.5,$F$26/2,0) -> 0 | DI77: =SUM(DG77:DH77) -> 1.5 | DJ77: 0 | DK77: 1 | DL77: 0 | DN77: 1 | DO77: 1 | DP77: 0.7191453812 | DQ77: 0.4054851419 | DR77: 0.5637301685 | DS77: 0.1318689491 | DT77: =AVERAGE(DP77:DR77) -> 0.5627868972 | DV77: 54 | DW77: =D77 -> 39 | DX77: =DV77-DW77 -> 15 | DY77: 2 | DZ77: =H77 -> 2 | EA77: =DY77-DZ77 -> 0
A78: =CONCATENATE(P78,"_",Q78) -> 3593_1 | B78: 2 | D78: =RANK(CD78,$CD$39:$CD$711) -> 40 | E78: 40 | F78: =E78-D78 -> 0 | G78: =CD78 -> 12.29030526 | H78: =CE78 -> 2 | I78: =B78-H78 -> 0 | J78: =HYPERLINK(CL78,"Gmaps") -> Gmaps | K78: =IF(V78>$L$5,"KESKI","VÄHÄ") -> KESKI | L78: =IF(P78<40,"Valta",IF(P78<100,"Kanta",IF(P78<1000,"Seutu",IF(P78>999,"Yhdys")))) -> Yhdys | M78: Jokisillantie | N78: Kouvola | O78: Kymenlaakso | P78: 3593 | Q78: 1 | R78: 974 | S78: 1 | T78: 8506 | U78: =T78-R78 -> 7532 | V78: 2619.194238 | W78: 79.04925651 | X78: 2841.55855 | Y78: 2578 (96 %), 3563 (4 %) | Z78: 50 (7 %), 60 (93 %) | AA78: Is (100 %) | AB78: Asfalttibetoni (100 %) | AC78: PK2 (100 %) | AD78: 5 | AE78: 11 | AF78: 0.01327668614 | AG78: 6.920074349 | AL78: =+IF(V78>=$L$5,$F$4,($F$4/($L$5))*V78) -> 9 | AM78: 0 | AN78: =+IF(AM78>=$M$14,$J$14,IF(AM78<($M$14),AM78*($J$14/($M$14)),)) -> 0 | AO78: 650 | AP78: =+IF(AO78>=$M$10,$J$10,IF(AO78<($M$10),AO78*($J$10/($M$10)),)) -> 2 | AQ78: =IF(CN78=0,"-",IF(CN78=1,"taksi",IF(CN78=2,"pikkubussi","bussi"))) -> bussi | AR78: =IF(CN78=0,0,IF(CN78<3,$F$7/2,$F$7)) -> 3 | AS78: =SUM(AL78,AN78,AP78,AR78) -> 14 | AT78: =+AS78*$H$4 -> 4.666666667 | AU78: =+IF(W78=0,0,IF(W78>$L$6,$F$9,($F$9/$L$6)*W78)) -> 9 | AV78: =IF(CP78>0,$F$10,0) -> 2 | AW78: =IF(CR78>0,$F$11,0) -> 1 | AX78: =IF(CS78>0,$F$12,0) -> 1 | AY78: =IF(CT78>0,$F$13,0) -> 0 | AZ78: =IF(CU78>0,$F$14,0) -> 1 | BA78: =+IF(CV78>=$M$22,$J$22,IF(CV78<($M$22),CV78*($J$22/($M$22)),)) -> 0.1433333333 | BB78: =+IF(CW78>=$M$23,$J$23,IF(CW78<($M$23),CW78*($J$23/($M$23)),)) -> 0.125 | BC78: =+IF(CX78>=$M$24,$J$24,IF(CX78<($M$24),CX78*($J$24/($M$24)),)) -> 0.417 | BD78: =+IF(CY78>=$M$25,$J$25,IF(CY78<($M$25),CY78*($J$25/($M$25)),)) -> 0 | BE78: =IF(CZ78>0,$F$16,0) -> 0 | BF78: =+IF(DC78>=$M$28,$J$28,IF(DC78<($M$28),DC78*($J$28/($M$28)),)) -> 0.6666666667 | BG78: =IF(DO78>0,$F$18,0) -> 1 | BH78: =IF(COUNTIF($J$31:$M$31,TRUE)=0, 0, IF(SUMIF($J$31:$M$31,TRUE,DP78:DT78)/COUNTIF($J$31:$M$31,TRUE)>=$M$32, $F$19, $F$19*(SUMIF($J$31:$M$31,TRUE,DP78:DT78)/COUNTIF($J$31:$M$31,TRUE)/$M$32))) -> 0.01891577516 | BI78: =SUM(AU78+AV78+AW78+AX78+AY78+AZ78+BE78+BA78+BB78+BC78+BD78+BF78+BG78+BH78) -> 16.37091578 | BJ78: =+BI78*$H$9 -> 5.456971925 | BK78: 2802.970478 | BL78: =BK78/U78 -> 0.3721415929 | BM78: =IF(BL78>0,IF(BL78>=$M$18,$J$18,IF(BL78<$M$18,$J$19,0)),0) -> 0.5 | BN78: 6717.222339 | BO78: =BN78/U78 -> 0.8918245272 | BP78: =IF(BO78,$F$22,0) -> 1 | BQ78: =IF(DE78>0,$F$23,0) -> 1 | BR78: 419.4448408 | BS78: =BR78/U78 -> 0.05568837504 | BT78: =+IF(BS78>=$L$3,$F$24,0) -> 0 | BU78: 53.14657461 | BV78: =IF(BU78>0,IF(BU78>=100,$F$25,IF(BU78<100,$F$25/2)),0) -> 0.5 | BW78: =SUM(DI78) -> 1.5 | BX78: =IF(OR(DK78>0,DL78>0),$F$27,0) -> 1 | BY78: =IF(DJ78>0,$F$28,0) -> 0 | BZ78: =IF(DN78>0,$F$29,0) -> 1 | CA78: =SUM(BM78,BP78,BV78,BQ78,BT78,BW78,BX78,BY78,BZ78) -> 6.5 | CB78: =+CA78*$H$21 -> 2.166666667 | CC78: =SUM(AS78,BI78,CA78) -> 36.87091578 | CD78: =SUM(AT78,BJ78,CB78) -> 12.29030526 | CE78: =IF(D78<($W$13*$CF$31),1,IF(D78<(($W$14+$W$13)*$CF$31),2,IF(D78<(($W$15+$W$13+$W$14)*$CF$31),3,4))) -> 2 | CL78: https://www.google.com/maps/@60.7724150303,26.7824408246,3a,75y,90t/data=!3m3!1e1!3m1!2e0 | CN78: 3 | CP78: 1 | CR78: 2 | CS78: 2 | CT78: 0 | CU78: 3 | CV78: 86 | CW78: 25 | CX78: 834 | CY78: 0 | CZ78: 0 | DC78: 2 | DE78: 1 | DG78: =IF(X78>$L$7,$F$26/2,0) -> 1.5 | DH78: =+IF(X78/V78>1.5,$F$26/2,0) -> 0 | DI78: =SUM(DG78:DH78) -> 1.5 | DJ78: 0 | DK78: 1 | DL78: 0 | DN78: 1 | DO78: 2 | DP78: 0.03855013438 | DQ78: 0.0675216962 | DR78: 0.0357964831 | DS78: 0.09694106679 | DT78: =AVERAGE(DP78:DR78) -> 0.04728943789 | DV78: 48 | DW78: =D78 -> 40 | DX78: =DV78-DW78 -> 8 | DY78: 2 | DZ78: =H78 -> 2 | EA78: =DY78-DZ78 -> 0
A79: =CONCATENATE(P79,"_",Q79) -> 387_8 | B79: 2 | D79: =RANK(CD79,$CD$39:$CD$711) -> 41 | E79: 41 | F79: =E79-D79 -> 0 | G79: =CD79 -> 12.28944444 | H79: =CE79 -> 2 | I79: =B79-H79 -> 0 | J79: =HYPERLINK(CL79,"Gmaps") -> Gmaps | K79: =IF(V79>$L$5,"KESKI","VÄHÄ") -> KESKI | L79: =IF(P79<40,"Valta",IF(P79<100,"Kanta",IF(P79<1000,"Seutu",IF(P79>999,"Yhdys")))) -> Seutu | M79: Vaalimaantie | N79: Lappeenranta | O79: Etelä-Karjala | P79: 387 | Q79: 8 | R79: 0 | S79: 8 | T79: 4806 | U79: =T79-R79 -> 4806 | V79: 1077 | W79: 87 | X79: 1326 | Y79: 1077 (100 %) | Z79: 100 (32 %), 60 (1 %), 80 (67 %) | AA79: Is (100 %) | AB79: Asfalttibetoni (100 %) | AC79: PK2 (100 %) | AD79: 0 | AE79: 3 | AF79: 0.02080732418 | AG79: 65 | AL79: =+IF(V79>=$L$5,$F$4,($F$4/($L$5))*V79) -> 9 | AM79: 5 | AN79: =+IF(AM79>=$M$14,$J$14,IF(AM79<($M$14),AM79*($J$14/($M$14)),)) -> 1.5 | AO79: 218 | AP79: =+IF(AO79>=$M$10,$J$10,IF(AO79<($M$10),AO79*($J$10/($M$10)),)) -> 1.453333333 | AQ79: =IF(CN79=0,"-",IF(CN79=1,"taksi",IF(CN79=2,"pikkubussi","bussi"))) -> bussi | AR79: =IF(CN79=0,0,IF(CN79<3,$F$7/2,$F$7)) -> 3 | AS79: =SUM(AL79,AN79,AP79,AR79) -> 14.95333333 | AT79: =+AS79*$H$4 -> 4.984444444 | AU79: =+IF(W79=0,0,IF(W79>$L$6,$F$9,($F$9/$L$6)*W79)) -> 9 | AV79: =IF(CP79>0,$F$10,0) -> 0 | AW79: =IF(CR79>0,$F$11,0) -> 1 | AX79: =IF(CS79>0,$F$12,0) -> 1 | AY79: =IF(CT79>0,$F$13,0) -> 0 | AZ79: =IF(CU79>0,$F$14,0) -> 1 | BA79: =+IF(CV79>=$M$22,$J$22,IF(CV79<($M$22),CV79*($J$22/($M$22)),)) -> 0.2483333333 | BB79: =+IF(CW79>=$M$23,$J$23,IF(CW79<($M$23),CW79*($J$23/($M$23)),)) -> 0 | BC79: =+IF(CX79>=$M$24,$J$24,IF(CX79<($M$24),CX79*($J$24/($M$24)),)) -> 0 | BD79: =+IF(CY79>=$M$25,$J$25,IF(CY79<($M$25),CY79*($J$25/($M$25)),)) -> 0 | BE79: =IF(CZ79>0,$F$16,0) -> 0 | BF79: =+IF(DC79>=$M$28,$J$28,IF(DC79<($M$28),DC79*($J$28/($M$28)),)) -> 0.6666666667 | BG79: =IF(DO79>0,$F$18,0) -> 1 | BH79: =IF(COUNTIF($J$31:$M$31,TRUE)=0, 0, IF(SUMIF($J$31:$M$31,TRUE,DP79:DT79)/COUNTIF($J$31:$M$31,TRUE)>=$M$32, $F$19, $F$19*(SUMIF($J$31:$M$31,TRUE,DP79:DT79)/COUNTIF($J$31:$M$31,TRUE)/$M$32))) -> 2 | BI79: =SUM(AU79+AV79+AW79+AX79+AY79+AZ79+BE79+BA79+BB79+BC79+BD79+BF79+BG79+BH79) -> 15.915 | BJ79: =+BI79*$H$9 -> 5.305 | BK79: 0 | BL79: =BK79/U79 -> 0 | BM79: =IF(BL79>0,IF(BL79>=$M$18,$J$18,IF(BL79<$M$18,$J$19,0)),0) -> 0 | BN79: 4795.062601 | BO79: =BN79/U79 -> 0.99772422 | BP79: =IF(BO79,$F$22,0) -> 1 | BQ79: =IF(DE79>0,$F$23,0) -> 0 | BR79: 0 | BS79: =BR79/U79 -> 0 | BT79: =+IF(BS79>=$L$3,$F$24,0) -> 0 | BU79: 8.832292967 | BV79: =IF(BU79>0,IF(BU79>=100,$F$25,IF(BU79<100,$F$25/2)),0) -> 0.5 | BW79: =SUM(DI79) -> 1.5 | BX79: =IF(OR(DK79>0,DL79>0),$F$27,0) -> 1 | BY79: =IF(DJ79>0,$F$28,0) -> 1 | BZ79: =IF(DN79>0,$F$29,0) -> 1 | CA79: =SUM(BM79,BP79,BV79,BQ79,BT79,BW79,BX79,BY79,BZ79) -> 6 | CB79: =+CA79*$H$21 -> 2 | CC79: =SUM(AS79,BI79,CA79) -> 36.86833333 | CD79: =SUM(AT79,BJ79,CB79) -> 12.28944444 | CE79: =IF(D79<($W$13*$CF$31),1,IF(D79<(($W$14+$W$13)*$CF$31),2,IF(D79<(($W$15+$W$13+$W$14)*$CF$31),3,4))) -> 2 | CL79: https://www.google.com/maps/@60.7418334702,28.0013941731,3a,75y,90t/data=!3m3!1e1!3m1!2e0 | CN79: 3 | CP79: 0 | CR79: 1 | CS79: 8 | CT79: 0 | CU79: 6 | CV79: 149 | CW79: 0 | CX79: 0 | CY79: 0 | CZ79: 0 | DC79: 2 | DE79: 0 | DG79: =IF(X79>$L$7,$F$26/2,0) -> 1.5 | DH79: =+IF(X79/V79>1.5,$F$26/2,0) -> 0 | DI79: =SUM(DG79:DH79) -> 1.5 | DJ79: 1 | DK79: 1 | DL79: 1 | DN79: 1 | DO79: 1 | DP79: 6.444796787 | DQ79: 6.888106624 | DR79: 6.972894385 | DS79: 3.115554714 | DT79: =AVERAGE(DP79:DR79) -> 6.768599265 | DV79: 56 | DW79: =D79 -> 41 | DX79: =DV79-DW79 -> 15 | DY79: 2 | DZ79: =H79 -> 2 | EA79: =DY79-DZ79 -> 0
A80: =CONCATENATE(P80,"_",Q80) -> 387_5 | B80: 2 | D80: =RANK(CD80,$CD$39:$CD$711) -> 42 | E80: 42 | F80: =E80-D80 -> 0 | G80: =CD80 -> 12.28777778 | H80: =CE80 -> 2 | I80: =B80-H80 -> 0 | J80: =HYPERLINK(CL80,"Gmaps") -> Gmaps | K80: =IF(V80>$L$5,"KESKI","VÄHÄ") -> KESKI | L80: =IF(P80<40,"Valta",IF(P80<100,"Kanta",IF(P80<1000,"Seutu",IF(P80>999,"Yhdys")))) -> Seutu | M80: Vaalimaantie | N80: Lappeenranta | O80: Etelä-Karjala | P80: 387 | Q80: 5 | R80: 0 | S80: 5 | T80: 5624 | U80: =T80-R80 -> 5624 | V80: 2184 | W80: 180 | X80: 2402 | Y80: 2184 (100 %) | Z80: 100 (100 %) | AA80: Is (100 %) | AB80: Asfalttibetoni (100 %) | AC80: PK2 (100 %) | AD80: 2 | AE80: 11 | AF80: 0.1955903272 | AG80: 92 | AL80: =+IF(V80>=$L$5,$F$4,($F$4/($L$5))*V80) -> 9 | AM80: 10 | AN80: =+IF(AM80>=$M$14,$J$14,IF(AM80<($M$14),AM80*($J$14/($M$14)),)) -> 3 | AO80: 337 | AP80: =+IF(AO80>=$M$10,$J$10,IF(AO80<($M$10),AO80*($J$10/($M$10)),)) -> 2 | AQ80: =IF(CN80=0,"-",IF(CN80=1,"taksi",IF(CN80=2,"pikkubussi","bussi"))) -> bussi | AR80: =IF(CN80=0,0,IF(CN80<3,$F$7/2,$F$7)) -> 3 | AS80: =SUM(AL80,AN80,AP80,AR80) -> 17 | AT80: =+AS80*$H$4 -> 5.666666667 | AU80: =+IF(W80=0,0,IF(W80>$L$6,$F$9,($F$9/$L$6)*W80)) -> 9 | AV80: =IF(CP80>0,$F$10,0) -> 2 | AW80: =IF(CR80>0,$F$11,0) -> 0 | AX80: =IF(CS80>0,$F$12,0) -> 0 | AY80: =IF(CT80>0,$F$13,0) -> 0 | AZ80: =IF(CU80>0,$F$14,0) -> 1 | BA80: =+IF(CV80>=$M$22,$J$22,IF(CV80<($M$22),CV80*($J$22/($M$22)),)) -> 0.03 | BB80: =+IF(CW80>=$M$23,$J$23,IF(CW80<($M$23),CW80*($J$23/($M$23)),)) -> 0.5 | BC80: =+IF(CX80>=$M$24,$J$24,IF(CX80<($M$24),CX80*($J$24/($M$24)),)) -> 0 | BD80: =+IF(CY80>=$M$25,$J$25,IF(CY80<($M$25),CY80*($J$25/($M$25)),)) -> 0 | BE80: =IF(CZ80>0,$F$16,0) -> 0 | BF80: =+IF(DC80>=$M$28,$J$28,IF(DC80<($M$28),DC80*($J$28/($M$28)),)) -> 0.3333333333 | BG80: =IF(DO80>0,$F$18,0) -> 0 | BH80: =IF(COUNTIF($J$31:$M$31,TRUE)=0, 0, IF(SUMIF($J$31:$M$31,TRUE,DP80:DT80)/COUNTIF($J$31:$M$31,TRUE)>=$M$32, $F$19, $F$19*(SUMIF($J$31:$M$31,TRUE,DP80:DT80)/COUNTIF($J$31:$M$31,TRUE)/$M$32))) -> 2 | BI80: =SUM(AU80+AV80+AW80+AX80+AY80+AZ80+BE80+BA80+BB80+BC80+BD80+BF80+BG80+BH80) -> 14.86333333 | BJ80: =+BI80*$H$9 -> 4.954444444 | BK80: 0 | BL80: =BK80/U80 -> 0 | BM80: =IF(BL80>0,IF(BL80>=$M$18,$J$18,IF(BL80<$M$18,$J$19,0)),0) -> 0 | BN80: 5512.094804 | BO80: =BN80/U80 -> 0.9801022056 | BP80: =IF(BO80,$F$22,0) -> 1 | BQ80: =IF(DE80>0,$F$23,0) -> 0 | BR80: 0 | BS80: =BR80/U80 -> 0 | BT80: =+IF(BS80>=$L$3,$F$24,0) -> 0 | BU80: 4.818634424 | BV80: =IF(BU80>0,IF(BU80>=100,$F$25,IF(BU80<100,$F$25/2)),0) -> 0.5 | BW80: =SUM(DI80) -> 1.5 | BX80: =IF(OR(DK80>0,DL80>0),$F$27,0) -> 1 | BY80: =IF(DJ80>0,$F$28,0) -> 0 | BZ80: =IF(DN80>0,$F$29,0) -> 1 | CA80: =SUM(BM80,BP80,BV80,BQ80,BT80,BW80,BX80,BY80,BZ80) -> 5 | CB80: =+CA80*$H$21 -> 1.666666667 | CC80: =SUM(AS80,BI80,CA80) -> 36.86333333 | CD80: =SUM(AT80,BJ80,CB80) -> 12.28777778 | CE80: =IF(D80<($W$13*$CF$31),1,IF(D80<(($W$14+$W$13)*$CF$31),2,IF(D80<(($W$15+$W$13+$W$14)*$CF$31),3,4))) -> 2 | CL80: https://www.google.com/maps/@60.8582187704,28.1316712968,3a,75y,90t/data=!3m3!1e1!3m1!2e0 | CN80: 3 | CP80: 1 | CR80: 0 | CS80: 0 | CT80: 0 | CU80: 1 | CV80: 18 | CW80: 187 | CX80: 0 | CY80: 0 | CZ80: 0 | DC80: 1 | DE80: 0 | DG80: =IF(X80>$L$7,$F$26/2,0) -> 1.5 | DH80: =+IF(X80/V80>1.5,$F$26/2,0) -> 0 | DI80: =SUM(DG80:DH80) -> 1.5 | DJ80: 0 | DK80: 0 | DL80: 1 | DN80: 1 | DO80: 0 | DP80: 8.87691578 | DQ80: 7.828462161 | DR80: 10.83098583 | DS80: 3.71934757 | DT80: =AVERAGE(DP80:DR80) -> 9.178787922 | DV80: 83 | DW80: =D80 -> 42 | DX80: =DV80-DW80 -> 41 | DY80: 2 | DZ80: =H80 -> 2 | EA80: =DY80-DZ80 -> 0
A81: =CONCATENATE(P81,"_",Q81) -> 3821_2 | B81: 2 | D81: =RANK(CD81,$CD$39:$CD$711) -> 43 | E81: 43 | F81: =E81-D81 -> 0 | G81: =CD81 -> 12.24334556 | H81: =CE81 -> 2 | I81: =B81-H81 -> 0 | J81: =HYPERLINK(CL81,"Gmaps") -> Gmaps | K81: =IF(V81>$L$5,"KESKI","VÄHÄ") -> KESKI | L81: =IF(P81<40,"Valta",IF(P81<100,"Kanta",IF(P81<1000,"Seutu",IF(P81>999,"Yhdys")))) -> Yhdys | M81: Karjalantie | N81: Lappeenranta | O81: Etelä-Karjala | P81: 3821 | Q81: 2 | R81: 5673 | S81: 2 | T81: 6791 | U81: =T81-R81 -> 1118 | V81: 4530 | W81: 137 | X81: 4485 | Y81: 4530 (99 %) | Z81: 50 (66 %), 60 (33 %) | AA81: Ic (99 %) | AB81: Kivimastiksiasfaltti (99 %) | AC81: PK2 (99 %) | AD81: 1 | AE81: 2 | AF81: 0 | AG81: 53 | AL81: =+IF(V81>=$L$5,$F$4,($F$4/($L$5))*V81) -> 9 | AM81: 99 | AN81: =+IF(AM81>=$M$14,$J$14,IF(AM81<($M$14),AM81*($J$14/($M$14)),)) -> 3 | AO81: 1206 | AP81: =+IF(AO81>=$M$10,$J$10,IF(AO81<($M$10),AO81*($J$10/($M$10)),)) -> 2 | AQ81: =IF(CN81=0,"-",IF(CN81=1,"taksi",IF(CN81=2,"pikkubussi","bussi"))) -> bussi | AR81: =IF(CN81=0,0,IF(CN81<3,$F$7/2,$F$7)) -> 3 | AS81: =SUM(AL81,AN81,AP81,AR81) -> 17 | AT81: =+AS81*$H$4 -> 5.666666667 | AU81: =+IF(W81=0,0,IF(W81>$L$6,$F$9,($F$9/$L$6)*W81)) -> 9 | AV81: =IF(CP81>0,$F$10,0) -> 0 | AW81: =IF(CR81>0,$F$11,0) -> 1 | AX81: =IF(CS81>0,$F$12,0) -> 0 | AY81: =IF(CT81>0,$F$13,0) -> 0 | AZ81: =IF(CU81>0,$F$14,0) -> 0 | BA81: =+IF(CV81>=$M$22,$J$22,IF(CV81<($M$22),CV81*($J$22/($M$22)),)) -> 0 | BB81: =+IF(CW81>=$M$23,$J$23,IF(CW81<($M$23),CW81*($J$23/($M$23)),)) -> 0 | BC81: =+IF(CX81>=$M$24,$J$24,IF(CX81<($M$24),CX81*($J$24/($M$24)),)) -> 0 | BD81: =+IF(CY81>=$M$25,$J$25,IF(CY81<($M$25),CY81*($J$25/($M$25)),)) -> 0 | BE81: =IF(CZ81>0,$F$16,0) -> 0 | BF81: =+IF(DC81>=$M$28,$J$28,IF(DC81<($M$28),DC81*($J$28/($M$28)),)) -> 1 | BG81: =IF(DO81>0,$F$18,0) -> 1 | BH81: =IF(COUNTIF($J$31:$M$31,TRUE)=0, 0, IF(SUMIF($J$31:$M$31,TRUE,DP81:DT81)/COUNTIF($J$31:$M$31,TRUE)>=$M$32, $F$19, $F$19*(SUMIF($J$31:$M$31,TRUE,DP81:DT81)/COUNTIF($J$31:$M$31,TRUE)/$M$32))) -> 0.2300366898 | BI81: =SUM(AU81+AV81+AW81+AX81+AY81+AZ81+BE81+BA81+BB81+BC81+BD81+BF81+BG81+BH81) -> 12.23003669 | BJ81: =+BI81*$H$9 -> 4.076678897 | BK81: 1109.835652 | BL81: =BK81/U81 -> 0.9926973629 | BM81: =IF(BL81>0,IF(BL81>=$M$18,$J$18,IF(BL81<$M$18,$J$19,0)),0) -> 1 | BN81: 424.7291269 | BO81: =BN81/U81 -> 0.3799008291 | BP81: =IF(BO81,$F$22,0) -> 1 | BQ81: =IF(DE81>0,$F$23,0) -> 0 | BR81: 1109.835652 | BS81: =BR81/U81 -> 0.9926973629 | BT81: =+IF(BS81>=$L$3,$F$24,0) -> 1 | BU81: 1398.593918 | BV81: =IF(BU81>0,IF(BU81>=100,$F$25,IF(BU81<100,$F$25/2)),0) -> 1 | BW81: =SUM(DI81) -> 1.5 | BX81: =IF(OR(DK81>0,DL81>0),$F$27,0) -> 1 | BY81: =IF(DJ81>0,$F$28,0) -> 0 | BZ81: =IF(DN81>0,$F$29,0) -> 1 | CA81: =SUM(BM81,BP81,BV81,BQ81,BT81,BW81,BX81,BY81,BZ81) -> 7.5 | CB81: =+CA81*$H$21 -> 2.5 | CC81: =SUM(AS81,BI81,CA81) -> 36.73003669 | CD81: =SUM(AT81,BJ81,CB81) -> 12.24334556 | CE81: =IF(D81<($W$13*$CF$31),1,IF(D81<(($W$14+$W$13)*$CF$31),2,IF(D81<(($W$15+$W$13+$W$14)*$CF$31),3,4))) -> 2 | CL81: https://www.google.com/maps/@61.0696349027,28.2715196069,3a,75y,90t/data=!3m3!1e1!3m1!2e0 | CN81: 3 | CP81: 0 | CR81: 1 | CS81: 0 | CT81: 0 | CU81: 0 | CV81: 0 | CW81: 0 | CX81: 0 | CY81: 0 | CZ81: 0 | DC81: 4 | DE81: 0 | DG81: =IF(X81>$L$7,$F$26/2,0) -> 1.5 | DH81: =+IF(X81/V81>1.5,$F$26/2,0) -> 0 | DI81: =SUM(DG81:DH81) -> 1.5 | DJ81: 0 | DK81: 1 | DL81: 0 | DN81: 1 | DO81: 1 | DP81: 0.4870324362 | DQ81: 0.9446964538 | DR81: 0.2935462832 | DS81: 0.7005521997 | DT81: =AVERAGE(DP81:DR81) -> 0.5750917244 | DV81: 59 | DW81: =D81 -> 43 | DX81: =DV81-DW81 -> 16 | DY81: 2 | DZ81: =H81 -> 2 | EA81: =DY81-DZ81 -> 0
A82: =CONCATENATE(P82,"_",Q82) -> 3571_1 | B82: 2 | D82: =RANK(CD82,$CD$39:$CD$711) -> 44 | E82: 44 | F82: =E82-D82 -> 0 | G82: =CD82 -> 12.22829814 | H82: =CE82 -> 2 | I82: =B82-H82 -> 0 | J82: =HYPERLINK(CL82,"Gmaps") -> Gmaps | K82: =IF(V82>$L$5,"KESKI","VÄHÄ") -> KESKI | L82: =IF(P82<40,"Valta",IF(P82<100,"Kanta",IF(P82<1000,"Seutu",IF(P82>999,"Yhdys")))) -> Yhdys | M82: Karhulantie | N82: Kotka | O82: Kymenlaakso | P82: 3571 | Q82: 1 | R82: 1480 | S82: 1 | T82: 4318 | U82: =T82-R82 -> 2838 | V82: 2060.847075 | W82: 78.67723749 | X82: 2538.73432 | Y82: 1170 (47 %), 2851 (53 %) | Z82: 50 (100 %) | AA82: Ib (47 %), Is (53 %) | AB82: Asfalttibetoni (83 %), Pehmeät asfalttibetonit (PAB-B) (15 %) | AC82: PK2 (98 %) | AD82: 1 | AE82: 2 | AF82: 0.006342494715 | AG82: 25.53911205 | AL82: =+IF(V82>=$L$5,$F$4,($F$4/($L$5))*V82) -> 9 | AM82: 129 | AN82: =+IF(AM82>=$M$14,$J$14,IF(AM82<($M$14),AM82*($J$14/($M$14)),)) -> 3 | AO82: 444 | AP82: =+IF(AO82>=$M$10,$J$10,IF(AO82<($M$10),AO82*($J$10/($M$10)),)) -> 2 | AQ82: =IF(CN82=0,"-",IF(CN82=1,"taksi",IF(CN82=2,"pikkubussi","bussi"))) -> bussi | AR82: =IF(CN82=0,0,IF(CN82<3,$F$7/2,$F$7)) -> 3 | AS82: =SUM(AL82,AN82,AP82,AR82) -> 17 | AT82: =+AS82*$H$4 -> 5.666666667 | AU82: =+IF(W82=0,0,IF(W82>$L$6,$F$9,($F$9/$L$6)*W82)) -> 9 | AV82: =IF(CP82>0,$F$10,0) -> 0 | AW82: =IF(CR82>0,$F$11,0) -> 1 | AX82: =IF(CS82>0,$F$12,0) -> 0 | AY82: =IF(CT82>0,$F$13,0) -> 0 | AZ82: =IF(CU82>0,$F$14,0) -> 1 | BA82: =+IF(CV82>=$M$22,$J$22,IF(CV82<($M$22),CV82*($J$22/($M$22)),)) -> 0 | BB82: =+IF(CW82>=$M$23,$J$23,IF(CW82<($M$23),CW82*($J$23/($M$23)),)) -> 0 | BC82: =+IF(CX82>=$M$24,$J$24,IF(CX82<($M$24),CX82*($J$24/($M$24)),)) -> 0 | BD82: =+IF(CY82>=$M$25,$J$25,IF(CY82<($M$25),CY82*($J$25/($M$25)),)) -> 0 | BE82: =IF(CZ82>0,$F$16,0) -> 0 | BF82: =+IF(DC82>=$M$28,$J$28,IF(DC82<($M$28),DC82*($J$28/($M$28)),)) -> 1 | BG82: =IF(DO82>0,$F$18,0) -> 0 | BH82: =IF(COUNTIF($J$31:$M$31,TRUE)=0, 0, IF(SUMIF($J$31:$M$31,TRUE,DP82:DT82)/COUNTIF($J$31:$M$31,TRUE)>=$M$32, $F$19, $F$19*(SUMIF($J$31:$M$31,TRUE,DP82:DT82)/COUNTIF($J$31:$M$31,TRUE)/$M$32))) -> 0.1848944164 | BI82: =SUM(AU82+AV82+AW82+AX82+AY82+AZ82+BE82+BA82+BB82+BC82+BD82+BF82+BG82+BH82) -> 12.18489442 | BJ82: =+BI82*$H$9 -> 4.061631472 | BK82: 2828.32402 | BL82: =BK82/U82 -> 0.9965905637 | BM82: =IF(BL82>0,IF(BL82>=$M$18,$J$18,IF(BL82<$M$18,$J$19,0)),0) -> 1 | BN82: 1877.821268 | BO82: =BN82/U82 -> 0.6616706369 | BP82: =IF(BO82,$F$22,0) -> 1 | BQ82: =IF(DE82>0,$F$23,0) -> 0 | BR82: 2828.32402 | BS82: =BR82/U82 -> 0.9965905637 | BT82: =+IF(BS82>=$L$3,$F$24,0) -> 1 | BU82: 257.1317829 | BV82: =IF(BU82>0,IF(BU82>=100,$F$25,IF(BU82<100,$F$25/2)),0) -> 1 | BW82: =SUM(DI82) -> 1.5 | BX82: =IF(OR(DK82>0,DL82>0),$F$27,0) -> 1 | BY82: =IF(DJ82>0,$F$28,0) -> 0 | BZ82: =IF(DN82>0,$F$29,0) -> 1 | CA82: =SUM(BM82,BP82,BV82,BQ82,BT82,BW82,BX82,BY82,BZ82) -> 7.5 | CB82: =+CA82*$H$21 -> 2.5 | CC82: =SUM(AS82,BI82,CA82) -> 36.68489442 | CD82: =SUM(AT82,BJ82,CB82) -> 12.22829814 | CE82: =IF(D82<($W$13*$CF$31),1,IF(D82<(($W$14+$W$13)*$CF$31),2,IF(D82<(($W$15+$W$13+$W$14)*$CF$31),3,4))) -> 2 | CL82: https://www.google.com/maps/@60.5280438272,26.9206563977,3a,75y,90t/data=!3m3!1e1!3m1!2e0 | CN82: 3 | CP82: 0 | CR82: 1 | CS82: 0 | CT82: 0 | CU82: 1 | CV82: 0 | CW82: 0 | CX82: 0 | CY82: 0 | CZ82: 0 | DC82: 3 | DE82: 0 | DG82: =IF(X82>$L$7,$F$26/2,0) -> 1.5 | DH82: =+IF(X82/V82>1.5,$F$26/2,0) -> 0 | DI82: =SUM(DG82:DH82) -> 1.5 | DJ82: 0 | DK82: 1 | DL82: 0 | DN82: 1 | DO82: 0 | DP82: 0.5978186316 | DQ82: 0.5085462086 | DR82: 0.2803432828 | DS82: 0.1600922648 | DT82: =AVERAGE(DP82:DR82) -> 0.462236041 | DV82: 108 | DW82: =D82 -> 44 | DX82: =DV82-DW82 -> 64 | DY82: 2 | DZ82: =H82 -> 2 | EA82: =DY82-DZ82 -> 0
A83: =CONCATENATE(P83,"_",Q83) -> 3963_1 | B83: 2 | D83: =RANK(CD83,$CD$39:$CD$711) -> 45 | E83: 45 | F83: =E83-D83 -> 0 | G83: =CD83 -> 12.17509291 | H83: =CE83 -> 2 | I83: =B83-H83 -> 0 | J83: =HYPERLINK(CL83,"Gmaps") -> Gmaps | K83: =IF(V83>$L$5,"KESKI","VÄHÄ") -> KESKI | L83: =IF(P83<40,"Valta",IF(P83<100,"Kanta",IF(P83<1000,"Seutu",IF(P83>999,"Yhdys")))) -> Yhdys | M83: Asematie | N83: Lappeenranta | O83: Etelä-Karjala | P83: 3963 | Q83: 1 | R83: 0 | S83: 1 | T83: 793 | U83: =T83-R83 -> 793 | V83: 1972.281211 | W83: 71.67591425 | X83: 2360.860025 | Y83: 161 (24 %), 2543 (76 %) | Z83: 40 (100 %) | AA83: Ic (76 %), II (24 %) | AB83: Asfalttibetoni (32 %), Kivimastiksiasfaltti (68 %) | AC83: PK2 (100 %) | AD83: 0 | AE83: 0 | AF83: 0.7477931904 | AG83: 5.562421185 | AL83: =+IF(V83>=$L$5,$F$4,($F$4/($L$5))*V83) -> 9 | AM83: 69 | AN83: =+IF(AM83>=$M$14,$J$14,IF(AM83<($M$14),AM83*($J$14/($M$14)),)) -> 3 | AO83: 418 | AP83: =+IF(AO83>=$M$10,$J$10,IF(AO83<($M$10),AO83*($J$10/($M$10)),)) -> 2 | AQ83: =IF(CN83=0,"-",IF(CN83=1,"taksi",IF(CN83=2,"pikkubussi","bussi"))) -> bussi | AR83: =IF(CN83=0,0,IF(CN83<3,$F$7/2,$F$7)) -> 3 | AS83: =SUM(AL83,AN83,AP83,AR83) -> 17 | AT83: =+AS83*$H$4 -> 5.666666667 | AU83: =+IF(W83=0,0,IF(W83>$L$6,$F$9,($F$9/$L$6)*W83)) -> 9 | AV83: =IF(CP83>0,$F$10,0) -> 0 | AW83: =IF(CR83>0,$F$11,0) -> 0 | AX83: =IF(CS83>0,$F$12,0) -> 0 | AY83: =IF(CT83>0,$F$13,0) -> 0 | AZ83: =IF(CU83>0,$F$14,0) -> 1 | BA83: =+IF(CV83>=$M$22,$J$22,IF(CV83<($M$22),CV83*($J$22/($M$22)),)) -> 0 | BB83: =+IF(CW83>=$M$23,$J$23,IF(CW83<($M$23),CW83*($J$23/($M$23)),)) -> 0 | BC83: =+IF(CX83>=$M$24,$J$24,IF(CX83<($M$24),CX83*($J$24/($M$24)),)) -> 0 | BD83: =+IF(CY83>=$M$25,$J$25,IF(CY83<($M$25),CY83*($J$25/($M$25)),)) -> 0 | BE83: =IF(CZ83>0,$F$16,0) -> 0 | BF83: =+IF(DC83>=$M$28,$J$28,IF(DC83<($M$28),DC83*($J$28/($M$28)),)) -> 0 | BG83: =IF(DO83>0,$F$18,0) -> 1 | BH83: =IF(COUNTIF($J$31:$M$31,TRUE)=0, 0, IF(SUMIF($J$31:$M$31,TRUE,DP83:DT83)/COUNTIF($J$31:$M$31,TRUE)>=$M$32, $F$19, $F$19*(SUMIF($J$31:$M$31,TRUE,DP83:DT83)/COUNTIF($J$31:$M$31,TRUE)/$M$32))) -> 0.02527873433 | BI83: =SUM(AU83+AV83+AW83+AX83+AY83+AZ83+BE83+BA83+BB83+BC83+BD83+BF83+BG83+BH83) -> 11.02527873 | BJ83: =+BI83*$H$9 -> 3.675092911 | BK83: 794.5816116 | BL83: =BK83/U83 -> 1.001994466 | BM83: =IF(BL83>0,IF(BL83>=$M$18,$J$18,IF(BL83<$M$18,$J$19,0)),0) -> 1 | BN83: 0 | BO83: =BN83/U83 -> 0 | BP83: =IF(BO83,$F$22,0) -> 0 | BQ83: =IF(DE83>0,$F$23,0) -> 1 | BR83: 794.5816116 | BS83: =BR83/U83 -> 1.001994466 | BT83: =+IF(BS83>=$L$3,$F$24,0) -> 1 | BU83: 426.6948298 | BV83: =IF(BU83>0,IF(BU83>=100,$F$25,IF(BU83<100,$F$25/2)),0) -> 1 | BW83: =SUM(DI83) -> 1.5 | BX83: =IF(OR(DK83>0,DL83>0),$F$27,0) -> 1 | BY83: =IF(DJ83>0,$F$28,0) -> 1 | BZ83: =IF(DN83>0,$F$29,0) -> 1 | CA83: =SUM(BM83,BP83,BV83,BQ83,BT83,BW83,BX83,BY83,BZ83) -> 8.5 | CB83: =+CA83*$H$21 -> 2.833333333 | CC83: =SUM(AS83,BI83,CA83) -> 36.52527873 | CD83: =SUM(AT83,BJ83,CB83) -> 12.17509291 | CE83: =IF(D83<($W$13*$CF$31),1,IF(D83<(($W$14+$W$13)*$CF$31),2,IF(D83<(($W$15+$W$13+$W$14)*$CF$31),3,4))) -> 2 | CL83: https://www.google.com/maps/@61.1730957075,28.6983579387,3a,75y,90t/data=!3m3!1e1!3m1!2e0 | CN83: 3 | CP83: 0 | CR83: 0 | CS83: 0 | CT83: 0 | CU83: 2 | CV83: 0 | CW83: 0 | CX83: 0 | CY83: 0 | CZ83: 0 | DC83: 0 | DE83: 1 | DG83: =IF(X83>$L$7,$F$26/2,0) -> 1.5 | DH83: =+IF(X83/V83>1.5,$F$26/2,0) -> 0 | DI83: =SUM(DG83:DH83) -> 1.5 | DJ83: 1 | DK83: 1 | DL83: 0 | DN83: 1 | DO83: 1 | DP83: 0.08994562048 | DQ83: 0.04920468148 | DR83: 0.05044020549 | DS83: 0.05650698043 | DT83: =AVERAGE(DP83:DR83) -> 0.06319683582 | DV83: 36 | DW83: =D83 -> 45 | DX83: =DV83-DW83 -> -9 | DY83: 2 | DZ83: =H83 -> 2 | EA83: =DY83-DZ83 -> 0
A84: =CONCATENATE(P84,"_",Q84) -> 372_1 | B84: 2 | D84: =RANK(CD84,$CD$39:$CD$711) -> 46 | E84: 46 | F84: =E84-D84 -> 0 | G84: =CD84 -> 12.16666667 | H84: =CE84 -> 2 | I84: =B84-H84 -> 0 | J84: =HYPERLINK(CL84,"Gmaps") -> Gmaps | K84: =IF(V84>$L$5,"KESKI","VÄHÄ") -> KESKI | L84: =IF(P84<40,"Valta",IF(P84<100,"Kanta",IF(P84<1000,"Seutu",IF(P84>999,"Yhdys")))) -> Seutu | M84: Satamantie, Suokalliontie | N84: Hamina | O84: Kymenlaakso | P84: 372 | Q84: 1 | R84: 0 | S84: 1 | T84: 2512 | U84: =T84-R84 -> 2512 | V84: 1792.601513 | W84: 252.5390127 | X84: 1819.494029 | Y84: 1320 (67 %), 2759 (33 %) | Z84: 50 (56 %), 60 (44 %) | AA84: Is (97 %) | AB84: Asfalttibetoni (35 %), Kivimastiksiasfaltti (51 %) | AC84: PK2 (97 %) | AD84: 2 | AE84: 2 | AF84: 0.004304160689 | AG84: 179.9705414 | AL84: =+IF(V84>=$L$5,$F$4,($F$4/($L$5))*V84) -> 9 | AM84: 38 | AN84: =+IF(AM84>=$M$14,$J$14,IF(AM84<($M$14),AM84*($J$14/($M$14)),)) -> 3 | AO84: 1065 | AP84: =+IF(AO84>=$M$10,$J$10,IF(AO84<($M$10),AO84*($J$10/($M$10)),)) -> 2 | AQ84: =IF(CN84=0,"-",IF(CN84=1,"taksi",IF(CN84=2,"pikkubussi","bussi"))) -> bussi | AR84: =IF(CN84=0,0,IF(CN84<3,$F$7/2,$F$7)) -> 3 | AS84: =SUM(AL84,AN84,AP84,AR84) -> 17 | AT84: =+AS84*$H$4 -> 5.666666667 | AU84: =+IF(W84=0,0,IF(W84>$L$6,$F$9,($F$9/$L$6)*W84)) -> 9 | AV84: =IF(CP84>0,$F$10,0) -> 0 | AW84: =IF(CR84>0,$F$11,0) -> 0 | AX84: =IF(CS84>0,$F$12,0) -> 1 | AY84: =IF(CT84>0,$F$13,0) -> 0 | AZ84: =IF(CU84>0,$F$14,0) -> 0 | BA84: =+IF(CV84>=$M$22,$J$22,IF(CV84<($M$22),CV84*($J$22/($M$22)),)) -> 0 | BB84: =+IF(CW84>=$M$23,$J$23,IF(CW84<($M$23),CW84*($J$23/($M$23)),)) -> 0 | BC84: =+IF(CX84>=$M$24,$J$24,IF(CX84<($M$24),CX84*($J$24/($M$24)),)) -> 0 | BD84: =+IF(CY84>=$M$25,$J$25,IF(CY84<($M$25),CY84*($J$25/($M$25)),)) -> 0 | BE84: =IF(CZ84>0,$F$16,0) -> 0 | BF84: =+IF(DC84>=$M$28,$J$28,IF(DC84<($M$28),DC84*($J$28/($M$28)),)) -> 0 | BG84: =IF(DO84>0,$F$18,0) -> 0 | BH84: =IF(COUNTIF($J$31:$M$31,TRUE)=0, 0, IF(SUMIF($J$31:$M$31,TRUE,DP84:DT84)/COUNTIF($J$31:$M$31,TRUE)>=$M$32, $F$19, $F$19*(SUMIF($J$31:$M$31,TRUE,DP84:DT84)/COUNTIF($J$31:$M$31,TRUE)/$M$32))) -> 2 | BI84: =SUM(AU84+AV84+AW84+AX84+AY84+AZ84+BE84+BA84+BB84+BC84+BD84+BF84+BG84+BH84) -> 12 | BJ84: =+BI84*$H$9 -> 4 | BK84: 2512.919071 | BL84: =BK84/U84 -> 1.000365872 | BM84: =IF(BL84>0,IF(BL84>=$M$18,$J$18,IF(BL84<$M$18,$J$19,0)),0) -> 1 | BN84: 2359.723742 | BO84: =BN84/U84 -> 0.9393804704 | BP84: =IF(BO84,$F$22,0) -> 1 | BQ84: =IF(DE84>0,$F$23,0) -> 1 | BR84: 1480.519694 | BS84: =BR84/U84 -> 0.5893788592 | BT84: =+IF(BS84>=$L$3,$F$24,0) -> 1 | BU84: 537.0429936 | BV84: =IF(BU84>0,IF(BU84>=100,$F$25,IF(BU84<100,$F$25/2)),0) -> 1 | BW84: =SUM(DI84) -> 1.5 | BX84: =IF(OR(DK84>0,DL84>0),$F$27,0) -> 0 | BY84: =IF(DJ84>0,$F$28,0) -> 0 | BZ84: =IF(DN84>0,$F$29,0) -> 1 | CA84: =SUM(BM84,BP84,BV84,BQ84,BT84,BW84,BX84,BY84,BZ84) -> 7.5 | CB84: =+CA84*$H$21 -> 2.5 | CC84: =SUM(AS84,BI84,CA84) -> 36.5 | CD84: =SUM(AT84,BJ84,CB84) -> 12.16666667 | CE84: =IF(D84<($W$13*$CF$31),1,IF(D84<(($W$14+$W$13)*$CF$31),2,IF(D84<(($W$15+$W$13+$W$14)*$CF$31),3,4))) -> 2 | CL84: https://www.google.com/maps/@60.5877523221,27.1506049192,3a,75y,90t/data=!3m3!1e1!3m1!2e0 | CN84: 3 | CP84: 0 | CR84: 0 | CS84: 1 | CT84: 0 | CU84: 0 | CV84: 0 | CW84: 0 | CX84: 0 | CY84: 0 | CZ84: 0 | DC84: 0 | DE84: 1 | DG84: =IF(X84>$L$7,$F$26/2,0) -> 1.5 | DH84: =+IF(X84/V84>1.5,$F$26/2,0) -> 0 | DI84: =SUM(DG84:DH84) -> 1.5 | DJ84: 0 | DK84: 0 | DL84: 0 | DN84: 1 | DO84: 0 | DP84: 9.048025462 | DQ84: 8.230450699 | DR84: 8.276871659 | DS84: 5.139630352 | DT84: =AVERAGE(DP84:DR84) -> 8.518449273 | DV84: 99 | DW84: =D84 -> 46 | DX84: =DV84-DW84 -> 53 | DY84: 2 | DZ84: =H84 -> 2 | EA84: =DY84-DZ84 -> 0
A85: =CONCATENATE(P85,"_",Q85) -> 170_24 | B85: 2 | D85: =RANK(CD85,$CD$39:$CD$711) -> 47 | E85: 47 | F85: =E85-D85 -> 0 | G85: =CD85 -> 12.1641205 | H85: =CE85 -> 2 | I85: =B85-H85 -> 0 | J85: =HYPERLINK(CL85,"Gmaps") -> Gmaps | K85: =IF(V85>$L$5,"KESKI","VÄHÄ") -> KESKI | L85: =IF(P85<40,"Valta",IF(P85<100,"Kanta",IF(P85<1000,"Seutu",IF(P85>999,"Yhdys")))) -> Seutu | M85: Pyhtääntie | N85: Pyhtää | O85: Kymenlaakso | P85: 170 | Q85: 24 | R85: 0 | S85: 24 | T85: 5719 | U85: =T85-R85 -> 5719 | V85: 1359 | W85: 66 | X85: 1638 | Y85: 1359 (100 %) | Z85: 60 (30 %), 80 (70 %) | AA85: Ib (100 %), K2 (1 %) | AB85: Asfalttibetoni (70 %), Kantavan kerroksen asfalttibetoni (ABK) (26 %), Kivimastiksiasfaltti (30 %) | AC85: PK2 (100 %) | AD85: 1 | AE85: 3 | AF85: 0.0174855744 | AG85: 22 | AL85: =+IF(V85>=$L$5,$F$4,($F$4/($L$5))*V85) -> 9 | AM85: 21 | AN85: =+IF(AM85>=$M$14,$J$14,IF(AM85<($M$14),AM85*($J$14/($M$14)),)) -> 3 | AO85: 161 | AP85: =+IF(AO85>=$M$10,$J$10,IF(AO85<($M$10),AO85*($J$10/($M$10)),)) -> 1.073333333 | AQ85: =IF(CN85=0,"-",IF(CN85=1,"taksi",IF(CN85=2,"pikkubussi","bussi"))) -> bussi | AR85: =IF(CN85=0,0,IF(CN85<3,$F$7/2,$F$7)) -> 3 | AS85: =SUM(AL85,AN85,AP85,AR85) -> 16.07333333 | AT85: =+AS85*$H$4 -> 5.357777778 | AU85: =+IF(W85=0,0,IF(W85>$L$6,$F$9,($F$9/$L$6)*W85)) -> 9 | AV85: =IF(CP85>0,$F$10,0) -> 2 | AW85: =IF(CR85>0,$F$11,0) -> 0 | AX85: =IF(CS85>0,$F$12,0) -> 1 | AY85: =IF(CT85>0,$F$13,0) -> 0 | AZ85: =IF(CU85>0,$F$14,0) -> 1 | BA85: =+IF(CV85>=$M$22,$J$22,IF(CV85<($M$22),CV85*($J$22/($M$22)),)) -> 0.09333333333 | BB85: =+IF(CW85>=$M$23,$J$23,IF(CW85<($M$23),CW85*($J$23/($M$23)),)) -> 0.15 | BC85: =+IF(CX85>=$M$24,$J$24,IF(CX85<($M$24),CX85*($J$24/($M$24)),)) -> 0 | BD85: =+IF(CY85>=$M$25,$J$25,IF(CY85<($M$25),CY85*($J$25/($M$25)),)) -> 0.1666666667 | BE85: =IF(CZ85>0,$F$16,0) -> 0 | BF85: =+IF(DC85>=$M$28,$J$28,IF(DC85<($M$28),DC85*($J$28/($M$28)),)) -> 0.3333333333 | BG85: =IF(DO85>0,$F$18,0) -> 0 | BH85: =IF(COUNTIF($J$31:$M$31,TRUE)=0, 0, IF(SUMIF($J$31:$M$31,TRUE,DP85:DT85)/COUNTIF($J$31:$M$31,TRUE)>=$M$32, $F$19, $F$19*(SUMIF($J$31:$M$31,TRUE,DP85:DT85)/COUNTIF($J$31:$M$31,TRUE)/$M$32))) -> 0.1756948444 | BI85: =SUM(AU85+AV85+AW85+AX85+AY85+AZ85+BE85+BA85+BB85+BC85+BD85+BF85+BG85+BH85) -> 13.91902818 | BJ85: =+BI85*$H$9 -> 4.639676059 | BK85: 1061.858328 | BL85: =BK85/U85 -> 0.185672028 | BM85: =IF(BL85>0,IF(BL85>=$M$18,$J$18,IF(BL85<$M$18,$J$19,0)),0) -> 0.5 | BN85: 5642.102519 | BO85: =BN85/U85 -> 0.9865540338 | BP85: =IF(BO85,$F$22,0) -> 1 | BQ85: =IF(DE85>0,$F$23,0) -> 1 | BR85: 0 | BS85: =BR85/U85 -> 0 | BT85: =+IF(BS85>=$L$3,$F$24,0) -> 0 | BU85: 2.447980416 | BV85: =IF(BU85>0,IF(BU85>=100,$F$25,IF(BU85<100,$F$25/2)),0) -> 0.5 | BW85: =SUM(DI85) -> 1.5 | BX85: =IF(OR(DK85>0,DL85>0),$F$27,0) -> 1 | BY85: =IF(DJ85>0,$F$28,0) -> 0 | BZ85: =IF(DN85>0,$F$29,0) -> 1 | CA85: =SUM(BM85,BP85,BV85,BQ85,BT85,BW85,BX85,BY85,BZ85) -> 6.5 | CB85: =+CA85*$H$21 -> 2.166666667 | CC85: =SUM(AS85,BI85,CA85) -> 36.49236151 | CD85: =SUM(AT85,BJ85,CB85) -> 12.1641205 | CE85: =IF(D85<($W$13*$CF$31),1,IF(D85<(($W$14+$W$13)*$CF$31),2,IF(D85<(($W$15+$W$13+$W$14)*$CF$31),3,4))) -> 2 | CL85: https://www.google.com/maps/@60.4894472102,26.562233133,3a,75y,90t/data=!3m3!1e1!3m1!2e0 | CN85: 3 | CP85: 2 | CR85: 0 | CS85: 4 | CT85: 0 | CU85: 14 | CV85: 56 | CW85: 30 | CX85: 0 | CY85: 10 | CZ85: 0 | DC85: 1 | DE85: 1 | DG85: =IF(X85>$L$7,$F$26/2,0) -> 1.5 | DH85: =+IF(X85/V85>1.5,$F$26/2,0) -> 0 | DI85: =SUM(DG85:DH85) -> 1.5 | DJ85: 0 | DK85: 1 | DL85: 0 | DN85: 1 | DO85: 0 | DP85: 0.8147783117 | DQ85: 0.3164414541 | DR85: 0.1864915671 | DS85: 0.1525736901 | DT85: =AVERAGE(DP85:DR85) -> 0.439237111 | DV85: 43 | DW85: =D85 -> 47 | DX85: =DV85-DW85 -> -4 | DY85: 2 | DZ85: =H85 -> 2 | EA85: =DY85-DZ85 -> 0
A86: =CONCATENATE(P86,"_",Q86) -> 170_36 | B86: 2 | D86: =RANK(CD86,$CD$39:$CD$711) -> 48 | E86: 48 | F86: =E86-D86 -> 0 | G86: =CD86 -> 12.13879091 | H86: =CE86 -> 2 | I86: =B86-H86 -> 0 | J86: =HYPERLINK(CL86,"Gmaps") -> Gmaps | K86: =IF(V86>$L$5,"KESKI","VÄHÄ") -> KESKI | L86: =IF(P86<40,"Valta",IF(P86<100,"Kanta",IF(P86<1000,"Seutu",IF(P86>999,"Yhdys")))) -> Seutu | M86: Vanha Vaalimaantie | N86: Hamina | O86: Kymenlaakso | P86: 170 | Q86: 36 | R86: 0 | S86: 36 | T86: 2366 | U86: =T86-R86 -> 2366 | V86: 1434 | W86: 64 | X86: 1595 | Y86: 1434 (100 %) | Z86: 50 (7 %), 60 (17 %), 80 (76 %) | AA86: I (25 %), Ib (76 %) | AB86: Asfalttibetoni (100 %) | AC86: PK2 (100 %) | AD86: 0 | AE86: 3 | AF86: 0 | AG86: 19 | AL86: =+IF(V86>=$L$5,$F$4,($F$4/($L$5))*V86) -> 9 | AM86: 25 | AN86: =+IF(AM86>=$M$14,$J$14,IF(AM86<($M$14),AM86*($J$14/($M$14)),)) -> 3 | AO86: 223 | AP86: =+IF(AO86>=$M$10,$J$10,IF(AO86<($M$10),AO86*($J$10/($M$10)),)) -> 1.486666667 | AQ86: =IF(CN86=0,"-",IF(CN86=1,"taksi",IF(CN86=2,"pikkubussi","bussi"))) -> pikkubussi | AR86: =IF(CN86=0,0,IF(CN86<3,$F$7/2,$F$7)) -> 1.5 | AS86: =SUM(AL86,AN86,AP86,AR86) -> 14.98666667 | AT86: =+AS86*$H$4 -> 4.995555556 | AU86: =+IF(W86=0,0,IF(W86>$L$6,$F$9,($F$9/$L$6)*W86)) -> 9 | AV86: =IF(CP86>0,$F$10,0) -> 0 | AW86: =IF(CR86>0,$F$11,0) -> 1 | AX86: =IF(CS86>0,$F$12,0) -> 1 | AY86: =IF(CT86>0,$F$13,0) -> 0 | AZ86: =IF(CU86>0,$F$14,0) -> 1 | BA86: =+IF(CV86>=$M$22,$J$22,IF(CV86<($M$22),CV86*($J$22/($M$22)),)) -> 0 | BB86: =+IF(CW86>=$M$23,$J$23,IF(CW86<($M$23),CW86*($J$23/($M$23)),)) -> 0.065 | BC86: =+IF(CX86>=$M$24,$J$24,IF(CX86<($M$24),CX86*($J$24/($M$24)),)) -> 0 | BD86: =+IF(CY86>=$M$25,$J$25,IF(CY86<($M$25),CY86*($J$25/($M$25)),)) -> 0.1 | BE86: =IF(CZ86>0,$F$16,0) -> 1 | BF86: =+IF(DC86>=$M$28,$J$28,IF(DC86<($M$28),DC86*($J$28/($M$28)),)) -> 1 | BG86: =IF(DO86>0,$F$18,0) -> 0 | BH86: =IF(COUNTIF($J$31:$M$31,TRUE)=0, 0, IF(SUMIF($J$31:$M$31,TRUE,DP86:DT86)/COUNTIF($J$31:$M$31,TRUE)>=$M$32, $F$19, $F$19*(SUMIF($J$31:$M$31,TRUE,DP86:DT86)/COUNTIF($J$31:$M$31,TRUE)/$M$32))) -> 0.2647060754 | BI86: =SUM(AU86+AV86+AW86+AX86+AY86+AZ86+BE86+BA86+BB86+BC86+BD86+BF86+BG86+BH86) -> 14.42970608 | BJ86: =+BI86*$H$9 -> 4.809902025 | BK86: 0 | BL86: =BK86/U86 -> 0 | BM86: =IF(BL86>0,IF(BL86>=$M$18,$J$18,IF(BL86<$M$18,$J$19,0)),0) -> 0 | BN86: 2378.339983 | BO86: =BN86/U86 -> 1.005215546 | BP86: =IF(BO86,$F$22,0) -> 1 | BQ86: =IF(DE86>0,$F$23,0) -> 1 | BR86: 0 | BS86: =BR86/U86 -> 0 | BT86: =+IF(BS86>=$L$3,$F$24,0) -> 0 | BU86: 17.49788673 | BV86: =IF(BU86>0,IF(BU86>=100,$F$25,IF(BU86<100,$F$25/2)),0) -> 0.5 | BW86: =SUM(DI86) -> 1.5 | BX86: =IF(OR(DK86>0,DL86>0),$F$27,0) -> 1 | BY86: =IF(DJ86>0,$F$28,0) -> 1 | BZ86: =IF(DN86>0,$F$29,0) -> 1 | CA86: =SUM(BM86,BP86,BV86,BQ86,BT86,BW86,BX86,BY86,BZ86) -> 7 | CB86: =+CA86*$H$21 -> 2.333333333 | CC86: =SUM(AS86,BI86,CA86) -> 36.41637274 | CD86: =SUM(AT86,BJ86,CB86) -> 12.13879091 | CE86: =IF(D86<($W$13*$CF$31),1,IF(D86<(($W$14+$W$13)*$CF$31),2,IF(D86<(($W$15+$W$13+$W$14)*$CF$31),3,4))) -> 2 | CL86: https://www.google.com/maps/@60.559794768,27.2681127346,3a,75y,90t/data=!3m3!1e1!3m1!2e0 | CN86: 2 | CP86: 0 | CR86: 1 | CS86: 2 | CT86: 0 | CU86: 3 | CV86: 0 | CW86: 13 | CX86: 0 | CY86: 6 | CZ86: 1 | DC86: 3 | DE86: 1 | DG86: =IF(X86>$L$7,$F$26/2,0) -> 1.5 | DH86: =+IF(X86/V86>1.5,$F$26/2,0) -> 0 | DI86: =SUM(DG86:DH86) -> 1.5 | DJ86: 2 | DK86: 1 | DL86: 0 | DN86: 1 | DO86: 0 | DP86: 0.3725532499 | DQ86: 0.9784206456 | DR86: 0.6343216701 | DS86: 0.2813417977 | DT86: =AVERAGE(DP86:DR86) -> 0.6617651886 | DV86: 33 | DW86: =D86 -> 48 | DX86: =DV86-DW86 -> -15 | DY86: 1 | DZ86: =H86 -> 2 | EA86: =DY86-DZ86 -> -1
A87: =CONCATENATE(P87,"_",Q87) -> 170_25 | B87: 2 | D87: =RANK(CD87,$CD$39:$CD$711) -> 49 | E87: 49 | F87: =E87-D87 -> 0 | G87: =CD87 -> 12.13358877 | H87: =CE87 -> 2 | I87: =B87-H87 -> 0 | J87: =HYPERLINK(CL87,"Gmaps") -> Gmaps | K87: =IF(V87>$L$5,"KESKI","VÄHÄ") -> KESKI | L87: =IF(P87<40,"Valta",IF(P87<100,"Kanta",IF(P87<1000,"Seutu",IF(P87>999,"Yhdys")))) -> Seutu | M87: Pyhtääntie | N87: Pyhtää | O87: Kymenlaakso | P87: 170 | Q87: 25 | R87: 0 | S87: 25 | T87: 4164 | U87: =T87-R87 -> 4164 | V87: 1310.981748 | W87: 53.67098943 | X87: 1579.599424 | Y87: 1285 (65 %), 1359 (35 %) | Z87: 50 (5 %), 80 (95 %) | AA87: Ib (100 %) | AB87: Asfalttibetoni (4 %), Kivimastiksiasfaltti (96 %) | AC87: PK2 (100 %) | AD87: 1 | AE87: 3 | AF87: 0.2795389049 | AG87: 14.21325648 | AL87: =+IF(V87>=$L$5,$F$4,($F$4/($L$5))*V87) -> 9 | AM87: 22 | AN87: =+IF(AM87>=$M$14,$J$14,IF(AM87<($M$14),AM87*($J$14/($M$14)),)) -> 3 | AO87: 320 | AP87: =+IF(AO87>=$M$10,$J$10,IF(AO87<($M$10),AO87*($J$10/($M$10)),)) -> 2 | AQ87: =IF(CN87=0,"-",IF(CN87=1,"taksi",IF(CN87=2,"pikkubussi","bussi"))) -> bussi | AR87: =IF(CN87=0,0,IF(CN87<3,$F$7/2,$F$7)) -> 3 | AS87: =SUM(AL87,AN87,AP87,AR87) -> 17 | AT87: =+AS87*$H$4 -> 5.666666667 | AU87: =+IF(W87=0,0,IF(W87>$L$6,$F$9,($F$9/$L$6)*W87)) -> 9 | AV87: =IF(CP87>0,$F$10,0) -> 0 | AW87: =IF(CR87>0,$F$11,0) -> 1 | AX87: =IF(CS87>0,$F$12,0) -> 1 | AY87: =IF(CT87>0,$F$13,0) -> 0 | AZ87: =IF(CU87>0,$F$14,0) -> 1 | BA87: =+IF(CV87>=$M$22,$J$22,IF(CV87<($M$22),CV87*($J$22/($M$22)),)) -> 0 | BB87: =+IF(CW87>=$M$23,$J$23,IF(CW87<($M$23),CW87*($J$23/($M$23)),)) -> 0 | BC87: =+IF(CX87>=$M$24,$J$24,IF(CX87<($M$24),CX87*($J$24/($M$24)),)) -> 0 | BD87: =+IF(CY87>=$M$25,$J$25,IF(CY87<($M$25),CY87*($J$25/($M$25)),)) -> 0 | BE87: =IF(CZ87>0,$F$16,0) -> 0 | BF87: =+IF(DC87>=$M$28,$J$28,IF(DC87<($M$28),DC87*($J$28/($M$28)),)) -> 0 | BG87: =IF(DO87>0,$F$18,0) -> 0 | BH87: =IF(COUNTIF($J$31:$M$31,TRUE)=0, 0, IF(SUMIF($J$31:$M$31,TRUE,DP87:DT87)/COUNTIF($J$31:$M$31,TRUE)>=$M$32, $F$19, $F$19*(SUMIF($J$31:$M$31,TRUE,DP87:DT87)/COUNTIF($J$31:$M$31,TRUE)/$M$32))) -> 0.4007663025 | BI87: =SUM(AU87+AV87+AW87+AX87+AY87+AZ87+BE87+BA87+BB87+BC87+BD87+BF87+BG87+BH87) -> 12.4007663 | BJ87: =+BI87*$H$9 -> 4.133588767 | BK87: 2382.682961 | BL87: =BK87/U87 -> 0.5722101252 | BM87: =IF(BL87>0,IF(BL87>=$M$18,$J$18,IF(BL87<$M$18,$J$19,0)),0) -> 1 | BN87: 4002.903115 | BO87: =BN87/U87 -> 0.9613119872 | BP87: =IF(BO87,$F$22,0) -> 1 | BQ87: =IF(DE87>0,$F$23,0) -> 1 | BR87: 1948.07543 | BS87: =BR87/U87 -> 0.4678375191 | BT87: =+IF(BS87>=$L$3,$F$24,0) -> 0 | BU87: 94.24591739 | BV87: =IF(BU87>0,IF(BU87>=100,$F$25,IF(BU87<100,$F$25/2)),0) -> 0.5 | BW87: =SUM(DI87) -> 1.5 | BX87: =IF(OR(DK87>0,DL87>0),$F$27,0) -> 1 | BY87: =IF(DJ87>0,$F$28,0) -> 0 | BZ87: =IF(DN87>0,$F$29,0) -> 1 | CA87: =SUM(BM87,BP87,BV87,BQ87,BT87,BW87,BX87,BY87,BZ87) -> 7 | CB87: =+CA87*$H$21 -> 2.333333333 | CC87: =SUM(AS87,BI87,CA87) -> 36.4007663 | CD87: =SUM(AT87,BJ87,CB87) -> 12.13358877 | CE87: =IF(D87<($W$13*$CF$31),1,IF(D87<(($W$14+$W$13)*$CF$31),2,IF(D87<(($W$15+$W$13+$W$14)*$CF$31),3,4))) -> 2 | CL87: https://www.google.com/maps/@60.4886427031,26.6644841567,3a,75y,90t/data=!3m3!1e1!3m1!2e0 | CN87: 3 | CP87: 0 | CR87: 1 | CS87: 1 | CT87: 0 | CU87: 3 | CV87: 0 | CW87: 0 | CX87: 0 | CY87: 0 | CZ87: 0 | DC87: 0 | DE87: 1 | DG87: =IF(X87>$L$7,$F$26/2,0) -> 1.5 | DH87: =+IF(X87/V87>1.5,$F$26/2,0) -> 0 | DI87: =SUM(DG87:DH87) -> 1.5 | DJ87: 0 | DK87: 1 | DL87: 0 | DN87: 1 | DO87: 0 | DP87: 1.251486037 | DQ87: 0.9101047167 | DR87: 0.8441565145 | DS87: 1.102335749 | DT87: =AVERAGE(DP87:DR87) -> 1.001915756 | DV87: 86 | DW87: =D87 -> 49 | DX87: =DV87-DW87 -> 37 | DY87: 2 | DZ87: =H87 -> 2 | EA87: =DY87-DZ87 -> 0
A88: =CONCATENATE(P88,"_",Q88) -> 371_7 | B88: 2 | D88: =RANK(CD88,$CD$39:$CD$711) -> 50 | E88: 50 | F88: =E88-D88 -> 0 | G88: =CD88 -> 12.07821968 | H88: =CE88 -> 2 | I88: =B88-H88 -> 0 | J88: =HYPERLINK(CL88,"Gmaps") -> Gmaps | K88: =IF(V88>$L$5,"KESKI","VÄHÄ") -> KESKI | L88: =IF(P88<40,"Valta",IF(P88<100,"Kanta",IF(P88<1000,"Seutu",IF(P88>999,"Yhdys")))) -> Seutu | M88: Matarojantie | N88: Kouvola | O88: Kymenlaakso | P88: 371 | Q88: 7 | R88: 0 | S88: 7 | T88: 7142 | U88: =T88-R88 -> 7142 | V88: 1144 | W88: 53 | X88: 1258 | Y88: 1144 (100 %) | Z88: 60 (5 %), 80 (95 %) | AA88: Ib (100 %) | AB88: Asfalttibetoni (100 %), Kantavan kerroksen asfalttibetoni (ABK) (5 %) | AC88: PK2 (100 %) | AD88: 3 | AE88: 4 | AF88: 0 | AG88: 21 | AL88: =+IF(V88>=$L$5,$F$4,($F$4/($L$5))*V88) -> 9 | AM88: 0 | AN88: =+IF(AM88>=$M$14,$J$14,IF(AM88<($M$14),AM88*($J$14/($M$14)),)) -> 0 | AO88: 333 | AP88: =+IF(AO88>=$M$10,$J$10,IF(AO88<($M$10),AO88*($J$10/($M$10)),)) -> 2 | AQ88: =IF(CN88=0,"-",IF(CN88=1,"taksi",IF(CN88=2,"pikkubussi","bussi"))) -> bussi | AR88: =IF(CN88=0,0,IF(CN88<3,$F$7/2,$F$7)) -> 3 | AS88: =SUM(AL88,AN88,AP88,AR88) -> 14 | AT88: =+AS88*$H$4 -> 4.666666667 | AU88: =+IF(W88=0,0,IF(W88>$L$6,$F$9,($F$9/$L$6)*W88)) -> 9 | AV88: =IF(CP88>0,$F$10,0) -> 2 | AW88: =IF(CR88>0,$F$11,0) -> 1 | AX88: =IF(CS88>0,$F$12,0) -> 1 | AY88: =IF(CT88>0,$F$13,0) -> 1 | AZ88: =IF(CU88>0,$F$14,0) -> 1 | BA88: =+IF(CV88>=$M$22,$J$22,IF(CV88<($M$22),CV88*($J$22/($M$22)),)) -> 0.275 | BB88: =+IF(CW88>=$M$23,$J$23,IF(CW88<($M$23),CW88*($J$23/($M$23)),)) -> 0.03 | BC88: =+IF(CX88>=$M$24,$J$24,IF(CX88<($M$24),CX88*($J$24/($M$24)),)) -> 0 | BD88: =+IF(CY88>=$M$25,$J$25,IF(CY88<($M$25),CY88*($J$25/($M$25)),)) -> 0 | BE88: =IF(CZ88>0,$F$16,0) -> 0 | BF88: =+IF(DC88>=$M$28,$J$28,IF(DC88<($M$28),DC88*($J$28/($M$28)),)) -> 0.6666666667 | BG88: =IF(DO88>0,$F$18,0) -> 1 | BH88: =IF(COUNTIF($J$31:$M$31,TRUE)=0, 0, IF(SUMIF($J$31:$M$31,TRUE,DP88:DT88)/COUNTIF($J$31:$M$31,TRUE)>=$M$32, $F$19, $F$19*(SUMIF($J$31:$M$31,TRUE,DP88:DT88)/COUNTIF($J$31:$M$31,TRUE)/$M$32))) -> 0.7629923735 | BI88: =SUM(AU88+AV88+AW88+AX88+AY88+AZ88+BE88+BA88+BB88+BC88+BD88+BF88+BG88+BH88) -> 17.73465904 | BJ88: =+BI88*$H$9 -> 5.911553013 | BK88: 358.6541979 | BL88: =BK88/U88 -> 0.05021761382 | BM88: =IF(BL88>0,IF(BL88>=$M$18,$J$18,IF(BL88<$M$18,$J$19,0)),0) -> 0.5 | BN88: 0 | BO88: =BN88/U88 -> 0 | BP88: =IF(BO88,$F$22,0) -> 0 | BQ88: =IF(DE88>0,$F$23,0) -> 1 | BR88: 435.229483 | BS88: =BR88/U88 -> 0.06093944035 | BT88: =+IF(BS88>=$L$3,$F$24,0) -> 0 | BU88: 5.353962475 | BV88: =IF(BU88>0,IF(BU88>=100,$F$25,IF(BU88<100,$F$25/2)),0) -> 0.5 | BW88: =SUM(DI88) -> 1.5 | BX88: =IF(OR(DK88>0,DL88>0),$F$27,0) -> 0 | BY88: =IF(DJ88>0,$F$28,0) -> 0 | BZ88: =IF(DN88>0,$F$29,0) -> 1 | CA88: =SUM(BM88,BP88,BV88,BQ88,BT88,BW88,BX88,BY88,BZ88) -> 4.5 | CB88: =+CA88*$H$21 -> 1.5 | CC88: =SUM(AS88,BI88,CA88) -> 36.23465904 | CD88: =SUM(AT88,BJ88,CB88) -> 12.07821968 | CE88: =IF(D88<($W$13*$CF$31),1,IF(D88<(($W$14+$W$13)*$CF$31),2,IF(D88<(($W$15+$W$13+$W$14)*$CF$31),3,4))) -> 2 | CL88: https://www.google.com/maps/@60.7378393387,26.9548449542,3a,75y,90t/data=!3m3!1e1!3m1!2e0 | CN88: 3 | CP88: 3 | CR88: 6 | CS88: 4 | CT88: 1 | CU88: 4 | CV88: 165 | CW88: 6 | CX88: 0 | CY88: 0 | CZ88: 0 | DC88: 2 | DE88: 2 | DG88: =IF(X88>$L$7,$F$26/2,0) -> 1.5 | DH88: =+IF(X88/V88>1.5,$F$26/2,0) -> 0 | DI88: =SUM(DG88:DH88) -> 1.5 | DJ88: 0 | DK88: 0 | DL88: 0 | DN88: 1 | DO88: 1 | DP88: 1.699115721 | DQ88: 2.275346988 | DR88: 1.747980093 | DS88: 2.402657579 | DT88: =AVERAGE(DP88:DR88) -> 1.907480934 | DV88: 38 | DW88: =D88 -> 50 | DX88: =DV88-DW88 -> -12 | DY88: 2 | DZ88: =H88 -> 2 | EA88: =DY88-DZ88 -> 0
A89: =CONCATENATE(P89,"_",Q89) -> 3933_1 | B89: 2 | D89: =RANK(CD89,$CD$39:$CD$711) -> 51 | E89: 51 | F89: =E89-D89 -> 0 | G89: =CD89 -> 12.06666667 | H89: =CE89 -> 2 | I89: =B89-H89 -> 0 | J89: =HYPERLINK(CL89,"Gmaps") -> Gmaps | K89: =IF(V89>$L$5,"KESKI","VÄHÄ") -> KESKI | L89: =IF(P89<40,"Valta",IF(P89<100,"Kanta",IF(P89<1000,"Seutu",IF(P89>999,"Yhdys")))) -> Yhdys | M89: Saimaantie | N89: Lappeenranta | O89: Etelä-Karjala | P89: 3933 | Q89: 1 | R89: 0 | S89: 1 | T89: 1012 | U89: =T89-R89 -> 1012 | V89: 1354 | W89: 52 | X89: 1489 | Y89: 1354 (92 %) | Z89: 40 (90 %), 80 (2 %) | AA89: Ic (90 %) | AB89: Asfalttibetoni (85 %) | AC89: PK2 (83 %) | AD89: 0 | AE89: 2 | AF89: 0 | AG89: 29 | AL89: =+IF(V89>=$L$5,$F$4,($F$4/($L$5))*V89) -> 9 | AM89: 9 | AN89: =+IF(AM89>=$M$14,$J$14,IF(AM89<($M$14),AM89*($J$14/($M$14)),)) -> 2.7 | AO89: 446 | AP89: =+IF(AO89>=$M$10,$J$10,IF(AO89<($M$10),AO89*($J$10/($M$10)),)) -> 2 | AQ89: =IF(CN89=0,"-",IF(CN89=1,"taksi",IF(CN89=2,"pikkubussi","bussi"))) -> bussi | AR89: =IF(CN89=0,0,IF(CN89<3,$F$7/2,$F$7)) -> 3 | AS89: =SUM(AL89,AN89,AP89,AR89) -> 16.7 | AT89: =+AS89*$H$4 -> 5.566666667 | AU89: =+IF(W89=0,0,IF(W89>$L$6,$F$9,($F$9/$L$6)*W89)) -> 9 | AV89: =IF(CP89>0,$F$10,0) -> 0 | AW89: =IF(CR89>0,$F$11,0) -> 0 | AX89: =IF(CS89>0,$F$12,0) -> 0 | AY89: =IF(CT89>0,$F$13,0) -> 0 | AZ89: =IF(CU89>0,$F$14,0) -> 0 | BA89: =+IF(CV89>=$M$22,$J$22,IF(CV89<($M$22),CV89*($J$22/($M$22)),)) -> 0 | BB89: =+IF(CW89>=$M$23,$J$23,IF(CW89<($M$23),CW89*($J$23/($M$23)),)) -> 0 | BC89: =+IF(CX89>=$M$24,$J$24,IF(CX89<($M$24),CX89*($J$24/($M$24)),)) -> 0 | BD89: =+IF(CY89>=$M$25,$J$25,IF(CY89<($M$25),CY89*($J$25/($M$25)),)) -> 0 | BE89: =IF(CZ89>0,$F$16,0) -> 0 | BF89: =+IF(DC89>=$M$28,$J$28,IF(DC89<($M$28),DC89*($J$28/($M$28)),)) -> 0 | BG89: =IF(DO89>0,$F$18,0) -> 1 | BH89: =IF(COUNTIF($J$31:$M$31,TRUE)=0, 0, IF(SUMIF($J$31:$M$31,TRUE,DP89:DT89)/COUNTIF($J$31:$M$31,TRUE)>=$M$32, $F$19, $F$19*(SUMIF($J$31:$M$31,TRUE,DP89:DT89)/COUNTIF($J$31:$M$31,TRUE)/$M$32))) -> 2 | BI89: =SUM(AU89+AV89+AW89+AX89+AY89+AZ89+BE89+BA89+BB89+BC89+BD89+BF89+BG89+BH89) -> 12 | BJ89: =+BI89*$H$9 -> 4 | BK89: 931.6770531 | BL89: =BK89/U89 -> 0.9206294991 | BM89: =IF(BL89>0,IF(BL89>=$M$18,$J$18,IF(BL89<$M$18,$J$19,0)),0) -> 1 | BN89: 0 | BO89: =BN89/U89 -> 0 | BP89: =IF(BO89,$F$22,0) -> 0 | BQ89: =IF(DE89>0,$F$23,0) -> 1 | BR89: 931.6770531 | BS89: =BR89/U89 -> 0.9206294991 | BT89: =+IF(BS89>=$L$3,$F$24,0) -> 1 | BU89: 722.9920949 | BV89: =IF(BU89>0,IF(BU89>=100,$F$25,IF(BU89<100,$F$25/2)),0) -> 1 | BW89: =SUM(DI89) -> 1.5 | BX89: =IF(OR(DK89>0,DL89>0),$F$27,0) -> 1 | BY89: =IF(DJ89>0,$F$28,0) -> 0 | BZ89: =IF(DN89>0,$F$29,0) -> 1 | CA89: =SUM(BM89,BP89,BV89,BQ89,BT89,BW89,BX89,BY89,BZ89) -> 7.5 | CB89: =+CA89*$H$21 -> 2.5 | CC89: =SUM(AS89,BI89,CA89) -> 36.2 | CD89: =SUM(AT89,BJ89,CB89) -> 12.06666667 | CE89: =IF(D89<($W$13*$CF$31),1,IF(D89<(($W$14+$W$13)*$CF$31),2,IF(D89<(($W$15+$W$13+$W$14)*$CF$31),3,4))) -> 2 | CL89: https://www.google.com/maps/@61.1232169994,28.5003301135,3a,75y,90t/data=!3m3!1e1!3m1!2e0 | CN89: 3 | CP89: 0 | CR89: 0 | CS89: 0 | CT89: 0 | CU89: 0 | CV89: 0 | CW89: 0 | CX89: 0 | CY89: 0 | CZ89: 0 | DC89: 0 | DE89: 3 | DG89: =IF(X89>$L$7,$F$26/2,0) -> 1.5 | DH89: =+IF(X89/V89>1.5,$F$26/2,0) -> 0 | DI89: =SUM(DG89:DH89) -> 1.5 | DJ89: 0 | DK89: 1 | DL89: 0 | DN89: 1 | DO89: 1 | DP89: 27.06937093 | DQ89: 1.18394673 | DR89: 0.647273948 | DS89: 0.3436324657 | DT89: =AVERAGE(DP89:DR89) -> 9.633530536 | DV89: 73 | DW89: =D89 -> 51 | DX89: =DV89-DW89 -> 22 | DY89: 2 | DZ89: =H89 -> 2 | EA89: =DY89-DZ89 -> 0
A90: =CONCATENATE(P90,"_",Q90) -> 14832_2 | B90: 2 | D90: =RANK(CD90,$CD$39:$CD$711) -> 52 | E90: 52 | F90: =E90-D90 -> 0 | G90: =CD90 -> 12.05555556 | H90: =CE90 -> 2 | I90: =B90-H90 -> 0 | J90: =HYPERLINK(CL90,"Gmaps") -> Gmaps | K90: =IF(V90>$L$5,"KESKI","VÄHÄ") -> KESKI | L90: =IF(P90<40,"Valta",IF(P90<100,"Kanta",IF(P90<1000,"Seutu",IF(P90>999,"Yhdys")))) -> Yhdys | M90: Haukilahdentie, Saimaantie | N90: Lappeenranta | O90: Etelä-Karjala | P90: 14832 | Q90: 2 | R90: 0 | S90: 2 | T90: 2917 | U90: =T90-R90 -> 2917 | V90: 1435 | W90: 285 | X90: 1564 | Y90: 1435 (100 %) | Z90: 40 (20 %), 50 (80 %) | AA90: Ic (80 %), II (19 %) | AB90: Asfalttibetoni (100 %) | AC90: PK2 (100 %) | AD90: 0 | AE90: 1 | AF90: 0.07439149811 | AG90: 246 | AL90: =+IF(V90>=$L$5,$F$4,($F$4/($L$5))*V90) -> 9 | AM90: 17 | AN90: =+IF(AM90>=$M$14,$J$14,IF(AM90<($M$14),AM90*($J$14/($M$14)),)) -> 3 | AO90: 536 | AP90: =+IF(AO90>=$M$10,$J$10,IF(AO90<($M$10),AO90*($J$10/($M$10)),)) -> 2 | AQ90: =IF(CN90=0,"-",IF(CN90=1,"taksi",IF(CN90=2,"pikkubussi","bussi"))) -> bussi | AR90: =IF(CN90=0,0,IF(CN90<3,$F$7/2,$F$7)) -> 3 | AS90: =SUM(AL90,AN90,AP90,AR90) -> 17 | AT90: =+AS90*$H$4 -> 5.666666667 | AU90: =+IF(W90=0,0,IF(W90>$L$6,$F$9,($F$9/$L$6)*W90)) -> 9 | AV90: =IF(CP90>0,$F$10,0) -> 0 | AW90: =IF(CR90>0,$F$11,0) -> 0 | AX90: =IF(CS90>0,$F$12,0) -> 0 | AY90: =IF(CT90>0,$F$13,0) -> 0 | AZ90: =IF(CU90>0,$F$14,0) -> 0 | BA90: =+IF(CV90>=$M$22,$J$22,IF(CV90<($M$22),CV90*($J$22/($M$22)),)) -> 0 | BB90: =+IF(CW90>=$M$23,$J$23,IF(CW90<($M$23),CW90*($J$23/($M$23)),)) -> 0 | BC90: =+IF(CX90>=$M$24,$J$24,IF(CX90<($M$24),CX90*($J$24/($M$24)),)) -> 0 | BD90: =+IF(CY90>=$M$25,$J$25,IF(CY90<($M$25),CY90*($J$25/($M$25)),)) -> 0 | BE90: =IF(CZ90>0,$F$16,0) -> 0 | BF90: =+IF(DC90>=$M$28,$J$28,IF(DC90<($M$28),DC90*($J$28/($M$28)),)) -> 0.6666666667 | BG90: =IF(DO90>0,$F$18,0) -> 0 | BH90: =IF(COUNTIF($J$31:$M$31,TRUE)=0, 0, IF(SUMIF($J$31:$M$31,TRUE,DP90:DT90)/COUNTIF($J$31:$M$31,TRUE)>=$M$32, $F$19, $F$19*(SUMIF($J$31:$M$31,TRUE,DP90:DT90)/COUNTIF($J$31:$M$31,TRUE)/$M$32))) -> 2 | BI90: =SUM(AU90+AV90+AW90+AX90+AY90+AZ90+BE90+BA90+BB90+BC90+BD90+BF90+BG90+BH90) -> 11.66666667 | BJ90: =+BI90*$H$9 -> 3.888888889 | BK90: 2910.726434 | BL90: =BK90/U90 -> 0.997849309 | BM90: =IF(BL90>0,IF(BL90>=$M$18,$J$18,IF(BL90<$M$18,$J$19,0)),0) -> 1 | BN90: 2910.726434 | BO90: =BN90/U90 -> 0.997849309 | BP90: =IF(BO90,$F$22,0) -> 1 | BQ90: =IF(DE90>0,$F$23,0) -> 0 | BR90: 2910.726434 | BS90: =BR90/U90 -> 0.997849309 | BT90: =+IF(BS90>=$L$3,$F$24,0) -> 1 | BU90: 266.9674323 | BV90: =IF(BU90>0,IF(BU90>=100,$F$25,IF(BU90<100,$F$25/2)),0) -> 1 | BW90: =SUM(DI90) -> 1.5 | BX90: =IF(OR(DK90>0,DL90>0),$F$27,0) -> 1 | BY90: =IF(DJ90>0,$F$28,0) -> 0 | BZ90: =IF(DN90>0,$F$29,0) -> 1 | CA90: =SUM(BM90,BP90,BV90,BQ90,BT90,BW90,BX90,BY90,BZ90) -> 7.5 | CB90: =+CA90*$H$21 -> 2.5 | CC90: =SUM(AS90,BI90,CA90) -> 36.16666667 | CD90: =SUM(AT90,BJ90,CB90) -> 12.05555556 | CE90: =IF(D90<($W$13*$CF$31),1,IF(D90<(($W$14+$W$13)*$CF$31),2,IF(D90<(($W$15+$W$13+$W$14)*$CF$31),3,4))) -> 2 | CL90: https://www.google.com/maps/@61.1270374864,28.4510647724,3a,75y,90t/data=!3m3!1e1!3m1!2e0 | CN90: 3 | CP90: 0 | CR90: 0 | CS90: 0 | CT90: 0 | CU90: 0 | CV90: 0 | CW90: 0 | CX90: 0 | CY90: 0 | CZ90: 0 | DC90: 2 | DE90: 0 | DG90: =IF(X90>$L$7,$F$26/2,0) -> 1.5 | DH90: =+IF(X90/V90>1.5,$F$26/2,0) -> 0 | DI90: =SUM(DG90:DH90) -> 1.5 | DJ90: 0 | DK90: 1 | DL90: 0 | DN90: 1 | DO90: 0 | DP90: 14.7816014 | DQ90: 0.8006893654 | DR90: 0.4811091156 | DS90: 0.1810049382 | DT90: =AVERAGE(DP90:DR90) -> 5.354466627 | DV90: 111 | DW90: =D90 -> 52 | DX90: =DV90-DW90 -> 59 | DY90: 2 | DZ90: =H90 -> 2 | EA90: =DY90-DZ90 -> 0
A91: =CONCATENATE(P91,"_",Q91) -> 14616_1 | B91: 2 | D91: =RANK(CD91,$CD$39:$CD$711) -> 53 | E91: 53 | F91: =E91-D91 -> 0 | G91: =CD91 -> 12.03648645 | H91: =CE91 -> 2 | I91: =B91-H91 -> 0 | J91: =HYPERLINK(CL91,"Gmaps") -> Gmaps | K91: =IF(V91>$L$5,"KESKI","VÄHÄ") -> KESKI | L91: =IF(P91<40,"Valta",IF(P91<100,"Kanta",IF(P91<1000,"Seutu",IF(P91>999,"Yhdys")))) -> Yhdys | M91: Jyrääntie | N91: Kouvola | O91: Kymenlaakso | P91: 14616 | Q91: 1 | R91: 0 | S91: 1 | T91: 4911 | U91: =T91-R91 -> 4911 | V91: 1259 | W91: 116 | X91: 1478 | Y91: 1259 (100 %) | Z91: 50 (24 %), 60 (23 %), 80 (53 %) | AA91: Ib (100 %) | AB91: Asfalttibetoni (100 %), Kantavan kerroksen asfalttibetoni (ABK) (7 %), Pehmeät asfalttibetonit (PAB-B) (0 %) | AC91: PK3 (100 %) | AD91: 1 | AE91: 3 | AF91: 0.490938709 | AG91: 56 | AL91: =+IF(V91>=$L$5,$F$4,($F$4/($L$5))*V91) -> 9 | AM91: 0 | AN91: =+IF(AM91>=$M$14,$J$14,IF(AM91<($M$14),AM91*($J$14/($M$14)),)) -> 0 | AO91: 258 | AP91: =+IF(AO91>=$M$10,$J$10,IF(AO91<($M$10),AO91*($J$10/($M$10)),)) -> 1.72 | AQ91: =IF(CN91=0,"-",IF(CN91=1,"taksi",IF(CN91=2,"pikkubussi","bussi"))) -> bussi | AR91: =IF(CN91=0,0,IF(CN91<3,$F$7/2,$F$7)) -> 3 | AS91: =SUM(AL91,AN91,AP91,AR91) -> 13.72 | AT91: =+AS91*$H$4 -> 4.573333333 | AU91: =+IF(W91=0,0,IF(W91>$L$6,$F$9,($F$9/$L$6)*W91)) -> 9 | AV91: =IF(CP91>0,$F$10,0) -> 2 | AW91: =IF(CR91>0,$F$11,0) -> 1 | AX91: =IF(CS91>0,$F$12,0) -> 1 | AY91: =IF(CT91>0,$F$13,0) -> 0 | AZ91: =IF(CU91>0,$F$14,0) -> 1 | BA91: =+IF(CV91>=$M$22,$J$22,IF(CV91<($M$22),CV91*($J$22/($M$22)),)) -> 0 | BB91: =+IF(CW91>=$M$23,$J$23,IF(CW91<($M$23),CW91*($J$23/($M$23)),)) -> 0 | BC91: =+IF(CX91>=$M$24,$J$24,IF(CX91<($M$24),CX91*($J$24/($M$24)),)) -> 0 | BD91: =+IF(CY91>=$M$25,$J$25,IF(CY91<($M$25),CY91*($J$25/($M$25)),)) -> 0 | BE91: =IF(CZ91>0,$F$16,0) -> 0 | BF91: =+IF(DC91>=$M$28,$J$28,IF(DC91<($M$28),DC91*($J$28/($M$28)),)) -> 0 | BG91: =IF(DO91>0,$F$18,0) -> 0 | BH91: =IF(COUNTIF($J$31:$M$31,TRUE)=0, 0, IF(SUMIF($J$31:$M$31,TRUE,DP91:DT91)/COUNTIF($J$31:$M$31,TRUE)>=$M$32, $F$19, $F$19*(SUMIF($J$31:$M$31,TRUE,DP91:DT91)/COUNTIF($J$31:$M$31,TRUE)/$M$32))) -> 1.88945934 | BI91: =SUM(AU91+AV91+AW91+AX91+AY91+AZ91+BE91+BA91+BB91+BC91+BD91+BF91+BG91+BH91) -> 15.88945934 | BJ91: =+BI91*$H$9 -> 5.296486447 | BK91: 302.1855042 | BL91: =BK91/U91 -> 0.06153237715 | BM91: =IF(BL91>0,IF(BL91>=$M$18,$J$18,IF(BL91<$M$18,$J$19,0)),0) -> 0.5 | BN91: 4470.536576 | BO91: =BN91/U91 -> 0.9103108483 | BP91: =IF(BO91,$F$22,0) -> 1 | BQ91: =IF(DE91>0,$F$23,0) -> 1 | BR91: 563.262425 | BS91: =BR91/U91 -> 0.1146940389 | BT91: =+IF(BS91>=$L$3,$F$24,0) -> 0 | BU91: 33.83078803 | BV91: =IF(BU91>0,IF(BU91>=100,$F$25,IF(BU91<100,$F$25/2)),0) -> 0.5 | BW91: =SUM(DI91) -> 1.5 | BX91: =IF(OR(DK91>0,DL91>0),$F$27,0) -> 1 | BY91: =IF(DJ91>0,$F$28,0) -> 0 | BZ91: =IF(DN91>0,$F$29,0) -> 1 | CA91: =SUM(BM91,BP91,BV91,BQ91,BT91,BW91,BX91,BY91,BZ91) -> 6.5 | CB91: =+CA91*$H$21 -> 2.166666667 | CC91: =SUM(AS91,BI91,CA91) -> 36.10945934 | CD91: =SUM(AT91,BJ91,CB91) -> 12.03648645 | CE91: =IF(D91<($W$13*$CF$31),1,IF(D91<(($W$14+$W$13)*$CF$31),2,IF(D91<(($W$15+$W$13+$W$14)*$CF$31),3,4))) -> 2 | CL91: https://www.google.com/maps/@60.8860689153,26.8346140224,3a,75y,90t/data=!3m3!1e1!3m1!2e0 | CN91: 3 | CP91: 1 | CR91: 2 | CS91: 1 | CT91: 0 | CU91: 10 | CV91: 0 | CW91: 0 | CX91: 0 | CY91: 0 | CZ91: 0 | DC91: 0 | DE91: 3 | DG91: =IF(X91>$L$7,$F$26/2,0) -> 1.5 | DH91: =+IF(X91/V91>1.5,$F$26/2,0) -> 0 | DI91: =SUM(DG91:DH91) -> 1.5 | DJ91: 0 | DK91: 1 | DL91: 0 | DN91: 1 | DO91: 0 | DP91: 3.426048814 | DQ91: 3.204866818 | DR91: 7.540029419 | DS91: 1.667270998 | DT91: =AVERAGE(DP91:DR91) -> 4.72364835 | DV91: 62 | DW91: =D91 -> 53 | DX91: =DV91-DW91 -> 9 | DY91: 2 | DZ91: =H91 -> 2 | EA91: =DY91-DZ91 -> 0
A92: =CONCATENATE(P92,"_",Q92) -> 387_6 | B92: 2 | D92: =RANK(CD92,$CD$39:$CD$711) -> 54 | E92: 54 | F92: =E92-D92 -> 0 | G92: =CD92 -> 12.01333333 | H92: =CE92 -> 2 | I92: =B92-H92 -> 0 | J92: =HYPERLINK(CL92,"Gmaps") -> Gmaps | K92: =IF(V92>$L$5,"KESKI","VÄHÄ") -> KESKI | L92: =IF(P92<40,"Valta",IF(P92<100,"Kanta",IF(P92<1000,"Seutu",IF(P92>999,"Yhdys")))) -> Seutu | M92: Vaalimaantie | N92: Lappeenranta | O92: Etelä-Karjala | P92: 387 | Q92: 6 | R92: 0 | S92: 6 | T92: 5072 | U92: =T92-R92 -> 5072 | V92: 2184 | W92: 180 | X92: 2402 | Y92: 2184 (100 %) | Z92: 100 (95 %), 80 (6 %) | AA92: Is (100 %) | AB92: Asfalttibetoni (100 %) | AC92: PK2 (100 %) | AD92: 0 | AE92: 3 | AF92: 0.09858044164 | AG92: 92 | AL92: =+IF(V92>=$L$5,$F$4,($F$4/($L$5))*V92) -> 9 | AM92: 11 | AN92: =+IF(AM92>=$M$14,$J$14,IF(AM92<($M$14),AM92*($J$14/($M$14)),)) -> 3 | AO92: 330 | AP92: =+IF(AO92>=$M$10,$J$10,IF(AO92<($M$10),AO92*($J$10/($M$10)),)) -> 2 | AQ92: =IF(CN92=0,"-",IF(CN92=1,"taksi",IF(CN92=2,"pikkubussi","bussi"))) -> bussi | AR92: =IF(CN92=0,0,IF(CN92<3,$F$7/2,$F$7)) -> 3 | AS92: =SUM(AL92,AN92,AP92,AR92) -> 17 | AT92: =+AS92*$H$4 -> 5.666666667 | AU92: =+IF(W92=0,0,IF(W92>$L$6,$F$9,($F$9/$L$6)*W92)) -> 9 | AV92: =IF(CP92>0,$F$10,0) -> 2 | AW92: =IF(CR92>0,$F$11,0) -> 0 | AX92: =IF(CS92>0,$F$12,0) -> 0 | AY92: =IF(CT92>0,$F$13,0) -> 0 | AZ92: =IF(CU92>0,$F$14,0) -> 0 | BA92: =+IF(CV92>=$M$22,$J$22,IF(CV92<($M$22),CV92*($J$22/($M$22)),)) -> 0.03 | BB92: =+IF(CW92>=$M$23,$J$23,IF(CW92<($M$23),CW92*($J$23/($M$23)),)) -> 0.01 | BC92: =+IF(CX92>=$M$24,$J$24,IF(CX92<($M$24),CX92*($J$24/($M$24)),)) -> 0 | BD92: =+IF(CY92>=$M$25,$J$25,IF(CY92<($M$25),CY92*($J$25/($M$25)),)) -> 0 | BE92: =IF(CZ92>0,$F$16,0) -> 0 | BF92: =+IF(DC92>=$M$28,$J$28,IF(DC92<($M$28),DC92*($J$28/($M$28)),)) -> 0 | BG92: =IF(DO92>0,$F$18,0) -> 0 | BH92: =IF(COUNTIF($J$31:$M$31,TRUE)=0, 0, IF(SUMIF($J$31:$M$31,TRUE,DP92:DT92)/COUNTIF($J$31:$M$31,TRUE)>=$M$32, $F$19, $F$19*(SUMIF($J$31:$M$31,TRUE,DP92:DT92)/COUNTIF($J$31:$M$31,TRUE)/$M$32))) -> 2 | BI92: =SUM(AU92+AV92+AW92+AX92+AY92+AZ92+BE92+BA92+BB92+BC92+BD92+BF92+BG92+BH92) -> 13.04 | BJ92: =+BI92*$H$9 -> 4.346666667 | BK92: 2550.456272 | BL92: =BK92/U92 -> 0.5028502114 | BM92: =IF(BL92>0,IF(BL92>=$M$18,$J$18,IF(BL92<$M$18,$J$19,0)),0) -> 1 | BN92: 5034.001322 | BO92: =BN92/U92 -> 0.992508147 | BP92: =IF(BO92,$F$22,0) -> 1 | BQ92: =IF(DE92>0,$F$23,0) -> 0 | BR92: 253.6824083 | BS92: =BR92/U92 -> 0.05001624769 | BT92: =+IF(BS92>=$L$3,$F$24,0) -> 0 | BU92: 5.906940063 | BV92: =IF(BU92>0,IF(BU92>=100,$F$25,IF(BU92<100,$F$25/2)),0) -> 0.5 | BW92: =SUM(DI92) -> 1.5 | BX92: =IF(OR(DK92>0,DL92>0),$F$27,0) -> 1 | BY92: =IF(DJ92>0,$F$28,0) -> 0 | BZ92: =IF(DN92>0,$F$29,0) -> 1 | CA92: =SUM(BM92,BP92,BV92,BQ92,BT92,BW92,BX92,BY92,BZ92) -> 6 | CB92: =+CA92*$H$21 -> 2 | CC92: =SUM(AS92,BI92,CA92) -> 36.04 | CD92: =SUM(AT92,BJ92,CB92) -> 12.01333333 | CE92: =IF(D92<($W$13*$CF$31),1,IF(D92<(($W$14+$W$13)*$CF$31),2,IF(D92<(($W$15+$W$13+$W$14)*$CF$31),3,4))) -> 2 | CL92: https://www.google.com/maps/@60.8166688451,28.0782127573,3a,75y,90t/data=!3m3!1e1!3m1!2e0 | CN92: 3 | CP92: 1 | CR92: 0 | CS92: 0 | CT92: 0 | CU92: 0 | CV92: 18 | CW92: 2 | CX92: 0 | CY92: 0 | CZ92: 0 | DC92: 0 | DE92: 0 | DG92: =IF(X92>$L$7,$F$26/2,0) -> 1.5 | DH92: =+IF(X92/V92>1.5,$F$26/2,0) -> 0 | DI92: =SUM(DG92:DH92) -> 1.5 | DJ92: 0 | DK92: 1 | DL92: 1 | DN92: 1 | DO92: 0 | DP92: 8.281422316 | DQ92: 7.953833468 | DR92: 11.56027128 | DS92: 3.406426453 | DT92: =AVERAGE(DP92:DR92) -> 9.265175687 | DV92: 77 | DW92: =D92 -> 54 | DX92: =DV92-DW92 -> 23 | DY92: 2 | DZ92: =H92 -> 2 | EA92: =DY92-DZ92 -> 0
A93: =CONCATENATE(P93,"_",Q93) -> 354_1 | B93: 2 | D93: =RANK(CD93,$CD$39:$CD$711) -> 55 | E93: 55 | F93: =E93-D93 -> 0 | G93: =CD93 -> 11.95494444 | H93: =CE93 -> 2 | I93: =B93-H93 -> 0 | J93: =HYPERLINK(CL93,"Gmaps") -> Gmaps | K93: =IF(V93>$L$5,"KESKI","VÄHÄ") -> KESKI | L93: =IF(P93<40,"Valta",IF(P93<100,"Kanta",IF(P93<1000,"Seutu",IF(P93>999,"Yhdys")))) -> Seutu | M93: Elimäentie | N93: Kouvola | O93: Kymenlaakso | P93: 354 | Q93: 1 | R93: 0 | S93: 1 | T93: 3834 | U93: =T93-R93 -> 3834 | V93: 1261 | W93: 140 | X93: 1387 | Y93: 1261 (100 %) | Z93: 80 (100 %) | AA93: Ib (100 %) | AB93: Asfalttibetoni (100 %) | AC93: PK2 (100 %) | AD93: 1 | AE93: 2 | AF93: 0.02608242045 | AG93: 76 | AL93: =+IF(V93>=$L$5,$F$4,($F$4/($L$5))*V93) -> 9 | AM93: 0 | AN93: =+IF(AM93>=$M$14,$J$14,IF(AM93<($M$14),AM93*($J$14/($M$14)),)) -> 0 | AO93: 643 | AP93: =+IF(AO93>=$M$10,$J$10,IF(AO93<($M$10),AO93*($J$10/($M$10)),)) -> 2 | AQ93: =IF(CN93=0,"-",IF(CN93=1,"taksi",IF(CN93=2,"pikkubussi","bussi"))) -> pikkubussi | AR93: =IF(CN93=0,0,IF(CN93<3,$F$7/2,$F$7)) -> 1.5 | AS93: =SUM(AL93,AN93,AP93,AR93) -> 12.5 | AT93: =+AS93*$H$4 -> 4.166666667 | AU93: =+IF(W93=0,0,IF(W93>$L$6,$F$9,($F$9/$L$6)*W93)) -> 9 | AV93: =IF(CP93>0,$F$10,0) -> 2 | AW93: =IF(CR93>0,$F$11,0) -> 0 | AX93: =IF(CS93>0,$F$12,0) -> 0 | AY93: =IF(CT93>0,$F$13,0) -> 0 | AZ93: =IF(CU93>0,$F$14,0) -> 1 | BA93: =+IF(CV93>=$M$22,$J$22,IF(CV93<($M$22),CV93*($J$22/($M$22)),)) -> 0.5 | BB93: =+IF(CW93>=$M$23,$J$23,IF(CW93<($M$23),CW93*($J$23/($M$23)),)) -> 0.5 | BC93: =+IF(CX93>=$M$24,$J$24,IF(CX93<($M$24),CX93*($J$24/($M$24)),)) -> 0.0315 | BD93: =+IF(CY93>=$M$25,$J$25,IF(CY93<($M$25),CY93*($J$25/($M$25)),)) -> 0.3333333333 | BE93: =IF(CZ93>0,$F$16,0) -> 1 | BF93: =+IF(DC93>=$M$28,$J$28,IF(DC93<($M$28),DC93*($J$28/($M$28)),)) -> 1 | BG93: =IF(DO93>0,$F$18,0) -> 0 | BH93: =IF(COUNTIF($J$31:$M$31,TRUE)=0, 0, IF(SUMIF($J$31:$M$31,TRUE,DP93:DT93)/COUNTIF($J$31:$M$31,TRUE)>=$M$32, $F$19, $F$19*(SUMIF($J$31:$M$31,TRUE,DP93:DT93)/COUNTIF($J$31:$M$31,TRUE)/$M$32))) -> 2 | BI93: =SUM(AU93+AV93+AW93+AX93+AY93+AZ93+BE93+BA93+BB93+BC93+BD93+BF93+BG93+BH93) -> 17.36483333 | BJ93: =+BI93*$H$9 -> 5.788277778 | BK93: 3830.001002 | BL93: =BK93/U93 -> 0.9989569646 | BM93: =IF(BL93>0,IF(BL93>=$M$18,$J$18,IF(BL93<$M$18,$J$19,0)),0) -> 1 | BN93: 3667.923165 | BO93: =BN93/U93 -> 0.9566831417 | BP93: =IF(BO93,$F$22,0) -> 1 | BQ93: =IF(DE93>0,$F$23,0) -> 1 | BR93: 1332.468479 | BS93: =BR93/U93 -> 0.3475400309 | BT93: =+IF(BS93>=$L$3,$F$24,0) -> 0 | BU93: 89.22796035 | BV93: =IF(BU93>0,IF(BU93>=100,$F$25,IF(BU93<100,$F$25/2)),0) -> 0.5 | BW93: =SUM(DI93) -> 1.5 | BX93: =IF(OR(DK93>0,DL93>0),$F$27,0) -> 0 | BY93: =IF(DJ93>0,$F$28,0) -> 0 | BZ93: =IF(DN93>0,$F$29,0) -> 1 | CA93: =SUM(BM93,BP93,BV93,BQ93,BT93,BW93,BX93,BY93,BZ93) -> 6 | CB93: =+CA93*$H$21 -> 2 | CC93: =SUM(AS93,BI93,CA93) -> 35.86483333 | CD93: =SUM(AT93,BJ93,CB93) -> 11.95494444 | CE93: =IF(D93<($W$13*$CF$31),1,IF(D93<(($W$14+$W$13)*$CF$31),2,IF(D93<(($W$15+$W$13+$W$14)*$CF$31),3,4))) -> 2 | CL93: https://www.google.com/maps/@60.7252647398,26.4166128176,3a,75y,90t/data=!3m3!1e1!3m1!2e0 | CN93: 2 | CP93: 8 | CR93: 0 | CS93: 0 | CT93: 0 | CU93: 36 | CV93: 970 | CW93: 251 | CX93: 63 | CY93: 20 | CZ93: 1 | DC93: 5 | DE93: 8 | DG93: =IF(X93>$L$7,$F$26/2,0) -> 1.5 | DH93: =+IF(X93/V93>1.5,$F$26/2,0) -> 0 | DI93: =SUM(DG93:DH93) -> 1.5 | DJ93: 0 | DK93: 0 | DL93: 0 | DN93: 1 | DO93: 0 | DP93: 6.346814629 | DQ93: 5.876996707 | DR93: 4.859562261 | DS93: 2.861239696 | DT93: =AVERAGE(DP93:DR93) -> 5.694457866 | DV93: 19 | DW93: =D93 -> 55 | DX93: =DV93-DW93 -> -36 | DY93: 1 | DZ93: =H93 -> 2 | EA93: =DY93-DZ93 -> -1
A94: =CONCATENATE(P94,"_",Q94) -> 377_7 | B94: 2 | D94: =RANK(CD94,$CD$39:$CD$711) -> 56 | E94: 56 | F94: =E94-D94 -> 0 | G94: =CD94 -> 11.93388889 | H94: =CE94 -> 2 | I94: =B94-H94 -> 0 | J94: =HYPERLINK(CL94,"Gmaps") -> Gmaps | K94: =IF(V94>$L$5,"KESKI","VÄHÄ") -> KESKI | L94: =IF(P94<40,"Valta",IF(P94<100,"Kanta",IF(P94<1000,"Seutu",IF(P94>999,"Yhdys")))) -> Seutu | M94: Tuohikotintie | N94: Savitaipale | O94: Etelä-Karjala | P94: 377 | Q94: 7 | R94: 0 | S94: 7 | T94: 4087 | U94: =T94-R94 -> 4087 | V94: 1381.952777 | W94: 97.28064595 | X94: 1685.908001 | Y94: 1015 (34 %), 1568 (66 %) | Z94: 50 (9 %), 60 (35 %), 80 (56 %) | AA94: Ic (100 %), K1 (4 %) | AB94: Asfalttibetoni (92 %), Pehmeät asfalttibetonit (PAB-B) (8 %) | AC94: PK2 (99 %) | AD94: 0 | AE94: 2 | AF94: 0.0457548324 | AG94: 43.63567409 | AL94: =+IF(V94>=$L$5,$F$4,($F$4/($L$5))*V94) -> 9 | AM94: 0 | AN94: =+IF(AM94>=$M$14,$J$14,IF(AM94<($M$14),AM94*($J$14/($M$14)),)) -> 0 | AO94: 284 | AP94: =+IF(AO94>=$M$10,$J$10,IF(AO94<($M$10),AO94*($J$10/($M$10)),)) -> 1.893333333 | AQ94: =IF(CN94=0,"-",IF(CN94=1,"taksi",IF(CN94=2,"pikkubussi","bussi"))) -> bussi | AR94: =IF(CN94=0,0,IF(CN94<3,$F$7/2,$F$7)) -> 3 | AS94: =SUM(AL94,AN94,AP94,AR94) -> 13.89333333 | AT94: =+AS94*$H$4 -> 4.631111111 | AU94: =+IF(W94=0,0,IF(W94>$L$6,$F$9,($F$9/$L$6)*W94)) -> 9 | AV94: =IF(CP94>0,$F$10,0) -> 2 | AW94: =IF(CR94>0,$F$11,0) -> 1 | AX94: =IF(CS94>0,$F$12,0) -> 1 | AY94: =IF(CT94>0,$F$13,0) -> 0 | AZ94: =IF(CU94>0,$F$14,0) -> 1 | BA94: =+IF(CV94>=$M$22,$J$22,IF(CV94<($M$22),CV94*($J$22/($M$22)),)) -> 0.3933333333 | BB94: =+IF(CW94>=$M$23,$J$23,IF(CW94<($M$23),CW94*($J$23/($M$23)),)) -> 0.015 | BC94: =+IF(CX94>=$M$24,$J$24,IF(CX94<($M$24),CX94*($J$24/($M$24)),)) -> 0 | BD94: =+IF(CY94>=$M$25,$J$25,IF(CY94<($M$25),CY94*($J$25/($M$25)),)) -> 0 | BE94: =IF(CZ94>0,$F$16,0) -> 0 | BF94: =+IF(DC94>=$M$28,$J$28,IF(DC94<($M$28),DC94*($J$28/($M$28)),)) -> 0 | BG94: =IF(DO94>0,$F$18,0) -> 0 | BH94: =IF(COUNTIF($J$31:$M$31,TRUE)=0, 0, IF(SUMIF($J$31:$M$31,TRUE,DP94:DT94)/COUNTIF($J$31:$M$31,TRUE)>=$M$32, $F$19, $F$19*(SUMIF($J$31:$M$31,TRUE,DP94:DT94)/COUNTIF($J$31:$M$31,TRUE)/$M$32))) -> 2 | BI94: =SUM(AU94+AV94+AW94+AX94+AY94+AZ94+BE94+BA94+BB94+BC94+BD94+BF94+BG94+BH94) -> 16.40833333 | BJ94: =+BI94*$H$9 -> 5.469444444 | BK94: 824.8860431 | BL94: =BK94/U94 -> 0.2018316719 | BM94: =IF(BL94>0,IF(BL94>=$M$18,$J$18,IF(BL94<$M$18,$J$19,0)),0) -> 0.5 | BN94: 0 | BO94: =BN94/U94 -> 0 | BP94: =IF(BO94,$F$22,0) -> 0 | BQ94: =IF(DE94>0,$F$23,0) -> 1 | BR94: 685.5370313 | BS94: =BR94/U94 -> 0.1677359998 | BT94: =+IF(BS94>=$L$3,$F$24,0) -> 0 | BU94: 18.03131882 | BV94: =IF(BU94>0,IF(BU94>=100,$F$25,IF(BU94<100,$F$25/2)),0) -> 0.5 | BW94: =SUM(DI94) -> 1.5 | BX94: =IF(OR(DK94>0,DL94>0),$F$27,0) -> 1 | BY94: =IF(DJ94>0,$F$28,0) -> 0 | BZ94: =IF(DN94>0,$F$29,0) -> 1 | CA94: =SUM(BM94,BP94,BV94,BQ94,BT94,BW94,BX94,BY94,BZ94) -> 5.5 | CB94: =+CA94*$H$21 -> 1.833333333 | CC94: =SUM(AS94,BI94,CA94) -> 35.80166667 | CD94: =SUM(AT94,BJ94,CB94) -> 11.93388889 | CE94: =IF(D94<($W$13*$CF$31),1,IF(D94<(($W$14+$W$13)*$CF$31),2,IF(D94<(($W$15+$W$13+$W$14)*$CF$31),3,4))) -> 2 | CL94: https://www.google.com/maps/@61.1619088319,27.6220269989,3a,75y,90t/data=!3m3!1e1!3m1!2e0 | CN94: 3 | CP94: 16 | CR94: 1 | CS94: 1 | CT94: 0 | CU94: 3 | CV94: 236 | CW94: 3 | CX94: 0 | CY94: 0 | CZ94: 0 | DC94: 0 | DE94: 17 | DG94: =IF(X94>$L$7,$F$26/2,0) -> 1.5 | DH94: =+IF(X94/V94>1.5,$F$26/2,0) -> 0 | DI94: =SUM(DG94:DH94) -> 1.5 | DJ94: 0 | DK94: 1 | DL94: 0 | DN94: 1 | DO94: 0 | DP94: 7.500023672 | DQ94: 10.45244455 | DR94: 14.86408097 | DS94: 5.968659394 | DT94: =AVERAGE(DP94:DR94) -> 10.93884973 | DV94: 63 | DW94: =D94 -> 56 | DX94: =DV94-DW94 -> 7 | DY94: 2 | DZ94: =H94 -> 2 | EA94: =DY94-DZ94 -> 0
A95: =CONCATENATE(P95,"_",Q95) -> 408_2 | B95: 2 | D95: =RANK(CD95,$CD$39:$CD$711) -> 57 | E95: 57 | F95: =E95-D95 -> 0 | G95: =CD95 -> 11.93059863 | H95: =CE95 -> 2 | I95: =B95-H95 -> 0 | J95: =HYPERLINK(CL95,"Gmaps") -> Gmaps | K95: =IF(V95>$L$5,"KESKI","VÄHÄ") -> KESKI | L95: =IF(P95<40,"Valta",IF(P95<100,"Kanta",IF(P95<1000,"Seutu",IF(P95>999,"Yhdys")))) -> Seutu | M95: Taipalsaarentie | N95: Lappeenranta, Taipalsaari | O95: Etelä-Karjala | P95: 408 | Q95: 2 | R95: 0 | S95: 2 | T95: 6939 | U95: =T95-R95 -> 6939 | V95: 4524.703704 | W95: 155.8888889 | X95: 5293.481481 | Y95: 2949 (41 %), 5608 (59 %) | Z95: 60 (12 %), 70 (88 %) | AA95: Is (100 %) | AB95: Asfalttibetoni (32 %), Kivimastiksiasfaltti (68 %) | AC95: PK2 (100 %) | AD95: 2 | AE95: 6 | AF95: 0 | AG95: 58.40740741 | AL95: =+IF(V95>=$L$5,$F$4,($F$4/($L$5))*V95) -> 9 | AM95: 24 | AN95: =+IF(AM95>=$M$14,$J$14,IF(AM95<($M$14),AM95*($J$14/($M$14)),)) -> 3 | AO95: 1359 | AP95: =+IF(AO95>=$M$10,$J$10,IF(AO95<($M$10),AO95*($J$10/($M$10)),)) -> 2 | AQ95: =IF(CN95=0,"-",IF(CN95=1,"taksi",IF(CN95=2,"pikkubussi","bussi"))) -> pikkubussi | AR95: =IF(CN95=0,0,IF(CN95<3,$F$7/2,$F$7)) -> 1.5 | AS95: =SUM(AL95,AN95,AP95,AR95) -> 15.5 | AT95: =+AS95*$H$4 -> 5.166666667 | AU95: =+IF(W95=0,0,IF(W95>$L$6,$F$9,($F$9/$L$6)*W95)) -> 9 | AV95: =IF(CP95>0,$F$10,0) -> 0 | AW95: =IF(CR95>0,$F$11,0) -> 0 | AX95: =IF(CS95>0,$F$12,0) -> 1 | AY95: =IF(CT95>0,$F$13,0) -> 0 | AZ95: =IF(CU95>0,$F$14,0) -> 1 | BA95: =+IF(CV95>=$M$22,$J$22,IF(CV95<($M$22),CV95*($J$22/($M$22)),)) -> 0.1033333333 | BB95: =+IF(CW95>=$M$23,$J$23,IF(CW95<($M$23),CW95*($J$23/($M$23)),)) -> 0 | BC95: =+IF(CX95>=$M$24,$J$24,IF(CX95<($M$24),CX95*($J$24/($M$24)),)) -> 0 | BD95: =+IF(CY95>=$M$25,$J$25,IF(CY95<($M$25),CY95*($J$25/($M$25)),)) -> 0 | BE95: =IF(CZ95>0,$F$16,0) -> 0 | BF95: =+IF(DC95>=$M$28,$J$28,IF(DC95<($M$28),DC95*($J$28/($M$28)),)) -> 1 | BG95: =IF(DO95>0,$F$18,0) -> 1 | BH95: =IF(COUNTIF($J$31:$M$31,TRUE)=0, 0, IF(SUMIF($J$31:$M$31,TRUE,DP95:DT95)/COUNTIF($J$31:$M$31,TRUE)>=$M$32, $F$19, $F$19*(SUMIF($J$31:$M$31,TRUE,DP95:DT95)/COUNTIF($J$31:$M$31,TRUE)/$M$32))) -> 0.6884625424 | BI95: =SUM(AU95+AV95+AW95+AX95+AY95+AZ95+BE95+BA95+BB95+BC95+BD95+BF95+BG95+BH95) -> 13.79179588 | BJ95: =+BI95*$H$9 -> 4.597265292 | BK95: 5689.921678 | BL95: =BK95/U95 -> 0.8199915951 | BM95: =IF(BL95>0,IF(BL95>=$M$18,$J$18,IF(BL95<$M$18,$J$19,0)),0) -> 1 | BN95: 0 | BO95: =BN95/U95 -> 0 | BP95: =IF(BO95,$F$22,0) -> 0 | BQ95: =IF(DE95>0,$F$23,0) -> 0 | BR95: 1954.388764 | BS95: =BR95/U95 -> 0.2816527977 | BT95: =+IF(BS95>=$L$3,$F$24,0) -> 0 | BU95: 126.2086756 | BV95: =IF(BU95>0,IF(BU95>=100,$F$25,IF(BU95<100,$F$25/2)),0) -> 1 | BW95: =SUM(DI95) -> 1.5 | BX95: =IF(OR(DK95>0,DL95>0),$F$27,0) -> 1 | BY95: =IF(DJ95>0,$F$28,0) -> 1 | BZ95: =IF(DN95>0,$F$29,0) -> 1 | CA95: =SUM(BM95,BP95,BV95,BQ95,BT95,BW95,BX95,BY95,BZ95) -> 6.5 | CB95: =+CA95*$H$21 -> 2.166666667 | CC95: =SUM(AS95,BI95,CA95) -> 35.79179588 | CD95: =SUM(AT95,BJ95,CB95) -> 11.93059863 | CE95: =IF(D95<($W$13*$CF$31),1,IF(D95<(($W$14+$W$13)*$CF$31),2,IF(D95<(($W$15+$W$13+$W$14)*$CF$31),3,4))) -> 2 | CL95: https://www.google.com/maps/@61.0995451396,28.1312340025,3a,75y,90t/data=!3m3!1e1!3m1!2e0 | CN95: 2 | CP95: 0 | CR95: 0 | CS95: 1 | CT95: 0 | CU95: 1 | CV95: 62 | CW95: 0 | CX95: 0 | CY95: 0 | CZ95: 0 | DC95: 4 | DE95: 0 | DG95: =IF(X95>$L$7,$F$26/2,0) -> 1.5 | DH95: =+IF(X95/V95>1.5,$F$26/2,0) -> 0 | DI95: =SUM(DG95:DH95) -> 1.5 | DJ95: 4 | DK95: 1 | DL95: 0 | DN95: 1 | DO95: 1 | DP95: 2.103619652 | DQ95: 1.485896114 | DR95: 1.573953302 | DS95: 1.229507108 | DT95: =AVERAGE(DP95:DR95) -> 1.721156356 | DV95: 35 | DW95: =D95 -> 57 | DX95: =DV95-DW95 -> -22 | DY95: 2 | DZ95: =H95 -> 2 | EA95: =DY95-DZ95 -> 0
A96: =CONCATENATE(P96,"_",Q96) -> 368_1 | B96: 2 | D96: =RANK(CD96,$CD$39:$CD$711) -> 58 | E96: 58 | F96: =E96-D96 -> 0 | G96: =CD96 -> 11.92714041 | H96: =CE96 -> 2 | I96: =B96-H96 -> 0 | J96: =HYPERLINK(CL96,"Gmaps") -> Gmaps | K96: =IF(V96>$L$5,"KESKI","VÄHÄ") -> KESKI | L96: =IF(P96<40,"Valta",IF(P96<100,"Kanta",IF(P96<1000,"Seutu",IF(P96>999,"Yhdys")))) -> Seutu | M96: Kalevantie, Multamäentie | N96: Kouvola | O96: Kymenlaakso | P96: 368 | Q96: 1 | R96: 0 | S96: 1 | T96: 7313 | U96: =T96-R96 -> 7313 | V96: 2408.699576 | W96: 135.4619171 | X96: 2824.395323 | Y96: 1660 (72 %), 4384 (27 %) | Z96: 40 (20 %), 50 (8 %), 80 (71 %) | AA96: Ib (97 %) | AB96: Asfalttibetoni (70 %), Kantavan kerroksen asfalttibetoni (ABK) (70 %), Kivimastiksiasfaltti (28 %) | AC96: PK2 (96 %) | AD96: 4 | AE96: 7 | AF96: 0.0264096131 | AG96: 31.94735403 | AL96: =+IF(V96>=$L$5,$F$4,($F$4/($L$5))*V96) -> 9 | AM96: 0 | AN96: =+IF(AM96>=$M$14,$J$14,IF(AM96<($M$14),AM96*($J$14/($M$14)),)) -> 0 | AO96: 990 | AP96: =+IF(AO96>=$M$10,$J$10,IF(AO96<($M$10),AO96*($J$10/($M$10)),)) -> 2 | AQ96: =IF(CN96=0,"-",IF(CN96=1,"taksi",IF(CN96=2,"pikkubussi","bussi"))) -> bussi | AR96: =IF(CN96=0,0,IF(CN96<3,$F$7/2,$F$7)) -> 3 | AS96: =SUM(AL96,AN96,AP96,AR96) -> 14 | AT96: =+AS96*$H$4 -> 4.666666667 | AU96: =+IF(W96=0,0,IF(W96>$L$6,$F$9,($F$9/$L$6)*W96)) -> 9 | AV96: =IF(CP96>0,$F$10,0) -> 2 | AW96: =IF(CR96>0,$F$11,0) -> 0 | AX96: =IF(CS96>0,$F$12,0) -> 1 | AY96: =IF(CT96>0,$F$13,0) -> 0 | AZ96: =IF(CU96>0,$F$14,0) -> 1 | BA96: =+IF(CV96>=$M$22,$J$22,IF(CV96<($M$22),CV96*($J$22/($M$22)),)) -> 0.055 | BB96: =+IF(CW96>=$M$23,$J$23,IF(CW96<($M$23),CW96*($J$23/($M$23)),)) -> 0.045 | BC96: =+IF(CX96>=$M$24,$J$24,IF(CX96<($M$24),CX96*($J$24/($M$24)),)) -> 0 | BD96: =+IF(CY96>=$M$25,$J$25,IF(CY96<($M$25),CY96*($J$25/($M$25)),)) -> 0 | BE96: =IF(CZ96>0,$F$16,0) -> 0 | BF96: =+IF(DC96>=$M$28,$J$28,IF(DC96<($M$28),DC96*($J$28/($M$28)),)) -> 0.3333333333 | BG96: =IF(DO96>0,$F$18,0) -> 1 | BH96: =IF(COUNTIF($J$31:$M$31,TRUE)=0, 0, IF(SUMIF($J$31:$M$31,TRUE,DP96:DT96)/COUNTIF($J$31:$M$31,TRUE)>=$M$32, $F$19, $F$19*(SUMIF($J$31:$M$31,TRUE,DP96:DT96)/COUNTIF($J$31:$M$31,TRUE)/$M$32))) -> 1.848087892 | BI96: =SUM(AU96+AV96+AW96+AX96+AY96+AZ96+BE96+BA96+BB96+BC96+BD96+BF96+BG96+BH96) -> 16.28142123 | BJ96: =+BI96*$H$9 -> 5.427140408 | BK96: 4525.748358 | BL96: =BK96/U96 -> 0.6188634429 | BM96: =IF(BL96>0,IF(BL96>=$M$18,$J$18,IF(BL96<$M$18,$J$19,0)),0) -> 1 | BN96: 0 | BO96: =BN96/U96 -> 0 | BP96: =IF(BO96,$F$22,0) -> 0 | BQ96: =IF(DE96>0,$F$23,0) -> 1 | BR96: 3128.945611 | BS96: =BR96/U96 -> 0.4278607427 | BT96: =+IF(BS96>=$L$3,$F$24,0) -> 0 | BU96: 170.313141 | BV96: =IF(BU96>0,IF(BU96>=100,$F$25,IF(BU96<100,$F$25/2)),0) -> 1 | BW96: =SUM(DI96) -> 1.5 | BX96: =IF(OR(DK96>0,DL96>0),$F$27,0) -> 0 | BY96: =IF(DJ96>0,$F$28,0) -> 0 | BZ96: =IF(DN96>0,$F$29,0) -> 1 | CA96: =SUM(BM96,BP96,BV96,BQ96,BT96,BW96,BX96,BY96,BZ96) -> 5.5 | CB96: =+CA96*$H$21 -> 1.833333333 | CC96: =SUM(AS96,BI96,CA96) -> 35.78142123 | CD96: =SUM(AT96,BJ96,CB96) -> 11.92714041 | CE96: =IF(D96<($W$13*$CF$31),1,IF(D96<(($W$14+$W$13)*$CF$31),2,IF(D96<(($W$15+$W$13+$W$14)*$CF$31),3,4))) -> 2 | CL96: https://www.google.com/maps/@60.9298712395,26.8010535766,3a,75y,90t/data=!3m3!1e1!3m1!2e0 | CN96: 3 | CP96: 2 | CR96: 0 | CS96: 3 | CT96: 0 | CU96: 2 | CV96: 33 | CW96: 9 | CX96: 0 | CY96: 0 | CZ96: 0 | DC96: 1 | DE96: 6 | DG96: =IF(X96>$L$7,$F$26/2,0) -> 1.5 | DH96: =+IF(X96/V96>1.5,$F$26/2,0) -> 0 | DI96: =SUM(DG96:DH96) -> 1.5 | DJ96: 0 | DK96: 0 | DL96: 0 | DN96: 1 | DO96: 1 | DP96: 5.289006027 | DQ96: 4.909875949 | DR96: 3.661777212 | DS96: 2.590161179 | DT96: =AVERAGE(DP96:DR96) -> 4.620219729 | DV96: 42 | DW96: =D96 -> 58 | DX96: =DV96-DW96 -> -16 | DY96: 2 | DZ96: =H96 -> 2 | EA96: =DY96-DZ96 -> 0
A97: =CONCATENATE(P97,"_",Q97) -> 409_1 | B97: 2 | D97: =RANK(CD97,$CD$39:$CD$711) -> 59 | E97: 59 | F97: =E97-D97 -> 0 | G97: =CD97 -> 11.91590647 | H97: =CE97 -> 2 | I97: =B97-H97 -> 0 | J97: =HYPERLINK(CL97,"Gmaps") -> Gmaps | K97: =IF(V97>$L$5,"KESKI","VÄHÄ") -> KESKI | L97: =IF(P97<40,"Valta",IF(P97<100,"Kanta",IF(P97<1000,"Seutu",IF(P97>999,"Yhdys")))) -> Seutu | M97: Partakoskentie, Savitaipaleentie | N97: Savitaipale | O97: Etelä-Karjala | P97: 409 | Q97: 1 | R97: 0 | S97: 1 | T97: 7800 | U97: =T97-R97 -> 7800 | V97: 562.9120513 | W97: 28.00307692 | X97: 772.254359 | Y97: 385 (78 %), 1196 (13 %), 1247 (8 %) | Z97: 40 (24 %), 50 (7 %), 60 (9 %), 80 (60 %) | AA97: Ic (21 %), II (78 %) | AB97: Asfalttibetoni (23 %), Pehmeät asfalttibetonit (PAB-B) (71 %), Pehmeät asfalttibetonit (PAB-V) (6 %) | AC97: PK3 (98 %) | AD97: 0 | AE97: 0 | AF97: 0.6282051282 | AG97: 6.008974359 | AL97: =+IF(V97>=$L$5,$F$4,($F$4/($L$5))*V97) -> 9 | AM97: 11 | AN97: =+IF(AM97>=$M$14,$J$14,IF(AM97<($M$14),AM97*($J$14/($M$14)),)) -> 3 | AO97: 348 | AP97: =+IF(AO97>=$M$10,$J$10,IF(AO97<($M$10),AO97*($J$10/($M$10)),)) -> 2 | AQ97: =IF(CN97=0,"-",IF(CN97=1,"taksi",IF(CN97=2,"pikkubussi","bussi"))) -> bussi | AR97: =IF(CN97=0,0,IF(CN97<3,$F$7/2,$F$7)) -> 3 | AS97: =SUM(AL97,AN97,AP97,AR97) -> 17 | AT97: =+AS97*$H$4 -> 5.666666667 | AU97: =+IF(W97=0,0,IF(W97>$L$6,$F$9,($F$9/$L$6)*W97)) -> 5.040553846 | AV97: =IF(CP97>0,$F$10,0) -> 2 | AW97: =IF(CR97>0,$F$11,0) -> 0 | AX97: =IF(CS97>0,$F$12,0) -> 0 | AY97: =IF(CT97>0,$F$13,0) -> 1 | AZ97: =IF(CU97>0,$F$14,0) -> 1 | BA97: =+IF(CV97>=$M$22,$J$22,IF(CV97<($M$22),CV97*($J$22/($M$22)),)) -> 0.5 | BB97: =+IF(CW97>=$M$23,$J$23,IF(CW97<($M$23),CW97*($J$23/($M$23)),)) -> 0.22 | BC97: =+IF(CX97>=$M$24,$J$24,IF(CX97<($M$24),CX97*($J$24/($M$24)),)) -> 0 | BD97: =+IF(CY97>=$M$25,$J$25,IF(CY97<($M$25),CY97*($J$25/($M$25)),)) -> 0 | BE97: =IF(CZ97>0,$F$16,0) -> 0 | BF97: =+IF(DC97>=$M$28,$J$28,IF(DC97<($M$28),DC97*($J$28/($M$28)),)) -> 0.3333333333 | BG97: =IF(DO97>0,$F$18,0) -> 1 | BH97: =IF(COUNTIF($J$31:$M$31,TRUE)=0, 0, IF(SUMIF($J$31:$M$31,TRUE,DP97:DT97)/COUNTIF($J$31:$M$31,TRUE)>=$M$32, $F$19, $F$19*(SUMIF($J$31:$M$31,TRUE,DP97:DT97)/COUNTIF($J$31:$M$31,TRUE)/$M$32))) -> 1.153832236 | BI97: =SUM(AU97+AV97+AW97+AX97+AY97+AZ97+BE97+BA97+BB97+BC97+BD97+BF97+BG97+BH97) -> 12.24771942 | BJ97: =+BI97*$H$9 -> 4.082573138 | BK97: 3868.718563 | BL97: =BK97/U97 -> 0.4959895594 | BM97: =IF(BL97>0,IF(BL97>=$M$18,$J$18,IF(BL97<$M$18,$J$19,0)),0) -> 0.5 | BN97: 0 | BO97: =BN97/U97 -> 0 | BP97: =IF(BO97,$F$22,0) -> 0 | BQ97: =IF(DE97>0,$F$23,0) -> 1 | BR97: 2954.152815 | BS97: =BR97/U97 -> 0.3787375404 | BT97: =+IF(BS97>=$L$3,$F$24,0) -> 0 | BU97: 56.88461538 | BV97: =IF(BU97>0,IF(BU97>=100,$F$25,IF(BU97<100,$F$25/2)),0) -> 0.5 | BW97: =SUM(DI97) -> 1.5 | BX97: =IF(OR(DK97>0,DL97>0),$F$27,0) -> 1 | BY97: =IF(DJ97>0,$F$28,0) -> 1 | BZ97: =IF(DN97>0,$F$29,0) -> 1 | CA97: =SUM(BM97,BP97,BV97,BQ97,BT97,BW97,BX97,BY97,BZ97) -> 6.5 | CB97: =+CA97*$H$21 -> 2.166666667 | CC97: =SUM(AS97,BI97,CA97) -> 35.74771942 | CD97: =SUM(AT97,BJ97,CB97) -> 11.91590647 | CE97: =IF(D97<($W$13*$CF$31),1,IF(D97<(($W$14+$W$13)*$CF$31),2,IF(D97<(($W$15+$W$13+$W$14)*$CF$31),3,4))) -> 2 | CL97: https://www.google.com/maps/@61.1912400784,27.7078906212,3a,75y,90t/data=!3m3!1e1!3m1!2e0 | CN97: 3 | CP97: 3 | CR97: 0 | CS97: 0 | CT97: 1 | CU97: 5 | CV97: 512 | CW97: 44 | CX97: 0 | CY97: 0 | CZ97: 0 | DC97: 1 | DE97: 1 | DG97: =IF(X97>$L$7,$F$26/2,0) -> 1.5 | DH97: =+IF(X97/V97>1.5,$F$26/2,0) -> 0 | DI97: =SUM(DG97:DH97) -> 1.5 | DJ97: 5 | DK97: 1 | DL97: 0 | DN97: 1 | DO97: 1 | DP97: 2.253057874 | DQ97: 2.600931291 | DR97: 3.799752604 | DS97: 0.8879961027 | DT97: =AVERAGE(DP97:DR97) -> 2.88458059 | DV97: 115 | DW97: =D97 -> 59 | DX97: =DV97-DW97 -> 56 | DY97: 2 | DZ97: =H97 -> 2 | EA97: =DY97-DZ97 -> 0
A98: =CONCATENATE(P98,"_",Q98) -> 4062_1 | B98: 2 | D98: =RANK(CD98,$CD$39:$CD$711) -> 60 | E98: 60 | F98: =E98-D98 -> 0 | G98: =CD98 -> 11.89377325 | H98: =CE98 -> 2 | I98: =B98-H98 -> 0 | J98: =HYPERLINK(CL98,"Gmaps") -> Gmaps | K98: =IF(V98>$L$5,"KESKI","VÄHÄ") -> KESKI | L98: =IF(P98<40,"Valta",IF(P98<100,"Kanta",IF(P98<1000,"Seutu",IF(P98>999,"Yhdys")))) -> Yhdys | M98: Pappilanlahdentie, Ukonsalmentie | N98: Ruokolahti | O98: Etelä-Karjala | P98: 4062 | Q98: 1 | R98: 0 | S98: 1 | T98: 2034 | U98: =T98-R98 -> 2034 | V98: 824.5781711 | W98: 45.6519174 | X98: 1005.280236 | Y98: 648 (39 %), 940 (60 %) | Z98: 40 (100 %) | AA98: Ic (100 %) | AB98: Asfalttibetoni (51 %), Kivimastiksiasfaltti (41 %), Pehmeät asfalttibetonit (PAB-B) (7 %) | AC98: PK2 (97 %) | AD98: 1 | AE98: 1 | AF98: 0.1642084562 | AG98: 8 | AL98: =+IF(V98>=$L$5,$F$4,($F$4/($L$5))*V98) -> 9 | AM98: 12 | AN98: =+IF(AM98>=$M$14,$J$14,IF(AM98<($M$14),AM98*($J$14/($M$14)),)) -> 3 | AO98: 165 | AP98: =+IF(AO98>=$M$10,$J$10,IF(AO98<($M$10),AO98*($J$10/($M$10)),)) -> 1.1 | AQ98: =IF(CN98=0,"-",IF(CN98=1,"taksi",IF(CN98=2,"pikkubussi","bussi"))) -> bussi | AR98: =IF(CN98=0,0,IF(CN98<3,$F$7/2,$F$7)) -> 3 | AS98: =SUM(AL98,AN98,AP98,AR98) -> 16.1 | AT98: =+AS98*$H$4 -> 5.366666667 | AU98: =+IF(W98=0,0,IF(W98>$L$6,$F$9,($F$9/$L$6)*W98)) -> 8.217345133 | AV98: =IF(CP98>0,$F$10,0) -> 2 | AW98: =IF(CR98>0,$F$11,0) -> 0 | AX98: =IF(CS98>0,$F$12,0) -> 1 | AY98: =IF(CT98>0,$F$13,0) -> 0 | AZ98: =IF(CU98>0,$F$14,0) -> 0 | BA98: =+IF(CV98>=$M$22,$J$22,IF(CV98<($M$22),CV98*($J$22/($M$22)),)) -> 0.275 | BB98: =+IF(CW98>=$M$23,$J$23,IF(CW98<($M$23),CW98*($J$23/($M$23)),)) -> 0.125 | BC98: =+IF(CX98>=$M$24,$J$24,IF(CX98<($M$24),CX98*($J$24/($M$24)),)) -> 0 | BD98: =+IF(CY98>=$M$25,$J$25,IF(CY98<($M$25),CY98*($J$25/($M$25)),)) -> 0 | BE98: =IF(CZ98>0,$F$16,0) -> 0 | BF98: =+IF(DC98>=$M$28,$J$28,IF(DC98<($M$28),DC98*($J$28/($M$28)),)) -> 0 | BG98: =IF(DO98>0,$F$18,0) -> 0 | BH98: =IF(COUNTIF($J$31:$M$31,TRUE)=0, 0, IF(SUMIF($J$31:$M$31,TRUE,DP98:DT98)/COUNTIF($J$31:$M$31,TRUE)>=$M$32, $F$19, $F$19*(SUMIF($J$31:$M$31,TRUE,DP98:DT98)/COUNTIF($J$31:$M$31,TRUE)/$M$32))) -> 0.463974623 | BI98: =SUM(AU98+AV98+AW98+AX98+AY98+AZ98+BE98+BA98+BB98+BC98+BD98+BF98+BG98+BH98) -> 12.08131976 | BJ98: =+BI98*$H$9 -> 4.027106585 | BK98: 2029.632904 | BL98: =BK98/U98 -> 0.997852952 | BM98: =IF(BL98>0,IF(BL98>=$M$18,$J$18,IF(BL98<$M$18,$J$19,0)),0) -> 1 | BN98: 0 | BO98: =BN98/U98 -> 0 | BP98: =IF(BO98,$F$22,0) -> 0 | BQ98: =IF(DE98>0,$F$23,0) -> 0 | BR98: 2029.632904 | BS98: =BR98/U98 -> 0.997852952 | BT98: =+IF(BS98>=$L$3,$F$24,0) -> 1 | BU98: 197.0648968 | BV98: =IF(BU98>0,IF(BU98>=100,$F$25,IF(BU98<100,$F$25/2)),0) -> 1 | BW98: =SUM(DI98) -> 1.5 | BX98: =IF(OR(DK98>0,DL98>0),$F$27,0) -> 1 | BY98: =IF(DJ98>0,$F$28,0) -> 1 | BZ98: =IF(DN98>0,$F$29,0) -> 1 | CA98: =SUM(BM98,BP98,BV98,BQ98,BT98,BW98,BX98,BY98,BZ98) -> 7.5 | CB98: =+CA98*$H$21 -> 2.5 | CC98: =SUM(AS98,BI98,CA98) -> 35.68131976 | CD98: =SUM(AT98,BJ98,CB98) -> 11.89377325 | CE98: =IF(D98<($W$13*$CF$31),1,IF(D98<(($W$14+$W$13)*$CF$31),2,IF(D98<(($W$15+$W$13+$W$14)*$CF$31),3,4))) -> 2 | CL98: https://www.google.com/maps/@61.2891722958,28.8408780805,3a,75y,90t/data=!3m3!1e1!3m1!2e0 | CN98: 3 | CP98: 2 | CR98: 0 | CS98: 2 | CT98: 0 | CU98: 0 | CV98: 165 | CW98: 25 | CX98: 0 | CY98: 0 | CZ98: 0 | DC98: 0 | DE98: 0 | DG98: =IF(X98>$L$7,$F$26/2,0) -> 1.5 | DH98: =+IF(X98/V98>1.5,$F$26/2,0) -> 0 | DI98: =SUM(DG98:DH98) -> 1.5 | DJ98: 3 | DK98: 1 | DL98: 0 | DN98: 1 | DO98: 0 | DP98: 1.385191274 | DQ98: 1.12368681 | DR98: 0.9709315885 | DS98: 0.8578138708 | DT98: =AVERAGE(DP98:DR98) -> 1.159936558 | DV98: 67 | DW98: =D98 -> 60 | DX98: =DV98-DW98 -> 7 | DY98: 2 | DZ98: =H98 -> 2 | EA98: =DY98-DZ98 -> 0
A99: =CONCATENATE(P99,"_",Q99) -> 170_23 | B99: 2 | D99: =RANK(CD99,$CD$39:$CD$711) -> 61 | E99: 61 | F99: =E99-D99 -> 0 | G99: =CD99 -> 11.86533864 | H99: =CE99 -> 2 | I99: =B99-H99 -> 0 | J99: =HYPERLINK(CL99,"Gmaps") -> Gmaps | K99: =IF(V99>$L$5,"KESKI","VÄHÄ") -> KESKI | L99: =IF(P99<40,"Valta",IF(P99<100,"Kanta",IF(P99<1000,"Seutu",IF(P99>999,"Yhdys")))) -> Seutu | M99: Pyhtääntie | N99: Pyhtää | O99: Kymenlaakso | P99: 170 | Q99: 23 | R99: 0 | S99: 23 | T99: 4126 | U99: =T99-R99 -> 4126 | V99: 1132.303684 | W99: 44.91274842 | X99: 1357.861609 | Y99: 586 (50 %), 1685 (50 %) | Z99: 40 (42 %), 50 (10 %), 80 (48 %) | AA99: Ib (100 %) | AB99: Asfalttibetoni (87 %), Kantavan kerroksen asfalttibetoni (ABK) (3 %), Kivimastiksiasfaltti (13 %) | AC99: PK2 (100 %) | AD99: 0 | AE99: 0 | AF99: 0.07901114881 | AG99: 9.976732913 | AL99: =+IF(V99>=$L$5,$F$4,($F$4/($L$5))*V99) -> 9 | AM99: 21 | AN99: =+IF(AM99>=$M$14,$J$14,IF(AM99<($M$14),AM99*($J$14/($M$14)),)) -> 3 | AO99: 260 | AP99: =+IF(AO99>=$M$10,$J$10,IF(AO99<($M$10),AO99*($J$10/($M$10)),)) -> 1.733333333 | AQ99: =IF(CN99=0,"-",IF(CN99=1,"taksi",IF(CN99=2,"pikkubussi","bussi"))) -> bussi | AR99: =IF(CN99=0,0,IF(CN99<3,$F$7/2,$F$7)) -> 3 | AS99: =SUM(AL99,AN99,AP99,AR99) -> 16.73333333 | AT99: =+AS99*$H$4 -> 5.577777778 | AU99: =+IF(W99=0,0,IF(W99>$L$6,$F$9,($F$9/$L$6)*W99)) -> 8.084294716 | AV99: =IF(CP99>0,$F$10,0) -> 0 | AW99: =IF(CR99>0,$F$11,0) -> 0 | AX99: =IF(CS99>0,$F$12,0) -> 1 | AY99: =IF(CT99>0,$F$13,0) -> 0 | AZ99: =IF(CU99>0,$F$14,0) -> 0 | BA99: =+IF(CV99>=$M$22,$J$22,IF(CV99<($M$22),CV99*($J$22/($M$22)),)) -> 0 | BB99: =+IF(CW99>=$M$23,$J$23,IF(CW99<($M$23),CW99*($J$23/($M$23)),)) -> 0 | BC99: =+IF(CX99>=$M$24,$J$24,IF(CX99<($M$24),CX99*($J$24/($M$24)),)) -> 0 | BD99: =+IF(CY99>=$M$25,$J$25,IF(CY99<($M$25),CY99*($J$25/($M$25)),)) -> 0 | BE99: =IF(CZ99>0,$F$16,0) -> 0 | BF99: =+IF(DC99>=$M$28,$J$28,IF(DC99<($M$28),DC99*($J$28/($M$28)),)) -> 0 | BG99: =IF(DO99>0,$F$18,0) -> 1 | BH99: =IF(COUNTIF($J$31:$M$31,TRUE)=0, 0, IF(SUMIF($J$31:$M$31,TRUE,DP99:DT99)/COUNTIF($J$31:$M$31,TRUE)>=$M$32, $F$19, $F$19*(SUMIF($J$31:$M$31,TRUE,DP99:DT99)/COUNTIF($J$31:$M$31,TRUE)/$M$32))) -> 0.2783878812 | BI99: =SUM(AU99+AV99+AW99+AX99+AY99+AZ99+BE99+BA99+BB99+BC99+BD99+BF99+BG99+BH99) -> 10.3626826 | BJ99: =+BI99*$H$9 -> 3.454227533 | BK99: 4118.798956 | BL99: =BK99/U99 -> 0.9982547155 | BM99: =IF(BL99>0,IF(BL99>=$M$18,$J$18,IF(BL99<$M$18,$J$19,0)),0) -> 1 | BN99: 4118.798956 | BO99: =BN99/U99 -> 0.9982547155 | BP99: =IF(BO99,$F$22,0) -> 1 | BQ99: =IF(DE99>0,$F$23,0) -> 1 | BR99: 1876.130155 | BS99: =BR99/U99 -> 0.4547091991 | BT99: =+IF(BS99>=$L$3,$F$24,0) -> 0 | BU99: 113.8633059 | BV99: =IF(BU99>0,IF(BU99>=100,$F$25,IF(BU99<100,$F$25/2)),0) -> 1 | BW99: =SUM(DI99) -> 1.5 | BX99: =IF(OR(DK99>0,DL99>0),$F$27,0) -> 1 | BY99: =IF(DJ99>0,$F$28,0) -> 1 | BZ99: =IF(DN99>0,$F$29,0) -> 1 | CA99: =SUM(BM99,BP99,BV99,BQ99,BT99,BW99,BX99,BY99,BZ99) -> 8.5 | CB99: =+CA99*$H$21 -> 2.833333333 | CC99: =SUM(AS99,BI99,CA99) -> 35.59601593 | CD99: =SUM(AT99,BJ99,CB99) -> 11.86533864 | CE99: =IF(D99<($W$13*$CF$31),1,IF(D99<(($W$14+$W$13)*$CF$31),2,IF(D99<(($W$15+$W$13+$W$14)*$CF$31),3,4))) -> 2 | CL99: https://www.google.com/maps/@60.4895445172,26.4914117412,3a,75y,90t/data=!3m3!1e1!3m1!2e0 | CN99: 3 | CP99: 0 | CR99: 0 | CS99: 1 | CT99: 0 | CU99: 0 | CV99: 0 | CW99: 0 | CX99: 0 | CY99: 0 | CZ99: 0 | DC99: 0 | DE99: 1 | DG99: =IF(X99>$L$7,$F$26/2,0) -> 1.5 | DH99: =+IF(X99/V99>1.5,$F$26/2,0) -> 0 | DI99: =SUM(DG99:DH99) -> 1.5 | DJ99: 1 | DK99: 1 | DL99: 0 | DN99: 1 | DO99: 1 | DP99: 0.7065663565 | DQ99: 0.7163701344 | DR99: 0.6649726178 | DS99: 0.1341675321 | DT99: =AVERAGE(DP99:DR99) -> 0.6959697029 | DV99: 116 | DW99: =D99 -> 61 | DX99: =DV99-DW99 -> 55 | DY99: 2 | DZ99: =H99 -> 2 | EA99: =DY99-DZ99 -> 0
A100: =CONCATENATE(P100,"_",Q100) -> 14879_1 | B100: 2 | D100: =RANK(CD100,$CD$39:$CD$711) -> 62 | E100: 62 | F100: =E100-D100 -> 0 | G100: =CD100 -> 11.85698687 | H100: =CE100 -> 2 | I100: =B100-H100 -> 0 | J100: =HYPERLINK(CL100,"Gmaps") -> Gmaps | K100: =IF(V100>$L$5,"KESKI","VÄHÄ") -> KESKI | L100: =IF(P100<40,"Valta",IF(P100<100,"Kanta",IF(P100<1000,"Seutu",IF(P100>999,"Yhdys")))) -> Yhdys | M100: Rasilantie | N100: Ruokolahti | O100: Etelä-Karjala | P100: 14879 | Q100: 1 | R100: 0 | S100: 1 | T100: 2351 | U100: =T100-R100 -> 2351 | V100: 2274 | W100: 68 | X100: 2774 | Y100: 2274 (100 %) | Z100: 40 (100 %) | AA100: Ic (100 %) | AB100: Asfalttibetoni (90 %), Pehmeät asfalttibetonit (PAB-B) (7 %) | AC100: PK2 (98 %) | AD100: 0 | AE100: 1 | AF100: 0.06422798809 | AG100: 20 | AL100: =+IF(V100>=$L$5,$F$4,($F$4/($L$5))*V100) -> 9 | AM100: 12 | AN100: =+IF(AM100>=$M$14,$J$14,IF(AM100<($M$14),AM100*($J$14/($M$14)),)) -> 3 | AO100: 465 | AP100: =+IF(AO100>=$M$10,$J$10,IF(AO100<($M$10),AO100*($J$10/($M$10)),)) -> 2 | AQ100: =IF(CN100=0,"-",IF(CN100=1,"taksi",IF(CN100=2,"pikkubussi","bussi"))) -> bussi | AR100: =IF(CN100=0,0,IF(CN100<3,$F$7/2,$F$7)) -> 3 | AS100: =SUM(AL100,AN100,AP100,AR100) -> 17 | AT100: =+AS100*$H$4 -> 5.666666667 | AU100: =+IF(W100=0,0,IF(W100>$L$6,$F$9,($F$9/$L$6)*W100)) -> 9 | AV100: =IF(CP100>0,$F$10,0) -> 2 | AW100: =IF(CR100>0,$F$11,0) -> 0 | AX100: =IF(CS100>0,$F$12,0) -> 0 | AY100: =IF(CT100>0,$F$13,0) -> 0 | AZ100: =IF(CU100>0,$F$14,0) -> 0 | BA100: =+IF(CV100>=$M$22,$J$22,IF(CV100<($M$22),CV100*($J$22/($M$22)),)) -> 0 | BB100: =+IF(CW100>=$M$23,$J$23,IF(CW100<($M$23),CW100*($J$23/($M$23)),)) -> 0 | BC100: =+IF(CX100>=$M$24,$J$24,IF(CX100<($M$24),CX100*($J$24/($M$24)),)) -> 0 | BD100: =+IF(CY100>=$M$25,$J$25,IF(CY100<($M$25),CY100*($J$25/($M$25)),)) -> 0 | BE100: =IF(CZ100>0,$F$16,0) -> 0 | BF100: =+IF(DC100>=$M$28,$J$28,IF(DC100<($M$28),DC100*($J$28/($M$28)),)) -> 0 | BG100: =IF(DO100>0,$F$18,0) -> 1 | BH100: =IF(COUNTIF($J$31:$M$31,TRUE)=0, 0, IF(SUMIF($J$31:$M$31,TRUE,DP100:DT100)/COUNTIF($J$31:$M$31,TRUE)>=$M$32, $F$19, $F$19*(SUMIF($J$31:$M$31,TRUE,DP100:DT100)/COUNTIF($J$31:$M$31,TRUE)/$M$32))) -> 0.07096059617 | BI100: =SUM(AU100+AV100+AW100+AX100+AY100+AZ100+BE100+BA100+BB100+BC100+BD100+BF100+BG100+BH100) -> 12.0709606 | BJ100: =+BI100*$H$9 -> 4.023653532 | BK100: 2350.121266 | BL100: =BK100/U100 -> 0.9996262296 | BM100: =IF(BL100>0,IF(BL100>=$M$18,$J$18,IF(BL100<$M$18,$J$19,0)),0) -> 1 | BN100: 0 | BO100: =BN100/U100 -> 0 | BP100: =IF(BO100,$F$22,0) -> 0 | BQ100: =IF(DE100>0,$F$23,0) -> 0 | BR100: 2350.121266 | BS100: =BR100/U100 -> 0.9996262296 | BT100: =+IF(BS100>=$L$3,$F$24,0) -> 1 | BU100: 662.5789026 | BV100: =IF(BU100>0,IF(BU100>=100,$F$25,IF(BU100<100,$F$25/2)),0) -> 1 | BW100: =SUM(DI100) -> 1.5 | BX100: =IF(OR(DK100>0,DL100>0),$F$27,0) -> 1 | BY100: =IF(DJ100>0,$F$28,0) -> 0 | BZ100: =IF(DN100>0,$F$29,0) -> 1 | CA100: =SUM(BM100,BP100,BV100,BQ100,BT100,BW100,BX100,BY100,BZ100) -> 6.5 | CB100: =+CA100*$H$21 -> 2.166666667 | CC100: =SUM(AS100,BI100,CA100) -> 35.5709606 | CD100: =SUM(AT100,BJ100,CB100) -> 11.85698687 | CE100: =IF(D100<($W$13*$CF$31),1,IF(D100<(($W$14+$W$13)*$CF$31),2,IF(D100<(($W$15+$W$13+$W$14)*$CF$31),3,4))) -> 2 | CL100: https://www.google.com/maps/@61.2862520524,28.8274310761,3a,75y,90t/data=!3m3!1e1!3m1!2e0 | CN100: 3 | CP100: 1 | CR100: 0 | CS100: 0 | CT100: 0 | CU100: 0 | CV100: 0 | CW100: 0 | CX100: 0 | CY100: 0 | CZ100: 0 | DC100: 0 | DE100: 0 | DG100: =IF(X100>$L$7,$F$26/2,0) -> 1.5 | DH100: =+IF(X100/V100>1.5,$F$26/2,0) -> 0 | DI100: =SUM(DG100:DH100) -> 1.5 | DJ100: 0 | DK100: 1 | DL100: 0 | DN100: 1 | DO100: 2 | DP100: 0.2465676064 | DQ100: 0.1444608856 | DR100: 0.1411759793 | DS100: 0.08687322173 | DT100: =AVERAGE(DP100:DR100) -> 0.1774014904 | DV100: 70 | DW100: =D100 -> 62 | DX100: =DV100-DW100 -> 8 | DY100: 2 | DZ100: =H100 -> 2 | EA100: =DY100-DZ100 -> 0
A101: =CONCATENATE(P101,"_",Q101) -> 373_1 | B101: 2 | D101: =RANK(CD101,$CD$39:$CD$711) -> 63 | E101: 63 | F101: =E101-D101 -> 0 | G101: =CD101 -> 11.84250379 | H101: =CE101 -> 2 | I101: =B101-H101 -> 0 | J101: =HYPERLINK(CL101,"Gmaps") -> Gmaps | K101: =IF(V101>$L$5,"KESKI","VÄHÄ") -> KESKI | L101: =IF(P101<40,"Valta",IF(P101<100,"Kanta",IF(P101<1000,"Seutu",IF(P101>999,"Yhdys")))) -> Seutu | M101: Karjalankatu | N101: Kouvola | O101: Kymenlaakso | P101: 373 | Q101: 1 | R101: 4010 | S101: 1 | T101: 5731 | U101: =T101-R101 -> 1721 | V101: 3519 | W101: 184 | X101: 4927 | Y101: 3519 (99 %) | Z101: 50 (35 %), 60 (65 %) | AA101: Ib (99 %) | AB101: Asfalttibetoni (97 %) | AC101: PK2 (99 %) | AD101: 1 | AE101: 5 | AF101: 0 | AG101: 58 | AL101: =+IF(V101>=$L$5,$F$4,($F$4/($L$5))*V101) -> 9 | AM101: 8 | AN101: =+IF(AM101>=$M$14,$J$14,IF(AM101<($M$14),AM101*($J$14/($M$14)),)) -> 2.4 | AO101: 150 | AP101: =+IF(AO101>=$M$10,$J$10,IF(AO101<($M$10),AO101*($J$10/($M$10)),)) -> 1 | AQ101: =IF(CN101=0,"-",IF(CN101=1,"taksi",IF(CN101=2,"pikkubussi","bussi"))) -> - | AR101: =IF(CN101=0,0,IF(CN101<3,$F$7/2,$F$7)) -> 0 | AS101: =SUM(AL101,AN101,AP101,AR101) -> 12.4 | AT101: =+AS101*$H$4 -> 4.133333333 | AU101: =+IF(W101=0,0,IF(W101>$L$6,$F$9,($F$9/$L$6)*W101)) -> 9 | AV101: =IF(CP101>0,$F$10,0) -> 2 | AW101: =IF(CR101>0,$F$11,0) -> 1 | AX101: =IF(CS101>0,$F$12,0) -> 1 | AY101: =IF(CT101>0,$F$13,0) -> 0 | AZ101: =IF(CU101>0,$F$14,0) -> 0 | BA101: =+IF(CV101>=$M$22,$J$22,IF(CV101<($M$22),CV101*($J$22/($M$22)),)) -> 0 | BB101: =+IF(CW101>=$M$23,$J$23,IF(CW101<($M$23),CW101*($J$23/($M$23)),)) -> 0 | BC101: =+IF(CX101>=$M$24,$J$24,IF(CX101<($M$24),CX101*($J$24/($M$24)),)) -> 0 | BD101: =+IF(CY101>=$M$25,$J$25,IF(CY101<($M$25),CY101*($J$25/($M$25)),)) -> 0 | BE101: =IF(CZ101>0,$F$16,0) -> 0 | BF101: =+IF(DC101>=$M$28,$J$28,IF(DC101<($M$28),DC101*($J$28/($M$28)),)) -> 1 | BG101: =IF(DO101>0,$F$18,0) -> 1 | BH101: =IF(COUNTIF($J$31:$M$31,TRUE)=0, 0, IF(SUMIF($J$31:$M$31,TRUE,DP101:DT101)/COUNTIF($J$31:$M$31,TRUE)>=$M$32, $F$19, $F$19*(SUMIF($J$31:$M$31,TRUE,DP101:DT101)/COUNTIF($J$31:$M$31,TRUE)/$M$32))) -> 0.6275113755 | BI101: =SUM(AU101+AV101+AW101+AX101+AY101+AZ101+BE101+BA101+BB101+BC101+BD101+BF101+BG101+BH101) -> 15.62751138 | BJ101: =+BI101*$H$9 -> 5.209170459 | BK101: 96.56946446 | BL101: =BK101/U101 -> 0.05611241398 | BM101: =IF(BL101>0,IF(BL101>=$M$18,$J$18,IF(BL101<$M$18,$J$19,0)),0) -> 0.5 | BN101: 1699.113805 | BO101: =BN101/U101 -> 0.9872828615 | BP101: =IF(BO101,$F$22,0) -> 1 | BQ101: =IF(DE101>0,$F$23,0) -> 1 | BR101: 1272.758297 | BS101: =BR101/U101 -> 0.7395457857 | BT101: =+IF(BS101>=$L$3,$F$24,0) -> 1 | BU101: 35.03776874 | BV101: =IF(BU101>0,IF(BU101>=100,$F$25,IF(BU101<100,$F$25/2)),0) -> 0.5 | BW101: =SUM(DI101) -> 1.5 | BX101: =IF(OR(DK101>0,DL101>0),$F$27,0) -> 1 | BY101: =IF(DJ101>0,$F$28,0) -> 0 | BZ101: =IF(DN101>0,$F$29,0) -> 1 | CA101: =SUM(BM101,BP101,BV101,BQ101,BT101,BW101,BX101,BY101,BZ101) -> 7.5 | CB101: =+CA101*$H$21 -> 2.5 | CC101: =SUM(AS101,BI101,CA101) -> 35.52751138 | CD101: =SUM(AT101,BJ101,CB101) -> 11.84250379 | CE101: =IF(D101<($W$13*$CF$31),1,IF(D101<(($W$14+$W$13)*$CF$31),2,IF(D101<(($W$15+$W$13+$W$14)*$CF$31),3,4))) -> 2 | CL101: https://www.google.com/maps/@60.8816157948,26.7713395061,3a,75y,90t/data=!3m3!1e1!3m1!2e0 | CN101: 0 | CP101: 3 | CR101: 2 | CS101: 3 | CT101: 0 | CU101: 0 | CV101: 0 | CW101: 0 | CX101: 0 | CY101: 0 | CZ101: 0 | DC101: 6 | DE101: 11 | DG101: =IF(X101>$L$7,$F$26/2,0) -> 1.5 | DH101: =+IF(X101/V101>1.5,$F$26/2,0) -> 0 | DI101: =SUM(DG101:DH101) -> 1.5 | DJ101: 0 | DK101: 1 | DL101: 0 | DN101: 1 | DO101: 1 | DP101: 0.993702073 | DQ101: 1.15630419 | DR101: 2.556329053 | DS101: 1.00627876 | DT101: =AVERAGE(DP101:DR101) -> 1.568778439 | DV101: 64 | DW101: =D101 -> 63 | DX101: =DV101-DW101 -> 1 | DY101: 2 | DZ101: =H101 -> 2 | EA101: =DY101-DZ101 -> 0
A102: =CONCATENATE(P102,"_",Q102) -> 14618_1 | B102: 2 | D102: =RANK(CD102,$CD$39:$CD$711) -> 64 | E102: 64 | F102: =E102-D102 -> 0 | G102: =CD102 -> 11.79904221 | H102: =CE102 -> 2 | I102: =B102-H102 -> 0 | J102: =HYPERLINK(CL102,"Gmaps") -> Gmaps | K102: =IF(V102>$L$5,"KESKI","VÄHÄ") -> KESKI | L102: =IF(P102<40,"Valta",IF(P102<100,"Kanta",IF(P102<1000,"Seutu",IF(P102>999,"Yhdys")))) -> Yhdys | M102: Pernoontie | N102: Kotka | O102: Kymenlaakso | P102: 14618 | Q102: 1 | R102: 0 | S102: 1 | T102: 9840 | U102: =T102-R102 -> 9840 | V102: 860.7896341 | W102: 49.62906504 | X102: 961.3434959 | Y102: 283 (44 %), 793 (43 %), 2904 (14 %) | Z102: 40 (5 %), 50 (21 %), 60 (75 %) | AA102: Ic (57 %), II (43 %) | AB102: Asfalttibetoni (100 %), Kantavan kerroksen asfalttibetoni (ABK) (9 %) | AC102: PK3 (100 %) | AD102: 1 | AE102: 6 | AF102: 0.02032520325 | AG102: 14.06402439 | AL102: =+IF(V102>=$L$5,$F$4,($F$4/($L$5))*V102) -> 9 | AM102: 79 | AN102: =+IF(AM102>=$M$14,$J$14,IF(AM102<($M$14),AM102*($J$14/($M$14)),)) -> 3 | AO102: 780 | AP102: =+IF(AO102>=$M$10,$J$10,IF(AO102<($M$10),AO102*($J$10/($M$10)),)) -> 2 | AQ102: =IF(CN102=0,"-",IF(CN102=1,"taksi",IF(CN102=2,"pikkubussi","bussi"))) -> bussi | AR102: =IF(CN102=0,0,IF(CN102<3,$F$7/2,$F$7)) -> 3 | AS102: =SUM(AL102,AN102,AP102,AR102) -> 17 | AT102: =+AS102*$H$4 -> 5.666666667 | AU102: =+IF(W102=0,0,IF(W102>$L$6,$F$9,($F$9/$L$6)*W102)) -> 8.933231707 | AV102: =IF(CP102>0,$F$10,0) -> 2 | AW102: =IF(CR102>0,$F$11,0) -> 0 | AX102: =IF(CS102>0,$F$12,0) -> 0 | AY102: =IF(CT102>0,$F$13,0) -> 0 | AZ102: =IF(CU102>0,$F$14,0) -> 1 | BA102: =+IF(CV102>=$M$22,$J$22,IF(CV102<($M$22),CV102*($J$22/($M$22)),)) -> 0.3516666667 | BB102: =+IF(CW102>=$M$23,$J$23,IF(CW102<($M$23),CW102*($J$23/($M$23)),)) -> 0.065 | BC102: =+IF(CX102>=$M$24,$J$24,IF(CX102<($M$24),CX102*($J$24/($M$24)),)) -> 0 | BD102: =+IF(CY102>=$M$25,$J$25,IF(CY102<($M$25),CY102*($J$25/($M$25)),)) -> 0.5 | BE102: =IF(CZ102>0,$F$16,0) -> 0 | BF102: =+IF(DC102>=$M$28,$J$28,IF(DC102<($M$28),DC102*($J$28/($M$28)),)) -> 0.3333333333 | BG102: =IF(DO102>0,$F$18,0) -> 0 | BH102: =IF(COUNTIF($J$31:$M$31,TRUE)=0, 0, IF(SUMIF($J$31:$M$31,TRUE,DP102:DT102)/COUNTIF($J$31:$M$31,TRUE)>=$M$32, $F$19, $F$19*(SUMIF($J$31:$M$31,TRUE,DP102:DT102)/COUNTIF($J$31:$M$31,TRUE)/$M$32))) -> 0.2138949269 | BI102: =SUM(AU102+AV102+AW102+AX102+AY102+AZ102+BE102+BA102+BB102+BC102+BD102+BF102+BG102+BH102) -> 13.39712663 | BJ102: =+BI102*$H$9 -> 4.465708878 | BK102: 4694.158847 | BL102: =BK102/U102 -> 0.4770486633 | BM102: =IF(BL102>0,IF(BL102>=$M$18,$J$18,IF(BL102<$M$18,$J$19,0)),0) -> 0.5 | BN102: 0 | BO102: =BN102/U102 -> 0 | BP102: =IF(BO102,$F$22,0) -> 0 | BQ102: =IF(DE102>0,$F$23,0) -> 0 | BR102: 5515.705943 | BS102: =BR102/U102 -> 0.5605392218 | BT102: =+IF(BS102>=$L$3,$F$24,0) -> 1 | BU102: 187.4512195 | BV102: =IF(BU102>0,IF(BU102>=100,$F$25,IF(BU102<100,$F$25/2)),0) -> 1 | BW102: =SUM(DI102) -> 1.5 | BX102: =IF(OR(DK102>0,DL102>0),$F$27,0) -> 1 | BY102: =IF(DJ102>0,$F$28,0) -> 0 | BZ102: =IF(DN102>0,$F$29,0) -> 0 | CA102: =SUM(BM102,BP102,BV102,BQ102,BT102,BW102,BX102,BY102,BZ102) -> 5 | CB102: =+CA102*$H$21 -> 1.666666667 | CC102: =SUM(AS102,BI102,CA102) -> 35.39712663 | CD102: =SUM(AT102,BJ102,CB102) -> 11.79904221 | CE102: =IF(D102<($W$13*$CF$31),1,IF(D102<(($W$14+$W$13)*$CF$31),2,IF(D102<(($W$15+$W$13+$W$14)*$CF$31),3,4))) -> 2 | CL102: https://www.google.com/maps/@60.5023921646,26.8710574217,3a,75y,90t/data=!3m3!1e1!3m1!2e0 | CN102: 3 | CP102: 2 | CR102: 0 | CS102: 0 | CT102: 0 | CU102: 3 | CV102: 211 | CW102: 13 | CX102: 0 | CY102: 397 | CZ102: 0 | DC102: 1 | DE102: 0 | DG102: =IF(X102>$L$7,$F$26/2,0) -> 1.5 | DH102: =+IF(X102/V102>1.5,$F$26/2,0) -> 0 | DI102: =SUM(DG102:DH102) -> 1.5 | DJ102: 0 | DK102: 1 | DL102: 0 | DN102: 0 | DO102: 0 | DP102: 0.485892845 | DQ102: 0.893252576 | DR102: 0.2250665307 | DS102: 0.304700036 | DT102: =AVERAGE(DP102:DR102) -> 0.5347373173 | DV102: 154 | DW102: =D102 -> 64 | DX102: =DV102-DW102 -> 90 | DY102: 2 | DZ102: =H102 -> 2 | EA102: =DY102-DZ102 -> 0
A103: =CONCATENATE(P103,"_",Q103) -> 367_1 | B103: 2 | D103: =RANK(CD103,$CD$39:$CD$711) -> 65 | E103: 65 | F103: =E103-D103 -> 0 | G103: =CD103 -> 11.77835222 | H103: =CE103 -> 2 | I103: =B103-H103 -> 0 | J103: =HYPERLINK(CL103,"Gmaps") -> Gmaps | K103: =IF(V103>$L$5,"KESKI","VÄHÄ") -> KESKI | L103: =IF(P103<40,"Valta",IF(P103<100,"Kanta",IF(P103<1000,"Seutu",IF(P103>999,"Yhdys")))) -> Seutu | M103: Kymenlaaksontie | N103: Kouvola | O103: Kymenlaakso | P103: 367 | Q103: 1 | R103: 1920 | S103: 1 | T103: 5255 | U103: =T103-R103 -> 3335 | V103: 6256 | W103: 204 | X103: 6882 | Y103: 6256 (100 %) | Z103: 50 (4 %), 80 (96 %) | AA103: Is (100 %) | AB103: Kivimastiksiasfaltti (100 %) | AC103: PK2 (100 %) | AD103: 0 | AE103: 4 | AF103: 0 | AG103: 91 | AL103: =+IF(V103>=$L$5,$F$4,($F$4/($L$5))*V103) -> 9 | AM103: 8 | AN103: =+IF(AM103>=$M$14,$J$14,IF(AM103<($M$14),AM103*($J$14/($M$14)),)) -> 2.4 | AO103: 1693 | AP103: =+IF(AO103>=$M$10,$J$10,IF(AO103<($M$10),AO103*($J$10/($M$10)),)) -> 2 | AQ103: =IF(CN103=0,"-",IF(CN103=1,"taksi",IF(CN103=2,"pikkubussi","bussi"))) -> bussi | AR103: =IF(CN103=0,0,IF(CN103<3,$F$7/2,$F$7)) -> 3 | AS103: =SUM(AL103,AN103,AP103,AR103) -> 16.4 | AT103: =+AS103*$H$4 -> 5.466666667 | AU103: =+IF(W103=0,0,IF(W103>$L$6,$F$9,($F$9/$L$6)*W103)) -> 9 | AV103: =IF(CP103>0,$F$10,0) -> 0 | AW103: =IF(CR103>0,$F$11,0) -> 1 | AX103: =IF(CS103>0,$F$12,0) -> 0 | AY103: =IF(CT103>0,$F$13,0) -> 0 | AZ103: =IF(CU103>0,$F$14,0) -> 0 | BA103: =+IF(CV103>=$M$22,$J$22,IF(CV103<($M$22),CV103*($J$22/($M$22)),)) -> 0 | BB103: =+IF(CW103>=$M$23,$J$23,IF(CW103<($M$23),CW103*($J$23/($M$23)),)) -> 0 | BC103: =+IF(CX103>=$M$24,$J$24,IF(CX103<($M$24),CX103*($J$24/($M$24)),)) -> 0 | BD103: =+IF(CY103>=$M$25,$J$25,IF(CY103<($M$25),CY103*($J$25/($M$25)),)) -> 0 | BE103: =IF(CZ103>0,$F$16,0) -> 0 | BF103: =+IF(DC103>=$M$28,$J$28,IF(DC103<($M$28),DC103*($J$28/($M$28)),)) -> 0.6666666667 | BG103: =IF(DO103>0,$F$18,0) -> 0 | BH103: =IF(COUNTIF($J$31:$M$31,TRUE)=0, 0, IF(SUMIF($J$31:$M$31,TRUE,DP103:DT103)/COUNTIF($J$31:$M$31,TRUE)>=$M$32, $F$19, $F$19*(SUMIF($J$31:$M$31,TRUE,DP103:DT103)/COUNTIF($J$31:$M$31,TRUE)/$M$32))) -> 0.2683900081 | BI103: =SUM(AU103+AV103+AW103+AX103+AY103+AZ103+BE103+BA103+BB103+BC103+BD103+BF103+BG103+BH103) -> 10.93505667 | BJ103: =+BI103*$H$9 -> 3.645018892 | BK103: 2846.391144 | BL103: =BK103/U103 -> 0.8534905979 | BM103: =IF(BL103>0,IF(BL103>=$M$18,$J$18,IF(BL103<$M$18,$J$19,0)),0) -> 1 | BN103: 3000.613645 | BO103: =BN103/U103 -> 0.8997342265 | BP103: =IF(BO103,$F$22,0) -> 1 | BQ103: =IF(DE103>0,$F$23,0) -> 1 | BR103: 2088.683523 | BS103: =BR103/U103 -> 0.6262919108 | BT103: =+IF(BS103>=$L$3,$F$24,0) -> 1 | BU103: 81.13943028 | BV103: =IF(BU103>0,IF(BU103>=100,$F$25,IF(BU103<100,$F$25/2)),0) -> 0.5 | BW103: =SUM(DI103) -> 1.5 | BX103: =IF(OR(DK103>0,DL103>0),$F$27,0) -> 1 | BY103: =IF(DJ103>0,$F$28,0) -> 0 | BZ103: =IF(DN103>0,$F$29,0) -> 1 | CA103: =SUM(BM103,BP103,BV103,BQ103,BT103,BW103,BX103,BY103,BZ103) -> 8 | CB103: =+CA103*$H$21 -> 2.666666667 | CC103: =SUM(AS103,BI103,CA103) -> 35.33505667 | CD103: =SUM(AT103,BJ103,CB103) -> 11.77835222 | CE103: =IF(D103<($W$13*$CF$31),1,IF(D103<(($W$14+$W$13)*$CF$31),2,IF(D103<(($W$15+$W$13+$W$14)*$CF$31),3,4))) -> 2 | CL103: https://www.google.com/maps/@60.8508394246,26.6941666289,3a,75y,90t/data=!3m3!1e1!3m1!2e0 | CN103: 3 | CP103: 0 | CR103: 1 | CS103: 0 | CT103: 0 | CU103: 0 | CV103: 0 | CW103: 0 | CX103: 0 | CY103: 0 | CZ103: 0 | DC103: 2 | DE103: 5 | DG103: =IF(X103>$L$7,$F$26/2,0) -> 1.5 | DH103: =+IF(X103/V103>1.5,$F$26/2,0) -> 0 | DI103: =SUM(DG103:DH103) -> 1.5 | DJ103: 0 | DK103: 1 | DL103: 0 | DN103: 1 | DO103: 0 | DP103: 1.045397336 | DQ103: 0.4553316041 | DR103: 0.5121961204 | DS103: 0.2473304137 | DT103: =AVERAGE(DP103:DR103) -> 0.6709750202 | DV103: 71 | DW103: =D103 -> 65 | DX103: =DV103-DW103 -> 6 | DY103: 2 | DZ103: =H103 -> 2 | EA103: =DY103-DZ103 -> 0
A104: =CONCATENATE(P104,"_",Q104) -> 375_4 | B104: 2 | D104: =RANK(CD104,$CD$39:$CD$711) -> 66 | E104: 66 | F104: =E104-D104 -> 0 | G104: =CD104 -> 11.71386093 | H104: =CE104 -> 2 | I104: =B104-H104 -> 0 | J104: =HYPERLINK(CL104,"Gmaps") -> Gmaps | K104: =IF(V104>$L$5,"KESKI","VÄHÄ") -> KESKI | L104: =IF(P104<40,"Valta",IF(P104<100,"Kanta",IF(P104<1000,"Seutu",IF(P104>999,"Yhdys")))) -> Seutu | M104: Sippolantie | N104: Kouvola | O104: Kymenlaakso | P104: 375 | Q104: 4 | R104: 0 | S104: 4 | T104: 3762 | U104: =T104-R104 -> 3762 | V104: 886.492823 | W104: 53.83253589 | X104: 987.5358852 | Y104: 587 (43 %), 1113 (57 %) | Z104: 40 (32 %), 50 (20 %), 60 (25 %), 80 (23 %) | AA104: Ic (100 %) | AB104: Asfalttibetoni (61 %), Pehmeät asfalttibetonit (PAB-B) (43 %) | AC104: PK3 (98 %) | AD104: 0 | AE104: 1 | AF104: 0.1860712387 | AG104: 16.16746411 | AL104: =+IF(V104>=$L$5,$F$4,($F$4/($L$5))*V104) -> 9 | AM104: 0 | AN104: =+IF(AM104>=$M$14,$J$14,IF(AM104<($M$14),AM104*($J$14/($M$14)),)) -> 0 | AO104: 300 | AP104: =+IF(AO104>=$M$10,$J$10,IF(AO104<($M$10),AO104*($J$10/($M$10)),)) -> 2 | AQ104: =IF(CN104=0,"-",IF(CN104=1,"taksi",IF(CN104=2,"pikkubussi","bussi"))) -> bussi | AR104: =IF(CN104=0,0,IF(CN104<3,$F$7/2,$F$7)) -> 3 | AS104: =SUM(AL104,AN104,AP104,AR104) -> 14 | AT104: =+AS104*$H$4 -> 4.666666667 | AU104: =+IF(W104=0,0,IF(W104>$L$6,$F$9,($F$9/$L$6)*W104)) -> 9 | AV104: =IF(CP104>0,$F$10,0) -> 2 | AW104: =IF(CR104>0,$F$11,0) -> 0 | AX104: =IF(CS104>0,$F$12,0) -> 1 | AY104: =IF(CT104>0,$F$13,0) -> 1 | AZ104: =IF(CU104>0,$F$14,0) -> 1 | BA104: =+IF(CV104>=$M$22,$J$22,IF(CV104<($M$22),CV104*($J$22/($M$22)),)) -> 0.1 | BB104: =+IF(CW104>=$M$23,$J$23,IF(CW104<($M$23),CW104*($J$23/($M$23)),)) -> 0.01 | BC104: =+IF(CX104>=$M$24,$J$24,IF(CX104<($M$24),CX104*($J$24/($M$24)),)) -> 0 | BD104: =+IF(CY104>=$M$25,$J$25,IF(CY104<($M$25),CY104*($J$25/($M$25)),)) -> 0 | BE104: =IF(CZ104>0,$F$16,0) -> 0 | BF104: =+IF(DC104>=$M$28,$J$28,IF(DC104<($M$28),DC104*($J$28/($M$28)),)) -> 0 | BG104: =IF(DO104>0,$F$18,0) -> 1 | BH104: =IF(COUNTIF($J$31:$M$31,TRUE)=0, 0, IF(SUMIF($J$31:$M$31,TRUE,DP104:DT104)/COUNTIF($J$31:$M$31,TRUE)>=$M$32, $F$19, $F$19*(SUMIF($J$31:$M$31,TRUE,DP104:DT104)/COUNTIF($J$31:$M$31,TRUE)/$M$32))) -> 1.031582783 | BI104: =SUM(AU104+AV104+AW104+AX104+AY104+AZ104+BE104+BA104+BB104+BC104+BD104+BF104+BG104+BH104) -> 16.14158278 | BJ104: =+BI104*$H$9 -> 5.380527594 | BK104: 3752.002953 | BL104: =BK104/U104 -> 0.9973426243 | BM104: =IF(BL104>0,IF(BL104>=$M$18,$J$18,IF(BL104<$M$18,$J$19,0)),0) -> 1 | BN104: 0 | BO104: =BN104/U104 -> 0 | BP104: =IF(BO104,$F$22,0) -> 0 | BQ104: =IF(DE104>0,$F$23,0) -> 0 | BR104: 0 | BS104: =BR104/U104 -> 0 | BT104: =+IF(BS104>=$L$3,$F$24,0) -> 0 | BU104: 46.99627858 | BV104: =IF(BU104>0,IF(BU104>=100,$F$25,IF(BU104<100,$F$25/2)),0) -> 0.5 | BW104: =SUM(DI104) -> 1.5 | BX104: =IF(OR(DK104>0,DL104>0),$F$27,0) -> 1 | BY104: =IF(DJ104>0,$F$28,0) -> 0 | BZ104: =IF(DN104>0,$F$29,0) -> 1 | CA104: =SUM(BM104,BP104,BV104,BQ104,BT104,BW104,BX104,BY104,BZ104) -> 5 | CB104: =+CA104*$H$21 -> 1.666666667 | CC104: =SUM(AS104,BI104,CA104) -> 35.14158278 | CD104: =SUM(AT104,BJ104,CB104) -> 11.71386093 | CE104: =IF(D104<($W$13*$CF$31),1,IF(D104<(($W$14+$W$13)*$CF$31),2,IF(D104<(($W$15+$W$13+$W$14)*$CF$31),3,4))) -> 2 | CL104: https://www.google.com/maps/@60.7558738427,27.0222661039,3a,75y,90t/data=!3m3!1e1!3m1!2e0 | CN104: 3 | CP104: 2 | CR104: 0 | CS104: 2 | CT104: 1 | CU104: 4 | CV104: 60 | CW104: 2 | CX104: 0 | CY104: 0 | CZ104: 0 | DC104: 0 | DE104: 0 | DG104: =IF(X104>$L$7,$F$26/2,0) -> 1.5 | DH104: =+IF(X104/V104>1.5,$F$26/2,0) -> 0 | DI104: =SUM(DG104:DH104) -> 1.5 | DJ104: 0 | DK104: 1 | DL104: 0 | DN104: 1 | DO104: 1 | DP104: 1.650021124 | DQ104: 3.540663395 | DR104: 2.546186354 | DS104: 2.234301989 | DT104: =AVERAGE(DP104:DR104) -> 2.578956958 | DV104: 82 | DW104: =D104 -> 66 | DX104: =DV104-DW104 -> 16 | DY104: 2 | DZ104: =H104 -> 2 | EA104: =DY104-DZ104 -> 0
A105: =CONCATENATE(P105,"_",Q105) -> 170_39 | B105: 2 | D105: =RANK(CD105,$CD$39:$CD$711) -> 67 | E105: 67 | F105: =E105-D105 -> 0 | G105: =CD105 -> 11.70624662 | H105: =CE105 -> 2 | I105: =B105-H105 -> 0 | J105: =HYPERLINK(CL105,"Gmaps") -> Gmaps | K105: =IF(V105>$L$5,"KESKI","VÄHÄ") -> KESKI | L105: =IF(P105<40,"Valta",IF(P105<100,"Kanta",IF(P105<1000,"Seutu",IF(P105>999,"Yhdys")))) -> Seutu | M105: Vaalimaantie | N105: Virolahti | O105: Kymenlaakso | P105: 170 | Q105: 39 | R105: 0 | S105: 39 | T105: 4308 | U105: =T105-R105 -> 4308 | V105: 1031.284123 | W105: 72.01949861 | X105: 1070.554318 | Y105: 1026 (25 %), 1033 (75 %) | Z105: 80 (100 %) | AA105: Ib (100 %) | AB105: Asfalttibetoni (100 %) | AC105: PK2 (100 %) | AD105: 0 | AE105: 0 | AF105: 0 | AG105: 25.22562674 | AL105: =+IF(V105>=$L$5,$F$4,($F$4/($L$5))*V105) -> 9 | AM105: 12 | AN105: =+IF(AM105>=$M$14,$J$14,IF(AM105<($M$14),AM105*($J$14/($M$14)),)) -> 3 | AO105: 174 | AP105: =+IF(AO105>=$M$10,$J$10,IF(AO105<($M$10),AO105*($J$10/($M$10)),)) -> 1.16 | AQ105: =IF(CN105=0,"-",IF(CN105=1,"taksi",IF(CN105=2,"pikkubussi","bussi"))) -> bussi | AR105: =IF(CN105=0,0,IF(CN105<3,$F$7/2,$F$7)) -> 3 | AS105: =SUM(AL105,AN105,AP105,AR105) -> 16.16 | AT105: =+AS105*$H$4 -> 5.386666667 | AU105: =+IF(W105=0,0,IF(W105>$L$6,$F$9,($F$9/$L$6)*W105)) -> 9 | AV105: =IF(CP105>0,$F$10,0) -> 2 | AW105: =IF(CR105>0,$F$11,0) -> 0 | AX105: =IF(CS105>0,$F$12,0) -> 0 | AY105: =IF(CT105>0,$F$13,0) -> 0 | AZ105: =IF(CU105>0,$F$14,0) -> 1 | BA105: =+IF(CV105>=$M$22,$J$22,IF(CV105<($M$22),CV105*($J$22/($M$22)),)) -> 0.1566666667 | BB105: =+IF(CW105>=$M$23,$J$23,IF(CW105<($M$23),CW105*($J$23/($M$23)),)) -> 0 | BC105: =+IF(CX105>=$M$24,$J$24,IF(CX105<($M$24),CX105*($J$24/($M$24)),)) -> 0 | BD105: =+IF(CY105>=$M$25,$J$25,IF(CY105<($M$25),CY105*($J$25/($M$25)),)) -> 0 | BE105: =IF(CZ105>0,$F$16,0) -> 0 | BF105: =+IF(DC105>=$M$28,$J$28,IF(DC105<($M$28),DC105*($J$28/($M$28)),)) -> 0 | BG105: =IF(DO105>0,$F$18,0) -> 0 | BH105: =IF(COUNTIF($J$31:$M$31,TRUE)=0, 0, IF(SUMIF($J$31:$M$31,TRUE,DP105:DT105)/COUNTIF($J$31:$M$31,TRUE)>=$M$32, $F$19, $F$19*(SUMIF($J$31:$M$31,TRUE,DP105:DT105)/COUNTIF($J$31:$M$31,TRUE)/$M$32))) -> 0.8020731933 | BI105: =SUM(AU105+AV105+AW105+AX105+AY105+AZ105+BE105+BA105+BB105+BC105+BD105+BF105+BG105+BH105) -> 12.95873986 | BJ105: =+BI105*$H$9 -> 4.319579953 | BK105: 0 | BL105: =BK105/U105 -> 0 | BM105: =IF(BL105>0,IF(BL105>=$M$18,$J$18,IF(BL105<$M$18,$J$19,0)),0) -> 0 | BN105: 4307.477789 | BO105: =BN105/U105 -> 0.9998787812 | BP105: =IF(BO105,$F$22,0) -> 1 | BQ105: =IF(DE105>0,$F$23,0) -> 1 | BR105: 0 | BS105: =BR105/U105 -> 0 | BT105: =+IF(BS105>=$L$3,$F$24,0) -> 0 | BU105: 7.753017642 | BV105: =IF(BU105>0,IF(BU105>=100,$F$25,IF(BU105<100,$F$25/2)),0) -> 0.5 | BW105: =SUM(DI105) -> 1.5 | BX105: =IF(OR(DK105>0,DL105>0),$F$27,0) -> 1 | BY105: =IF(DJ105>0,$F$28,0) -> 0 | BZ105: =IF(DN105>0,$F$29,0) -> 1 | CA105: =SUM(BM105,BP105,BV105,BQ105,BT105,BW105,BX105,BY105,BZ105) -> 6 | CB105: =+CA105*$H$21 -> 2 | CC105: =SUM(AS105,BI105,CA105) -> 35.11873986 | CD105: =SUM(AT105,BJ105,CB105) -> 11.70624662 | CE105: =IF(D105<($W$13*$CF$31),1,IF(D105<(($W$14+$W$13)*$CF$31),2,IF(D105<(($W$15+$W$13+$W$14)*$CF$31),3,4))) -> 2 | CL105: https://www.google.com/maps/@60.5682553027,27.4747531628,3a,75y,90t/data=!3m3!1e1!3m1!2e0 | CN105: 3 | CP105: 8 | CR105: 0 | CS105: 0 | CT105: 0 | CU105: 3 | CV105: 94 | CW105: 0 | CX105: 0 | CY105: 0 | CZ105: 0 | DC105: 0 | DE105: 1 | DG105: =IF(X105>$L$7,$F$26/2,0) -> 1.5 | DH105: =+IF(X105/V105>1.5,$F$26/2,0) -> 0 | DI105: =SUM(DG105:DH105) -> 1.5 | DJ105: 0 | DK105: 1 | DL105: 0 | DN105: 1 | DO105: 0 | DP105: 2.569919475 | DQ105: 1.937678442 | DR105: 1.507951032 | DS105: 0.3368036997 | DT105: =AVERAGE(DP105:DR105) -> 2.005182983 | DV105: 60 | DW105: =D105 -> 67 | DX105: =DV105-DW105 -> -7 | DY105: 2 | DZ105: =H105 -> 2 | EA105: =DY105-DZ105 -> 0
A106: =CONCATENATE(P106,"_",Q106) -> 170_41 | B106: 2 | D106: =RANK(CD106,$CD$39:$CD$711) -> 68 | E106: 68 | F106: =E106-D106 -> 0 | G106: =CD106 -> 11.68096117 | H106: =CE106 -> 2 | I106: =B106-H106 -> 0 | J106: =HYPERLINK(CL106,"Gmaps") -> Gmaps | K106: =IF(V106>$L$5,"KESKI","VÄHÄ") -> KESKI | L106: =IF(P106<40,"Valta",IF(P106<100,"Kanta",IF(P106<1000,"Seutu",IF(P106>999,"Yhdys")))) -> Seutu | M106: Vaalimaantie | N106: Virolahti | O106: Kymenlaakso | P106: 170 | Q106: 41 | R106: 0 | S106: 41 | T106: 1761 | U106: =T106-R106 -> 1761 | V106: 682 | W106: 39 | X106: 802 | Y106: 682 (100 %) | Z106: 50 (15 %), 60 (32 %), 80 (53 %) | AA106: Ib (100 %) | AB106: Asfalttibetoni (95 %) | AC106: PK2 (93 %) | AD106: 0 | AE106: 0 | AF106: 0 | AG106: 12 | AL106: =+IF(V106>=$L$5,$F$4,($F$4/($L$5))*V106) -> 9 | AM106: 12 | AN106: =+IF(AM106>=$M$14,$J$14,IF(AM106<($M$14),AM106*($J$14/($M$14)),)) -> 3 | AO106: 120 | AP106: =+IF(AO106>=$M$10,$J$10,IF(AO106<($M$10),AO106*($J$10/($M$10)),)) -> 0.8 | AQ106: =IF(CN106=0,"-",IF(CN106=1,"taksi",IF(CN106=2,"pikkubussi","bussi"))) -> bussi | AR106: =IF(CN106=0,0,IF(CN106<3,$F$7/2,$F$7)) -> 3 | AS106: =SUM(AL106,AN106,AP106,AR106) -> 15.8 | AT106: =+AS106*$H$4 -> 5.266666667 | AU106: =+IF(W106=0,0,IF(W106>$L$6,$F$9,($F$9/$L$6)*W106)) -> 7.02 | AV106: =IF(CP106>0,$F$10,0) -> 2 | AW106: =IF(CR106>0,$F$11,0) -> 0 | AX106: =IF(CS106>0,$F$12,0) -> 0 | AY106: =IF(CT106>0,$F$13,0) -> 0 | AZ106: =IF(CU106>0,$F$14,0) -> 1 | BA106: =+IF(CV106>=$M$22,$J$22,IF(CV106<($M$22),CV106*($J$22/($M$22)),)) -> 0 | BB106: =+IF(CW106>=$M$23,$J$23,IF(CW106<($M$23),CW106*($J$23/($M$23)),)) -> 0 | BC106: =+IF(CX106>=$M$24,$J$24,IF(CX106<($M$24),CX106*($J$24/($M$24)),)) -> 0 | BD106: =+IF(CY106>=$M$25,$J$25,IF(CY106<($M$25),CY106*($J$25/($M$25)),)) -> 0 | BE106: =IF(CZ106>0,$F$16,0) -> 0 | BF106: =+IF(DC106>=$M$28,$J$28,IF(DC106<($M$28),DC106*($J$28/($M$28)),)) -> 0.3333333333 | BG106: =IF(DO106>0,$F$18,0) -> 0 | BH106: =IF(COUNTIF($J$31:$M$31,TRUE)=0, 0, IF(SUMIF($J$31:$M$31,TRUE,DP106:DT106)/COUNTIF($J$31:$M$31,TRUE)>=$M$32, $F$19, $F$19*(SUMIF($J$31:$M$31,TRUE,DP106:DT106)/COUNTIF($J$31:$M$31,TRUE)/$M$32))) -> 0.3895501731 | BI106: =SUM(AU106+AV106+AW106+AX106+AY106+AZ106+BE106+BA106+BB106+BC106+BD106+BF106+BG106+BH106) -> 10.74288351 | BJ106: =+BI106*$H$9 -> 3.580961169 | BK106: 1767.678827 | BL106: =BK106/U106 -> 1.003792633 | BM106: =IF(BL106>0,IF(BL106>=$M$18,$J$18,IF(BL106<$M$18,$J$19,0)),0) -> 1 | BN106: 1641.819378 | BO106: =BN106/U106 -> 0.932322191 | BP106: =IF(BO106,$F$22,0) -> 1 | BQ106: =IF(DE106>0,$F$23,0) -> 1 | BR106: 1767.678827 | BS106: =BR106/U106 -> 1.003792633 | BT106: =+IF(BS106>=$L$3,$F$24,0) -> 1 | BU106: 118.0601931 | BV106: =IF(BU106>0,IF(BU106>=100,$F$25,IF(BU106<100,$F$25/2)),0) -> 1 | BW106: =SUM(DI106) -> 1.5 | BX106: =IF(OR(DK106>0,DL106>0),$F$27,0) -> 1 | BY106: =IF(DJ106>0,$F$28,0) -> 0 | BZ106: =IF(DN106>0,$F$29,0) -> 1 | CA106: =SUM(BM106,BP106,BV106,BQ106,BT106,BW106,BX106,BY106,BZ106) -> 8.5 | CB106: =+CA106*$H$21 -> 2.833333333 | CC106: =SUM(AS106,BI106,CA106) -> 35.04288351 | CD106: =SUM(AT106,BJ106,CB106) -> 11.68096117 | CE106: =IF(D106<($W$13*$CF$31),1,IF(D106<(($W$14+$W$13)*$CF$31),2,IF(D106<(($W$15+$W$13+$W$14)*$CF$31),3,4))) -> 2 | CL106: https://www.google.com/maps/@60.5823017359,27.6821387861,3a,75y,90t/data=!3m3!1e1!3m1!2e0 | CN106: 3 | CP106: 1 | CR106: 0 | CS106: 0 | CT106: 0 | CU106: 2 | CV106: 0 | CW106: 0 | CX106: 0 | CY106: 0 | CZ106: 0 | DC106: 1 | DE106: 1 | DG106: =IF(X106>$L$7,$F$26/2,0) -> 1.5 | DH106: =+IF(X106/V106>1.5,$F$26/2,0) -> 0 | DI106: =SUM(DG106:DH106) -> 1.5 | DJ106: 0 | DK106: 1 | DL106: 0 | DN106: 1 | DO106: 0 | DP106: 1.160315242 | DQ106: 0.9167616928 | DR106: 0.8445493637 | DS106: 0.1148995 | DT106: =AVERAGE(DP106:DR106) -> 0.9738754328 | DV106: 41 | DW106: =D106 -> 68 | DX106: =DV106-DW106 -> -27 | DY106: 2 | DZ106: =H106 -> 2 | EA106: =DY106-DZ106 -> 0
A107: =CONCATENATE(P107,"_",Q107) -> 170_35 | B107: 2 | D107: =RANK(CD107,$CD$39:$CD$711) -> 69 | E107: 69 | F107: =E107-D107 -> 0 | G107: =CD107 -> 11.64221828 | H107: =CE107 -> 2 | I107: =B107-H107 -> 0 | J107: =HYPERLINK(CL107,"Gmaps") -> Gmaps | K107: =IF(V107>$L$5,"KESKI","VÄHÄ") -> KESKI | L107: =IF(P107<40,"Valta",IF(P107<100,"Kanta",IF(P107<1000,"Seutu",IF(P107>999,"Yhdys")))) -> Seutu | M107: Kekkosenkatu, Vanha Vaalimaantie | N107: Hamina | O107: Kymenlaakso | P107: 170 | Q107: 35 | R107: 2666 | S107: 35 | T107: 4899 | U107: =T107-R107 -> 2233 | V107: 1654.707568 | W107: 81.2987013 | X107: 1895.042991 | Y107: 1434 (79 %), 2544 (20 %) | Z107: 50 (32 %), 80 (67 %) | AA107: Ib (99 %) | AB107: Asfalttibetoni (79 %), Kivimastiksiasfaltti (19 %) | AC107: PK2 (91 %) | AD107: 1 | AE107: 3 | AF107: 0 | AG107: 25.36274071 | AL107: =+IF(V107>=$L$5,$F$4,($F$4/($L$5))*V107) -> 9 | AM107: 25 | AN107: =+IF(AM107>=$M$14,$J$14,IF(AM107<($M$14),AM107*($J$14/($M$14)),)) -> 3 | AO107: 235 | AP107: =+IF(AO107>=$M$10,$J$10,IF(AO107<($M$10),AO107*($J$10/($M$10)),)) -> 1.566666667 | AQ107: =IF(CN107=0,"-",IF(CN107=1,"taksi",IF(CN107=2,"pikkubussi","bussi"))) -> pikkubussi | AR107: =IF(CN107=0,0,IF(CN107<3,$F$7/2,$F$7)) -> 1.5 | AS107: =SUM(AL107,AN107,AP107,AR107) -> 15.06666667 | AT107: =+AS107*$H$4 -> 5.022222222 | AU107: =+IF(W107=0,0,IF(W107>$L$6,$F$9,($F$9/$L$6)*W107)) -> 9 | AV107: =IF(CP107>0,$F$10,0) -> 0 | AW107: =IF(CR107>0,$F$11,0) -> 0 | AX107: =IF(CS107>0,$F$12,0) -> 0 | AY107: =IF(CT107>0,$F$13,0) -> 0 | AZ107: =IF(CU107>0,$F$14,0) -> 1 | BA107: =+IF(CV107>=$M$22,$J$22,IF(CV107<($M$22),CV107*($J$22/($M$22)),)) -> 0 | BB107: =+IF(CW107>=$M$23,$J$23,IF(CW107<($M$23),CW107*($J$23/($M$23)),)) -> 0.01 | BC107: =+IF(CX107>=$M$24,$J$24,IF(CX107<($M$24),CX107*($J$24/($M$24)),)) -> 0 | BD107: =+IF(CY107>=$M$25,$J$25,IF(CY107<($M$25),CY107*($J$25/($M$25)),)) -> 0.1 | BE107: =IF(CZ107>0,$F$16,0) -> 0 | BF107: =+IF(DC107>=$M$28,$J$28,IF(DC107<($M$28),DC107*($J$28/($M$28)),)) -> 1 | BG107: =IF(DO107>0,$F$18,0) -> 0 | BH107: =IF(COUNTIF($J$31:$M$31,TRUE)=0, 0, IF(SUMIF($J$31:$M$31,TRUE,DP107:DT107)/COUNTIF($J$31:$M$31,TRUE)>=$M$32, $F$19, $F$19*(SUMIF($J$31:$M$31,TRUE,DP107:DT107)/COUNTIF($J$31:$M$31,TRUE)/$M$32))) -> 0.2499881632 | BI107: =SUM(AU107+AV107+AW107+AX107+AY107+AZ107+BE107+BA107+BB107+BC107+BD107+BF107+BG107+BH107) -> 11.35998816 | BJ107: =+BI107*$H$9 -> 3.786662721 | BK107: 1545.850306 | BL107: =BK107/U107 -> 0.6922751035 | BM107: =IF(BL107>0,IF(BL107>=$M$18,$J$18,IF(BL107<$M$18,$J$19,0)),0) -> 1 | BN107: 2159.829821 | BO107: =BN107/U107 -> 0.9672323426 | BP107: =IF(BO107,$F$22,0) -> 1 | BQ107: =IF(DE107>0,$F$23,0) -> 1 | BR107: 679.7330413 | BS107: =BR107/U107 -> 0.3044035115 | BT107: =+IF(BS107>=$L$3,$F$24,0) -> 0 | BU107: 128.7505598 | BV107: =IF(BU107>0,IF(BU107>=100,$F$25,IF(BU107<100,$F$25/2)),0) -> 1 | BW107: =SUM(DI107) -> 1.5 | BX107: =IF(OR(DK107>0,DL107>0),$F$27,0) -> 1 | BY107: =IF(DJ107>0,$F$28,0) -> 1 | BZ107: =IF(DN107>0,$F$29,0) -> 1 | CA107: =SUM(BM107,BP107,BV107,BQ107,BT107,BW107,BX107,BY107,BZ107) -> 8.5 | CB107: =+CA107*$H$21 -> 2.833333333 | CC107: =SUM(AS107,BI107,CA107) -> 34.92665483 | CD107: =SUM(AT107,BJ107,CB107) -> 11.64221828 | CE107: =IF(D107<($W$13*$CF$31),1,IF(D107<(($W$14+$W$13)*$CF$31),2,IF(D107<(($W$15+$W$13+$W$14)*$CF$31),3,4))) -> 2 | CL107: https://www.google.com/maps/@60.5553971398,27.2369087308,3a,75y,90t/data=!3m3!1e1!3m1!2e0 | CN107: 2 | CP107: 0 | CR107: 0 | CS107: 0 | CT107: 0 | CU107: 2 | CV107: 0 | CW107: 2 | CX107: 0 | CY107: 6 | CZ107: 0 | DC107: 3 | DE107: 2 | DG107: =IF(X107>$L$7,$F$26/2,0) -> 1.5 | DH107: =+IF(X107/V107>1.5,$F$26/2,0) -> 0 | DI107: =SUM(DG107:DH107) -> 1.5 | DJ107: 2 | DK107: 1 | DL107: 0 | DN107: 1 | DO107: 0 | DP107: 0.445962374 | DQ107: 0.8850564132 | DR107: 0.543892437 | DS107: 0.2695990177 | DT107: =AVERAGE(DP107:DR107) -> 0.6249704081 | DV107: 39 | DW107: =D107 -> 69 | DX107: =DV107-DW107 -> -30 | DY107: 2 | DZ107: =H107 -> 2 | EA107: =DY107-DZ107 -> 0
A108: =CONCATENATE(P108,"_",Q108) -> 14871_1 | B108: 2 | D108: =RANK(CD108,$CD$39:$CD$711) -> 70 | E108: 70 | F108: =E108-D108 -> 0 | G108: =CD108 -> 11.57661006 | H108: =CE108 -> 2 | I108: =B108-H108 -> 0 | J108: =HYPERLINK(CL108,"Gmaps") -> Gmaps | K108: =IF(V108>$L$5,"KESKI","VÄHÄ") -> KESKI | L108: =IF(P108<40,"Valta",IF(P108<100,"Kanta",IF(P108<1000,"Seutu",IF(P108>999,"Yhdys")))) -> Yhdys | M108: Kaljaniementie, Patotie | N108: Imatra, Ruokolahti | O108: Etelä-Karjala | P108: 14871 | Q108: 1 | R108: 0 | S108: 1 | T108: 5329 | U108: =T108-R108 -> 5329 | V108: 1763.674986 | W108: 137.6505911 | X108: 2093.653406 | Y108: 1651 (78 %), 2156 (22 %) | Z108: 40 (14 %), 60 (86 %) | AA108: Ib (22 %), Ic (78 %) | AB108: Asfalttibetoni (60 %), Kivimastiksiasfaltti (40 %) | AC108: PK2 (99 %) | AD108: 1 | AE108: 1 | AF108: 0.2306248827 | AG108: 29.40326515 | AL108: =+IF(V108>=$L$5,$F$4,($F$4/($L$5))*V108) -> 9 | AM108: 12 | AN108: =+IF(AM108>=$M$14,$J$14,IF(AM108<($M$14),AM108*($J$14/($M$14)),)) -> 3 | AO108: 454 | AP108: =+IF(AO108>=$M$10,$J$10,IF(AO108<($M$10),AO108*($J$10/($M$10)),)) -> 2 | AQ108: =IF(CN108=0,"-",IF(CN108=1,"taksi",IF(CN108=2,"pikkubussi","bussi"))) -> bussi | AR108: =IF(CN108=0,0,IF(CN108<3,$F$7/2,$F$7)) -> 3 | AS108: =SUM(AL108,AN108,AP108,AR108) -> 17 | AT108: =+AS108*$H$4 -> 5.666666667 | AU108: =+IF(W108=0,0,IF(W108>$L$6,$F$9,($F$9/$L$6)*W108)) -> 9 | AV108: =IF(CP108>0,$F$10,0) -> 0 | AW108: =IF(CR108>0,$F$11,0) -> 1 | AX108: =IF(CS108>0,$F$12,0) -> 1 | AY108: =IF(CT108>0,$F$13,0) -> 0 | AZ108: =IF(CU108>0,$F$14,0) -> 0 | BA108: =+IF(CV108>=$M$22,$J$22,IF(CV108<($M$22),CV108*($J$22/($M$22)),)) -> 0 | BB108: =+IF(CW108>=$M$23,$J$23,IF(CW108<($M$23),CW108*($J$23/($M$23)),)) -> 0 | BC108: =+IF(CX108>=$M$24,$J$24,IF(CX108<($M$24),CX108*($J$24/($M$24)),)) -> 0 | BD108: =+IF(CY108>=$M$25,$J$25,IF(CY108<($M$25),CY108*($J$25/($M$25)),)) -> 0 | BE108: =IF(CZ108>0,$F$16,0) -> 0 | BF108: =+IF(DC108>=$M$28,$J$28,IF(DC108<($M$28),DC108*($J$28/($M$28)),)) -> 0.6666666667 | BG108: =IF(DO108>0,$F$18,0) -> 0 | BH108: =IF(COUNTIF($J$31:$M$31,TRUE)=0, 0, IF(SUMIF($J$31:$M$31,TRUE,DP108:DT108)/COUNTIF($J$31:$M$31,TRUE)>=$M$32, $F$19, $F$19*(SUMIF($J$31:$M$31,TRUE,DP108:DT108)/COUNTIF($J$31:$M$31,TRUE)/$M$32))) -> 1.5631635 | BI108: =SUM(AU108+AV108+AW108+AX108+AY108+AZ108+BE108+BA108+BB108+BC108+BD108+BF108+BG108+BH108) -> 13.22983017 | BJ108: =+BI108*$H$9 -> 4.409943389 | BK108: 646.5907373 | BL108: =BK108/U108 -> 0.1213343474 | BM108: =IF(BL108>0,IF(BL108>=$M$18,$J$18,IF(BL108<$M$18,$J$19,0)),0) -> 0.5 | BN108: 0 | BO108: =BN108/U108 -> 0 | BP108: =IF(BO108,$F$22,0) -> 0 | BQ108: =IF(DE108>0,$F$23,0) -> 0 | BR108: 1852.554403 | BS108: =BR108/U108 -> 0.3476364051 | BT108: =+IF(BS108>=$L$3,$F$24,0) -> 0 | BU108: 66.3726778 | BV108: =IF(BU108>0,IF(BU108>=100,$F$25,IF(BU108<100,$F$25/2)),0) -> 0.5 | BW108: =SUM(DI108) -> 1.5 | BX108: =IF(OR(DK108>0,DL108>0),$F$27,0) -> 1 | BY108: =IF(DJ108>0,$F$28,0) -> 0 | BZ108: =IF(DN108>0,$F$29,0) -> 1 | CA108: =SUM(BM108,BP108,BV108,BQ108,BT108,BW108,BX108,BY108,BZ108) -> 4.5 | CB108: =+CA108*$H$21 -> 1.5 | CC108: =SUM(AS108,BI108,CA108) -> 34.72983017 | CD108: =SUM(AT108,BJ108,CB108) -> 11.57661006 | CE108: =IF(D108<($W$13*$CF$31),1,IF(D108<(($W$14+$W$13)*$CF$31),2,IF(D108<(($W$15+$W$13+$W$14)*$CF$31),3,4))) -> 2 | CL108: https://www.google.com/maps/@61.2783361998,28.8176682928,3a,75y,90t/data=!3m3!1e1!3m1!2e0 | CN108: 3 | CP108: 0 | CR108: 1 | CS108: 4 | CT108: 0 | CU108: 0 | CV108: 0 | CW108: 0 | CX108: 0 | CY108: 0 | CZ108: 0 | DC108: 2 | DE108: 0 | DG108: =IF(X108>$L$7,$F$26/2,0) -> 1.5 | DH108: =+IF(X108/V108>1.5,$F$26/2,0) -> 0 | DI108: =SUM(DG108:DH108) -> 1.5 | DJ108: 0 | DK108: 1 | DL108: 0 | DN108: 1 | DO108: 0 | DP108: 3.696074863 | DQ108: 5.078341061 | DR108: 2.949310326 | DS108: 1.500545085 | DT108: =AVERAGE(DP108:DR108) -> 3.90790875 | DV108: 51 | DW108: =D108 -> 70 | DX108: =DV108-DW108 -> -19 | DY108: 2 | DZ108: =H108 -> 2 | EA108: =DY108-DZ108 -> 0
A109: =CONCATENATE(P109,"_",Q109) -> 357_4 | B109: 2 | D109: =RANK(CD109,$CD$39:$CD$711) -> 71 | E109: 71 | F109: =E109-D109 -> 0 | G109: =CD109 -> 11.5663373 | H109: =CE109 -> 2 | I109: =B109-H109 -> 0 | J109: =HYPERLINK(CL109,"Gmaps") -> Gmaps | K109: =IF(V109>$L$5,"KESKI","VÄHÄ") -> KESKI | L109: =IF(P109<40,"Valta",IF(P109<100,"Kanta",IF(P109<1000,"Seutu",IF(P109>999,"Yhdys")))) -> Seutu | M109: Hurukselantie, Majakiventie | N109: Kotka, Kouvola | O109: Kymenlaakso | P109: 357 | Q109: 4 | R109: 0 | S109: 4 | T109: 3742 | U109: =T109-R109 -> 3742 | V109: 1377 | W109: 93 | X109: 1686 | Y109: 1377 (100 %) | Z109: 60 (62 %), 80 (38 %) | AA109: Ib (100 %) | AB109: Asfalttibetoni (100 %) | AC109: PK2 (100 %) | AD109: 1 | AE109: 2 | AF109: 0 | AG109: 41 | AL109: =+IF(V109>=$L$5,$F$4,($F$4/($L$5))*V109) -> 9 | AM109: 9 | AN109: =+IF(AM109>=$M$14,$J$14,IF(AM109<($M$14),AM109*($J$14/($M$14)),)) -> 2.7 | AO109: 175 | AP109: =+IF(AO109>=$M$10,$J$10,IF(AO109<($M$10),AO109*($J$10/($M$10)),)) -> 1.166666667 | AQ109: =IF(CN109=0,"-",IF(CN109=1,"taksi",IF(CN109=2,"pikkubussi","bussi"))) -> pikkubussi | AR109: =IF(CN109=0,0,IF(CN109<3,$F$7/2,$F$7)) -> 1.5 | AS109: =SUM(AL109,AN109,AP109,AR109) -> 14.36666667 | AT109: =+AS109*$H$4 -> 4.788888889 | AU109: =+IF(W109=0,0,IF(W109>$L$6,$F$9,($F$9/$L$6)*W109)) -> 9 | AV109: =IF(CP109>0,$F$10,0) -> 0 | AW109: =IF(CR109>0,$F$11,0) -> 0 | AX109: =IF(CS109>0,$F$12,0) -> 0 | AY109: =IF(CT109>0,$F$13,0) -> 0 | AZ109: =IF(CU109>0,$F$14,0) -> 1 | BA109: =+IF(CV109>=$M$22,$J$22,IF(CV109<($M$22),CV109*($J$22/($M$22)),)) -> 0 | BB109: =+IF(CW109>=$M$23,$J$23,IF(CW109<($M$23),CW109*($J$23/($M$23)),)) -> 0.5 | BC109: =+IF(CX109>=$M$24,$J$24,IF(CX109<($M$24),CX109*($J$24/($M$24)),)) -> 0 | BD109: =+IF(CY109>=$M$25,$J$25,IF(CY109<($M$25),CY109*($J$25/($M$25)),)) -> 0 | BE109: =IF(CZ109>0,$F$16,0) -> 0 | BF109: =+IF(DC109>=$M$28,$J$28,IF(DC109<($M$28),DC109*($J$28/($M$28)),)) -> 0 | BG109: =IF(DO109>0,$F$18,0) -> 1 | BH109: =IF(COUNTIF($J$31:$M$31,TRUE)=0, 0, IF(SUMIF($J$31:$M$31,TRUE,DP109:DT109)/COUNTIF($J$31:$M$31,TRUE)>=$M$32, $F$19, $F$19*(SUMIF($J$31:$M$31,TRUE,DP109:DT109)/COUNTIF($J$31:$M$31,TRUE)/$M$32))) -> 1.832345231 | BI109: =SUM(AU109+AV109+AW109+AX109+AY109+AZ109+BE109+BA109+BB109+BC109+BD109+BF109+BG109+BH109) -> 13.33234523 | BJ109: =+BI109*$H$9 -> 4.444115077 | BK109: 0 | BL109: =BK109/U109 -> 0 | BM109: =IF(BL109>0,IF(BL109>=$M$18,$J$18,IF(BL109<$M$18,$J$19,0)),0) -> 0 | BN109: 3737.672503 | BO109: =BN109/U109 -> 0.9988435338 | BP109: =IF(BO109,$F$22,0) -> 1 | BQ109: =IF(DE109>0,$F$23,0) -> 1 | BR109: 0 | BS109: =BR109/U109 -> 0 | BT109: =+IF(BS109>=$L$3,$F$24,0) -> 0 | BU109: 39.16889364 | BV109: =IF(BU109>0,IF(BU109>=100,$F$25,IF(BU109<100,$F$25/2)),0) -> 0.5 | BW109: =SUM(DI109) -> 1.5 | BX109: =IF(OR(DK109>0,DL109>0),$F$27,0) -> 1 | BY109: =IF(DJ109>0,$F$28,0) -> 1 | BZ109: =IF(DN109>0,$F$29,0) -> 1 | CA109: =SUM(BM109,BP109,BV109,BQ109,BT109,BW109,BX109,BY109,BZ109) -> 7 | CB109: =+CA109*$H$21 -> 2.333333333 | CC109: =SUM(AS109,BI109,CA109) -> 34.6990119 | CD109: =SUM(AT109,BJ109,CB109) -> 11.5663373 | CE109: =IF(D109<($W$13*$CF$31),1,IF(D109<(($W$14+$W$13)*$CF$31),2,IF(D109<(($W$15+$W$13+$W$14)*$CF$31),3,4))) -> 2 | CL109: https://www.google.com/maps/@60.6568728626,26.7800043227,3a,75y,90t/data=!3m3!1e1!3m1!2e0 | CN109: 2 | CP109: 0 | CR109: 0 | CS109: 0 | CT109: 0 | CU109: 1 | CV109: 0 | CW109: 522 | CX109: 0 | CY109: 0 | CZ109: 0 | DC109: 0 | DE109: 1 | DG109: =IF(X109>$L$7,$F$26/2,0) -> 1.5 | DH109: =+IF(X109/V109>1.5,$F$26/2,0) -> 0 | DI109: =SUM(DG109:DH109) -> 1.5 | DJ109: 2 | DK109: 1 | DL109: 0 | DN109: 1 | DO109: 1 | DP109: 4.028914738 | DQ109: 5.741751352 | DR109: 3.971923143 | DS109: 1.686244895 | DT109: =AVERAGE(DP109:DR109) -> 4.580863078 | DV109: 55 | DW109: =D109 -> 71 | DX109: =DV109-DW109 -> -16 | DY109: 2 | DZ109: =H109 -> 2 | EA109: =DY109-DZ109 -> 0
A110: =CONCATENATE(P110,"_",Q110) -> 4071_1 | B110: 2 | D110: =RANK(CD110,$CD$39:$CD$711) -> 72 | E110: 72 | F110: =E110-D110 -> 0 | G110: =CD110 -> 11.56250865 | H110: =CE110 -> 2 | I110: =B110-H110 -> 0 | J110: =HYPERLINK(CL110,"Gmaps") -> Gmaps | K110: =IF(V110>$L$5,"KESKI","VÄHÄ") -> KESKI | L110: =IF(P110<40,"Valta",IF(P110<100,"Kanta",IF(P110<1000,"Seutu",IF(P110>999,"Yhdys")))) -> Yhdys | M110: Muukontie, Partalantie | N110: Lappeenranta | O110: Etelä-Karjala | P110: 4071 | Q110: 1 | R110: 4344 | S110: 1 | T110: 5427 | U110: =T110-R110 -> 1083 | V110: 2042 | W110: 75 | X110: 2246 | Y110: 2042 (99 %) | Z110: 50 (99 %) | AA110: Ic (100 %) | AB110: Asfalttibetoni (99 %) | AC110: PK2 (93 %) | AD110: 0 | AE110: 1 | AF110: 0.2363804247 | AG110: 16 | AL110: =+IF(V110>=$L$5,$F$4,($F$4/($L$5))*V110) -> 9 | AM110: 15 | AN110: =+IF(AM110>=$M$14,$J$14,IF(AM110<($M$14),AM110*($J$14/($M$14)),)) -> 3 | AO110: 495 | AP110: =+IF(AO110>=$M$10,$J$10,IF(AO110<($M$10),AO110*($J$10/($M$10)),)) -> 2 | AQ110: =IF(CN110=0,"-",IF(CN110=1,"taksi",IF(CN110=2,"pikkubussi","bussi"))) -> bussi | AR110: =IF(CN110=0,0,IF(CN110<3,$F$7/2,$F$7)) -> 3 | AS110: =SUM(AL110,AN110,AP110,AR110) -> 17 | AT110: =+AS110*$H$4 -> 5.666666667 | AU110: =+IF(W110=0,0,IF(W110>$L$6,$F$9,($F$9/$L$6)*W110)) -> 9 | AV110: =IF(CP110>0,$F$10,0) -> 0 | AW110: =IF(CR110>0,$F$11,0) -> 0 | AX110: =IF(CS110>0,$F$12,0) -> 0 | AY110: =IF(CT110>0,$F$13,0) -> 0 | AZ110: =IF(CU110>0,$F$14,0) -> 1 | BA110: =+IF(CV110>=$M$22,$J$22,IF(CV110<($M$22),CV110*($J$22/($M$22)),)) -> 0.03833333333 | BB110: =+IF(CW110>=$M$23,$J$23,IF(CW110<($M$23),CW110*($J$23/($M$23)),)) -> 0 | BC110: =+IF(CX110>=$M$24,$J$24,IF(CX110<($M$24),CX110*($J$24/($M$24)),)) -> 0 | BD110: =+IF(CY110>=$M$25,$J$25,IF(CY110<($M$25),CY110*($J$25/($M$25)),)) -> 0 | BE110: =IF(CZ110>0,$F$16,0) -> 0 | BF110: =+IF(DC110>=$M$28,$J$28,IF(DC110<($M$28),DC110*($J$28/($M$28)),)) -> 1 | BG110: =IF(DO110>0,$F$18,0) -> 0 | BH110: =IF(COUNTIF($J$31:$M$31,TRUE)=0, 0, IF(SUMIF($J$31:$M$31,TRUE,DP110:DT110)/COUNTIF($J$31:$M$31,TRUE)>=$M$32, $F$19, $F$19*(SUMIF($J$31:$M$31,TRUE,DP110:DT110)/COUNTIF($J$31:$M$31,TRUE)/$M$32))) -> 0.1491926205 | BI110: =SUM(AU110+AV110+AW110+AX110+AY110+AZ110+BE110+BA110+BB110+BC110+BD110+BF110+BG110+BH110) -> 11.18752595 | BJ110: =+BI110*$H$9 -> 3.729175318 | BK110: 0 | BL110: =BK110/U110 -> 0 | BM110: =IF(BL110>0,IF(BL110>=$M$18,$J$18,IF(BL110<$M$18,$J$19,0)),0) -> 0 | BN110: 382.1835238 | BO110: =BN110/U110 -> 0.3528933738 | BP110: =IF(BO110,$F$22,0) -> 1 | BQ110: =IF(DE110>0,$F$23,0) -> 1 | BR110: 435.5260688 | BS110: =BR110/U110 -> 0.4021478013 | BT110: =+IF(BS110>=$L$3,$F$24,0) -> 0 | BU110: 126.1311173 | BV110: =IF(BU110>0,IF(BU110>=100,$F$25,IF(BU110<100,$F$25/2)),0) -> 1 | BW110: =SUM(DI110) -> 1.5 | BX110: =IF(OR(DK110>0,DL110>0),$F$27,0) -> 1 | BY110: =IF(DJ110>0,$F$28,0) -> 0 | BZ110: =IF(DN110>0,$F$29,0) -> 1 | CA110: =SUM(BM110,BP110,BV110,BQ110,BT110,BW110,BX110,BY110,BZ110) -> 6.5 | CB110: =+CA110*$H$21 -> 2.166666667 | CC110: =SUM(AS110,BI110,CA110) -> 34.68752595 | CD110: =SUM(AT110,BJ110,CB110) -> 11.56250865 | CE110: =IF(D110<($W$13*$CF$31),1,IF(D110<(($W$14+$W$13)*$CF$31),2,IF(D110<(($W$15+$W$13+$W$14)*$CF$31),3,4))) -> 2 | CL110: https://www.google.com/maps/@61.0838095674,28.3334703399,3a,75y,90t/data=!3m3!1e1!3m1!2e0 | CN110: 3 | CP110: 0 | CR110: 0 | CS110: 0 | CT110: 0 | CU110: 3 | CV110: 23 | CW110: 0 | CX110: 0 | CY110: 0 | CZ110: 0 | DC110: 7 | DE110: 3 | DG110: =IF(X110>$L$7,$F$26/2,0) -> 1.5 | DH110: =+IF(X110/V110>1.5,$F$26/2,0) -> 0 | DI110: =SUM(DG110:DH110) -> 1.5 | DJ110: 0 | DK110: 1 | DL110: 0 | DN110: 1 | DO110: 0 | DP110: 0.5369984247 | DQ110: 0.2843804196 | DR110: 0.2975658092 | DS110: 0.169518426 | DT110: =AVERAGE(DP110:DR110) -> 0.3729815511 | DV110: 109 | DW110: =D110 -> 72 | DX110: =DV110-DW110 -> 37 | DY110: 2 | DZ110: =H110 -> 2 | EA110: =DY110-DZ110 -> 0
A111: =CONCATENATE(P111,"_",Q111) -> 359_2 | B111: 2 | D111: =RANK(CD111,$CD$39:$CD$711) -> 73 | E111: 73 | F111: =E111-D111 -> 0 | G111: =CD111 -> 11.55661603 | H111: =CE111 -> 2 | I111: =B111-H111 -> 0 | J111: =HYPERLINK(CL111,"Gmaps") -> Gmaps | K111: =IF(V111>$L$5,"KESKI","VÄHÄ") -> KESKI | L111: =IF(P111<40,"Valta",IF(P111<100,"Kanta",IF(P111<1000,"Seutu",IF(P111>999,"Yhdys")))) -> Seutu | M111: Anjalantie | N111: Kouvola | O111: Kymenlaakso | P111: 359 | Q111: 2 | R111: 0 | S111: 2 | T111: 1179 | U111: =T111-R111 -> 1179 | V111: 2229 | W111: 102 | X111: 2551 | Y111: 2229 (100 %) | Z111: 80 (100 %) | AA111: Ib (100 %) | AB111: Asfalttibetoni (100 %) | AC111: PK2 (100 %) | AD111: 0 | AE111: 0 | AF111: 0.2973977695 | AG111: 26 | AL111: =+IF(V111>=$L$5,$F$4,($F$4/($L$5))*V111) -> 9 | AM111: 0 | AN111: =+IF(AM111>=$M$14,$J$14,IF(AM111<($M$14),AM111*($J$14/($M$14)),)) -> 0 | AO111: 455 | AP111: =+IF(AO111>=$M$10,$J$10,IF(AO111<($M$10),AO111*($J$10/($M$10)),)) -> 2 | AQ111: =IF(CN111=0,"-",IF(CN111=1,"taksi",IF(CN111=2,"pikkubussi","bussi"))) -> bussi | AR111: =IF(CN111=0,0,IF(CN111<3,$F$7/2,$F$7)) -> 3 | AS111: =SUM(AL111,AN111,AP111,AR111) -> 14 | AT111: =+AS111*$H$4 -> 4.666666667 | AU111: =+IF(W111=0,0,IF(W111>$L$6,$F$9,($F$9/$L$6)*W111)) -> 9 | AV111: =IF(CP111>0,$F$10,0) -> 2 | AW111: =IF(CR111>0,$F$11,0) -> 0 | AX111: =IF(CS111>0,$F$12,0) -> 1 | AY111: =IF(CT111>0,$F$13,0) -> 0 | AZ111: =IF(CU111>0,$F$14,0) -> 1 | BA111: =+IF(CV111>=$M$22,$J$22,IF(CV111<($M$22),CV111*($J$22/($M$22)),)) -> 0.08 | BB111: =+IF(CW111>=$M$23,$J$23,IF(CW111<($M$23),CW111*($J$23/($M$23)),)) -> 0.125 | BC111: =+IF(CX111>=$M$24,$J$24,IF(CX111<($M$24),CX111*($J$24/($M$24)),)) -> 0.417 | BD111: =+IF(CY111>=$M$25,$J$25,IF(CY111<($M$25),CY111*($J$25/($M$25)),)) -> 0 | BE111: =IF(CZ111>0,$F$16,0) -> 0 | BF111: =+IF(DC111>=$M$28,$J$28,IF(DC111<($M$28),DC111*($J$28/($M$28)),)) -> 0 | BG111: =IF(DO111>0,$F$18,0) -> 0 | BH111: =IF(COUNTIF($J$31:$M$31,TRUE)=0, 0, IF(SUMIF($J$31:$M$31,TRUE,DP111:DT111)/COUNTIF($J$31:$M$31,TRUE)>=$M$32, $F$19, $F$19*(SUMIF($J$31:$M$31,TRUE,DP111:DT111)/COUNTIF($J$31:$M$31,TRUE)/$M$32))) -> 0.5478480931 | BI111: =SUM(AU111+AV111+AW111+AX111+AY111+AZ111+BE111+BA111+BB111+BC111+BD111+BF111+BG111+BH111) -> 14.16984809 | BJ111: =+BI111*$H$9 -> 4.723282698 | BK111: 712.9910942 | BL111: =BK111/U111 -> 0.6047422342 | BM111: =IF(BL111>0,IF(BL111>=$M$18,$J$18,IF(BL111<$M$18,$J$19,0)),0) -> 1 | BN111: 0 | BO111: =BN111/U111 -> 0 | BP111: =IF(BO111,$F$22,0) -> 0 | BQ111: =IF(DE111>0,$F$23,0) -> 0 | BR111: 1178.853525 | BS111: =BR111/U111 -> 0.9998757637 | BT111: =+IF(BS111>=$L$3,$F$24,0) -> 1 | BU111: 180.3324852 | BV111: =IF(BU111>0,IF(BU111>=100,$F$25,IF(BU111<100,$F$25/2)),0) -> 1 | BW111: =SUM(DI111) -> 1.5 | BX111: =IF(OR(DK111>0,DL111>0),$F$27,0) -> 1 | BY111: =IF(DJ111>0,$F$28,0) -> 0 | BZ111: =IF(DN111>0,$F$29,0) -> 1 | CA111: =SUM(BM111,BP111,BV111,BQ111,BT111,BW111,BX111,BY111,BZ111) -> 6.5 | CB111: =+CA111*$H$21 -> 2.166666667 | CC111: =SUM(AS111,BI111,CA111) -> 34.66984809 | CD111: =SUM(AT111,BJ111,CB111) -> 11.55661603 | CE111: =IF(D111<($W$13*$CF$31),1,IF(D111<(($W$14+$W$13)*$CF$31),2,IF(D111<(($W$15+$W$13+$W$14)*$CF$31),3,4))) -> 2 | CL111: https://www.google.com/maps/@60.748873077,26.7743960193,3a,75y,90t/data=!3m3!1e1!3m1!2e0 | CN111: 3 | CP111: 1 | CR111: 0 | CS111: 1 | CT111: 0 | CU111: 2 | CV111: 48 | CW111: 25 | CX111: 834 | CY111: 0 | CZ111: 0 | DC111: 0 | DE111: 0 | DG111: =IF(X111>$L$7,$F$26/2,0) -> 1.5 | DH111: =+IF(X111/V111>1.5,$F$26/2,0) -> 0 | DI111: =SUM(DG111:DH111) -> 1.5 | DJ111: 0 | DK111: 1 | DL111: 0 | DN111: 1 | DO111: 0 | DP111: 1.367746199 | DQ111: 1.690219366 | DR111: 1.050895134 | DS111: 1.247754581 | DT111: =AVERAGE(DP111:DR111) -> 1.369620233 | DV111: 65 | DW111: =D111 -> 73 | DX111: =DV111-DW111 -> -8 | DY111: 2 | DZ111: =H111 -> 2 | EA111: =DY111-DZ111 -> 0
A112: =CONCATENATE(P112,"_",Q112) -> 14841_1 | B112: 2 | D112: =RANK(CD112,$CD$39:$CD$711) -> 74 | E112: 74 | F112: =E112-D112 -> 0 | G112: =CD112 -> 11.55455429 | H112: =CE112 -> 2 | I112: =B112-H112 -> 0 | J112: =HYPERLINK(CL112,"Gmaps") -> Gmaps | K112: =IF(V112>$L$5,"KESKI","VÄHÄ") -> KESKI | L112: =IF(P112<40,"Valta",IF(P112<100,"Kanta",IF(P112<1000,"Seutu",IF(P112>999,"Yhdys")))) -> Yhdys | M112: Lappeentie | N112: Lappeenranta | O112: Etelä-Karjala | P112: 14841 | Q112: 1 | R112: 0 | S112: 1 | T112: 3221 | U112: =T112-R112 -> 3221 | V112: 1524 | W112: 56 | X112: 1508 | Y112: 1524 (100 %) | Z112: 40 (100 %) | AA112: Ic (100 %) | AB112: Asfalttibetoni (100 %) | AC112: PK2 (100 %) | AD112: 2 | AE112: 2 | AF112: 0.06209251785 | AG112: 12 | AL112: =+IF(V112>=$L$5,$F$4,($F$4/($L$5))*V112) -> 9 | AM112: 15 | AN112: =+IF(AM112>=$M$14,$J$14,IF(AM112<($M$14),AM112*($J$14/($M$14)),)) -> 3 | AO112: 706 | AP112: =+IF(AO112>=$M$10,$J$10,IF(AO112<($M$10),AO112*($J$10/($M$10)),)) -> 2 | AQ112: =IF(CN112=0,"-",IF(CN112=1,"taksi",IF(CN112=2,"pikkubussi","bussi"))) -> bussi | AR112: =IF(CN112=0,0,IF(CN112<3,$F$7/2,$F$7)) -> 3 | AS112: =SUM(AL112,AN112,AP112,AR112) -> 17 | AT112: =+AS112*$H$4 -> 5.666666667 | AU112: =+IF(W112=0,0,IF(W112>$L$6,$F$9,($F$9/$L$6)*W112)) -> 9 | AV112: =IF(CP112>0,$F$10,0) -> 0 | AW112: =IF(CR112>0,$F$11,0) -> 0 | AX112: =IF(CS112>0,$F$12,0) -> 0 | AY112: =IF(CT112>0,$F$13,0) -> 0 | AZ112: =IF(CU112>0,$F$14,0) -> 1 | BA112: =+IF(CV112>=$M$22,$J$22,IF(CV112<($M$22),CV112*($J$22/($M$22)),)) -> 0 | BB112: =+IF(CW112>=$M$23,$J$23,IF(CW112<($M$23),CW112*($J$23/($M$23)),)) -> 0 | BC112: =+IF(CX112>=$M$24,$J$24,IF(CX112<($M$24),CX112*($J$24/($M$24)),)) -> 0 | BD112: =+IF(CY112>=$M$25,$J$25,IF(CY112<($M$25),CY112*($J$25/($M$25)),)) -> 0 | BE112: =IF(CZ112>0,$F$16,0) -> 0 | BF112: =+IF(DC112>=$M$28,$J$28,IF(DC112<($M$28),DC112*($J$28/($M$28)),)) -> 0 | BG112: =IF(DO112>0,$F$18,0) -> 0 | BH112: =IF(COUNTIF($J$31:$M$31,TRUE)=0, 0, IF(SUMIF($J$31:$M$31,TRUE,DP112:DT112)/COUNTIF($J$31:$M$31,TRUE)>=$M$32, $F$19, $F$19*(SUMIF($J$31:$M$31,TRUE,DP112:DT112)/COUNTIF($J$31:$M$31,TRUE)/$M$32))) -> 0.1636628673 | BI112: =SUM(AU112+AV112+AW112+AX112+AY112+AZ112+BE112+BA112+BB112+BC112+BD112+BF112+BG112+BH112) -> 10.16366287 | BJ112: =+BI112*$H$9 -> 3.387887622 | BK112: 3209.211195 | BL112: =BK112/U112 -> 0.9963400172 | BM112: =IF(BL112>0,IF(BL112>=$M$18,$J$18,IF(BL112<$M$18,$J$19,0)),0) -> 1 | BN112: 0 | BO112: =BN112/U112 -> 0 | BP112: =IF(BO112,$F$22,0) -> 0 | BQ112: =IF(DE112>0,$F$23,0) -> 1 | BR112: 3209.211195 | BS112: =BR112/U112 -> 0.9963400172 | BT112: =+IF(BS112>=$L$3,$F$24,0) -> 1 | BU112: 981.2452654 | BV112: =IF(BU112>0,IF(BU112>=100,$F$25,IF(BU112<100,$F$25/2)),0) -> 1 | BW112: =SUM(DI112) -> 1.5 | BX112: =IF(OR(DK112>0,DL112>0),$F$27,0) -> 1 | BY112: =IF(DJ112>0,$F$28,0) -> 0 | BZ112: =IF(DN112>0,$F$29,0) -> 1 | CA112: =SUM(BM112,BP112,BV112,BQ112,BT112,BW112,BX112,BY112,BZ112) -> 7.5 | CB112: =+CA112*$H$21 -> 2.5 | CC112: =SUM(AS112,BI112,CA112) -> 34.66366287 | CD112: =SUM(AT112,BJ112,CB112) -> 11.55455429 | CE112: =IF(D112<($W$13*$CF$31),1,IF(D112<(($W$14+$W$13)*$CF$31),2,IF(D112<(($W$15+$W$13+$W$14)*$CF$31),3,4))) -> 2 | CL112: https://www.google.com/maps/@61.1183062384,28.5079121245,3a,75y,90t/data=!3m3!1e1!3m1!2e0 | CN112: 3 | CP112: 0 | CR112: 0 | CS112: 0 | CT112: 0 | CU112: 1 | CV112: 0 | CW112: 0 | CX112: 0 | CY112: 0 | CZ112: 0 | DC112: 0 | DE112: 1 | DG112: =IF(X112>$L$7,$F$26/2,0) -> 1.5 | DH112: =+IF(X112/V112>1.5,$F$26/2,0) -> 0 | DI112: =SUM(DG112:DH112) -> 1.5 | DJ112: 0 | DK112: 1 | DL112: 0 | DN112: 1 | DO112: 0 | DP112: 0.5462223214 | DQ112: 0.4053207219 | DR112: 0.2759284617 | DS112: 0.1583560278 | DT112: =AVERAGE(DP112:DR112) -> 0.4091571683 | DV112: 141 | DW112: =D112 -> 74 | DX112: =DV112-DW112 -> 67 | DY112: 2 | DZ112: =H112 -> 2 | EA112: =DY112-DZ112 -> 0
A113: =CONCATENATE(P113,"_",Q113) -> 170_42 | B113: 2 | D113: =RANK(CD113,$CD$39:$CD$711) -> 75 | E113: 75 | F113: =E113-D113 -> 0 | G113: =CD113 -> 11.4555549 | H113: =CE113 -> 2 | I113: =B113-H113 -> 0 | J113: =HYPERLINK(CL113,"Gmaps") -> Gmaps | K113: =IF(V113>$L$5,"KESKI","VÄHÄ") -> KESKI | L113: =IF(P113<40,"Valta",IF(P113<100,"Kanta",IF(P113<1000,"Seutu",IF(P113>999,"Yhdys")))) -> Seutu | M113: Vaalimaantie | N113: Virolahti | O113: Kymenlaakso | P113: 170 | Q113: 42 | R113: 0 | S113: 42 | T113: 6545 | U113: =T113-R113 -> 6545 | V113: 928.8692131 | W113: 55.40993125 | X113: 965.4663102 | Y113: 843 (44 %), 959 (41 %), 1093 (16 %) | Z113: 40 (1 %), 50 (7 %), 60 (20 %), 80 (72 %) | AA113: I (2 %), Ib (98 %) | AB113: Asfalttibetoni (100 %), Kantavan kerroksen asfalttibetoni (ABK) (69 %) | AC113: PK2 (100 %) | AD113: 1 | AE113: 1 | AF113: 0.002748930971 | AG113: 30.26065699 | AL113: =+IF(V113>=$L$5,$F$4,($F$4/($L$5))*V113) -> 9 | AM113: 0 | AN113: =+IF(AM113>=$M$14,$J$14,IF(AM113<($M$14),AM113*($J$14/($M$14)),)) -> 0 | AO113: 206 | AP113: =+IF(AO113>=$M$10,$J$10,IF(AO113<($M$10),AO113*($J$10/($M$10)),)) -> 1.373333333 | AQ113: =IF(CN113=0,"-",IF(CN113=1,"taksi",IF(CN113=2,"pikkubussi","bussi"))) -> bussi | AR113: =IF(CN113=0,0,IF(CN113<3,$F$7/2,$F$7)) -> 3 | AS113: =SUM(AL113,AN113,AP113,AR113) -> 13.37333333 | AT113: =+AS113*$H$4 -> 4.457777778 | AU113: =+IF(W113=0,0,IF(W113>$L$6,$F$9,($F$9/$L$6)*W113)) -> 9 | AV113: =IF(CP113>0,$F$10,0) -> 2 | AW113: =IF(CR113>0,$F$11,0) -> 1 | AX113: =IF(CS113>0,$F$12,0) -> 0 | AY113: =IF(CT113>0,$F$13,0) -> 0 | AZ113: =IF(CU113>0,$F$14,0) -> 1 | BA113: =+IF(CV113>=$M$22,$J$22,IF(CV113<($M$22),CV113*($J$22/($M$22)),)) -> 0.08166666667 | BB113: =+IF(CW113>=$M$23,$J$23,IF(CW113<($M$23),CW113*($J$23/($M$23)),)) -> 0.04 | BC113: =+IF(CX113>=$M$24,$J$24,IF(CX113<($M$24),CX113*($J$24/($M$24)),)) -> 0 | BD113: =+IF(CY113>=$M$25,$J$25,IF(CY113<($M$25),CY113*($J$25/($M$25)),)) -> 0 | BE113: =IF(CZ113>0,$F$16,0) -> 0 | BF113: =+IF(DC113>=$M$28,$J$28,IF(DC113<($M$28),DC113*($J$28/($M$28)),)) -> 0 | BG113: =IF(DO113>0,$F$18,0) -> 1 | BH113: =IF(COUNTIF($J$31:$M$31,TRUE)=0, 0, IF(SUMIF($J$31:$M$31,TRUE,DP113:DT113)/COUNTIF($J$31:$M$31,TRUE)>=$M$32, $F$19, $F$19*(SUMIF($J$31:$M$31,TRUE,DP113:DT113)/COUNTIF($J$31:$M$31,TRUE)/$M$32))) -> 0.3716647101 | BI113: =SUM(AU113+AV113+AW113+AX113+AY113+AZ113+BE113+BA113+BB113+BC113+BD113+BF113+BG113+BH113) -> 14.49333138 | BJ113: =+BI113*$H$9 -> 4.831110459 | BK113: 2348.112116 | BL113: =BK113/U113 -> 0.3587642652 | BM113: =IF(BL113>0,IF(BL113>=$M$18,$J$18,IF(BL113<$M$18,$J$19,0)),0) -> 0.5 | BN113: 5815.252836 | BO113: =BN113/U113 -> 0.8885031071 | BP113: =IF(BO113,$F$22,0) -> 1 | BQ113: =IF(DE113>0,$F$23,0) -> 1 | BR113: 980.1496104 | BS113: =BR113/U113 -> 0.149755479 | BT113: =+IF(BS113>=$L$3,$F$24,0) -> 0 | BU113: 32.37585943 | BV113: =IF(BU113>0,IF(BU113>=100,$F$25,IF(BU113<100,$F$25/2)),0) -> 0.5 | BW113: =SUM(DI113) -> 1.5 | BX113: =IF(OR(DK113>0,DL113>0),$F$27,0) -> 1 | BY113: =IF(DJ113>0,$F$28,0) -> 0 | BZ113: =IF(DN113>0,$F$29,0) -> 1 | CA113: =SUM(BM113,BP113,BV113,BQ113,BT113,BW113,BX113,BY113,BZ113) -> 6.5 | CB113: =+CA113*$H$21 -> 2.166666667 | CC113: =SUM(AS113,BI113,CA113) -> 34.36666471 | CD113: =SUM(AT113,BJ113,CB113) -> 11.4555549 | CE113: =IF(D113<($W$13*$CF$31),1,IF(D113<(($W$14+$W$13)*$CF$31),2,IF(D113<(($W$15+$W$13+$W$14)*$CF$31),3,4))) -> 2 | CL113: https://www.google.com/maps/@60.5876723954,27.712843563,3a,75y,90t/data=!3m3!1e1!3m1!2e0 | CN113: 3 | CP113: 2 | CR113: 1 | CS113: 0 | CT113: 0 | CU113: 11 | CV113: 49 | CW113: 8 | CX113: 0 | CY113: 0 | CZ113: 0 | DC113: 0 | DE113: 3 | DG113: =IF(X113>$L$7,$F$26/2,0) -> 1.5 | DH113: =+IF(X113/V113>1.5,$F$26/2,0) -> 0 | DI113: =SUM(DG113:DH113) -> 1.5 | DJ113: 0 | DK113: 1 | DL113: 0 | DN113: 1 | DO113: 1 | DP113: 1.269679588 | DQ113: 0.7882814838 | DR113: 0.729524254 | DS113: 0.1163106001 | DT113: =AVERAGE(DP113:DR113) -> 0.9291617753 | DV113: 94 | DW113: =D113 -> 75 | DX113: =DV113-DW113 -> 19 | DY113: 2 | DZ113: =H113 -> 2 | EA113: =DY113-DZ113 -> 0
A114: =CONCATENATE(P114,"_",Q114) -> 3691_1 | B114: 2 | D114: =RANK(CD114,$CD$39:$CD$711) -> 76 | E114: 76 | F114: =E114-D114 -> 0 | G114: =CD114 -> 11.42389501 | H114: =CE114 -> 2 | I114: =B114-H114 -> 0 | J114: =HYPERLINK(CL114,"Gmaps") -> Gmaps | K114: =IF(V114>$L$5,"KESKI","VÄHÄ") -> KESKI | L114: =IF(P114<40,"Valta",IF(P114<100,"Kanta",IF(P114<1000,"Seutu",IF(P114>999,"Yhdys")))) -> Yhdys | M114: Vekarantie | N114: Kouvola | O114: Kymenlaakso | P114: 3691 | Q114: 1 | R114: 0 | S114: 1 | T114: 4775 | U114: =T114-R114 -> 4775 | V114: 799 | W114: 61 | X114: 933 | Y114: 799 (100 %) | Z114: 80 (100 %) | AA114: II (100 %) | AB114: Asfalttibetoni (100 %) | AC114: PK3 (100 %) | AD114: 1 | AE114: 5 | AF114: 0.2094240838 | AG114: 10 | AL114: =+IF(V114>=$L$5,$F$4,($F$4/($L$5))*V114) -> 9 | AM114: 0 | AN114: =+IF(AM114>=$M$14,$J$14,IF(AM114<($M$14),AM114*($J$14/($M$14)),)) -> 0 | AO114: 577 | AP114: =+IF(AO114>=$M$10,$J$10,IF(AO114<($M$10),AO114*($J$10/($M$10)),)) -> 2 | AQ114: =IF(CN114=0,"-",IF(CN114=1,"taksi",IF(CN114=2,"pikkubussi","bussi"))) -> bussi | AR114: =IF(CN114=0,0,IF(CN114<3,$F$7/2,$F$7)) -> 3 | AS114: =SUM(AL114,AN114,AP114,AR114) -> 14 | AT114: =+AS114*$H$4 -> 4.666666667 | AU114: =+IF(W114=0,0,IF(W114>$L$6,$F$9,($F$9/$L$6)*W114)) -> 9 | AV114: =IF(CP114>0,$F$10,0) -> 2 | AW114: =IF(CR114>0,$F$11,0) -> 0 | AX114: =IF(CS114>0,$F$12,0) -> 1 | AY114: =IF(CT114>0,$F$13,0) -> 0 | AZ114: =IF(CU114>0,$F$14,0) -> 1 | BA114: =+IF(CV114>=$M$22,$J$22,IF(CV114<($M$22),CV114*($J$22/($M$22)),)) -> 0.3183333333 | BB114: =+IF(CW114>=$M$23,$J$23,IF(CW114<($M$23),CW114*($J$23/($M$23)),)) -> 0.5 | BC114: =+IF(CX114>=$M$24,$J$24,IF(CX114<($M$24),CX114*($J$24/($M$24)),)) -> 0 | BD114: =+IF(CY114>=$M$25,$J$25,IF(CY114<($M$25),CY114*($J$25/($M$25)),)) -> 0 | BE114: =IF(CZ114>0,$F$16,0) -> 0 | BF114: =+IF(DC114>=$M$28,$J$28,IF(DC114<($M$28),DC114*($J$28/($M$28)),)) -> 0 | BG114: =IF(DO114>0,$F$18,0) -> 1 | BH114: =IF(COUNTIF($J$31:$M$31,TRUE)=0, 0, IF(SUMIF($J$31:$M$31,TRUE,DP114:DT114)/COUNTIF($J$31:$M$31,TRUE)>=$M$32, $F$19, $F$19*(SUMIF($J$31:$M$31,TRUE,DP114:DT114)/COUNTIF($J$31:$M$31,TRUE)/$M$32))) -> 0.4533517001 | BI114: =SUM(AU114+AV114+AW114+AX114+AY114+AZ114+BE114+BA114+BB114+BC114+BD114+BF114+BG114+BH114) -> 15.27168503 | BJ114: =+BI114*$H$9 -> 5.090561678 | BK114: 0 | BL114: =BK114/U114 -> 0 | BM114: =IF(BL114>0,IF(BL114>=$M$18,$J$18,IF(BL114<$M$18,$J$19,0)),0) -> 0 | BN114: 0 | BO114: =BN114/U114 -> 0 | BP114: =IF(BO114,$F$22,0) -> 0 | BQ114: =IF(DE114>0,$F$23,0) -> 1 | BR114: 0 | BS114: =BR114/U114 -> 0 | BT114: =+IF(BS114>=$L$3,$F$24,0) -> 0 | BU114: 4.879581152 | BV114: =IF(BU114>0,IF(BU114>=100,$F$25,IF(BU114<100,$F$25/2)),0) -> 0.5 | BW114: =SUM(DI114) -> 1.5 | BX114: =IF(OR(DK114>0,DL114>0),$F$27,0) -> 0 | BY114: =IF(DJ114>0,$F$28,0) -> 1 | BZ114: =IF(DN114>0,$F$29,0) -> 1 | CA114: =SUM(BM114,BP114,BV114,BQ114,BT114,BW114,BX114,BY114,BZ114) -> 5 | CB114: =+CA114*$H$21 -> 1.666666667 | CC114: =SUM(AS114,BI114,CA114) -> 34.27168503 | CD114: =SUM(AT114,BJ114,CB114) -> 11.42389501 | CE114: =IF(D114<($W$13*$CF$31),1,IF(D114<(($W$14+$W$13)*$CF$31),2,IF(D114<(($W$15+$W$13+$W$14)*$CF$31),3,4))) -> 2 | CL114: https://www.google.com/maps/@61.0282342887,26.9832867616,3a,75y,90t/data=!3m3!1e1!3m1!2e0 | CN114: 3 | CP114: 1 | CR114: 0 | CS114: 1 | CT114: 0 | CU114: 2 | CV114: 191 | CW114: 198 | CX114: 0 | CY114: 0 | CZ114: 0 | DC114: 0 | DE114: 2 | DG114: =IF(X114>$L$7,$F$26/2,0) -> 1.5 | DH114: =+IF(X114/V114>1.5,$F$26/2,0) -> 0 | DI114: =SUM(DG114:DH114) -> 1.5 | DJ114: 6 | DK114: 0 | DL114: 0 | DN114: 1 | DO114: 1 | DP114: 1.317953584 | DQ114: 1.146150472 | DR114: 0.9360336954 | DS114: 0.976506406 | DT114: =AVERAGE(DP114:DR114) -> 1.13337925 | DV114: 95 | DW114: =D114 -> 76 | DX114: =DV114-DW114 -> 19 | DY114: 2 | DZ114: =H114 -> 2 | EA114: =DY114-DZ114 -> 0
A115: =CONCATENATE(P115,"_",Q115) -> 354_2 | B115: 2 | D115: =RANK(CD115,$CD$39:$CD$711) -> 77 | E115: 77 | F115: =E115-D115 -> 0 | G115: =CD115 -> 11.39938889 | H115: =CE115 -> 2 | I115: =B115-H115 -> 0 | J115: =HYPERLINK(CL115,"Gmaps") -> Gmaps | K115: =IF(V115>$L$5,"KESKI","VÄHÄ") -> KESKI | L115: =IF(P115<40,"Valta",IF(P115<100,"Kanta",IF(P115<1000,"Seutu",IF(P115>999,"Yhdys")))) -> Seutu | M115: Elimäentie | N115: Kouvola | O115: Kymenlaakso | P115: 354 | Q115: 2 | R115: 0 | S115: 2 | T115: 5778 | U115: =T115-R115 -> 5778 | V115: 1351 | W115: 131 | X115: 1496 | Y115: 1351 (100 %) | Z115: 100 (98 %), 80 (2 %) | AA115: Ib (100 %) | AB115: Asfalttibetoni (100 %) | AC115: PK2 (100 %) | AD115: 0 | AE115: 4 | AF115: 0 | AG115: 67 | AL115: =+IF(V115>=$L$5,$F$4,($F$4/($L$5))*V115) -> 9 | AM115: 0 | AN115: =+IF(AM115>=$M$14,$J$14,IF(AM115<($M$14),AM115*($J$14/($M$14)),)) -> 0 | AO115: 401 | AP115: =+IF(AO115>=$M$10,$J$10,IF(AO115<($M$10),AO115*($J$10/($M$10)),)) -> 2 | AQ115: =IF(CN115=0,"-",IF(CN115=1,"taksi",IF(CN115=2,"pikkubussi","bussi"))) -> pikkubussi | AR115: =IF(CN115=0,0,IF(CN115<3,$F$7/2,$F$7)) -> 1.5 | AS115: =SUM(AL115,AN115,AP115,AR115) -> 12.5 | AT115: =+AS115*$H$4 -> 4.166666667 | AU115: =+IF(W115=0,0,IF(W115>$L$6,$F$9,($F$9/$L$6)*W115)) -> 9 | AV115: =IF(CP115>0,$F$10,0) -> 2 | AW115: =IF(CR115>0,$F$11,0) -> 0 | AX115: =IF(CS115>0,$F$12,0) -> 0 | AY115: =IF(CT115>0,$F$13,0) -> 0 | AZ115: =IF(CU115>0,$F$14,0) -> 1 | BA115: =+IF(CV115>=$M$22,$J$22,IF(CV115<($M$22),CV115*($J$22/($M$22)),)) -> 0.5 | BB115: =+IF(CW115>=$M$23,$J$23,IF(CW115<($M$23),CW115*($J$23/($M$23)),)) -> 0.5 | BC115: =+IF(CX115>=$M$24,$J$24,IF(CX115<($M$24),CX115*($J$24/($M$24)),)) -> 0.0315 | BD115: =+IF(CY115>=$M$25,$J$25,IF(CY115<($M$25),CY115*($J$25/($M$25)),)) -> 0.3333333333 | BE115: =IF(CZ115>0,$F$16,0) -> 1 | BF115: =+IF(DC115>=$M$28,$J$28,IF(DC115<($M$28),DC115*($J$28/($M$28)),)) -> 0.3333333333 | BG115: =IF(DO115>0,$F$18,0) -> 0 | BH115: =IF(COUNTIF($J$31:$M$31,TRUE)=0, 0, IF(SUMIF($J$31:$M$31,TRUE,DP115:DT115)/COUNTIF($J$31:$M$31,TRUE)>=$M$32, $F$19, $F$19*(SUMIF($J$31:$M$31,TRUE,DP115:DT115)/COUNTIF($J$31:$M$31,TRUE)/$M$32))) -> 2 | BI115: =SUM(AU115+AV115+AW115+AX115+AY115+AZ115+BE115+BA115+BB115+BC115+BD115+BF115+BG115+BH115) -> 16.69816667 | BJ115: =+BI115*$H$9 -> 5.566055556 | BK115: 1167.190712 | BL115: =BK115/U115 -> 0.2020060077 | BM115: =IF(BL115>0,IF(BL115>=$M$18,$J$18,IF(BL115<$M$18,$J$19,0)),0) -> 0.5 | BN115: 5770.554876 | BO115: =BN115/U115 -> 0.9987114704 | BP115: =IF(BO115,$F$22,0) -> 1 | BQ115: =IF(DE115>0,$F$23,0) -> 1 | BR115: 0 | BS115: =BR115/U115 -> 0 | BT115: =+IF(BS115>=$L$3,$F$24,0) -> 0 | BU115: 0 | BV115: =IF(BU115>0,IF(BU115>=100,$F$25,IF(BU115<100,$F$25/2)),0) -> 0 | BW115: =SUM(DI115) -> 1.5 | BX115: =IF(OR(DK115>0,DL115>0),$F$27,0) -> 0 | BY115: =IF(DJ115>0,$F$28,0) -> 0 | BZ115: =IF(DN115>0,$F$29,0) -> 1 | CA115: =SUM(BM115,BP115,BV115,BQ115,BT115,BW115,BX115,BY115,BZ115) -> 5 | CB115: =+CA115*$H$21 -> 1.666666667 | CC115: =SUM(AS115,BI115,CA115) -> 34.19816667 | CD115: =SUM(AT115,BJ115,CB115) -> 11.39938889 | CE115: =IF(D115<($W$13*$CF$31),1,IF(D115<(($W$14+$W$13)*$CF$31),2,IF(D115<(($W$15+$W$13+$W$14)*$CF$31),3,4))) -> 2 | CL115: https://www.google.com/maps/@60.7116480432,26.4757084314,3a,75y,90t/data=!3m3!1e1!3m1!2e0 | CN115: 2 | CP115: 2 | CR115: 0 | CS115: 0 | CT115: 0 | CU115: 23 | CV115: 609 | CW115: 198 | CX115: 63 | CY115: 20 | CZ115: 1 | DC115: 1 | DE115: 1 | DG115: =IF(X115>$L$7,$F$26/2,0) -> 1.5 | DH115: =+IF(X115/V115>1.5,$F$26/2,0) -> 0 | DI115: =SUM(DG115:DH115) -> 1.5 | DJ115: 0 | DK115: 0 | DL115: 0 | DN115: 1 | DO115: 0 | DP115: 7.066837545 | DQ115: 7.106047971 | DR115: 4.88154471 | DS115: 2.746294046 | DT115: =AVERAGE(DP115:DR115) -> 6.351476742 | DV115: 29 | DW115: =D115 -> 77 | DX115: =DV115-DW115 -> -48 | DY115: 1 | DZ115: =H115 -> 2 | EA115: =DY115-DZ115 -> -1
